Workbook

Sheet Velkomst

Sheet Tabel 1 H
A1: Tabel 1. Forsikrede medlemmer
A3: Hovedstaden
C5: Mænd | E5: Kvinder | G5: I alt
A7: Civ. ing. | C7: 12996 | E7: 5248 | G7: 18244
A8: Diplom ing. | C8: 9879 | E8: 2544 | G8: 12423
A9: Cand. Scient. Tek. | C9: 5987 | E9: 5497 | G9: 11484
A10: MA. Hum. | C10: 6242 | E10: 14143 | G10: 20385
A11: MA. Nat. | C11: 3525 | E11: 3609 | G11: 7134
A12: MA. Ph.d. | C12: 723 | E12: 586 | G12: 1309
A13: MA. Samf. | C13: 1050 | E13: 2651 | G13: 3701
A14: Øvrige Mag. | C14: 591 | E14: 1152 | G14: 1743
A15: Agronom | C15: 385 | E15: 475 | G15: 860
A16: Landsk. Arkt. | C16: 132 | E16: 362 | G16: 494
A17: Hortonom | C17: 54 | E17: 94 | G17: 148
A18: Forstkand. | C18: 188 | E18: 67 | G18: 255
A19: Jordbrugsakad. | C19: 759 | E19: 998 | G19: 1757
A20: Mejeriing. | C20: 60 | E20: 89 | G20: 149
A21: Levn.m.kand. | C21: 52 | E21: 277 | G21: 329
A22: Dyrlæge | C22: 163 | E22: 805 | G22: 968
A23: Farmaceut | C23: 1089 | E23: 2823 | G23: 3912
A24: Læge | C24: 1580 | E24: 3823 | G24: 5403
A25: Tandlæge | C25: 134 | E25: 731 | G25: 865
A26: Arkitekt | C26: 1649 | E26: 2019 | G26: 3668
A27: Landinspek. | C27: 138 | E27: 52 | G27: 190
A28: Bibliotekar | C28: 437 | E28: 1206 | G28: 1643
A29: Musikudd. | C29: 126 | E29: 165 | G29: 291
A30: Teolog | C30: 203 | E30: 346 | G30: 549
A31: Psykolog | C31: 694 | E31: 3042 | G31: 3736
A32: Jurist | C32: 3272 | E32: 6584 | G32: 9856
A33: Økonom | C33: 3487 | E33: 2219 | G33: 5706
A34: Samf. Adm. | C34: 7045 | E34: 10545 | G34: 17590
A35: Cand. Merc. | C35: 10696 | E35: 10660 | G35: 21356
A36: HA | C36: 1385 | E36: 1194 | G36: 2579
A37: HD | C37: 1313 | E37: 1199 | G37: 2512
A38: Komm. og Sprog | C38: 616 | E38: 3300 | G38: 3916
A39: Bygningskonst. | C39: 2115 | E39: 495 | G39: 2610
A40: Cand. IT. | C40: 1580 | E40: 1372 | G40: 2952
A41: Bac. Samf. | C41: 381 | E41: 435 | G41: 816
A42: Bac. Hum. | C42: 761 | E42: 1245 | G42: 2006
A43: Bac. Nat. | C43: 1018 | E43: 698 | G43: 1716
A44: Andre | C44: 6487 | E44: 7674 | G44: 14161
A46: Total | C46: 88233 | E46: 99426 | G46: 187659
A48: Ingeniører i alt | C48: 22875 | E48: 7792 | G48: 30667
A49: Magistre i alt | C49: 12131 | E49: 22141 | G49: 34272
A50: DJØF'ere i alt | C50: 25885 | E50: 31202 | G50: 57087
A57: København
C59: Mænd | E59: Kvinder | G59: I alt
A61: Civ. ing. | C61: 4485 | E61: 1731 | G61: 6216
A62: Diplom ing. | C62: 2568 | E62: 668 | G62: 3236
A63: Cand. Scient. Tek. | C63: 3270 | E63: 2969 | G63: 6239
A64: MA. Hum. | C64: 4077 | E64: 8442 | G64: 12519
A65: MA. Nat. | C65: 1501 | E65: 1517 | G65: 3018
A66: MA. Ph.d. | C66: 381 | E66: 291 | G66: 672
A67: MA. Samf. | C67: 745 | E67: 1776 | G67: 2521
A68: Øvrige Mag. | C68: 348 | E68: 676 | G68: 1024
A69: Agronom | C69: 140 | E69: 179 | G69: 319
A70: Landsk. Arkt. | C70: 73 | E70: 182 | G70: 255
A71: Hortonom | C71: 21 | E71: 25 | G71: 46
A72: Forstkand. | C72: 63 | E72: 26 | G72: 89
A73: Jordbrugsakad. | C73: 297 | E73: 412 | G73: 709
A74: Mejeriing. | C74: 23 | E74: 37 | G74: 60
A75: Levn.m.kand. | C75: 33 | E75: 132 | G75: 165
A76: Dyrlæge | C76: 55 | E76: 259 | G76: 314
A77: Farmaceut | C77: 413 | E77: 892 | G77: 1305
A78: Læge | C78: 749 | E78: 1774 | G78: 2523
A79: Tandlæge | C79: 49 | E79: 266 | G79: 315
A80: Arkitekt | C80: 1051 | E80: 1249 | G80: 2300
A81: Landinspek. | C81: 38 | E81: 16 | G81: 54
A82: Bibliotekar | C82: 245 | E82: 526 | G82: 771
A83: Musikudd. | C83: 62 | E83: 78 | G83: 140
A84: Teolog | C84: 96 | E84: 155 | G84: 251
A85: Psykolog | C85: 438 | E85: 1662 | G85: 2100
A86: Jurist | C86: 1601 | E86: 2888 | G86: 4489
A87: Økonom | C87: 1665 | E87: 1024 | G87: 2689
A88: Samf. Adm. | C88: 4091 | E88: 6074 | G88: 10165
A89: Cand. Merc. | C89: 5195 | E89: 5148 | G89: 10343
A90: HA | C90: 638 | E90: 563 | G90: 1201
A91: HD | C91: 490 | E91: 593 | G91: 1083
A92: Komm. og Sprog | C92: 395 | E92: 1446 | G92: 1841
A93: Bygningskonst. | C93: 916 | E93: 247 | G93: 1163
A94: Cand. IT. | C94: 963 | E94: 887 | G94: 1850
A95: Bac. Samf. | C95: 238 | E95: 243 | G95: 481
A96: Bac. Hum. | C96: 496 | E96: 795 | G96: 1291
A97: Bac. Nat. | C97: 535 | E97: 410 | G97: 945
A98: Andre | C98: 3412 | E98: 4131 | G98: 7543
A100: Total | C100: 41559 | E100: 49977 | G100: 91536
A102: Ingeniører i alt | C102: 7053 | E102: 2399 | G102: 9452
A103: Magistre i alt | C103: 7052 | E103: 12702 | G103: 19754
A104: DJØF'ere i alt | C104: 13190 | E104: 15697 | G104: 28887
A111: Frederiksberg
C113: Mænd | E113: Kvinder | G113: I alt
A115: Civ. ing. | C115: 788 | E115: 322 | G115: 1110
A116: Diplom ing. | C116: 454 | E116: 108 | G116: 562
A117: Cand. Scient. Tek. | C117: 416 | E117: 414 | G117: 830
A118: MA. Hum. | C118: 538 | E118: 1285 | G118: 1823
A119: MA. Nat. | C119: 248 | E119: 236 | G119: 484
A120: MA. Ph.d. | C120: 66 | E120: 63 | G120: 129
A121: MA. Samf. | C121: 99 | E121: 229 | G121: 328
A122: Øvrige Mag. | C122: 47 | E122: 80 | G122: 127
A123: Agronom | C123: 39 | E123: 42 | G123: 81
A124: Landsk. Arkt. | C124: 14 | E124: 23 | G124: 37
A125: Hortonom | C125: 1 | E125: 8 | G125: 9
A126: Forstkand. | C126: 7 | E126: 6 | G126: 13
A127: Jordbrugsakad. | C127: 61 | E127: 79 | G127: 140
A128: Mejeriing. | C128: 5 | E128: 4 | G128: 9
A129: Levn.m.kand. | C129: 4 | E129: 23 | G129: 27
A130: Dyrlæge | C130: 17 | E130: 59 | G130: 76
A131: Farmaceut | C131: 65 | E131: 159 | G131: 224
A132: Læge | C132: 147 | E132: 339 | G132: 486
A133: Tandlæge | C133: 7 | E133: 54 | G133: 61
A134: Arkitekt | C134: 196 | E134: 222 | G134: 418
A135: Landinspek. | C135: 13 | E135: 4 | G135: 17
A136: Bibliotekar | C136: 30 | E136: 97 | G136: 127
A137: Musikudd. | C137: 10 | E137: 8 | G137: 18
A138: Teolog | C138: 8 | E138: 27 | G138: 35
A139: Psykolog | C139: 62 | E139: 273 | G139: 335
A140: Jurist | C140: 391 | E140: 662 | G140: 1053
A141: Økonom | C141: 352 | E141: 238 | G141: 590
A142: Samf. Adm. | C142: 680 | E142: 1027 | G142: 1707
A143: Cand. Merc. | C143: 1212 | E143: 1218 | G143: 2430
A144: HA | C144: 117 | E144: 93 | G144: 210
A145: HD | C145: 113 | E145: 81 | G145: 194
A146: Komm. og Sprog | C146: 55 | E146: 313 | G146: 368
A147: Bygningskonst. | C147: 116 | E147: 38 | G147: 154
A148: Cand. IT. | C148: 123 | E148: 101 | G148: 224
A149: Bac. Samf. | C149: 31 | E149: 49 | G149: 80
A150: Bac. Hum. | C150: 67 | E150: 107 | G150: 174
A151: Bac. Nat. | C151: 60 | E151: 57 | G151: 117
A152: Andre | C152: 547 | E152: 683 | G152: 1230
A154: Total | C154: 7145 | E154: 8752 | G154: 15897
A156: Ingeniører i alt | C156: 1242 | E156: 430 | G156: 1672
A157: Magistre i alt | C157: 998 | E157: 1893 | G157: 2891
A158: DJØF'ere i alt | C158: 2752 | E158: 3238 | G158: 5990
A165: Ballerup
C167: Mænd | E167: Kvinder | G167: I alt
A169: Civ. ing. | C169: 391 | E169: 164 | G169: 555
A170: Diplom ing. | C170: 397 | E170: 101 | G170: 498
A171: Cand. Scient. Tek. | C171: 123 | E171: 100 | G171: 223
A172: MA. Hum. | C172: 70 | E172: 158 | G172: 228
A173: MA. Nat. | C173: 81 | E173: 88 | G173: 169
A174: MA. Ph.d. | C174: 11 | E174: 10 | G174: 21
A175: MA. Samf. | C175: 17 | E175: 19 | G175: 36
A176: Øvrige Mag. | C176: 9 | E176: 18 | G176: 27
A177: Agronom | C177: 9 | E177: 10 | G177: 19
A178: Landsk. Arkt. | C178: 3 | E178: 8 | G178: 11
A179: Hortonom | C179: 1 | E179: 2 | G179: 3
A180: Forstkand. | C180: 3 | E180: 1 | G180: 4
A181: Jordbrugsakad. | C181: 16 | E181: 21 | G181: 37
A182: Mejeriing. | C182: 1 | E182: 4 | G182: 5
A183: Levn.m.kand. | C183: 0 | E183: 4 | G183: 4
A184: Dyrlæge | C184: 3 | E184: 27 | G184: 30
A185: Farmaceut | C185: 35 | E185: 97 | G185: 132
A186: Læge | C186: 28 | E186: 54 | G186: 82
A187: Tandlæge | C187: 1 | E187: 13 | G187: 14
A188: Arkitekt | C188: 11 | E188: 11 | G188: 22
A189: Landinspek. | C189: 5 | E189: 2 | G189: 7
A190: Bibliotekar | C190: 11 | E190: 30 | G190: 41
A191: Musikudd. | C191: 3 | E191: 5 | G191: 8
A192: Teolog | C192: 3 | E192: 5 | G192: 8
A193: Psykolog | C193: 8 | E193: 42 | G193: 50
A194: Jurist | C194: 29 | E194: 82 | G194: 111
A195: Økonom | C195: 56 | E195: 25 | G195: 81
A196: Samf. Adm. | C196: 87 | E196: 121 | G196: 208
A197: Cand. Merc. | C197: 138 | E197: 137 | G197: 275
A198: HA | C198: 19 | E198: 15 | G198: 34
A199: HD | C199: 17 | E199: 18 | G199: 35
A200: Komm. og Sprog | C200: 10 | E200: 59 | G200: 69
A201: Bygningskonst. | C201: 52 | E201: 12 | G201: 64
A202: Cand. IT. | C202: 18 | E202: 22 | G202: 40
A203: Bac. Samf. | C203: 3 | E203: 5 | G203: 8
A204: Bac. Hum. | C204: 5 | E204: 10 | G204: 15
A205: Bac. Nat. | C205: 34 | E205: 9 | G205: 43
A206: Andre | C206: 102 | E206: 88 | G206: 190
A208: Total | C208: 1794 | E208: 1576 | G208: 3370
A210: Ingeniører i alt | C210: 788 | E210: 265 | G210: 1053
A211: Magistre i alt | C211: 188 | E211: 293 | G211: 481
A212: DJØF'ere i alt | C212: 329 | E212: 380 | G212: 709
A219: Brøndby
C221: Mænd | E221: Kvinder | G221: I alt
A223: Civ. ing. | C223: 89 | E223: 31 | G223: 120
A224: Diplom ing. | C224: 135 | E224: 28 | G224: 163
A225: Cand. Scient. Tek. | C225: 46 | E225: 30 | G225: 76
A226: MA. Hum. | C226: 23 | E226: 64 | G226: 87
A227: MA. Nat. | C227: 28 | E227: 26 | G227: 54
A228: MA. Ph.d. | C228: 4 | E228: 2 | G228: 6
A229: MA. Samf. | C229: 11 | E229: 15 | G229: 26
A230: Øvrige Mag. | C230: 6 | E230: 6 | G230: 12
A231: Agronom | C231: 2 | E231: 4 | G231: 6
A232: Landsk. Arkt. | C232: 0 | E232: 5 | G232: 5
A233: Hortonom | C233: 0 | E233: 2 | G233: 2
A234: Forstkand. | C234: 0 | E234: 1 | G234: 1
A235: Jordbrugsakad. | C235: 2 | E235: 12 | G235: 14
A236: Mejeriing. | C236: 0 | E236: 0 | G236: 0
A237: Levn.m.kand. | C237: 0 | E237: 1 | G237: 1
A238: Dyrlæge | C238: 2 | E238: 4 | G238: 6
A239: Farmaceut | C239: 12 | E239: 31 | G239: 43
A240: Læge | C240: 10 | E240: 31 | G240: 41
A241: Tandlæge | C241: 1 | E241: 9 | G241: 10
A242: Arkitekt | C242: 1 | E242: 3 | G242: 4
A243: Landinspek. | C243: 0 | E243: 1 | G243: 1
... 1077 more rows

Sheet Tabel 2 H
A1: Tabel 2. Antal bruttoledighedsberørte og gennemsnitlig antal ledige brutto
A3: Hovedstaden
C5: Mænd | F5: Kvinder | I5: I alt
C6: Ledigheds- berørte | D6: Gns. brutto- ledighed | F6: Ledigheds- berørte | G6: Gns. brutto- ledighed | I6: Ledigheds- berørte | J6: Gns. brutto- ledighed
A9: Civ. ing. | C9: 354 | D9: 307.2088817 | F9: 170 | G9: 144.7526976 | I9: 524 | J9: 451.9615792
A10: Diplom ing. | C10: 253 | D10: 223.2071353 | F10: 77 | G10: 68.39206636 | I10: 330 | J10: 291.5992016
A11: Cand. Scient. Tek. | C11: 374 | D11: 319.2178632 | F11: 359 | G11: 294.466413 | I11: 733 | J11: 613.6842762
A12: MA. Hum. | C12: 490 | D12: 399.3020645 | F12: 1020 | G12: 838.6689952 | I12: 1510 | J12: 1237.97106
A13: MA. Nat. | C13: 111 | D13: 92.09692509 | F13: 149 | G13: 118.2105657 | I13: 260 | J13: 210.3074908
A14: MA. Ph.d. | C14: 22 | D14: 16.95503025 | F14: 21 | G14: 16.48662134 | I14: 43 | J14: 33.44165159
A15: MA. Samf. | C15: 119 | D15: 101.5337117 | F15: 253 | G15: 207.5706356 | I15: 372 | J15: 309.1043473
A16: Øvrige Mag. | C16: 43 | D16: 38.45256658 | F16: 101 | G16: 81.12330818 | I16: 144 | J16: 119.5758748
A17: Agronom | C17: 17 | D17: 15.45998877 | F17: 19 | G17: 15.24418387 | I17: 36 | J17: 30.70417264
A18: Landsk. Arkt. | C18: 6 | D18: 4.798852367 | F18: 18 | G18: 16.27518244 | I18: 24 | J18: 21.0740348
A19: Hortonom | C19: 0 | D19: 0 | F19: 6 | G19: 5.168090813 | I19: 6 | J19: 5.168090813
A20: Forstkand. | C20: 5 | D20: 4.689078775 | F20: 7 | G20: 5.781201272 | I20: 12 | J20: 10.47028005
A21: Jordbrugsakad. | C21: 28 | D21: 24.94791992 | F21: 50 | G21: 42.46865839 | I21: 78 | J21: 67.41657831
A22: Mejeriing. | C22: 2 | D22: 1.999625772 | F22: 5 | G22: 4.860600012 | I22: 7 | J22: 6.860225784
A23: Levn.m.kand. | C23: 3 | D23: 2.999438658 | F23: 7 | G23: 4.956028192 | I23: 10 | J23: 7.95546685
A24: Dyrlæge | C24: 3 | D24: 2.3588848 | F24: 14 | G24: 11.41146386 | I24: 17 | J24: 13.77034866
A25: Farmaceut | C25: 37 | D25: 33.23956839 | F25: 84 | G25: 69.89085012 | I25: 121 | J25: 103.1304185
A26: Læge | C26: 15 | D26: 9.827855049 | F26: 49 | G26: 37.71658454 | I26: 64 | J26: 47.54443959
A27: Tandlæge | C27: 3 | D27: 1.611675918 | F27: 16 | G27: 11.01790058 | I27: 19 | J27: 12.6295765
A28: Arkitekt | C28: 91 | D28: 77.99787937 | F28: 100 | G28: 89.42431236 | I28: 191 | J28: 167.4221917
A29: Landinspek. | C29: 4 | D29: 3.906941932 | F29: 0 | G29: 0 | I29: 4 | J29: 3.906941932
A30: Bibliotekar | C30: 19 | D30: 15.25603443 | F30: 53 | G30: 42.37447764 | I30: 72 | J30: 57.63051207
A31: Musikudd. | C31: 2 | D31: 0.8813073037 | F31: 7 | G31: 6.256471029 | I31: 9 | J31: 7.137778332
A32: Teolog | C32: 12 | D32: 10.08544876 | F32: 15 | G32: 12.57843198 | I32: 27 | J32: 22.66388075
A33: Psykolog | C33: 27 | D33: 20.39605813 | F33: 97 | G33: 80.96114264 | I33: 124 | J33: 101.3572008
A34: Jurist | C34: 61 | D34: 51.98153808 | F34: 82 | G34: 66.21468222 | I34: 143 | J34: 118.1962203
A35: Økonom | C35: 79 | D35: 65.1443897 | F35: 39 | G35: 33.04185118 | I35: 118 | J35: 98.18624088
A36: Samf. Adm. | C36: 290 | D36: 256.7810142 | F36: 478 | G36: 394.1321025 | I36: 768 | J36: 650.9131167
A37: Cand. Merc. | C37: 339 | D37: 296.1304809 | F37: 383 | G37: 317.8812449 | I37: 722 | J37: 614.0117258
A38: HA | C38: 76 | D38: 66.39368802 | F38: 64 | G38: 55.16372482 | I38: 140 | J38: 121.5574128
A39: HD | C39: 81 | D39: 68.11451382 | F39: 69 | G39: 59.03386765 | I39: 150 | J39: 127.1483815
A40: Komm. og Sprog | C40: 45 | D40: 37.43653714 | F40: 184 | G40: 153.2819809 | I40: 229 | J40: 190.7185181
A41: Bygningskonst. | C41: 57 | D41: 46.78257344 | F41: 35 | G41: 30.66830911 | I41: 92 | J41: 77.45088255
A42: Cand. IT. | C42: 74 | D42: 64.68533649 | F42: 86 | G42: 70.16154182 | I42: 160 | J42: 134.8468783
A43: Bac. Samf. | C43: 17 | D43: 14.53127924 | F43: 29 | G43: 20.56383709 | I43: 46 | J43: 35.09511632
A44: Bac. Hum. | C44: 68 | D44: 58.47689141 | F44: 140 | G44: 113.6699308 | I44: 208 | J44: 172.1468222
A45: Bac. Nat. | C45: 92 | D45: 78.95902202 | F45: 87 | G45: 68.56920102 | I45: 179 | J45: 147.528223
A46: Andre | C46: 361 | D46: 305.755629 | F46: 574 | G46: 469.1991517 | I46: 935 | J46: 774.9547808
A48: Total | C48: 3652 | D48: 3114.65571 | F48: 4897 | G48: 4035.16965 | I48: 8549 | J48: 7149.82536
A50: Ingeniører i alt | C50: 607 | D50: 530.416017 | F50: 247 | G50: 213.1447639 | I50: 854 | J50: 743.5607809
A51: Magistre i alt | C51: 785 | D51: 648.3402981 | F51: 1544 | G51: 1262.060126 | I51: 2329 | J51: 1910.400424
A52: DJØF'ere i alt | C52: 845 | D52: 736.4311108 | F52: 1046 | G52: 866.4336057 | I52: 1891 | J52: 1602.864717
A57: København
C59: Mænd | F59: Kvinder | I59: I alt
C60: Ledigheds- berørte | D60: Gns. brutto- ledighed | F60: Ledigheds- berørte | G60: Gns. brutto- ledighed | I60: Ledigheds- berørte | J60: Gns. brutto- ledighed
A63: Civ. ing. | C63: 189 | D63: 160.7309923 | F63: 81 | G63: 70.06486621 | I63: 270 | J63: 230.7958585
A64: Diplom ing. | C64: 91 | D64: 79.88710784 | F64: 29 | G64: 27.30243872 | I64: 120 | J64: 107.1895466
A65: Cand. Scient. Tek. | C65: 269 | D65: 230.2457432 | F65: 247 | G65: 203.3992391 | I65: 516 | J65: 433.6449822
A66: MA. Hum. | C66: 378 | D66: 306.1398366 | F66: 697 | G66: 570.3112331 | I66: 1075 | J66: 876.4510697
A67: MA. Nat. | C67: 65 | D67: 54.53626895 | F67: 94 | G67: 73.66494106 | I67: 159 | J67: 128.20121
A68: MA. Ph.d. | C68: 16 | D68: 12.97760868 | F68: 12 | G68: 9.105594711 | I68: 28 | J68: 22.08320339
A69: MA. Samf. | C69: 90 | D69: 75.88536144 | F69: 183 | G69: 150.9274621 | I69: 273 | J69: 226.8128236
A70: Øvrige Mag. | C70: 31 | D70: 27.43528971 | F70: 66 | G70: 52.87407223 | I70: 97 | J70: 80.30936194
A71: Agronom | C71: 9 | D71: 7.970435976 | F71: 8 | G71: 6.243373043 | I71: 17 | J71: 14.21380902
A72: Landsk. Arkt. | C72: 4 | D72: 3.722322709 | F72: 11 | G72: 9.96881432 | I72: 15 | J72: 13.69113703
A73: Hortonom | C73: 0 | D73: 0 | F73: 1 | G73: 0.9998128859 | I73: 1 | J73: 0.9998128859
A74: Forstkand. | C74: 4 | D74: 3.689265889 | F74: 5 | G74: 3.781575501 | I74: 9 | J74: 7.47084139
A75: Jordbrugsakad. | C75: 17 | D75: 15.38202457 | F75: 25 | G75: 20.99357575 | I75: 42 | J75: 36.37560032
A76: Mejeriing. | C76: 2 | D76: 1.999625772 | F76: 3 | G76: 2.860974241 | I76: 5 | J76: 4.860600012
A77: Levn.m.kand. | C77: 2 | D77: 1.999625772 | F77: 6 | G77: 3.956215306 | I77: 8 | J77: 5.955841078
A78: Dyrlæge | C78: 0 | D78: 0 | F78: 8 | G78: 5.552922098 | I78: 8 | J78: 5.552922098
A79: Farmaceut | C79: 27 | D79: 24.52628953 | F79: 50 | G79: 40.04241252 | I79: 77 | J79: 64.56870205
A80: Læge | C80: 12 | D80: 7.797667311 | F80: 26 | G80: 18.99207884 | I80: 38 | J80: 26.78974615
A81: Tandlæge | C81: 1 | D81: 0.3262022079 | F81: 9 | G81: 6.061248675 | I81: 10 | J81: 6.387450883
A82: Arkitekt | C82: 71 | D82: 58.98272313 | F82: 75 | G82: 67.8612861 | I82: 146 | J82: 126.8440092
A83: Landinspek. | C83: 2 | D83: 1.90731616 | F83: 0 | G83: 0 | I83: 2 | J83: 1.90731616
A84: Bibliotekar | C84: 11 | D84: 8.130730369 | F84: 31 | G84: 24.02607123 | I84: 42 | J84: 32.1568016
A85: Musikudd. | C85: 2 | D85: 0.8813073037 | F85: 5 | G85: 4.269319528 | I85: 7 | J85: 5.150626832
A86: Teolog | C86: 10 | D86: 8.644670367 | F86: 9 | G86: 8.090812699 | I86: 19 | J86: 16.73548307
A87: Psykolog | C87: 12 | D87: 10.57319279 | F87: 53 | G87: 43.44289902 | I87: 65 | J87: 54.01609181
A88: Jurist | C88: 31 | D88: 26.52653901 | F88: 37 | G88: 30.68982723 | I88: 68 | J88: 57.21636624
A89: Økonom | C89: 46 | D89: 38.78063993 | F89: 26 | G89: 21.97093495 | I89: 72 | J89: 60.75157488
A90: Samf. Adm. | C90: 201 | D90: 177.8051519 | F90: 328 | G90: 268.5049585 | I90: 529 | J90: 446.3101104
A91: Cand. Merc. | C91: 195 | D91: 169.0525791 | F91: 204 | G91: 167.979168 | I91: 399 | J91: 337.031747
A92: HA | C92: 41 | D92: 35.26040042 | F92: 38 | G92: 31.92540385 | I92: 79 | J92: 67.18580428
A93: HD | C93: 42 | D93: 37.35919666 | F93: 44 | G93: 37.55441901 | I93: 86 | J93: 74.91361567
A94: Komm. og Sprog | C94: 29 | D94: 24.37036113 | F94: 99 | G94: 81.67654213 | I94: 128 | J94: 106.0469033
A95: Bygningskonst. | C95: 34 | D95: 27.15187426 | F95: 24 | G95: 21.63144764 | I95: 58 | J95: 48.7833219
A96: Cand. IT. | C96: 54 | D96: 47.29183559 | F96: 70 | G96: 56.18474397 | I96: 124 | J96: 103.4765796
A97: Bac. Samf. | C97: 12 | D97: 9.532214807 | F97: 19 | G97: 12.82978856 | I97: 31 | J97: 22.36200337
A98: Bac. Hum. | C98: 49 | D98: 43.24580553 | F98: 100 | G98: 80.21954718 | I98: 149 | J98: 123.4653527
A99: Bac. Nat. | C99: 56 | D99: 48.8985218 | F99: 60 | G99: 46.87519491 | I99: 116 | J99: 95.77371671
A100: Andre | C100: 227 | D100: 193.6038171 | F100: 342 | G100: 283.0680472 | I100: 569 | J100: 476.6718643
A102: Total | C102: 2315 | D102: 1967.868521 | F102: 3100 | G102: 2544.909686 | I102: 5415 | J102: 4512.778207
A104: Ingeniører i alt | C104: 280 | D104: 240.6181002 | F104: 110 | G104: 97.36730493 | I104: 390 | J104: 337.9854051
A105: Magistre i alt | C105: 580 | D105: 476.9743654 | F105: 1052 | G105: 856.8833032 | I105: 1632 | J105: 1333.857669
A106: DJØF'ere i alt | C106: 514 | D106: 447.4253103 | F106: 633 | G106: 521.0702925 | I106: 1147 | J106: 968.4956028
A111: Frederiksberg
C113: Mænd | F113: Kvinder | I113: I alt
C114: Ledigheds- berørte | D114: Gns. brutto- ledighed | F114: Ledigheds- berørte | G114: Gns. brutto- ledighed | I114: Ledigheds- berørte | J114: Gns. brutto- ledighed
A117: Civ. ing. | C117: 18 | D117: 15.11008545 | F117: 12 | G117: 9.537828229 | I117: 30 | J117: 24.64791368
A118: Diplom ing. | C118: 12 | D118: 9.782323957 | F118: 3 | G118: 2.719391256 | I118: 15 | J118: 12.50171521
A119: Cand. Scient. Tek. | C119: 21 | D119: 19.14987838 | F119: 29 | G119: 23.57637373 | I119: 50 | J119: 42.72625211
A120: MA. Hum. | C120: 34 | D120: 28.34029814 | F120: 90 | G120: 75.01902326 | I120: 124 | J120: 103.3593214
A121: MA. Nat. | C121: 12 | D121: 11.21312293 | F121: 10 | G121: 8.521175076 | I121: 22 | J121: 19.73429801
A122: MA. Ph.d. | C122: 3 | D122: 1.070292522 | F122: 2 | G122: 1.299195409 | I122: 5 | J122: 2.369487931
A123: MA. Samf. | C123: 8 | D123: 6.883926901 | F123: 29 | G123: 22.13247677 | I123: 37 | J123: 29.01640367
A124: Øvrige Mag. | C124: 2 | D124: 1.181313541 | F124: 10 | G124: 7.129046342 | I124: 12 | J124: 8.310359883
A125: Agronom | C125: 1 | D125: 0.9998128859 | F125: 3 | G125: 2.999438658 | I125: 4 | J125: 3.999251544
A126: Landsk. Arkt. | C126: 1 | D126: 0.1690263831 | F126: 0 | G126: 0 | I126: 1 | J126: 0.1690263831
A127: Hortonom | C127: 0 | D127: 0 | F127: 1 | G127: 0.1690263831 | I127: 1 | J127: 0.1690263831
A128: Forstkand. | C128: 0 | D128: 0 | F128: 0 | G128: 0 | I128: 0 | J128: 0
A129: Jordbrugsakad. | C129: 2 | D129: 1.168839269 | F129: 4 | G129: 3.168465041 | I129: 6 | J129: 4.33730431
A130: Mejeriing. | C130: 0 | D130: 0 | F130: 0 | G130: 0 | I130: 0 | J130: 0
A131: Levn.m.kand. | C131: 1 | D131: 0.9998128859 | F131: 0 | G131: 0 | I131: 1 | J131: 0.9998128859
A132: Dyrlæge | C132: 2 | D132: 1.359071914 | F132: 0 | G132: 0 | I132: 2 | J132: 1.359071914
A133: Farmaceut | C133: 3 | D133: 2.814819435 | F133: 4 | G133: 3.768477515 | I133: 7 | J133: 6.58329695
A134: Læge | C134: 1 | D134: 0.9075032745 | F134: 6 | G134: 4.909873386 | I134: 7 | J134: 5.817376661
A135: Tandlæge | C135: 1 | D135: 0.9998128859 | F135: 0 | G135: 0 | I135: 1 | J135: 0.9998128859
A136: Arkitekt | C136: 12 | D136: 11.66656271 | F136: 13 | G136: 10.92746211 | I136: 25 | J136: 22.59402482
A137: Landinspek. | C137: 2 | D137: 1.999625772 | F137: 0 | G137: 0 | I137: 2 | J137: 1.999625772
A138: Bibliotekar | C138: 2 | D138: 1.999625772 | F138: 6 | G138: 5.490550739 | I138: 8 | J138: 7.490176511
A139: Musikudd. | C139: 0 | D139: 0 | F139: 0 | G139: 0 | I139: 0 | J139: 0
A140: Teolog | C140: 0 | D140: 0 | F140: 1 | G140: 0.312480509 | I140: 1 | J140: 0.312480509
A141: Psykolog | C141: 5 | D141: 3.119815381 | F141: 12 | G141: 9.599575875 | I141: 17 | J141: 12.71939126
A142: Jurist | C142: 8 | D142: 7.288093308 | F142: 11 | G142: 8.523046217 | I142: 19 | J142: 15.81113952
A143: Økonom | C143: 6 | D143: 5.249173579 | F143: 2 | G143: 0.9449260899 | I143: 8 | J143: 6.194099669
A144: Samf. Adm. | C144: 19 | D144: 16.01883615 | F144: 41 | G144: 34.2038296 | I144: 60 | J144: 50.22266575
A145: Cand. Merc. | C145: 28 | D145: 24.36287657 | F145: 43 | G145: 34.51256783 | I145: 71 | J145: 58.8754444
A146: HA | C146: 6 | D146: 5.906567704 | F146: 6 | G146: 5.529220982 | I146: 12 | J146: 11.43578869
A147: HD | C147: 7 | D147: 6.243996757 | F147: 4 | G147: 3.999251544 | I147: 11 | J147: 10.2432483
A148: Komm. og Sprog | C148: 5 | D148: 3.507141521 | F148: 18 | G148: 14.98908501 | I148: 23 | J148: 18.49622653
A149: Bygningskonst. | C149: 2 | D149: 2 | F149: 2 | G149: 0.6615106343 | I149: 4 | J149: 2.661510634
A150: Cand. IT. | C150: 6 | D150: 5.768103287 | F150: 4 | G150: 3.785317782 | I150: 10 | J150: 9.553421069
A151: Bac. Samf. | C151: 1 | D151: 0.9998128859 | F151: 3 | G151: 2.353271378 | I151: 4 | J151: 3.353084264
A152: Bac. Hum. | C152: 8 | D152: 6.416141708 | F152: 7 | G152: 6.629451756 | I152: 15 | J152: 13.04559346
A153: Bac. Nat. | C153: 2 | D153: 1.84993451 | F153: 10 | G153: 7.682280297 | I153: 12 | J153: 9.532214807
A154: Andre | C154: 34 | D154: 29.55279736 | F154: 58 | G154: 46.63319404 | I154: 92 | J154: 76.18599139
A156: Total | C156: 273 | D156: 234.9302064 | F156: 440 | G156: 358.5583484 | I156: 713 | J156: 593.4885549
A158: Ingeniører i alt | C158: 30 | D158: 24.89240941 | F158: 15 | G158: 12.25721948 | I158: 45 | J158: 37.14962889
A159: Magistre i alt | C159: 59 | D159: 48.68895403 | F159: 141 | G159: 114.1009169 | I159: 200 | J159: 162.7898709
A160: DJØF'ere i alt | C160: 67 | D160: 58.82554731 | F160: 103 | G160: 83.71359072 | I160: 170 | J160: 142.539138
A165: Ballerup
C167: Mænd | F167: Kvinder | I167: I alt
C168: Ledigheds- berørte | D168: Gns. brutto- ledighed | F168: Ledigheds- berørte | G168: Gns. brutto- ledighed | I168: Ledigheds- berørte | J168: Gns. brutto- ledighed
A171: Civ. ing. | C171: 4 | D171: 3.999251544 | F171: 3 | G171: 2.999438658 | I171: 7 | J171: 6.998690201
A172: Diplom ing. | C172: 14 | D172: 12.35826109 | F172: 3 | G172: 2.436225285 | I172: 17 | J172: 14.79448637
A173: Cand. Scient. Tek. | C173: 4 | D173: 2.110646791 | F173: 2 | G173: 1.168839269 | I173: 6 | J173: 3.27948606
A174: MA. Hum. | C174: 1 | D174: 0.9998128859 | F174: 3 | G174: 2.132476767 | I174: 4 | J174: 3.132289653
A175: MA. Nat. | C175: 0 | D175: 0 | F175: 1 | G175: 0.8613484688 | I175: 1 | J175: 0.8613484688
A176: MA. Ph.d. | C176: 0 | D176: 0 | F176: 0 | G176: 0 | I176: 0 | J176: 0
A177: MA. Samf. | C177: 2 | D177: 1.999625772 | F177: 1 | G177: 0.9998128859 | I177: 3 | J177: 2.999438658
A178: Øvrige Mag. | C178: 0 | D178: 0 | F178: 1 | G178: 0.9998128859 | I178: 1 | J178: 0.9998128859
A179: Agronom | C179: 0 | D179: 0 | F179: 0 | G179: 0 | I179: 0 | J179: 0
A180: Landsk. Arkt. | C180: 1 | D180: 0.9075032745 | F180: 1 | G180: 0.4921100231 | I180: 2 | J180: 1.399613298
A181: Hortonom | C181: 0 | D181: 0 | F181: 0 | G181: 0 | I181: 0 | J181: 0
A182: Forstkand. | C182: 0 | D182: 0 | F182: 0 | G182: 0 | I182: 0 | J182: 0
A183: Jordbrugsakad. | C183: 1 | D183: 0.9075032745 | F183: 1 | G183: 0.4921100231 | I183: 2 | J183: 1.399613298
A184: Mejeriing. | C184: 0 | D184: 0 | F184: 1 | G184: 0.9998128859 | I184: 1 | J184: 0.9998128859
A185: Levn.m.kand. | C185: 0 | D185: 0 | F185: 0 | G185: 0 | I185: 0 | J185: 0
A186: Dyrlæge | C186: 0 | D186: 0 | F186: 0 | G186: 0 | I186: 0 | J186: 0
A187: Farmaceut | C187: 0 | D187: 0 | F187: 0 | G187: 0 | I187: 0 | J187: 0
A188: Læge | C188: 0 | D188: 0 | F188: 2 | G188: 1.538077715 | I188: 2 | J188: 1.538077715
A189: Tandlæge | C189: 0 | D189: 0 | F189: 0 | G189: 0 | I189: 0 | J189: 0
A190: Arkitekt | C190: 0 | D190: 0 | F190: 1 | G190: 0.8251730805 | I190: 1 | J190: 0.8251730805
A191: Landinspek. | C191: 0 | D191: 0 | F191: 0 | G191: 0 | I191: 0 | J191: 0
A192: Bibliotekar | C192: 1 | D192: 0.9998128859 | F192: 2 | G192: 1.214994075 | I192: 3 | J192: 2.214806961
A193: Musikudd. | C193: 0 | D193: 0 | F193: 0 | G193: 0 | I193: 0 | J193: 0
A194: Teolog | C194: 0 | D194: 0 | F194: 0 | G194: 0 | I194: 0 | J194: 0
A195: Psykolog | C195: 1 | D195: 0.3349341982 | F195: 0 | G195: 0 | I195: 1 | J195: 0.3349341982
A196: Jurist | C196: 2 | D196: 1.387139026 | F196: 2 | G196: 1.60668621 | I196: 4 | J196: 2.993825235
A197: Økonom | C197: 1 | D197: 0.2613359945 | F197: 1 | G197: 0.9998128859 | I197: 2 | J197: 1.26114888
A198: Samf. Adm. | C198: 3 | D198: 2.922721886 | F198: 3 | G198: 2.491735795 | I198: 6 | J198: 5.414457681
A199: Cand. Merc. | C199: 0 | D199: 0 | F199: 4 | G199: 3.869519117 | I199: 4 | J199: 3.869519117
A200: HA | C200: 0 | D200: 0 | F200: 1 | G200: 0.7690388574 | I200: 1 | J200: 0.7690388574
A201: HD | C201: 4 | D201: 3.306929458 | F201: 0 | G201: 0 | I201: 4 | J201: 3.306929458
A202: Komm. og Sprog | C202: 0 | D202: 0 | F202: 0 | G202: 0 | I202: 0 | J202: 0
A203: Bygningskonst. | C203: 1 | D203: 1 | F203: 0 | G203: 0 | I203: 1 | J203: 1
A204: Cand. IT. | C204: 0 | D204: 0 | F204: 1 | G204: 0.3935632757 | I204: 1 | J204: 0.3935632757
A205: Bac. Samf. | C205: 0 | D205: 0 | F205: 1 | G205: 0.9075032745 | I205: 1 | J205: 0.9075032745
A206: Bac. Hum. | C206: 0 | D206: 0 | F206: 0 | G206: 0 | I206: 0 | J206: 0
A207: Bac. Nat. | C207: 6 | D207: 4.505083266 | F207: 2 | G207: 1.73704235 | I207: 8 | J207: 6.242125616
A208: Andre | C208: 3 | D208: 2.999438658 | F208: 7 | G208: 6.852117508 | I208: 10 | J208: 9.851556165
A210: Total | C210: 48 | D210: 40.09249673 | F210: 43 | G210: 36.29514127 | I210: 91 | J210: 76.387638
A212: Ingeniører i alt | C212: 18 | D212: 16.35751263 | F212: 6 | G212: 5.435663943 | I212: 24 | J212: 21.79317657
A213: Magistre i alt | C213: 3 | D213: 2.999438658 | F213: 6 | G213: 4.993451007 | I213: 9 | J213: 7.992889665
A214: DJØF'ere i alt | C214: 6 | D214: 4.571196906 | F214: 11 | G214: 9.736792865 | I214: 17 | J214: 14.30798977
A219: Brøndby
C221: Mænd | F221: Kvinder | I221: I alt
C222: Ledigheds- berørte | D222: Gns. brutto- ledighed | F222: Ledigheds- berørte | G222: Gns. brutto- ledighed | I222: Ledigheds- berørte | J222: Gns. brutto- ledighed
A225: Civ. ing. | C225: 6 | D225: 5.966444209 | F225: 0 | G225: 0 | I225: 6 | J225: 5.966444209
A226: Diplom ing. | C226: 3 | D226: 2.537890601 | F226: 1 | G226: 0.9998128859 | I226: 4 | J226: 3.537703487
A227: Cand. Scient. Tek. | C227: 4 | D227: 3.457868147 | F227: 1 | G227: 0.9998128859 | I227: 5 | J227: 4.457681033
A228: MA. Hum. | C228: 2 | D228: 1.759496039 | F228: 7 | G228: 5.618412025 | I228: 9 | J228: 7.377908065
A229: MA. Nat. | C229: 1 | D229: 0.8850495852 | F229: 1 | G229: 0.3480321836 | I229: 2 | J229: 1.233081769
A230: MA. Ph.d. | C230: 0 | D230: 0 | F230: 0 | G230: 0 | I230: 0 | J230: 0
A231: MA. Samf. | C231: 2 | D231: 1.999625772 | F231: 1 | G231: 0.9998128859 | I231: 3 | J231: 2.999438658
A232: Øvrige Mag. | C232: 0 | D232: 0 | F232: 1 | G232: 0.9075032745 | I232: 1 | J232: 0.9075032745
A233: Agronom | C233: 0 | D233: 0 | F233: 0 | G233: 0 | I233: 0 | J233: 0
A234: Landsk. Arkt. | C234: 0 | D234: 0 | F234: 0 | G234: 0 | I234: 0 | J234: 0
A235: Hortonom | C235: 0 | D235: 0 | F235: 0 | G235: 0 | I235: 0 | J235: 0
A236: Forstkand. | C236: 0 | D236: 0 | F236: 0 | G236: 0 | I236: 0 | J236: 0
A237: Jordbrugsakad. | C237: 0 | D237: 0 | F237: 0 | G237: 0 | I237: 0 | J237: 0
A238: Mejeriing. | C238: 0 | D238: 0 | F238: 0 | G238: 0 | I238: 0 | J238: 0
A239: Levn.m.kand. | C239: 0 | D239: 0 | F239: 0 | G239: 0 | I239: 0 | J239: 0
A240: Dyrlæge | C240: 0 | D240: 0 | F240: 0 | G240: 0 | I240: 0 | J240: 0
... 1108 more rows

Sheet Tabel 3 H
A1: Tabel 3. Ledige i procent af forsikrede
A3: Hovedstaden
C5: Mænd | F5: Kvinder | I5: I alt
C6: Ledigheds- berørte | D6: Gns. brutto- ledighed | F6: Ledigheds- berørte | G6: Gns. brutto- ledighed | I6: Ledigheds- berørte | J6: Gns. brutto- ledighed
A9: Civ. ing. | C9: =IF(OR('Tabel 1 H'!C7<5,'Tabel 2 H'!C9<0.5),"-",IFERROR('Tabel 2 H'!C9/'Tabel 1 H'!C7*100,"-")) -> 2.723915051 | D9: =IF(OR('Tabel 1 H'!C7<5,'Tabel 2 H'!D9<0.5),"-",IFERROR('Tabel 2 H'!D9/'Tabel 1 H'!C7*100,"-")) -> 2.363872589 | F9: =IF(OR('Tabel 1 H'!E7<5,'Tabel 2 H'!F9<0.5),"-",IFERROR('Tabel 2 H'!F9/'Tabel 1 H'!E7*100,"-")) -> 3.239329268 | G9: =IF(OR('Tabel 1 H'!E7<5,'Tabel 2 H'!G9<0.5),"-",IFERROR('Tabel 2 H'!G9/'Tabel 1 H'!E7*100,"-")) -> 2.758244999 | I9: =IF(OR('Tabel 1 H'!G7<5,'Tabel 2 H'!I9<0.5),"-",IFERROR('Tabel 2 H'!I9/'Tabel 1 H'!G7*100,"-")) -> 2.872177154 | J9: =IF(OR('Tabel 1 H'!G7<5,'Tabel 2 H'!J9<0.5),"-",IFERROR('Tabel 2 H'!J9/'Tabel 1 H'!G7*100,"-")) -> 2.477316264
A10: Diplom ing. | C10: =IF(OR('Tabel 1 H'!C8<5,'Tabel 2 H'!C10<0.5),"-",IFERROR('Tabel 2 H'!C10/'Tabel 1 H'!C8*100,"-")) -> 2.560987954 | D10: =IF(OR('Tabel 1 H'!C8<5,'Tabel 2 H'!D10<0.5),"-",IFERROR('Tabel 2 H'!D10/'Tabel 1 H'!C8*100,"-")) -> 2.259410216 | F10: =IF(OR('Tabel 1 H'!E8<5,'Tabel 2 H'!F10<0.5),"-",IFERROR('Tabel 2 H'!F10/'Tabel 1 H'!E8*100,"-")) -> 3.02672956 | G10: =IF(OR('Tabel 1 H'!E8<5,'Tabel 2 H'!G10<0.5),"-",IFERROR('Tabel 2 H'!G10/'Tabel 1 H'!E8*100,"-")) -> 2.688367388 | I10: =IF(OR('Tabel 1 H'!G8<5,'Tabel 2 H'!I10<0.5),"-",IFERROR('Tabel 2 H'!I10/'Tabel 1 H'!G8*100,"-")) -> 2.656363197 | J10: =IF(OR('Tabel 1 H'!G8<5,'Tabel 2 H'!J10<0.5),"-",IFERROR('Tabel 2 H'!J10/'Tabel 1 H'!G8*100,"-")) -> 2.34725269
A11: Cand. Scient. Tek. | C11: =IF(OR('Tabel 1 H'!C9<5,'Tabel 2 H'!C11<0.5),"-",IFERROR('Tabel 2 H'!C11/'Tabel 1 H'!C9*100,"-")) -> 6.246868214 | D11: =IF(OR('Tabel 1 H'!C9<5,'Tabel 2 H'!D11<0.5),"-",IFERROR('Tabel 2 H'!D11/'Tabel 1 H'!C9*100,"-")) -> 5.331850061 | F11: =IF(OR('Tabel 1 H'!E9<5,'Tabel 2 H'!F11<0.5),"-",IFERROR('Tabel 2 H'!F11/'Tabel 1 H'!E9*100,"-")) -> 6.530835001 | G11: =IF(OR('Tabel 1 H'!E9<5,'Tabel 2 H'!G11<0.5),"-",IFERROR('Tabel 2 H'!G11/'Tabel 1 H'!E9*100,"-")) -> 5.356856704 | I11: =IF(OR('Tabel 1 H'!G9<5,'Tabel 2 H'!I11<0.5),"-",IFERROR('Tabel 2 H'!I11/'Tabel 1 H'!G9*100,"-")) -> 6.382793452 | J11: =IF(OR('Tabel 1 H'!G9<5,'Tabel 2 H'!J11<0.5),"-",IFERROR('Tabel 2 H'!J11/'Tabel 1 H'!G9*100,"-")) -> 5.34381989
A12: MA. Hum. | C12: =IF(OR('Tabel 1 H'!C10<5,'Tabel 2 H'!C12<0.5),"-",IFERROR('Tabel 2 H'!C12/'Tabel 1 H'!C10*100,"-")) -> 7.850048062 | D12: =IF(OR('Tabel 1 H'!C10<5,'Tabel 2 H'!D12<0.5),"-",IFERROR('Tabel 2 H'!D12/'Tabel 1 H'!C10*100,"-")) -> 6.397021219 | F12: =IF(OR('Tabel 1 H'!E10<5,'Tabel 2 H'!F12<0.5),"-",IFERROR('Tabel 2 H'!F12/'Tabel 1 H'!E10*100,"-")) -> 7.212048363 | G12: =IF(OR('Tabel 1 H'!E10<5,'Tabel 2 H'!G12<0.5),"-",IFERROR('Tabel 2 H'!G12/'Tabel 1 H'!E10*100,"-")) -> 5.929922896 | I12: =IF(OR('Tabel 1 H'!G10<5,'Tabel 2 H'!I12<0.5),"-",IFERROR('Tabel 2 H'!I12/'Tabel 1 H'!G10*100,"-")) -> 7.407407407 | J12: =IF(OR('Tabel 1 H'!G10<5,'Tabel 2 H'!J12<0.5),"-",IFERROR('Tabel 2 H'!J12/'Tabel 1 H'!G10*100,"-")) -> 6.072950992
A13: MA. Nat. | C13: =IF(OR('Tabel 1 H'!C11<5,'Tabel 2 H'!C13<0.5),"-",IFERROR('Tabel 2 H'!C13/'Tabel 1 H'!C11*100,"-")) -> 3.14893617 | D13: =IF(OR('Tabel 1 H'!C11<5,'Tabel 2 H'!D13<0.5),"-",IFERROR('Tabel 2 H'!D13/'Tabel 1 H'!C11*100,"-")) -> 2.612678726 | F13: =IF(OR('Tabel 1 H'!E11<5,'Tabel 2 H'!F13<0.5),"-",IFERROR('Tabel 2 H'!F13/'Tabel 1 H'!E11*100,"-")) -> 4.12856747 | G13: =IF(OR('Tabel 1 H'!E11<5,'Tabel 2 H'!G13<0.5),"-",IFERROR('Tabel 2 H'!G13/'Tabel 1 H'!E11*100,"-")) -> 3.27543823 | I13: =IF(OR('Tabel 1 H'!G11<5,'Tabel 2 H'!I13<0.5),"-",IFERROR('Tabel 2 H'!I13/'Tabel 1 H'!G11*100,"-")) -> 3.644519204 | J13: =IF(OR('Tabel 1 H'!G11<5,'Tabel 2 H'!J13<0.5),"-",IFERROR('Tabel 2 H'!J13/'Tabel 1 H'!G11*100,"-")) -> 2.947960342
A14: MA. Ph.d. | C14: =IF(OR('Tabel 1 H'!C12<5,'Tabel 2 H'!C14<0.5),"-",IFERROR('Tabel 2 H'!C14/'Tabel 1 H'!C12*100,"-")) -> 3.042876902 | D14: =IF(OR('Tabel 1 H'!C12<5,'Tabel 2 H'!D14<0.5),"-",IFERROR('Tabel 2 H'!D14/'Tabel 1 H'!C12*100,"-")) -> 2.345094087 | F14: =IF(OR('Tabel 1 H'!E12<5,'Tabel 2 H'!F14<0.5),"-",IFERROR('Tabel 2 H'!F14/'Tabel 1 H'!E12*100,"-")) -> 3.583617747 | G14: =IF(OR('Tabel 1 H'!E12<5,'Tabel 2 H'!G14<0.5),"-",IFERROR('Tabel 2 H'!G14/'Tabel 1 H'!E12*100,"-")) -> 2.813416612 | I14: =IF(OR('Tabel 1 H'!G12<5,'Tabel 2 H'!I14<0.5),"-",IFERROR('Tabel 2 H'!I14/'Tabel 1 H'!G12*100,"-")) -> 3.284950344 | J14: =IF(OR('Tabel 1 H'!G12<5,'Tabel 2 H'!J14<0.5),"-",IFERROR('Tabel 2 H'!J14/'Tabel 1 H'!G12*100,"-")) -> 2.554748021
A15: MA. Samf. | C15: =IF(OR('Tabel 1 H'!C13<5,'Tabel 2 H'!C15<0.5),"-",IFERROR('Tabel 2 H'!C15/'Tabel 1 H'!C13*100,"-")) -> 11.33333333 | D15: =IF(OR('Tabel 1 H'!C13<5,'Tabel 2 H'!D15<0.5),"-",IFERROR('Tabel 2 H'!D15/'Tabel 1 H'!C13*100,"-")) -> 9.669877307 | F15: =IF(OR('Tabel 1 H'!E13<5,'Tabel 2 H'!F15<0.5),"-",IFERROR('Tabel 2 H'!F15/'Tabel 1 H'!E13*100,"-")) -> 9.543568465 | G15: =IF(OR('Tabel 1 H'!E13<5,'Tabel 2 H'!G15<0.5),"-",IFERROR('Tabel 2 H'!G15/'Tabel 1 H'!E13*100,"-")) -> 7.829899493 | I15: =IF(OR('Tabel 1 H'!G13<5,'Tabel 2 H'!I15<0.5),"-",IFERROR('Tabel 2 H'!I15/'Tabel 1 H'!G13*100,"-")) -> 10.05133748 | J15: =IF(OR('Tabel 1 H'!G13<5,'Tabel 2 H'!J15<0.5),"-",IFERROR('Tabel 2 H'!J15/'Tabel 1 H'!G13*100,"-")) -> 8.351914274
A16: Øvrige Mag. | C16: =IF(OR('Tabel 1 H'!C14<5,'Tabel 2 H'!C16<0.5),"-",IFERROR('Tabel 2 H'!C16/'Tabel 1 H'!C14*100,"-")) -> 7.275803723 | D16: =IF(OR('Tabel 1 H'!C14<5,'Tabel 2 H'!D16<0.5),"-",IFERROR('Tabel 2 H'!D16/'Tabel 1 H'!C14*100,"-")) -> 6.506356444 | F16: =IF(OR('Tabel 1 H'!E14<5,'Tabel 2 H'!F16<0.5),"-",IFERROR('Tabel 2 H'!F16/'Tabel 1 H'!E14*100,"-")) -> 8.767361111 | G16: =IF(OR('Tabel 1 H'!E14<5,'Tabel 2 H'!G16<0.5),"-",IFERROR('Tabel 2 H'!G16/'Tabel 1 H'!E14*100,"-")) -> 7.041953835 | I16: =IF(OR('Tabel 1 H'!G14<5,'Tabel 2 H'!I16<0.5),"-",IFERROR('Tabel 2 H'!I16/'Tabel 1 H'!G14*100,"-")) -> 8.2616179 | J16: =IF(OR('Tabel 1 H'!G14<5,'Tabel 2 H'!J16<0.5),"-",IFERROR('Tabel 2 H'!J16/'Tabel 1 H'!G14*100,"-")) -> 6.860348523
A17: Agronom | C17: =IF(OR('Tabel 1 H'!C15<5,'Tabel 2 H'!C17<0.5),"-",IFERROR('Tabel 2 H'!C17/'Tabel 1 H'!C15*100,"-")) -> 4.415584416 | D17: =IF(OR('Tabel 1 H'!C15<5,'Tabel 2 H'!D17<0.5),"-",IFERROR('Tabel 2 H'!D17/'Tabel 1 H'!C15*100,"-")) -> 4.0155815 | F17: =IF(OR('Tabel 1 H'!E15<5,'Tabel 2 H'!F17<0.5),"-",IFERROR('Tabel 2 H'!F17/'Tabel 1 H'!E15*100,"-")) -> 4 | G17: =IF(OR('Tabel 1 H'!E15<5,'Tabel 2 H'!G17<0.5),"-",IFERROR('Tabel 2 H'!G17/'Tabel 1 H'!E15*100,"-")) -> 3.209301868 | I17: =IF(OR('Tabel 1 H'!G15<5,'Tabel 2 H'!I17<0.5),"-",IFERROR('Tabel 2 H'!I17/'Tabel 1 H'!G15*100,"-")) -> 4.186046512 | J17: =IF(OR('Tabel 1 H'!G15<5,'Tabel 2 H'!J17<0.5),"-",IFERROR('Tabel 2 H'!J17/'Tabel 1 H'!G15*100,"-")) -> 3.570252633
A18: Landsk. Arkt. | C18: =IF(OR('Tabel 1 H'!C16<5,'Tabel 2 H'!C18<0.5),"-",IFERROR('Tabel 2 H'!C18/'Tabel 1 H'!C16*100,"-")) -> 4.545454545 | D18: =IF(OR('Tabel 1 H'!C16<5,'Tabel 2 H'!D18<0.5),"-",IFERROR('Tabel 2 H'!D18/'Tabel 1 H'!C16*100,"-")) -> 3.635494217 | F18: =IF(OR('Tabel 1 H'!E16<5,'Tabel 2 H'!F18<0.5),"-",IFERROR('Tabel 2 H'!F18/'Tabel 1 H'!E16*100,"-")) -> 4.972375691 | G18: =IF(OR('Tabel 1 H'!E16<5,'Tabel 2 H'!G18<0.5),"-",IFERROR('Tabel 2 H'!G18/'Tabel 1 H'!E16*100,"-")) -> 4.49590675 | I18: =IF(OR('Tabel 1 H'!G16<5,'Tabel 2 H'!I18<0.5),"-",IFERROR('Tabel 2 H'!I18/'Tabel 1 H'!G16*100,"-")) -> 4.858299595 | J18: =IF(OR('Tabel 1 H'!G16<5,'Tabel 2 H'!J18<0.5),"-",IFERROR('Tabel 2 H'!J18/'Tabel 1 H'!G16*100,"-")) -> 4.265998948
A19: Hortonom | C19: =IF(OR('Tabel 1 H'!C17<5,'Tabel 2 H'!C19<0.5),"-",IFERROR('Tabel 2 H'!C19/'Tabel 1 H'!C17*100,"-")) -> - | D19: =IF(OR('Tabel 1 H'!C17<5,'Tabel 2 H'!D19<0.5),"-",IFERROR('Tabel 2 H'!D19/'Tabel 1 H'!C17*100,"-")) -> - | F19: =IF(OR('Tabel 1 H'!E17<5,'Tabel 2 H'!F19<0.5),"-",IFERROR('Tabel 2 H'!F19/'Tabel 1 H'!E17*100,"-")) -> 6.382978723 | G19: =IF(OR('Tabel 1 H'!E17<5,'Tabel 2 H'!G19<0.5),"-",IFERROR('Tabel 2 H'!G19/'Tabel 1 H'!E17*100,"-")) -> 5.49796895 | I19: =IF(OR('Tabel 1 H'!G17<5,'Tabel 2 H'!I19<0.5),"-",IFERROR('Tabel 2 H'!I19/'Tabel 1 H'!G17*100,"-")) -> 4.054054054 | J19: =IF(OR('Tabel 1 H'!G17<5,'Tabel 2 H'!J19<0.5),"-",IFERROR('Tabel 2 H'!J19/'Tabel 1 H'!G17*100,"-")) -> 3.491953252
A20: Forstkand. | C20: =IF(OR('Tabel 1 H'!C18<5,'Tabel 2 H'!C20<0.5),"-",IFERROR('Tabel 2 H'!C20/'Tabel 1 H'!C18*100,"-")) -> 2.659574468 | D20: =IF(OR('Tabel 1 H'!C18<5,'Tabel 2 H'!D20<0.5),"-",IFERROR('Tabel 2 H'!D20/'Tabel 1 H'!C18*100,"-")) -> 2.494190838 | F20: =IF(OR('Tabel 1 H'!E18<5,'Tabel 2 H'!F20<0.5),"-",IFERROR('Tabel 2 H'!F20/'Tabel 1 H'!E18*100,"-")) -> 10.44776119 | G20: =IF(OR('Tabel 1 H'!E18<5,'Tabel 2 H'!G20<0.5),"-",IFERROR('Tabel 2 H'!G20/'Tabel 1 H'!E18*100,"-")) -> 8.628658615 | I20: =IF(OR('Tabel 1 H'!G18<5,'Tabel 2 H'!I20<0.5),"-",IFERROR('Tabel 2 H'!I20/'Tabel 1 H'!G18*100,"-")) -> 4.705882353 | J20: =IF(OR('Tabel 1 H'!G18<5,'Tabel 2 H'!J20<0.5),"-",IFERROR('Tabel 2 H'!J20/'Tabel 1 H'!G18*100,"-")) -> 4.105992175
A21: Jordbrugsakad. | C21: =IF(OR('Tabel 1 H'!C19<5,'Tabel 2 H'!C21<0.5),"-",IFERROR('Tabel 2 H'!C21/'Tabel 1 H'!C19*100,"-")) -> 3.689064559 | D21: =IF(OR('Tabel 1 H'!C19<5,'Tabel 2 H'!D21<0.5),"-",IFERROR('Tabel 2 H'!D21/'Tabel 1 H'!C19*100,"-")) -> 3.28694597 | F21: =IF(OR('Tabel 1 H'!E19<5,'Tabel 2 H'!F21<0.5),"-",IFERROR('Tabel 2 H'!F21/'Tabel 1 H'!E19*100,"-")) -> 5.01002004 | G21: =IF(OR('Tabel 1 H'!E19<5,'Tabel 2 H'!G21<0.5),"-",IFERROR('Tabel 2 H'!G21/'Tabel 1 H'!E19*100,"-")) -> 4.255376592 | I21: =IF(OR('Tabel 1 H'!G19<5,'Tabel 2 H'!I21<0.5),"-",IFERROR('Tabel 2 H'!I21/'Tabel 1 H'!G19*100,"-")) -> 4.439385316 | J21: =IF(OR('Tabel 1 H'!G19<5,'Tabel 2 H'!J21<0.5),"-",IFERROR('Tabel 2 H'!J21/'Tabel 1 H'!G19*100,"-")) -> 3.837027792
A22: Mejeriing. | C22: =IF(OR('Tabel 1 H'!C20<5,'Tabel 2 H'!C22<0.5),"-",IFERROR('Tabel 2 H'!C22/'Tabel 1 H'!C20*100,"-")) -> 3.333333333 | D22: =IF(OR('Tabel 1 H'!C20<5,'Tabel 2 H'!D22<0.5),"-",IFERROR('Tabel 2 H'!D22/'Tabel 1 H'!C20*100,"-")) -> 3.33270962 | F22: =IF(OR('Tabel 1 H'!E20<5,'Tabel 2 H'!F22<0.5),"-",IFERROR('Tabel 2 H'!F22/'Tabel 1 H'!E20*100,"-")) -> 5.617977528 | G22: =IF(OR('Tabel 1 H'!E20<5,'Tabel 2 H'!G22<0.5),"-",IFERROR('Tabel 2 H'!G22/'Tabel 1 H'!E20*100,"-")) -> 5.461348329 | I22: =IF(OR('Tabel 1 H'!G20<5,'Tabel 2 H'!I22<0.5),"-",IFERROR('Tabel 2 H'!I22/'Tabel 1 H'!G20*100,"-")) -> 4.697986577 | J22: =IF(OR('Tabel 1 H'!G20<5,'Tabel 2 H'!J22<0.5),"-",IFERROR('Tabel 2 H'!J22/'Tabel 1 H'!G20*100,"-")) -> 4.604178379
A23: Levn.m.kand. | C23: =IF(OR('Tabel 1 H'!C21<5,'Tabel 2 H'!C23<0.5),"-",IFERROR('Tabel 2 H'!C23/'Tabel 1 H'!C21*100,"-")) -> 5.769230769 | D23: =IF(OR('Tabel 1 H'!C21<5,'Tabel 2 H'!D23<0.5),"-",IFERROR('Tabel 2 H'!D23/'Tabel 1 H'!C21*100,"-")) -> 5.768151265 | F23: =IF(OR('Tabel 1 H'!E21<5,'Tabel 2 H'!F23<0.5),"-",IFERROR('Tabel 2 H'!F23/'Tabel 1 H'!E21*100,"-")) -> 2.527075812 | G23: =IF(OR('Tabel 1 H'!E21<5,'Tabel 2 H'!G23<0.5),"-",IFERROR('Tabel 2 H'!G23/'Tabel 1 H'!E21*100,"-")) -> 1.789179853 | I23: =IF(OR('Tabel 1 H'!G21<5,'Tabel 2 H'!I23<0.5),"-",IFERROR('Tabel 2 H'!I23/'Tabel 1 H'!G21*100,"-")) -> 3.039513678 | J23: =IF(OR('Tabel 1 H'!G21<5,'Tabel 2 H'!J23<0.5),"-",IFERROR('Tabel 2 H'!J23/'Tabel 1 H'!G21*100,"-")) -> 2.41807503
A24: Dyrlæge | C24: =IF(OR('Tabel 1 H'!C22<5,'Tabel 2 H'!C24<0.5),"-",IFERROR('Tabel 2 H'!C24/'Tabel 1 H'!C22*100,"-")) -> 1.840490798 | D24: =IF(OR('Tabel 1 H'!C22<5,'Tabel 2 H'!D24<0.5),"-",IFERROR('Tabel 2 H'!D24/'Tabel 1 H'!C22*100,"-")) -> 1.447168589 | F24: =IF(OR('Tabel 1 H'!E22<5,'Tabel 2 H'!F24<0.5),"-",IFERROR('Tabel 2 H'!F24/'Tabel 1 H'!E22*100,"-")) -> 1.739130435 | G24: =IF(OR('Tabel 1 H'!E22<5,'Tabel 2 H'!G24<0.5),"-",IFERROR('Tabel 2 H'!G24/'Tabel 1 H'!E22*100,"-")) -> 1.41757315 | I24: =IF(OR('Tabel 1 H'!G22<5,'Tabel 2 H'!I24<0.5),"-",IFERROR('Tabel 2 H'!I24/'Tabel 1 H'!G22*100,"-")) -> 1.756198347 | J24: =IF(OR('Tabel 1 H'!G22<5,'Tabel 2 H'!J24<0.5),"-",IFERROR('Tabel 2 H'!J24/'Tabel 1 H'!G22*100,"-")) -> 1.422556679
A25: Farmaceut | C25: =IF(OR('Tabel 1 H'!C23<5,'Tabel 2 H'!C25<0.5),"-",IFERROR('Tabel 2 H'!C25/'Tabel 1 H'!C23*100,"-")) -> 3.397612489 | D25: =IF(OR('Tabel 1 H'!C23<5,'Tabel 2 H'!D25<0.5),"-",IFERROR('Tabel 2 H'!D25/'Tabel 1 H'!C23*100,"-")) -> 3.052301964 | F25: =IF(OR('Tabel 1 H'!E23<5,'Tabel 2 H'!F25<0.5),"-",IFERROR('Tabel 2 H'!F25/'Tabel 1 H'!E23*100,"-")) -> 2.975557917 | G25: =IF(OR('Tabel 1 H'!E23<5,'Tabel 2 H'!G25<0.5),"-",IFERROR('Tabel 2 H'!G25/'Tabel 1 H'!E23*100,"-")) -> 2.475765148 | I25: =IF(OR('Tabel 1 H'!G23<5,'Tabel 2 H'!I25<0.5),"-",IFERROR('Tabel 2 H'!I25/'Tabel 1 H'!G23*100,"-")) -> 3.093047035 | J25: =IF(OR('Tabel 1 H'!G23<5,'Tabel 2 H'!J25<0.5),"-",IFERROR('Tabel 2 H'!J25/'Tabel 1 H'!G23*100,"-")) -> 2.636258142
A26: Læge | C26: =IF(OR('Tabel 1 H'!C24<5,'Tabel 2 H'!C26<0.5),"-",IFERROR('Tabel 2 H'!C26/'Tabel 1 H'!C24*100,"-")) -> 0.9493670886 | D26: =IF(OR('Tabel 1 H'!C24<5,'Tabel 2 H'!D26<0.5),"-",IFERROR('Tabel 2 H'!D26/'Tabel 1 H'!C24*100,"-")) -> 0.6220161423 | F26: =IF(OR('Tabel 1 H'!E24<5,'Tabel 2 H'!F26<0.5),"-",IFERROR('Tabel 2 H'!F26/'Tabel 1 H'!E24*100,"-")) -> 1.28171593 | G26: =IF(OR('Tabel 1 H'!E24<5,'Tabel 2 H'!G26<0.5),"-",IFERROR('Tabel 2 H'!G26/'Tabel 1 H'!E24*100,"-")) -> 0.9865703517 | I26: =IF(OR('Tabel 1 H'!G24<5,'Tabel 2 H'!I26<0.5),"-",IFERROR('Tabel 2 H'!I26/'Tabel 1 H'!G24*100,"-")) -> 1.184527115 | J26: =IF(OR('Tabel 1 H'!G24<5,'Tabel 2 H'!J26<0.5),"-",IFERROR('Tabel 2 H'!J26/'Tabel 1 H'!G24*100,"-")) -> 0.8799637163
A27: Tandlæge | C27: =IF(OR('Tabel 1 H'!C25<5,'Tabel 2 H'!C27<0.5),"-",IFERROR('Tabel 2 H'!C27/'Tabel 1 H'!C25*100,"-")) -> 2.23880597 | D27: =IF(OR('Tabel 1 H'!C25<5,'Tabel 2 H'!D27<0.5),"-",IFERROR('Tabel 2 H'!D27/'Tabel 1 H'!C25*100,"-")) -> 1.202743223 | F27: =IF(OR('Tabel 1 H'!E25<5,'Tabel 2 H'!F27<0.5),"-",IFERROR('Tabel 2 H'!F27/'Tabel 1 H'!E25*100,"-")) -> 2.18878249 | G27: =IF(OR('Tabel 1 H'!E25<5,'Tabel 2 H'!G27<0.5),"-",IFERROR('Tabel 2 H'!G27/'Tabel 1 H'!E25*100,"-")) -> 1.507236741 | I27: =IF(OR('Tabel 1 H'!G25<5,'Tabel 2 H'!I27<0.5),"-",IFERROR('Tabel 2 H'!I27/'Tabel 1 H'!G25*100,"-")) -> 2.196531792 | J27: =IF(OR('Tabel 1 H'!G25<5,'Tabel 2 H'!J27<0.5),"-",IFERROR('Tabel 2 H'!J27/'Tabel 1 H'!G25*100,"-")) -> 1.460066647
A28: Arkitekt | C28: =IF(OR('Tabel 1 H'!C26<5,'Tabel 2 H'!C28<0.5),"-",IFERROR('Tabel 2 H'!C28/'Tabel 1 H'!C26*100,"-")) -> 5.518496058 | D28: =IF(OR('Tabel 1 H'!C26<5,'Tabel 2 H'!D28<0.5),"-",IFERROR('Tabel 2 H'!D28/'Tabel 1 H'!C26*100,"-")) -> 4.730010878 | F28: =IF(OR('Tabel 1 H'!E26<5,'Tabel 2 H'!F28<0.5),"-",IFERROR('Tabel 2 H'!F28/'Tabel 1 H'!E26*100,"-")) -> 4.952947003 | G28: =IF(OR('Tabel 1 H'!E26<5,'Tabel 2 H'!G28<0.5),"-",IFERROR('Tabel 2 H'!G28/'Tabel 1 H'!E26*100,"-")) -> 4.429138799 | I28: =IF(OR('Tabel 1 H'!G26<5,'Tabel 2 H'!I28<0.5),"-",IFERROR('Tabel 2 H'!I28/'Tabel 1 H'!G26*100,"-")) -> 5.207197383 | J28: =IF(OR('Tabel 1 H'!G26<5,'Tabel 2 H'!J28<0.5),"-",IFERROR('Tabel 2 H'!J28/'Tabel 1 H'!G26*100,"-")) -> 4.564399993
A29: Landinspek. | C29: =IF(OR('Tabel 1 H'!C27<5,'Tabel 2 H'!C29<0.5),"-",IFERROR('Tabel 2 H'!C29/'Tabel 1 H'!C27*100,"-")) -> 2.898550725 | D29: =IF(OR('Tabel 1 H'!C27<5,'Tabel 2 H'!D29<0.5),"-",IFERROR('Tabel 2 H'!D29/'Tabel 1 H'!C27*100,"-")) -> 2.831117342 | F29: =IF(OR('Tabel 1 H'!E27<5,'Tabel 2 H'!F29<0.5),"-",IFERROR('Tabel 2 H'!F29/'Tabel 1 H'!E27*100,"-")) -> - | G29: =IF(OR('Tabel 1 H'!E27<5,'Tabel 2 H'!G29<0.5),"-",IFERROR('Tabel 2 H'!G29/'Tabel 1 H'!E27*100,"-")) -> - | I29: =IF(OR('Tabel 1 H'!G27<5,'Tabel 2 H'!I29<0.5),"-",IFERROR('Tabel 2 H'!I29/'Tabel 1 H'!G27*100,"-")) -> 2.105263158 | J29: =IF(OR('Tabel 1 H'!G27<5,'Tabel 2 H'!J29<0.5),"-",IFERROR('Tabel 2 H'!J29/'Tabel 1 H'!G27*100,"-")) -> 2.056285228
A30: Bibliotekar | C30: =IF(OR('Tabel 1 H'!C28<5,'Tabel 2 H'!C30<0.5),"-",IFERROR('Tabel 2 H'!C30/'Tabel 1 H'!C28*100,"-")) -> 4.347826087 | D30: =IF(OR('Tabel 1 H'!C28<5,'Tabel 2 H'!D30<0.5),"-",IFERROR('Tabel 2 H'!D30/'Tabel 1 H'!C28*100,"-")) -> 3.491083393 | F30: =IF(OR('Tabel 1 H'!E28<5,'Tabel 2 H'!F30<0.5),"-",IFERROR('Tabel 2 H'!F30/'Tabel 1 H'!E28*100,"-")) -> 4.394693201 | G30: =IF(OR('Tabel 1 H'!E28<5,'Tabel 2 H'!G30<0.5),"-",IFERROR('Tabel 2 H'!G30/'Tabel 1 H'!E28*100,"-")) -> 3.513638279 | I30: =IF(OR('Tabel 1 H'!G28<5,'Tabel 2 H'!I30<0.5),"-",IFERROR('Tabel 2 H'!I30/'Tabel 1 H'!G28*100,"-")) -> 4.382227632 | J30: =IF(OR('Tabel 1 H'!G28<5,'Tabel 2 H'!J30<0.5),"-",IFERROR('Tabel 2 H'!J30/'Tabel 1 H'!G28*100,"-")) -> 3.507639201
A31: Musikudd. | C31: =IF(OR('Tabel 1 H'!C29<5,'Tabel 2 H'!C31<0.5),"-",IFERROR('Tabel 2 H'!C31/'Tabel 1 H'!C29*100,"-")) -> 1.587301587 | D31: =IF(OR('Tabel 1 H'!C29<5,'Tabel 2 H'!D31<0.5),"-",IFERROR('Tabel 2 H'!D31/'Tabel 1 H'!C29*100,"-")) -> 0.699450241 | F31: =IF(OR('Tabel 1 H'!E29<5,'Tabel 2 H'!F31<0.5),"-",IFERROR('Tabel 2 H'!F31/'Tabel 1 H'!E29*100,"-")) -> 4.242424242 | G31: =IF(OR('Tabel 1 H'!E29<5,'Tabel 2 H'!G31<0.5),"-",IFERROR('Tabel 2 H'!G31/'Tabel 1 H'!E29*100,"-")) -> 3.791800623 | I31: =IF(OR('Tabel 1 H'!G29<5,'Tabel 2 H'!I31<0.5),"-",IFERROR('Tabel 2 H'!I31/'Tabel 1 H'!G29*100,"-")) -> 3.092783505 | J31: =IF(OR('Tabel 1 H'!G29<5,'Tabel 2 H'!J31<0.5),"-",IFERROR('Tabel 2 H'!J31/'Tabel 1 H'!G29*100,"-")) -> 2.452844788
A32: Teolog | C32: =IF(OR('Tabel 1 H'!C30<5,'Tabel 2 H'!C32<0.5),"-",IFERROR('Tabel 2 H'!C32/'Tabel 1 H'!C30*100,"-")) -> 5.911330049 | D32: =IF(OR('Tabel 1 H'!C30<5,'Tabel 2 H'!D32<0.5),"-",IFERROR('Tabel 2 H'!D32/'Tabel 1 H'!C30*100,"-")) -> 4.968201361 | F32: =IF(OR('Tabel 1 H'!E30<5,'Tabel 2 H'!F32<0.5),"-",IFERROR('Tabel 2 H'!F32/'Tabel 1 H'!E30*100,"-")) -> 4.335260116 | G32: =IF(OR('Tabel 1 H'!E30<5,'Tabel 2 H'!G32<0.5),"-",IFERROR('Tabel 2 H'!G32/'Tabel 1 H'!E30*100,"-")) -> 3.635384966 | I32: =IF(OR('Tabel 1 H'!G30<5,'Tabel 2 H'!I32<0.5),"-",IFERROR('Tabel 2 H'!I32/'Tabel 1 H'!G30*100,"-")) -> 4.918032787 | J32: =IF(OR('Tabel 1 H'!G30<5,'Tabel 2 H'!J32<0.5),"-",IFERROR('Tabel 2 H'!J32/'Tabel 1 H'!G30*100,"-")) -> 4.128211429
A33: Psykolog | C33: =IF(OR('Tabel 1 H'!C31<5,'Tabel 2 H'!C33<0.5),"-",IFERROR('Tabel 2 H'!C33/'Tabel 1 H'!C31*100,"-")) -> 3.890489914 | D33: =IF(OR('Tabel 1 H'!C31<5,'Tabel 2 H'!D33<0.5),"-",IFERROR('Tabel 2 H'!D33/'Tabel 1 H'!C31*100,"-")) -> 2.938913275 | F33: =IF(OR('Tabel 1 H'!E31<5,'Tabel 2 H'!F33<0.5),"-",IFERROR('Tabel 2 H'!F33/'Tabel 1 H'!E31*100,"-")) -> 3.18869165 | G33: =IF(OR('Tabel 1 H'!E31<5,'Tabel 2 H'!G33<0.5),"-",IFERROR('Tabel 2 H'!G33/'Tabel 1 H'!E31*100,"-")) -> 2.661444531 | I33: =IF(OR('Tabel 1 H'!G31<5,'Tabel 2 H'!I33<0.5),"-",IFERROR('Tabel 2 H'!I33/'Tabel 1 H'!G31*100,"-")) -> 3.319057816 | J33: =IF(OR('Tabel 1 H'!G31<5,'Tabel 2 H'!J33<0.5),"-",IFERROR('Tabel 2 H'!J33/'Tabel 1 H'!G31*100,"-")) -> 2.712987173
A34: Jurist | C34: =IF(OR('Tabel 1 H'!C32<5,'Tabel 2 H'!C34<0.5),"-",IFERROR('Tabel 2 H'!C34/'Tabel 1 H'!C32*100,"-")) -> 1.864303178 | D34: =IF(OR('Tabel 1 H'!C32<5,'Tabel 2 H'!D34<0.5),"-",IFERROR('Tabel 2 H'!D34/'Tabel 1 H'!C32*100,"-")) -> 1.588677814 | F34: =IF(OR('Tabel 1 H'!E32<5,'Tabel 2 H'!F34<0.5),"-",IFERROR('Tabel 2 H'!F34/'Tabel 1 H'!E32*100,"-")) -> 1.245443499 | G34: =IF(OR('Tabel 1 H'!E32<5,'Tabel 2 H'!G34<0.5),"-",IFERROR('Tabel 2 H'!G34/'Tabel 1 H'!E32*100,"-")) -> 1.005690799 | I34: =IF(OR('Tabel 1 H'!G32<5,'Tabel 2 H'!I34<0.5),"-",IFERROR('Tabel 2 H'!I34/'Tabel 1 H'!G32*100,"-")) -> 1.450892857 | J34: =IF(OR('Tabel 1 H'!G32<5,'Tabel 2 H'!J34<0.5),"-",IFERROR('Tabel 2 H'!J34/'Tabel 1 H'!G32*100,"-")) -> 1.199231131
A35: Økonom | C35: =IF(OR('Tabel 1 H'!C33<5,'Tabel 2 H'!C35<0.5),"-",IFERROR('Tabel 2 H'!C35/'Tabel 1 H'!C33*100,"-")) -> 2.265557786 | D35: =IF(OR('Tabel 1 H'!C33<5,'Tabel 2 H'!D35<0.5),"-",IFERROR('Tabel 2 H'!D35/'Tabel 1 H'!C33*100,"-")) -> 1.868207333 | F35: =IF(OR('Tabel 1 H'!E33<5,'Tabel 2 H'!F35<0.5),"-",IFERROR('Tabel 2 H'!F35/'Tabel 1 H'!E33*100,"-")) -> 1.757548445 | G35: =IF(OR('Tabel 1 H'!E33<5,'Tabel 2 H'!G35<0.5),"-",IFERROR('Tabel 2 H'!G35/'Tabel 1 H'!E33*100,"-")) -> 1.489042415 | I35: =IF(OR('Tabel 1 H'!G33<5,'Tabel 2 H'!I35<0.5),"-",IFERROR('Tabel 2 H'!I35/'Tabel 1 H'!G33*100,"-")) -> 2.067998598 | J35: =IF(OR('Tabel 1 H'!G33<5,'Tabel 2 H'!J35<0.5),"-",IFERROR('Tabel 2 H'!J35/'Tabel 1 H'!G33*100,"-")) -> 1.720754309
A36: Samf. Adm. | C36: =IF(OR('Tabel 1 H'!C34<5,'Tabel 2 H'!C36<0.5),"-",IFERROR('Tabel 2 H'!C36/'Tabel 1 H'!C34*100,"-")) -> 4.116394606 | D36: =IF(OR('Tabel 1 H'!C34<5,'Tabel 2 H'!D36<0.5),"-",IFERROR('Tabel 2 H'!D36/'Tabel 1 H'!C34*100,"-")) -> 3.644868902 | F36: =IF(OR('Tabel 1 H'!E34<5,'Tabel 2 H'!F36<0.5),"-",IFERROR('Tabel 2 H'!F36/'Tabel 1 H'!E34*100,"-")) -> 4.532954007 | G36: =IF(OR('Tabel 1 H'!E34<5,'Tabel 2 H'!G36<0.5),"-",IFERROR('Tabel 2 H'!G36/'Tabel 1 H'!E34*100,"-")) -> 3.737620697 | I36: =IF(OR('Tabel 1 H'!G34<5,'Tabel 2 H'!I36<0.5),"-",IFERROR('Tabel 2 H'!I36/'Tabel 1 H'!G34*100,"-")) -> 4.366117112 | J36: =IF(OR('Tabel 1 H'!G34<5,'Tabel 2 H'!J36<0.5),"-",IFERROR('Tabel 2 H'!J36/'Tabel 1 H'!G34*100,"-")) -> 3.700472522
A37: Cand. Merc. | C37: =IF(OR('Tabel 1 H'!C35<5,'Tabel 2 H'!C37<0.5),"-",IFERROR('Tabel 2 H'!C37/'Tabel 1 H'!C35*100,"-")) -> 3.169409125 | D37: =IF(OR('Tabel 1 H'!C35<5,'Tabel 2 H'!D37<0.5),"-",IFERROR('Tabel 2 H'!D37/'Tabel 1 H'!C35*100,"-")) -> 2.768609582 | F37: =IF(OR('Tabel 1 H'!E35<5,'Tabel 2 H'!F37<0.5),"-",IFERROR('Tabel 2 H'!F37/'Tabel 1 H'!E35*100,"-")) -> 3.592870544 | G37: =IF(OR('Tabel 1 H'!E35<5,'Tabel 2 H'!G37<0.5),"-",IFERROR('Tabel 2 H'!G37/'Tabel 1 H'!E35*100,"-")) -> 2.982000422 | I37: =IF(OR('Tabel 1 H'!G35<5,'Tabel 2 H'!I37<0.5),"-",IFERROR('Tabel 2 H'!I37/'Tabel 1 H'!G35*100,"-")) -> 3.380782918 | J37: =IF(OR('Tabel 1 H'!G35<5,'Tabel 2 H'!J37<0.5),"-",IFERROR('Tabel 2 H'!J37/'Tabel 1 H'!G35*100,"-")) -> 2.875125144
A38: HA | C38: =IF(OR('Tabel 1 H'!C36<5,'Tabel 2 H'!C38<0.5),"-",IFERROR('Tabel 2 H'!C38/'Tabel 1 H'!C36*100,"-")) -> 5.487364621 | D38: =IF(OR('Tabel 1 H'!C36<5,'Tabel 2 H'!D38<0.5),"-",IFERROR('Tabel 2 H'!D38/'Tabel 1 H'!C36*100,"-")) -> 4.793768088 | F38: =IF(OR('Tabel 1 H'!E36<5,'Tabel 2 H'!F38<0.5),"-",IFERROR('Tabel 2 H'!F38/'Tabel 1 H'!E36*100,"-")) -> 5.360134003 | G38: =IF(OR('Tabel 1 H'!E36<5,'Tabel 2 H'!G38<0.5),"-",IFERROR('Tabel 2 H'!G38/'Tabel 1 H'!E36*100,"-")) -> 4.620077455 | I38: =IF(OR('Tabel 1 H'!G36<5,'Tabel 2 H'!I38<0.5),"-",IFERROR('Tabel 2 H'!I38/'Tabel 1 H'!G36*100,"-")) -> 5.428460644 | J38: =IF(OR('Tabel 1 H'!G36<5,'Tabel 2 H'!J38<0.5),"-",IFERROR('Tabel 2 H'!J38/'Tabel 1 H'!G36*100,"-")) -> 4.713354511
A39: HD | C39: =IF(OR('Tabel 1 H'!C37<5,'Tabel 2 H'!C39<0.5),"-",IFERROR('Tabel 2 H'!C39/'Tabel 1 H'!C37*100,"-")) -> 6.169078446 | D39: =IF(OR('Tabel 1 H'!C37<5,'Tabel 2 H'!D39<0.5),"-",IFERROR('Tabel 2 H'!D39/'Tabel 1 H'!C37*100,"-")) -> 5.187700976 | F39: =IF(OR('Tabel 1 H'!E37<5,'Tabel 2 H'!F39<0.5),"-",IFERROR('Tabel 2 H'!F39/'Tabel 1 H'!E37*100,"-")) -> 5.754795663 | G39: =IF(OR('Tabel 1 H'!E37<5,'Tabel 2 H'!G39<0.5),"-",IFERROR('Tabel 2 H'!G39/'Tabel 1 H'!E37*100,"-")) -> 4.923591964 | I39: =IF(OR('Tabel 1 H'!G37<5,'Tabel 2 H'!I39<0.5),"-",IFERROR('Tabel 2 H'!I39/'Tabel 1 H'!G37*100,"-")) -> 5.97133758 | J39: =IF(OR('Tabel 1 H'!G37<5,'Tabel 2 H'!J39<0.5),"-",IFERROR('Tabel 2 H'!J39/'Tabel 1 H'!G37*100,"-")) -> 5.061639389
A40: Komm. og Sprog | C40: =IF(OR('Tabel 1 H'!C38<5,'Tabel 2 H'!C40<0.5),"-",IFERROR('Tabel 2 H'!C40/'Tabel 1 H'!C38*100,"-")) -> 7.305194805 | D40: =IF(OR('Tabel 1 H'!C38<5,'Tabel 2 H'!D40<0.5),"-",IFERROR('Tabel 2 H'!D40/'Tabel 1 H'!C38*100,"-")) -> 6.077359926 | F40: =IF(OR('Tabel 1 H'!E38<5,'Tabel 2 H'!F40<0.5),"-",IFERROR('Tabel 2 H'!F40/'Tabel 1 H'!E38*100,"-")) -> 5.575757576 | G40: =IF(OR('Tabel 1 H'!E38<5,'Tabel 2 H'!G40<0.5),"-",IFERROR('Tabel 2 H'!G40/'Tabel 1 H'!E38*100,"-")) -> 4.644908513 | I40: =IF(OR('Tabel 1 H'!G38<5,'Tabel 2 H'!I40<0.5),"-",IFERROR('Tabel 2 H'!I40/'Tabel 1 H'!G38*100,"-")) -> 5.847803882 | J40: =IF(OR('Tabel 1 H'!G38<5,'Tabel 2 H'!J40<0.5),"-",IFERROR('Tabel 2 H'!J40/'Tabel 1 H'!G38*100,"-")) -> 4.870237948
A41: Komm. og Sprog | C41: =IF(OR('Tabel 1 H'!C39<5,'Tabel 2 H'!C41<0.5),"-",IFERROR('Tabel 2 H'!C41/'Tabel 1 H'!C39*100,"-")) -> 2.695035461 | D41: =IF(OR('Tabel 1 H'!C39<5,'Tabel 2 H'!D41<0.5),"-",IFERROR('Tabel 2 H'!D41/'Tabel 1 H'!C39*100,"-")) -> 2.211942007 | F41: =IF(OR('Tabel 1 H'!E39<5,'Tabel 2 H'!F41<0.5),"-",IFERROR('Tabel 2 H'!F41/'Tabel 1 H'!E39*100,"-")) -> 7.070707071 | G41: =IF(OR('Tabel 1 H'!E39<5,'Tabel 2 H'!G41<0.5),"-",IFERROR('Tabel 2 H'!G41/'Tabel 1 H'!E39*100,"-")) -> 6.195618003 | I41: =IF(OR('Tabel 1 H'!G39<5,'Tabel 2 H'!I41<0.5),"-",IFERROR('Tabel 2 H'!I41/'Tabel 1 H'!G39*100,"-")) -> 3.524904215 | J41: =IF(OR('Tabel 1 H'!G39<5,'Tabel 2 H'!J41<0.5),"-",IFERROR('Tabel 2 H'!J41/'Tabel 1 H'!G39*100,"-")) -> 2.967466765
A42: Cand. IT. | C42: =IF(OR('Tabel 1 H'!C40<5,'Tabel 2 H'!C42<0.5),"-",IFERROR('Tabel 2 H'!C42/'Tabel 1 H'!C40*100,"-")) -> 4.683544304 | D42: =IF(OR('Tabel 1 H'!C40<5,'Tabel 2 H'!D42<0.5),"-",IFERROR('Tabel 2 H'!D42/'Tabel 1 H'!C40*100,"-")) -> 4.094008639 | F42: =IF(OR('Tabel 1 H'!E40<5,'Tabel 2 H'!F42<0.5),"-",IFERROR('Tabel 2 H'!F42/'Tabel 1 H'!E40*100,"-")) -> 6.268221574 | G42: =IF(OR('Tabel 1 H'!E40<5,'Tabel 2 H'!G42<0.5),"-",IFERROR('Tabel 2 H'!G42/'Tabel 1 H'!E40*100,"-")) -> 5.113815001 | I42: =IF(OR('Tabel 1 H'!G40<5,'Tabel 2 H'!I42<0.5),"-",IFERROR('Tabel 2 H'!I42/'Tabel 1 H'!G40*100,"-")) -> 5.420054201 | J42: =IF(OR('Tabel 1 H'!G40<5,'Tabel 2 H'!J42<0.5),"-",IFERROR('Tabel 2 H'!J42/'Tabel 1 H'!G40*100,"-")) -> 4.567983683
A43: Bac. Samf. | C43: =IF(OR('Tabel 1 H'!C41<5,'Tabel 2 H'!C43<0.5),"-",IFERROR('Tabel 2 H'!C43/'Tabel 1 H'!C41*100,"-")) -> 4.461942257 | D43: =IF(OR('Tabel 1 H'!C41<5,'Tabel 2 H'!D43<0.5),"-",IFERROR('Tabel 2 H'!D43/'Tabel 1 H'!C41*100,"-")) -> 3.813984052 | F43: =IF(OR('Tabel 1 H'!E41<5,'Tabel 2 H'!F43<0.5),"-",IFERROR('Tabel 2 H'!F43/'Tabel 1 H'!E41*100,"-")) -> 6.666666667 | G43: =IF(OR('Tabel 1 H'!E41<5,'Tabel 2 H'!G43<0.5),"-",IFERROR('Tabel 2 H'!G43/'Tabel 1 H'!E41*100,"-")) -> 4.72731887 | I43: =IF(OR('Tabel 1 H'!G41<5,'Tabel 2 H'!I43<0.5),"-",IFERROR('Tabel 2 H'!I43/'Tabel 1 H'!G41*100,"-")) -> 5.637254902 | J43: =IF(OR('Tabel 1 H'!G41<5,'Tabel 2 H'!J43<0.5),"-",IFERROR('Tabel 2 H'!J43/'Tabel 1 H'!G41*100,"-")) -> 4.300872098
A44: Bac. Hum. | C44: =IF(OR('Tabel 1 H'!C42<5,'Tabel 2 H'!C44<0.5),"-",IFERROR('Tabel 2 H'!C44/'Tabel 1 H'!C42*100,"-")) -> 8.935611038 | D44: =IF(OR('Tabel 1 H'!C42<5,'Tabel 2 H'!D44<0.5),"-",IFERROR('Tabel 2 H'!D44/'Tabel 1 H'!C42*100,"-")) -> 7.684217005 | F44: =IF(OR('Tabel 1 H'!E42<5,'Tabel 2 H'!F44<0.5),"-",IFERROR('Tabel 2 H'!F44/'Tabel 1 H'!E42*100,"-")) -> 11.24497992 | G44: =IF(OR('Tabel 1 H'!E42<5,'Tabel 2 H'!G44<0.5),"-",IFERROR('Tabel 2 H'!G44/'Tabel 1 H'!E42*100,"-")) -> 9.130114921 | I44: =IF(OR('Tabel 1 H'!G42<5,'Tabel 2 H'!I44<0.5),"-",IFERROR('Tabel 2 H'!I44/'Tabel 1 H'!G42*100,"-")) -> 10.36889332 | J44: =IF(OR('Tabel 1 H'!G42<5,'Tabel 2 H'!J44<0.5),"-",IFERROR('Tabel 2 H'!J44/'Tabel 1 H'!G42*100,"-")) -> 8.58159632
A45: Bac. Nat. | C45: =IF(OR('Tabel 1 H'!C43<5,'Tabel 2 H'!C45<0.5),"-",IFERROR('Tabel 2 H'!C45/'Tabel 1 H'!C43*100,"-")) -> 9.037328094 | D45: =IF(OR('Tabel 1 H'!C43<5,'Tabel 2 H'!D45<0.5),"-",IFERROR('Tabel 2 H'!D45/'Tabel 1 H'!C43*100,"-")) -> 7.756289 | F45: =IF(OR('Tabel 1 H'!E43<5,'Tabel 2 H'!F45<0.5),"-",IFERROR('Tabel 2 H'!F45/'Tabel 1 H'!E43*100,"-")) -> 12.46418338 | G45: =IF(OR('Tabel 1 H'!E43<5,'Tabel 2 H'!G45<0.5),"-",IFERROR('Tabel 2 H'!G45/'Tabel 1 H'!E43*100,"-")) -> 9.823667768 | I45: =IF(OR('Tabel 1 H'!G43<5,'Tabel 2 H'!I45<0.5),"-",IFERROR('Tabel 2 H'!I45/'Tabel 1 H'!G43*100,"-")) -> 10.43123543 | J45: =IF(OR('Tabel 1 H'!G43<5,'Tabel 2 H'!J45<0.5),"-",IFERROR('Tabel 2 H'!J45/'Tabel 1 H'!G43*100,"-")) -> 8.597215795
A46: Andre | C46: =IF(OR('Tabel 1 H'!C44<5,'Tabel 2 H'!C46<0.5),"-",IFERROR('Tabel 2 H'!C46/'Tabel 1 H'!C44*100,"-")) -> 5.564976106 | D46: =IF(OR('Tabel 1 H'!C44<5,'Tabel 2 H'!D46<0.5),"-",IFERROR('Tabel 2 H'!D46/'Tabel 1 H'!C44*100,"-")) -> 4.713359473 | F46: =IF(OR('Tabel 1 H'!E44<5,'Tabel 2 H'!F46<0.5),"-",IFERROR('Tabel 2 H'!F46/'Tabel 1 H'!E44*100,"-")) -> 7.479801929 | G46: =IF(OR('Tabel 1 H'!E44<5,'Tabel 2 H'!G46<0.5),"-",IFERROR('Tabel 2 H'!G46/'Tabel 1 H'!E44*100,"-")) -> 6.114140627 | I46: =IF(OR('Tabel 1 H'!G44<5,'Tabel 2 H'!I46<0.5),"-",IFERROR('Tabel 2 H'!I46/'Tabel 1 H'!G44*100,"-")) -> 6.602641056 | J46: =IF(OR('Tabel 1 H'!G44<5,'Tabel 2 H'!J46<0.5),"-",IFERROR('Tabel 2 H'!J46/'Tabel 1 H'!G44*100,"-")) -> 5.472458024
A48: Total | C48: =IF(OR('Tabel 1 H'!C46<5,'Tabel 2 H'!C48<0.5),"-",IFERROR('Tabel 2 H'!C48/'Tabel 1 H'!C46*100,"-")) -> 4.139040948 | D48: =IF(OR('Tabel 1 H'!C46<5,'Tabel 2 H'!D48<0.5),"-",IFERROR('Tabel 2 H'!D48/'Tabel 1 H'!C46*100,"-")) -> 3.530034919 | F48: =IF(OR('Tabel 1 H'!E46<5,'Tabel 2 H'!F48<0.5),"-",IFERROR('Tabel 2 H'!F48/'Tabel 1 H'!E46*100,"-")) -> 4.925271056 | G48: =IF(OR('Tabel 1 H'!E46<5,'Tabel 2 H'!G48<0.5),"-",IFERROR('Tabel 2 H'!G48/'Tabel 1 H'!E46*100,"-")) -> 4.058465241 | I48: =IF(OR('Tabel 1 H'!G46<5,'Tabel 2 H'!I48<0.5),"-",IFERROR('Tabel 2 H'!I48/'Tabel 1 H'!G46*100,"-")) -> 4.555603515 | J48: =IF(OR('Tabel 1 H'!G46<5,'Tabel 2 H'!J48<0.5),"-",IFERROR('Tabel 2 H'!J48/'Tabel 1 H'!G46*100,"-")) -> 3.810009304
A50: Ingeniører i alt | C50: =IF(OR('Tabel 1 H'!C48<5,'Tabel 2 H'!C50<0.5),"-",IFERROR('Tabel 2 H'!C50/'Tabel 1 H'!C48*100,"-")) -> 2.653551913 | D50: =IF(OR('Tabel 1 H'!C48<5,'Tabel 2 H'!D50<0.5),"-",IFERROR('Tabel 2 H'!D50/'Tabel 1 H'!C48*100,"-")) -> 2.318758544 | F50: =IF(OR('Tabel 1 H'!E48<5,'Tabel 2 H'!F50<0.5),"-",IFERROR('Tabel 2 H'!F50/'Tabel 1 H'!E48*100,"-")) -> 3.169917864 | G50: =IF(OR('Tabel 1 H'!E48<5,'Tabel 2 H'!G50<0.5),"-",IFERROR('Tabel 2 H'!G50/'Tabel 1 H'!E48*100,"-")) -> 2.735430749 | I50: =IF(OR('Tabel 1 H'!G48<5,'Tabel 2 H'!I50<0.5),"-",IFERROR('Tabel 2 H'!I50/'Tabel 1 H'!G48*100,"-")) -> 2.78475234 | J50: =IF(OR('Tabel 1 H'!G48<5,'Tabel 2 H'!J50<0.5),"-",IFERROR('Tabel 2 H'!J50/'Tabel 1 H'!G48*100,"-")) -> 2.424628366
A51: Magistre i alt | C51: =IF(OR('Tabel 1 H'!C49<5,'Tabel 2 H'!C51<0.5),"-",IFERROR('Tabel 2 H'!C51/'Tabel 1 H'!C49*100,"-")) -> 6.471024648 | D51: =IF(OR('Tabel 1 H'!C49<5,'Tabel 2 H'!D51<0.5),"-",IFERROR('Tabel 2 H'!D51/'Tabel 1 H'!C49*100,"-")) -> 5.344491783 | F51: =IF(OR('Tabel 1 H'!E49<5,'Tabel 2 H'!F51<0.5),"-",IFERROR('Tabel 2 H'!F51/'Tabel 1 H'!E49*100,"-")) -> 6.973488099 | G51: =IF(OR('Tabel 1 H'!E49<5,'Tabel 2 H'!G51<0.5),"-",IFERROR('Tabel 2 H'!G51/'Tabel 1 H'!E49*100,"-")) -> 5.700104449 | I51: =IF(OR('Tabel 1 H'!G49<5,'Tabel 2 H'!I51<0.5),"-",IFERROR('Tabel 2 H'!I51/'Tabel 1 H'!G49*100,"-")) -> 6.795634921 | J51: =IF(OR('Tabel 1 H'!G49<5,'Tabel 2 H'!J51<0.5),"-",IFERROR('Tabel 2 H'!J51/'Tabel 1 H'!G49*100,"-")) -> 5.574230929
A52: DJØF'ere i alt | C52: =IF(OR('Tabel 1 H'!C50<5,'Tabel 2 H'!C52<0.5),"-",IFERROR('Tabel 2 H'!C52/'Tabel 1 H'!C50*100,"-")) -> 3.264438864 | D52: =IF(OR('Tabel 1 H'!C50<5,'Tabel 2 H'!D52<0.5),"-",IFERROR('Tabel 2 H'!D52/'Tabel 1 H'!C50*100,"-")) -> 2.845011052 | F52: =IF(OR('Tabel 1 H'!E50<5,'Tabel 2 H'!F52<0.5),"-",IFERROR('Tabel 2 H'!F52/'Tabel 1 H'!E50*100,"-")) -> 3.352349208 | G52: =IF(OR('Tabel 1 H'!E50<5,'Tabel 2 H'!G52<0.5),"-",IFERROR('Tabel 2 H'!G52/'Tabel 1 H'!E50*100,"-")) -> 2.776852784 | I52: =IF(OR('Tabel 1 H'!G50<5,'Tabel 2 H'!I52<0.5),"-",IFERROR('Tabel 2 H'!I52/'Tabel 1 H'!G50*100,"-")) -> 3.312487957 | J52: =IF(OR('Tabel 1 H'!G50<5,'Tabel 2 H'!J52<0.5),"-",IFERROR('Tabel 2 H'!J52/'Tabel 1 H'!G50*100,"-")) -> 2.807757837
A57: København
C59: Mænd | F59: Kvinder | I59: I alt
C60: Ledigheds- berørte | D60: Gns. brutto- ledighed | F60: Ledigheds- berørte | G60: Gns. brutto- ledighed | I60: Ledigheds- berørte | J60: Gns. brutto- ledighed
A63: Civ. ing. | C63: =IF(OR('Tabel 1 H'!C61<5,'Tabel 2 H'!C63<0.5),"-",IFERROR('Tabel 2 H'!C63/'Tabel 1 H'!C61*100,"-")) -> 4.214046823 | D63: =IF(OR('Tabel 1 H'!C61<5,'Tabel 2 H'!D63<0.5),"-",IFERROR('Tabel 2 H'!D63/'Tabel 1 H'!C61*100,"-")) -> 3.583745648 | F63: =IF(OR('Tabel 1 H'!E61<5,'Tabel 2 H'!F63<0.5),"-",IFERROR('Tabel 2 H'!F63/'Tabel 1 H'!E61*100,"-")) -> 4.679376083 | G63: =IF(OR('Tabel 1 H'!E61<5,'Tabel 2 H'!G63<0.5),"-",IFERROR('Tabel 2 H'!G63/'Tabel 1 H'!E61*100,"-")) -> 4.047652583 | I63: =IF(OR('Tabel 1 H'!G61<5,'Tabel 2 H'!I63<0.5),"-",IFERROR('Tabel 2 H'!I63/'Tabel 1 H'!G61*100,"-")) -> 4.343629344 | J63: =IF(OR('Tabel 1 H'!G61<5,'Tabel 2 H'!J63<0.5),"-",IFERROR('Tabel 2 H'!J63/'Tabel 1 H'!G61*100,"-")) -> 3.712932087
A64: Diplom ing. | C64: =IF(OR('Tabel 1 H'!C62<5,'Tabel 2 H'!C64<0.5),"-",IFERROR('Tabel 2 H'!C64/'Tabel 1 H'!C62*100,"-")) -> 3.543613707 | D64: =IF(OR('Tabel 1 H'!C62<5,'Tabel 2 H'!D64<0.5),"-",IFERROR('Tabel 2 H'!D64/'Tabel 1 H'!C62*100,"-")) -> 3.110868685 | F64: =IF(OR('Tabel 1 H'!E62<5,'Tabel 2 H'!F64<0.5),"-",IFERROR('Tabel 2 H'!F64/'Tabel 1 H'!E62*100,"-")) -> 4.341317365 | G64: =IF(OR('Tabel 1 H'!E62<5,'Tabel 2 H'!G64<0.5),"-",IFERROR('Tabel 2 H'!G64/'Tabel 1 H'!E62*100,"-")) -> 4.087191425 | I64: =IF(OR('Tabel 1 H'!G62<5,'Tabel 2 H'!I64<0.5),"-",IFERROR('Tabel 2 H'!I64/'Tabel 1 H'!G62*100,"-")) -> 3.708281829 | J64: =IF(OR('Tabel 1 H'!G62<5,'Tabel 2 H'!J64<0.5),"-",IFERROR('Tabel 2 H'!J64/'Tabel 1 H'!G62*100,"-")) -> 3.312408732
A65: Cand. Scient. Tek. | C65: =IF(OR('Tabel 1 H'!C63<5,'Tabel 2 H'!C65<0.5),"-",IFERROR('Tabel 2 H'!C65/'Tabel 1 H'!C63*100,"-")) -> 8.226299694 | D65: =IF(OR('Tabel 1 H'!C63<5,'Tabel 2 H'!D65<0.5),"-",IFERROR('Tabel 2 H'!D65/'Tabel 1 H'!C63*100,"-")) -> 7.041154225 | F65: =IF(OR('Tabel 1 H'!E63<5,'Tabel 2 H'!F65<0.5),"-",IFERROR('Tabel 2 H'!F65/'Tabel 1 H'!E63*100,"-")) -> 8.319299427 | G65: =IF(OR('Tabel 1 H'!E63<5,'Tabel 2 H'!G65<0.5),"-",IFERROR('Tabel 2 H'!G65/'Tabel 1 H'!E63*100,"-")) -> 6.850765883 | I65: =IF(OR('Tabel 1 H'!G63<5,'Tabel 2 H'!I65<0.5),"-",IFERROR('Tabel 2 H'!I65/'Tabel 1 H'!G63*100,"-")) -> 8.270556179 | J65: =IF(OR('Tabel 1 H'!G63<5,'Tabel 2 H'!J65<0.5),"-",IFERROR('Tabel 2 H'!J65/'Tabel 1 H'!G63*100,"-")) -> 6.950552688
A66: MA. Hum. | C66: =IF(OR('Tabel 1 H'!C64<5,'Tabel 2 H'!C66<0.5),"-",IFERROR('Tabel 2 H'!C66/'Tabel 1 H'!C64*100,"-")) -> 9.271523179 | D66: =IF(OR('Tabel 1 H'!C64<5,'Tabel 2 H'!D66<0.5),"-",IFERROR('Tabel 2 H'!D66/'Tabel 1 H'!C64*100,"-")) -> 7.508948653 | F66: =IF(OR('Tabel 1 H'!E64<5,'Tabel 2 H'!F66<0.5),"-",IFERROR('Tabel 2 H'!F66/'Tabel 1 H'!E64*100,"-")) -> 8.256337361 | G66: =IF(OR('Tabel 1 H'!E64<5,'Tabel 2 H'!G66<0.5),"-",IFERROR('Tabel 2 H'!G66/'Tabel 1 H'!E64*100,"-")) -> 6.755641235 | I66: =IF(OR('Tabel 1 H'!G64<5,'Tabel 2 H'!I66<0.5),"-",IFERROR('Tabel 2 H'!I66/'Tabel 1 H'!G64*100,"-")) -> 8.586947839 | J66: =IF(OR('Tabel 1 H'!G64<5,'Tabel 2 H'!J66<0.5),"-",IFERROR('Tabel 2 H'!J66/'Tabel 1 H'!G64*100,"-")) -> 7.000967087
A67: MA. Nat. | C67: =IF(OR('Tabel 1 H'!C65<5,'Tabel 2 H'!C67<0.5),"-",IFERROR('Tabel 2 H'!C67/'Tabel 1 H'!C65*100,"-")) -> 4.330446369 | D67: =IF(OR('Tabel 1 H'!C65<5,'Tabel 2 H'!D67<0.5),"-",IFERROR('Tabel 2 H'!D67/'Tabel 1 H'!C65*100,"-")) -> 3.633329044 | F67: =IF(OR('Tabel 1 H'!E65<5,'Tabel 2 H'!F67<0.5),"-",IFERROR('Tabel 2 H'!F67/'Tabel 1 H'!E65*100,"-")) -> 6.196440343 | G67: =IF(OR('Tabel 1 H'!E65<5,'Tabel 2 H'!G67<0.5),"-",IFERROR('Tabel 2 H'!G67/'Tabel 1 H'!E65*100,"-")) -> 4.855961836 | I67: =IF(OR('Tabel 1 H'!G65<5,'Tabel 2 H'!I67<0.5),"-",IFERROR('Tabel 2 H'!I67/'Tabel 1 H'!G65*100,"-")) -> 5.268389662 | J67: =IF(OR('Tabel 1 H'!G65<5,'Tabel 2 H'!J67<0.5),"-",IFERROR('Tabel 2 H'!J67/'Tabel 1 H'!G65*100,"-")) -> 4.247886349
A68: MA. Ph.d. | C68: =IF(OR('Tabel 1 H'!C66<5,'Tabel 2 H'!C68<0.5),"-",IFERROR('Tabel 2 H'!C68/'Tabel 1 H'!C66*100,"-")) -> 4.199475066 | D68: =IF(OR('Tabel 1 H'!C66<5,'Tabel 2 H'!D68<0.5),"-",IFERROR('Tabel 2 H'!D68/'Tabel 1 H'!C66*100,"-")) -> 3.406196504 | F68: =IF(OR('Tabel 1 H'!E66<5,'Tabel 2 H'!F68<0.5),"-",IFERROR('Tabel 2 H'!F68/'Tabel 1 H'!E66*100,"-")) -> 4.12371134 | G68: =IF(OR('Tabel 1 H'!E66<5,'Tabel 2 H'!G68<0.5),"-",IFERROR('Tabel 2 H'!G68/'Tabel 1 H'!E66*100,"-")) -> 3.129070347 | I68: =IF(OR('Tabel 1 H'!G66<5,'Tabel 2 H'!I68<0.5),"-",IFERROR('Tabel 2 H'!I68/'Tabel 1 H'!G66*100,"-")) -> 4.166666667 | J68: =IF(OR('Tabel 1 H'!G66<5,'Tabel 2 H'!J68<0.5),"-",IFERROR('Tabel 2 H'!J68/'Tabel 1 H'!G66*100,"-")) -> 3.286190981
A69: MA. Samf. | C69: =IF(OR('Tabel 1 H'!C67<5,'Tabel 2 H'!C69<0.5),"-",IFERROR('Tabel 2 H'!C69/'Tabel 1 H'!C67*100,"-")) -> 12.08053691 | D69: =IF(OR('Tabel 1 H'!C67<5,'Tabel 2 H'!D69<0.5),"-",IFERROR('Tabel 2 H'!D69/'Tabel 1 H'!C67*100,"-")) -> 10.18595456 | F69: =IF(OR('Tabel 1 H'!E67<5,'Tabel 2 H'!F69<0.5),"-",IFERROR('Tabel 2 H'!F69/'Tabel 1 H'!E67*100,"-")) -> 10.30405405 | G69: =IF(OR('Tabel 1 H'!E67<5,'Tabel 2 H'!G69<0.5),"-",IFERROR('Tabel 2 H'!G69/'Tabel 1 H'!E67*100,"-")) -> 8.498167912 | I69: =IF(OR('Tabel 1 H'!G67<5,'Tabel 2 H'!I69<0.5),"-",IFERROR('Tabel 2 H'!I69/'Tabel 1 H'!G67*100,"-")) -> 10.8290361 | J69: =IF(OR('Tabel 1 H'!G67<5,'Tabel 2 H'!J69<0.5),"-",IFERROR('Tabel 2 H'!J69/'Tabel 1 H'!G67*100,"-")) -> 8.996938657
A70: Øvrige Mag. | C70: =IF(OR('Tabel 1 H'!C68<5,'Tabel 2 H'!C70<0.5),"-",IFERROR('Tabel 2 H'!C70/'Tabel 1 H'!C68*100,"-")) -> 8.908045977 | D70: =IF(OR('Tabel 1 H'!C68<5,'Tabel 2 H'!D70<0.5),"-",IFERROR('Tabel 2 H'!D70/'Tabel 1 H'!C68*100,"-")) -> 7.883703941 | F70: =IF(OR('Tabel 1 H'!E68<5,'Tabel 2 H'!F70<0.5),"-",IFERROR('Tabel 2 H'!F70/'Tabel 1 H'!E68*100,"-")) -> 9.763313609 | G70: =IF(OR('Tabel 1 H'!E68<5,'Tabel 2 H'!G70<0.5),"-",IFERROR('Tabel 2 H'!G70/'Tabel 1 H'!E68*100,"-")) -> 7.821608317 | I70: =IF(OR('Tabel 1 H'!G68<5,'Tabel 2 H'!I70<0.5),"-",IFERROR('Tabel 2 H'!I70/'Tabel 1 H'!G68*100,"-")) -> 9.47265625 | J70: =IF(OR('Tabel 1 H'!G68<5,'Tabel 2 H'!J70<0.5),"-",IFERROR('Tabel 2 H'!J70/'Tabel 1 H'!G68*100,"-")) -> 7.842711127
A71: Agronom | C71: =IF(OR('Tabel 1 H'!C69<5,'Tabel 2 H'!C71<0.5),"-",IFERROR('Tabel 2 H'!C71/'Tabel 1 H'!C69*100,"-")) -> 6.428571429 | D71: =IF(OR('Tabel 1 H'!C69<5,'Tabel 2 H'!D71<0.5),"-",IFERROR('Tabel 2 H'!D71/'Tabel 1 H'!C69*100,"-")) -> 5.693168554 | F71: =IF(OR('Tabel 1 H'!E69<5,'Tabel 2 H'!F71<0.5),"-",IFERROR('Tabel 2 H'!F71/'Tabel 1 H'!E69*100,"-")) -> 4.469273743 | G71: =IF(OR('Tabel 1 H'!E69<5,'Tabel 2 H'!G71<0.5),"-",IFERROR('Tabel 2 H'!G71/'Tabel 1 H'!E69*100,"-")) -> 3.487917901 | I71: =IF(OR('Tabel 1 H'!G69<5,'Tabel 2 H'!I71<0.5),"-",IFERROR('Tabel 2 H'!I71/'Tabel 1 H'!G69*100,"-")) -> 5.329153605 | J71: =IF(OR('Tabel 1 H'!G69<5,'Tabel 2 H'!J71<0.5),"-",IFERROR('Tabel 2 H'!J71/'Tabel 1 H'!G69*100,"-")) -> 4.455739504
A72: Landsk. Arkt. | C72: =IF(OR('Tabel 1 H'!C70<5,'Tabel 2 H'!C72<0.5),"-",IFERROR('Tabel 2 H'!C72/'Tabel 1 H'!C70*100,"-")) -> 5.479452055 | D72: =IF(OR('Tabel 1 H'!C70<5,'Tabel 2 H'!D72<0.5),"-",IFERROR('Tabel 2 H'!D72/'Tabel 1 H'!C70*100,"-")) -> 5.099072205 | F72: =IF(OR('Tabel 1 H'!E70<5,'Tabel 2 H'!F72<0.5),"-",IFERROR('Tabel 2 H'!F72/'Tabel 1 H'!E70*100,"-")) -> 6.043956044 | G72: =IF(OR('Tabel 1 H'!E70<5,'Tabel 2 H'!G72<0.5),"-",IFERROR('Tabel 2 H'!G72/'Tabel 1 H'!E70*100,"-")) -> 5.477370506 | I72: =IF(OR('Tabel 1 H'!G70<5,'Tabel 2 H'!I72<0.5),"-",IFERROR('Tabel 2 H'!I72/'Tabel 1 H'!G70*100,"-")) -> 5.882352941 | J72: =IF(OR('Tabel 1 H'!G70<5,'Tabel 2 H'!J72<0.5),"-",IFERROR('Tabel 2 H'!J72/'Tabel 1 H'!G70*100,"-")) -> 5.369073345
A73: Hortonom | C73: =IF(OR('Tabel 1 H'!C71<5,'Tabel 2 H'!C73<0.5),"-",IFERROR('Tabel 2 H'!C73/'Tabel 1 H'!C71*100,"-")) -> - | D73: =IF(OR('Tabel 1 H'!C71<5,'Tabel 2 H'!D73<0.5),"-",IFERROR('Tabel 2 H'!D73/'Tabel 1 H'!C71*100,"-")) -> - | F73: =IF(OR('Tabel 1 H'!E71<5,'Tabel 2 H'!F73<0.5),"-",IFERROR('Tabel 2 H'!F73/'Tabel 1 H'!E71*100,"-")) -> 4 | G73: =IF(OR('Tabel 1 H'!E71<5,'Tabel 2 H'!G73<0.5),"-",IFERROR('Tabel 2 H'!G73/'Tabel 1 H'!E71*100,"-")) -> 3.999251544 | I73: =IF(OR('Tabel 1 H'!G71<5,'Tabel 2 H'!I73<0.5),"-",IFERROR('Tabel 2 H'!I73/'Tabel 1 H'!G71*100,"-")) -> 2.173913043 | J73: =IF(OR('Tabel 1 H'!G71<5,'Tabel 2 H'!J73<0.5),"-",IFERROR('Tabel 2 H'!J73/'Tabel 1 H'!G71*100,"-")) -> 2.173506274
A74: Forstkand. | C74: =IF(OR('Tabel 1 H'!C72<5,'Tabel 2 H'!C74<0.5),"-",IFERROR('Tabel 2 H'!C74/'Tabel 1 H'!C72*100,"-")) -> 6.349206349 | D74: =IF(OR('Tabel 1 H'!C72<5,'Tabel 2 H'!D74<0.5),"-",IFERROR('Tabel 2 H'!D74/'Tabel 1 H'!C72*100,"-")) -> 5.855977602 | F74: =IF(OR('Tabel 1 H'!E72<5,'Tabel 2 H'!F74<0.5),"-",IFERROR('Tabel 2 H'!F74/'Tabel 1 H'!E72*100,"-")) -> 19.23076923 | G74: =IF(OR('Tabel 1 H'!E72<5,'Tabel 2 H'!G74<0.5),"-",IFERROR('Tabel 2 H'!G74/'Tabel 1 H'!E72*100,"-")) -> 14.54452116 | I74: =IF(OR('Tabel 1 H'!G72<5,'Tabel 2 H'!I74<0.5),"-",IFERROR('Tabel 2 H'!I74/'Tabel 1 H'!G72*100,"-")) -> 10.11235955 | J74: =IF(OR('Tabel 1 H'!G72<5,'Tabel 2 H'!J74<0.5),"-",IFERROR('Tabel 2 H'!J74/'Tabel 1 H'!G72*100,"-")) -> 8.394203809
A75: Jordbrugsakad. | C75: =IF(OR('Tabel 1 H'!C73<5,'Tabel 2 H'!C75<0.5),"-",IFERROR('Tabel 2 H'!C75/'Tabel 1 H'!C73*100,"-")) -> 5.723905724 | D75: =IF(OR('Tabel 1 H'!C73<5,'Tabel 2 H'!D75<0.5),"-",IFERROR('Tabel 2 H'!D75/'Tabel 1 H'!C73*100,"-")) -> 5.179132853 | F75: =IF(OR('Tabel 1 H'!E73<5,'Tabel 2 H'!F75<0.5),"-",IFERROR('Tabel 2 H'!F75/'Tabel 1 H'!E73*100,"-")) -> 6.067961165 | G75: =IF(OR('Tabel 1 H'!E73<5,'Tabel 2 H'!G75<0.5),"-",IFERROR('Tabel 2 H'!G75/'Tabel 1 H'!E73*100,"-")) -> 5.095528095 | I75: =IF(OR('Tabel 1 H'!G73<5,'Tabel 2 H'!I75<0.5),"-",IFERROR('Tabel 2 H'!I75/'Tabel 1 H'!G73*100,"-")) -> 5.923836389 | J75: =IF(OR('Tabel 1 H'!G73<5,'Tabel 2 H'!J75<0.5),"-",IFERROR('Tabel 2 H'!J75/'Tabel 1 H'!G73*100,"-")) -> 5.130550116
A76: Mejeriing. | C76: =IF(OR('Tabel 1 H'!C74<5,'Tabel 2 H'!C76<0.5),"-",IFERROR('Tabel 2 H'!C76/'Tabel 1 H'!C74*100,"-")) -> 8.695652174 | D76: =IF(OR('Tabel 1 H'!C74<5,'Tabel 2 H'!D76<0.5),"-",IFERROR('Tabel 2 H'!D76/'Tabel 1 H'!C74*100,"-")) -> 8.694025095 | F76: =IF(OR('Tabel 1 H'!E74<5,'Tabel 2 H'!F76<0.5),"-",IFERROR('Tabel 2 H'!F76/'Tabel 1 H'!E74*100,"-")) -> 8.108108108 | G76: =IF(OR('Tabel 1 H'!E74<5,'Tabel 2 H'!G76<0.5),"-",IFERROR('Tabel 2 H'!G76/'Tabel 1 H'!E74*100,"-")) -> 7.732362813 | I76: =IF(OR('Tabel 1 H'!G74<5,'Tabel 2 H'!I76<0.5),"-",IFERROR('Tabel 2 H'!I76/'Tabel 1 H'!G74*100,"-")) -> 8.333333333 | J76: =IF(OR('Tabel 1 H'!G74<5,'Tabel 2 H'!J76<0.5),"-",IFERROR('Tabel 2 H'!J76/'Tabel 1 H'!G74*100,"-")) -> 8.101000021
A77: Levn.m.kand. | C77: =IF(OR('Tabel 1 H'!C75<5,'Tabel 2 H'!C77<0.5),"-",IFERROR('Tabel 2 H'!C77/'Tabel 1 H'!C75*100,"-")) -> 6.060606061 | D77: =IF(OR('Tabel 1 H'!C75<5,'Tabel 2 H'!D77<0.5),"-",IFERROR('Tabel 2 H'!D77/'Tabel 1 H'!C75*100,"-")) -> 6.059472036 | F77: =IF(OR('Tabel 1 H'!E75<5,'Tabel 2 H'!F77<0.5),"-",IFERROR('Tabel 2 H'!F77/'Tabel 1 H'!E75*100,"-")) -> 4.545454545 | G77: =IF(OR('Tabel 1 H'!E75<5,'Tabel 2 H'!G77<0.5),"-",IFERROR('Tabel 2 H'!G77/'Tabel 1 H'!E75*100,"-")) -> 2.997132808 | I77: =IF(OR('Tabel 1 H'!G75<5,'Tabel 2 H'!I77<0.5),"-",IFERROR('Tabel 2 H'!I77/'Tabel 1 H'!G75*100,"-")) -> 4.848484848 | J77: =IF(OR('Tabel 1 H'!G75<5,'Tabel 2 H'!J77<0.5),"-",IFERROR('Tabel 2 H'!J77/'Tabel 1 H'!G75*100,"-")) -> 3.609600653
A78: Dyrlæge | C78: =IF(OR('Tabel 1 H'!C76<5,'Tabel 2 H'!C78<0.5),"-",IFERROR('Tabel 2 H'!C78/'Tabel 1 H'!C76*100,"-")) -> - | D78: =IF(OR('Tabel 1 H'!C76<5,'Tabel 2 H'!D78<0.5),"-",IFERROR('Tabel 2 H'!D78/'Tabel 1 H'!C76*100,"-")) -> - | F78: =IF(OR('Tabel 1 H'!E76<5,'Tabel 2 H'!F78<0.5),"-",IFERROR('Tabel 2 H'!F78/'Tabel 1 H'!E76*100,"-")) -> 3.088803089 | G78: =IF(OR('Tabel 1 H'!E76<5,'Tabel 2 H'!G78<0.5),"-",IFERROR('Tabel 2 H'!G78/'Tabel 1 H'!E76*100,"-")) -> 2.143985366 | I78: =IF(OR('Tabel 1 H'!G76<5,'Tabel 2 H'!I78<0.5),"-",IFERROR('Tabel 2 H'!I78/'Tabel 1 H'!G76*100,"-")) -> 2.547770701 | J78: =IF(OR('Tabel 1 H'!G76<5,'Tabel 2 H'!J78<0.5),"-",IFERROR('Tabel 2 H'!J78/'Tabel 1 H'!G76*100,"-")) -> 1.768446528
A79: Farmaceut | C79: =IF(OR('Tabel 1 H'!C77<5,'Tabel 2 H'!C79<0.5),"-",IFERROR('Tabel 2 H'!C79/'Tabel 1 H'!C77*100,"-")) -> 6.537530266 | D79: =IF(OR('Tabel 1 H'!C77<5,'Tabel 2 H'!D79<0.5),"-",IFERROR('Tabel 2 H'!D79/'Tabel 1 H'!C77*100,"-")) -> 5.938568893 | F79: =IF(OR('Tabel 1 H'!E77<5,'Tabel 2 H'!F79<0.5),"-",IFERROR('Tabel 2 H'!F79/'Tabel 1 H'!E77*100,"-")) -> 5.605381166 | G79: =IF(OR('Tabel 1 H'!E77<5,'Tabel 2 H'!G79<0.5),"-",IFERROR('Tabel 2 H'!G79/'Tabel 1 H'!E77*100,"-")) -> 4.4890597 | I79: =IF(OR('Tabel 1 H'!G77<5,'Tabel 2 H'!I79<0.5),"-",IFERROR('Tabel 2 H'!I79/'Tabel 1 H'!G77*100,"-")) -> 5.900383142 | J79: =IF(OR('Tabel 1 H'!G77<5,'Tabel 2 H'!J79<0.5),"-",IFERROR('Tabel 2 H'!J79/'Tabel 1 H'!G77*100,"-")) -> 4.947793261
A80: Læge | C80: =IF(OR('Tabel 1 H'!C78<5,'Tabel 2 H'!C80<0.5),"-",IFERROR('Tabel 2 H'!C80/'Tabel 1 H'!C78*100,"-")) -> 1.602136182 | D80: =IF(OR('Tabel 1 H'!C78<5,'Tabel 2 H'!D80<0.5),"-",IFERROR('Tabel 2 H'!D80/'Tabel 1 H'!C78*100,"-")) -> 1.041077078 | F80: =IF(OR('Tabel 1 H'!E78<5,'Tabel 2 H'!F80<0.5),"-",IFERROR('Tabel 2 H'!F80/'Tabel 1 H'!E78*100,"-")) -> 1.465614431 | G80: =IF(OR('Tabel 1 H'!E78<5,'Tabel 2 H'!G80<0.5),"-",IFERROR('Tabel 2 H'!G80/'Tabel 1 H'!E78*100,"-")) -> 1.070579416 | I80: =IF(OR('Tabel 1 H'!G78<5,'Tabel 2 H'!I80<0.5),"-",IFERROR('Tabel 2 H'!I80/'Tabel 1 H'!G78*100,"-")) -> 1.50614348 | J80: =IF(OR('Tabel 1 H'!G78<5,'Tabel 2 H'!J80<0.5),"-",IFERROR('Tabel 2 H'!J80/'Tabel 1 H'!G78*100,"-")) -> 1.061821092
A81: Tandlæge | C81: =IF(OR('Tabel 1 H'!C79<5,'Tabel 2 H'!C81<0.5),"-",IFERROR('Tabel 2 H'!C81/'Tabel 1 H'!C79*100,"-")) -> 2.040816327 | D81: =IF(OR('Tabel 1 H'!C79<5,'Tabel 2 H'!D81<0.5),"-",IFERROR('Tabel 2 H'!D81/'Tabel 1 H'!C79*100,"-")) -> - | F81: =IF(OR('Tabel 1 H'!E79<5,'Tabel 2 H'!F81<0.5),"-",IFERROR('Tabel 2 H'!F81/'Tabel 1 H'!E79*100,"-")) -> 3.383458647 | G81: =IF(OR('Tabel 1 H'!E79<5,'Tabel 2 H'!G81<0.5),"-",IFERROR('Tabel 2 H'!G81/'Tabel 1 H'!E79*100,"-")) -> 2.278664915 | I81: =IF(OR('Tabel 1 H'!G79<5,'Tabel 2 H'!I81<0.5),"-",IFERROR('Tabel 2 H'!I81/'Tabel 1 H'!G79*100,"-")) -> 3.174603175 | J81: =IF(OR('Tabel 1 H'!G79<5,'Tabel 2 H'!J81<0.5),"-",IFERROR('Tabel 2 H'!J81/'Tabel 1 H'!G79*100,"-")) -> 2.027762185
A82: Arkitekt | C82: =IF(OR('Tabel 1 H'!C80<5,'Tabel 2 H'!C82<0.5),"-",IFERROR('Tabel 2 H'!C82/'Tabel 1 H'!C80*100,"-")) -> 6.75547098 | D82: =IF(OR('Tabel 1 H'!C80<5,'Tabel 2 H'!D82<0.5),"-",IFERROR('Tabel 2 H'!D82/'Tabel 1 H'!C80*100,"-")) -> 5.612057387 | F82: =IF(OR('Tabel 1 H'!E80<5,'Tabel 2 H'!F82<0.5),"-",IFERROR('Tabel 2 H'!F82/'Tabel 1 H'!E80*100,"-")) -> 6.004803843 | G82: =IF(OR('Tabel 1 H'!E80<5,'Tabel 2 H'!G82<0.5),"-",IFERROR('Tabel 2 H'!G82/'Tabel 1 H'!E80*100,"-")) -> 5.433249487 | I82: =IF(OR('Tabel 1 H'!G80<5,'Tabel 2 H'!I82<0.5),"-",IFERROR('Tabel 2 H'!I82/'Tabel 1 H'!G80*100,"-")) -> 6.347826087 | J82: =IF(OR('Tabel 1 H'!G80<5,'Tabel 2 H'!J82<0.5),"-",IFERROR('Tabel 2 H'!J82/'Tabel 1 H'!G80*100,"-")) -> 5.514956923
A83: Landinspek. | C83: =IF(OR('Tabel 1 H'!C81<5,'Tabel 2 H'!C83<0.5),"-",IFERROR('Tabel 2 H'!C83/'Tabel 1 H'!C81*100,"-")) -> 5.263157895 | D83: =IF(OR('Tabel 1 H'!C81<5,'Tabel 2 H'!D83<0.5),"-",IFERROR('Tabel 2 H'!D83/'Tabel 1 H'!C81*100,"-")) -> 5.019253054 | F83: =IF(OR('Tabel 1 H'!E81<5,'Tabel 2 H'!F83<0.5),"-",IFERROR('Tabel 2 H'!F83/'Tabel 1 H'!E81*100,"-")) -> - | G83: =IF(OR('Tabel 1 H'!E81<5,'Tabel 2 H'!G83<0.5),"-",IFERROR('Tabel 2 H'!G83/'Tabel 1 H'!E81*100,"-")) -> - | I83: =IF(OR('Tabel 1 H'!G81<5,'Tabel 2 H'!I83<0.5),"-",IFERROR('Tabel 2 H'!I83/'Tabel 1 H'!G81*100,"-")) -> 3.703703704 | J83: =IF(OR('Tabel 1 H'!G81<5,'Tabel 2 H'!J83<0.5),"-",IFERROR('Tabel 2 H'!J83/'Tabel 1 H'!G81*100,"-")) -> 3.532066964
A84: Bibliotekar | C84: =IF(OR('Tabel 1 H'!C82<5,'Tabel 2 H'!C84<0.5),"-",IFERROR('Tabel 2 H'!C84/'Tabel 1 H'!C82*100,"-")) -> 4.489795918 | D84: =IF(OR('Tabel 1 H'!C82<5,'Tabel 2 H'!D84<0.5),"-",IFERROR('Tabel 2 H'!D84/'Tabel 1 H'!C82*100,"-")) -> 3.318665457 | F84: =IF(OR('Tabel 1 H'!E82<5,'Tabel 2 H'!F84<0.5),"-",IFERROR('Tabel 2 H'!F84/'Tabel 1 H'!E82*100,"-")) -> 5.893536122 | G84: =IF(OR('Tabel 1 H'!E82<5,'Tabel 2 H'!G84<0.5),"-",IFERROR('Tabel 2 H'!G84/'Tabel 1 H'!E82*100,"-")) -> 4.56769415 | I84: =IF(OR('Tabel 1 H'!G82<5,'Tabel 2 H'!I84<0.5),"-",IFERROR('Tabel 2 H'!I84/'Tabel 1 H'!G82*100,"-")) -> 5.447470817 | J84: =IF(OR('Tabel 1 H'!G82<5,'Tabel 2 H'!J84<0.5),"-",IFERROR('Tabel 2 H'!J84/'Tabel 1 H'!G82*100,"-")) -> 4.170791387
A85: Musikudd. | C85: =IF(OR('Tabel 1 H'!C83<5,'Tabel 2 H'!C85<0.5),"-",IFERROR('Tabel 2 H'!C85/'Tabel 1 H'!C83*100,"-")) -> 3.225806452 | D85: =IF(OR('Tabel 1 H'!C83<5,'Tabel 2 H'!D85<0.5),"-",IFERROR('Tabel 2 H'!D85/'Tabel 1 H'!C83*100,"-")) -> 1.421463393 | F85: =IF(OR('Tabel 1 H'!E83<5,'Tabel 2 H'!F85<0.5),"-",IFERROR('Tabel 2 H'!F85/'Tabel 1 H'!E83*100,"-")) -> 6.41025641 | G85: =IF(OR('Tabel 1 H'!E83<5,'Tabel 2 H'!G85<0.5),"-",IFERROR('Tabel 2 H'!G85/'Tabel 1 H'!E83*100,"-")) -> 5.473486575 | I85: =IF(OR('Tabel 1 H'!G83<5,'Tabel 2 H'!I85<0.5),"-",IFERROR('Tabel 2 H'!I85/'Tabel 1 H'!G83*100,"-")) -> 5 | J85: =IF(OR('Tabel 1 H'!G83<5,'Tabel 2 H'!J85<0.5),"-",IFERROR('Tabel 2 H'!J85/'Tabel 1 H'!G83*100,"-")) -> 3.679019166
A86: Teolog | C86: =IF(OR('Tabel 1 H'!C84<5,'Tabel 2 H'!C86<0.5),"-",IFERROR('Tabel 2 H'!C86/'Tabel 1 H'!C84*100,"-")) -> 10.41666667 | D86: =IF(OR('Tabel 1 H'!C84<5,'Tabel 2 H'!D86<0.5),"-",IFERROR('Tabel 2 H'!D86/'Tabel 1 H'!C84*100,"-")) -> 9.004864966 | F86: =IF(OR('Tabel 1 H'!E84<5,'Tabel 2 H'!F86<0.5),"-",IFERROR('Tabel 2 H'!F86/'Tabel 1 H'!E84*100,"-")) -> 5.806451613 | G86: =IF(OR('Tabel 1 H'!E84<5,'Tabel 2 H'!G86<0.5),"-",IFERROR('Tabel 2 H'!G86/'Tabel 1 H'!E84*100,"-")) -> 5.219879161 | I86: =IF(OR('Tabel 1 H'!G84<5,'Tabel 2 H'!I86<0.5),"-",IFERROR('Tabel 2 H'!I86/'Tabel 1 H'!G84*100,"-")) -> 7.569721116 | J86: =IF(OR('Tabel 1 H'!G84<5,'Tabel 2 H'!J86<0.5),"-",IFERROR('Tabel 2 H'!J86/'Tabel 1 H'!G84*100,"-")) -> 6.667523134
A87: Psykolog | C87: =IF(OR('Tabel 1 H'!C85<5,'Tabel 2 H'!C87<0.5),"-",IFERROR('Tabel 2 H'!C87/'Tabel 1 H'!C85*100,"-")) -> 2.739726027 | D87: =IF(OR('Tabel 1 H'!C85<5,'Tabel 2 H'!D87<0.5),"-",IFERROR('Tabel 2 H'!D87/'Tabel 1 H'!C85*100,"-")) -> 2.413970957 | F87: =IF(OR('Tabel 1 H'!E85<5,'Tabel 2 H'!F87<0.5),"-",IFERROR('Tabel 2 H'!F87/'Tabel 1 H'!E85*100,"-")) -> 3.188929001 | G87: =IF(OR('Tabel 1 H'!E85<5,'Tabel 2 H'!G87<0.5),"-",IFERROR('Tabel 2 H'!G87/'Tabel 1 H'!E85*100,"-")) -> 2.613892841 | I87: =IF(OR('Tabel 1 H'!G85<5,'Tabel 2 H'!I87<0.5),"-",IFERROR('Tabel 2 H'!I87/'Tabel 1 H'!G85*100,"-")) -> 3.095238095 | J87: =IF(OR('Tabel 1 H'!G85<5,'Tabel 2 H'!J87<0.5),"-",IFERROR('Tabel 2 H'!J87/'Tabel 1 H'!G85*100,"-")) -> 2.572194848
A88: Jurist | C88: =IF(OR('Tabel 1 H'!C86<5,'Tabel 2 H'!C88<0.5),"-",IFERROR('Tabel 2 H'!C88/'Tabel 1 H'!C86*100,"-")) -> 1.936289819 | D88: =IF(OR('Tabel 1 H'!C86<5,'Tabel 2 H'!D88<0.5),"-",IFERROR('Tabel 2 H'!D88/'Tabel 1 H'!C86*100,"-")) -> 1.656873143 | F88: =IF(OR('Tabel 1 H'!E86<5,'Tabel 2 H'!F88<0.5),"-",IFERROR('Tabel 2 H'!F88/'Tabel 1 H'!E86*100,"-")) -> 1.281163435 | G88: =IF(OR('Tabel 1 H'!E86<5,'Tabel 2 H'!G88<0.5),"-",IFERROR('Tabel 2 H'!G88/'Tabel 1 H'!E86*100,"-")) -> 1.062667148 | I88: =IF(OR('Tabel 1 H'!G86<5,'Tabel 2 H'!I88<0.5),"-",IFERROR('Tabel 2 H'!I88/'Tabel 1 H'!G86*100,"-")) -> 1.51481399 | J88: =IF(OR('Tabel 1 H'!G86<5,'Tabel 2 H'!J88<0.5),"-",IFERROR('Tabel 2 H'!J88/'Tabel 1 H'!G86*100,"-")) -> 1.274590471
A89: Økonom | C89: =IF(OR('Tabel 1 H'!C87<5,'Tabel 2 H'!C89<0.5),"-",IFERROR('Tabel 2 H'!C89/'Tabel 1 H'!C87*100,"-")) -> 2.762762763 | D89: =IF(OR('Tabel 1 H'!C87<5,'Tabel 2 H'!D89<0.5),"-",IFERROR('Tabel 2 H'!D89/'Tabel 1 H'!C87*100,"-")) -> 2.329167563 | F89: =IF(OR('Tabel 1 H'!E87<5,'Tabel 2 H'!F89<0.5),"-",IFERROR('Tabel 2 H'!F89/'Tabel 1 H'!E87*100,"-")) -> 2.5390625 | G89: =IF(OR('Tabel 1 H'!E87<5,'Tabel 2 H'!G89<0.5),"-",IFERROR('Tabel 2 H'!G89/'Tabel 1 H'!E87*100,"-")) -> 2.145599116 | I89: =IF(OR('Tabel 1 H'!G87<5,'Tabel 2 H'!I89<0.5),"-",IFERROR('Tabel 2 H'!I89/'Tabel 1 H'!G87*100,"-")) -> 2.677575307 | J89: =IF(OR('Tabel 1 H'!G87<5,'Tabel 2 H'!J89<0.5),"-",IFERROR('Tabel 2 H'!J89/'Tabel 1 H'!G87*100,"-")) -> 2.259262732
A90: Samf. Adm. | C90: =IF(OR('Tabel 1 H'!C88<5,'Tabel 2 H'!C90<0.5),"-",IFERROR('Tabel 2 H'!C90/'Tabel 1 H'!C88*100,"-")) -> 4.913224151 | D90: =IF(OR('Tabel 1 H'!C88<5,'Tabel 2 H'!D90<0.5),"-",IFERROR('Tabel 2 H'!D90/'Tabel 1 H'!C88*100,"-")) -> 4.346251574 | F90: =IF(OR('Tabel 1 H'!E88<5,'Tabel 2 H'!F90<0.5),"-",IFERROR('Tabel 2 H'!F90/'Tabel 1 H'!E88*100,"-")) -> 5.400065854 | G90: =IF(OR('Tabel 1 H'!E88<5,'Tabel 2 H'!G90<0.5),"-",IFERROR('Tabel 2 H'!G90/'Tabel 1 H'!E88*100,"-")) -> 4.420562373 | I90: =IF(OR('Tabel 1 H'!G88<5,'Tabel 2 H'!I90<0.5),"-",IFERROR('Tabel 2 H'!I90/'Tabel 1 H'!G88*100,"-")) -> 5.204131825 | J90: =IF(OR('Tabel 1 H'!G88<5,'Tabel 2 H'!J90<0.5),"-",IFERROR('Tabel 2 H'!J90/'Tabel 1 H'!G88*100,"-")) -> 4.390655292
A91: Cand. Merc. | C91: =IF(OR('Tabel 1 H'!C89<5,'Tabel 2 H'!C91<0.5),"-",IFERROR('Tabel 2 H'!C91/'Tabel 1 H'!C89*100,"-")) -> 3.75360924 | D91: =IF(OR('Tabel 1 H'!C89<5,'Tabel 2 H'!D91<0.5),"-",IFERROR('Tabel 2 H'!D91/'Tabel 1 H'!C89*100,"-")) -> 3.254140117 | F91: =IF(OR('Tabel 1 H'!E89<5,'Tabel 2 H'!F91<0.5),"-",IFERROR('Tabel 2 H'!F91/'Tabel 1 H'!E89*100,"-")) -> 3.962703963 | G91: =IF(OR('Tabel 1 H'!E89<5,'Tabel 2 H'!G91<0.5),"-",IFERROR('Tabel 2 H'!G91/'Tabel 1 H'!E89*100,"-")) -> 3.262998601 | I91: =IF(OR('Tabel 1 H'!G89<5,'Tabel 2 H'!I91<0.5),"-",IFERROR('Tabel 2 H'!I91/'Tabel 1 H'!G89*100,"-")) -> 3.857681524 | J91: =IF(OR('Tabel 1 H'!G89<5,'Tabel 2 H'!J91<0.5),"-",IFERROR('Tabel 2 H'!J91/'Tabel 1 H'!G89*100,"-")) -> 3.258549232
A92: HA | C92: =IF(OR('Tabel 1 H'!C90<5,'Tabel 2 H'!C92<0.5),"-",IFERROR('Tabel 2 H'!C92/'Tabel 1 H'!C90*100,"-")) -> 6.426332288 | D92: =IF(OR('Tabel 1 H'!C90<5,'Tabel 2 H'!D92<0.5),"-",IFERROR('Tabel 2 H'!D92/'Tabel 1 H'!C90*100,"-")) -> 5.52670853 | F92: =IF(OR('Tabel 1 H'!E90<5,'Tabel 2 H'!F92<0.5),"-",IFERROR('Tabel 2 H'!F92/'Tabel 1 H'!E90*100,"-")) -> 6.74955595 | G92: =IF(OR('Tabel 1 H'!E90<5,'Tabel 2 H'!G92<0.5),"-",IFERROR('Tabel 2 H'!G92/'Tabel 1 H'!E90*100,"-")) -> 5.67058683 | I92: =IF(OR('Tabel 1 H'!G90<5,'Tabel 2 H'!I92<0.5),"-",IFERROR('Tabel 2 H'!I92/'Tabel 1 H'!G90*100,"-")) -> 6.57785179 | J92: =IF(OR('Tabel 1 H'!G90<5,'Tabel 2 H'!J92<0.5),"-",IFERROR('Tabel 2 H'!J92/'Tabel 1 H'!G90*100,"-")) -> 5.594155227
A93: HD | C93: =IF(OR('Tabel 1 H'!C91<5,'Tabel 2 H'!C93<0.5),"-",IFERROR('Tabel 2 H'!C93/'Tabel 1 H'!C91*100,"-")) -> 8.571428571 | D93: =IF(OR('Tabel 1 H'!C91<5,'Tabel 2 H'!D93<0.5),"-",IFERROR('Tabel 2 H'!D93/'Tabel 1 H'!C91*100,"-")) -> 7.624325848 | F93: =IF(OR('Tabel 1 H'!E91<5,'Tabel 2 H'!F93<0.5),"-",IFERROR('Tabel 2 H'!F93/'Tabel 1 H'!E91*100,"-")) -> 7.41989882 | G93: =IF(OR('Tabel 1 H'!E91<5,'Tabel 2 H'!G93<0.5),"-",IFERROR('Tabel 2 H'!G93/'Tabel 1 H'!E91*100,"-")) -> 6.332954302 | I93: =IF(OR('Tabel 1 H'!G91<5,'Tabel 2 H'!I93<0.5),"-",IFERROR('Tabel 2 H'!I93/'Tabel 1 H'!G91*100,"-")) -> 7.940904894 | J93: =IF(OR('Tabel 1 H'!G91<5,'Tabel 2 H'!J93<0.5),"-",IFERROR('Tabel 2 H'!J93/'Tabel 1 H'!G91*100,"-")) -> 6.917231364
A94: Komm. og Sprog | C94: =IF(OR('Tabel 1 H'!C92<5,'Tabel 2 H'!C94<0.5),"-",IFERROR('Tabel 2 H'!C94/'Tabel 1 H'!C92*100,"-")) -> 7.341772152 | D94: =IF(OR('Tabel 1 H'!C92<5,'Tabel 2 H'!D94<0.5),"-",IFERROR('Tabel 2 H'!D94/'Tabel 1 H'!C92*100,"-")) -> 6.169711679 | F94: =IF(OR('Tabel 1 H'!E92<5,'Tabel 2 H'!F94<0.5),"-",IFERROR('Tabel 2 H'!F94/'Tabel 1 H'!E92*100,"-")) -> 6.846473029 | G94: =IF(OR('Tabel 1 H'!E92<5,'Tabel 2 H'!G94<0.5),"-",IFERROR('Tabel 2 H'!G94/'Tabel 1 H'!E92*100,"-")) -> 5.648446897 | I94: =IF(OR('Tabel 1 H'!G92<5,'Tabel 2 H'!I94<0.5),"-",IFERROR('Tabel 2 H'!I94/'Tabel 1 H'!G92*100,"-")) -> 6.952743074 | J94: =IF(OR('Tabel 1 H'!G92<5,'Tabel 2 H'!J94<0.5),"-",IFERROR('Tabel 2 H'!J94/'Tabel 1 H'!G92*100,"-")) -> 5.760288064
A95: Bygningskonst. | C95: =IF(OR('Tabel 1 H'!C93<5,'Tabel 2 H'!C95<0.5),"-",IFERROR('Tabel 2 H'!C95/'Tabel 1 H'!C93*100,"-")) -> 3.711790393 | D95: =IF(OR('Tabel 1 H'!C93<5,'Tabel 2 H'!D95<0.5),"-",IFERROR('Tabel 2 H'!D95/'Tabel 1 H'!C93*100,"-")) -> 2.964178413 | F95: =IF(OR('Tabel 1 H'!E93<5,'Tabel 2 H'!F95<0.5),"-",IFERROR('Tabel 2 H'!F95/'Tabel 1 H'!E93*100,"-")) -> 9.71659919 | G95: =IF(OR('Tabel 1 H'!E93<5,'Tabel 2 H'!G95<0.5),"-",IFERROR('Tabel 2 H'!G95/'Tabel 1 H'!E93*100,"-")) -> 8.757671109 | I95: =IF(OR('Tabel 1 H'!G93<5,'Tabel 2 H'!I95<0.5),"-",IFERROR('Tabel 2 H'!I95/'Tabel 1 H'!G93*100,"-")) -> 4.987102322 | J95: =IF(OR('Tabel 1 H'!G93<5,'Tabel 2 H'!J95<0.5),"-",IFERROR('Tabel 2 H'!J95/'Tabel 1 H'!G93*100,"-")) -> 4.194610653
A96: Cand. IT. | C96: =IF(OR('Tabel 1 H'!C94<5,'Tabel 2 H'!C96<0.5),"-",IFERROR('Tabel 2 H'!C96/'Tabel 1 H'!C94*100,"-")) -> 5.607476636 | D96: =IF(OR('Tabel 1 H'!C94<5,'Tabel 2 H'!D96<0.5),"-",IFERROR('Tabel 2 H'!D96/'Tabel 1 H'!C94*100,"-")) -> 4.910886354 | F96: =IF(OR('Tabel 1 H'!E94<5,'Tabel 2 H'!F96<0.5),"-",IFERROR('Tabel 2 H'!F96/'Tabel 1 H'!E94*100,"-")) -> 7.891770011 | G96: =IF(OR('Tabel 1 H'!E94<5,'Tabel 2 H'!G96<0.5),"-",IFERROR('Tabel 2 H'!G96/'Tabel 1 H'!E94*100,"-")) -> 6.334243965 | I96: =IF(OR('Tabel 1 H'!G94<5,'Tabel 2 H'!I96<0.5),"-",IFERROR('Tabel 2 H'!I96/'Tabel 1 H'!G94*100,"-")) -> 6.702702703 | J96: =IF(OR('Tabel 1 H'!G94<5,'Tabel 2 H'!J96<0.5),"-",IFERROR('Tabel 2 H'!J96/'Tabel 1 H'!G94*100,"-")) -> 5.593328625
A97: Bac. Samf. | C97: =IF(OR('Tabel 1 H'!C95<5,'Tabel 2 H'!C97<0.5),"-",IFERROR('Tabel 2 H'!C97/'Tabel 1 H'!C95*100,"-")) -> 5.042016807 | D97: =IF(OR('Tabel 1 H'!C95<5,'Tabel 2 H'!D97<0.5),"-",IFERROR('Tabel 2 H'!D97/'Tabel 1 H'!C95*100,"-")) -> 4.005132272 | F97: =IF(OR('Tabel 1 H'!E95<5,'Tabel 2 H'!F97<0.5),"-",IFERROR('Tabel 2 H'!F97/'Tabel 1 H'!E95*100,"-")) -> 7.818930041 | G97: =IF(OR('Tabel 1 H'!E95<5,'Tabel 2 H'!G97<0.5),"-",IFERROR('Tabel 2 H'!G97/'Tabel 1 H'!E95*100,"-")) -> 5.279748379 | I97: =IF(OR('Tabel 1 H'!G95<5,'Tabel 2 H'!I97<0.5),"-",IFERROR('Tabel 2 H'!I97/'Tabel 1 H'!G95*100,"-")) -> 6.444906445 | J97: =IF(OR('Tabel 1 H'!G95<5,'Tabel 2 H'!J97<0.5),"-",IFERROR('Tabel 2 H'!J97/'Tabel 1 H'!G95*100,"-")) -> 4.649065149
A98: Bac. Hum. | C98: =IF(OR('Tabel 1 H'!C96<5,'Tabel 2 H'!C98<0.5),"-",IFERROR('Tabel 2 H'!C98/'Tabel 1 H'!C96*100,"-")) -> 9.879032258 | D98: =IF(OR('Tabel 1 H'!C96<5,'Tabel 2 H'!D98<0.5),"-",IFERROR('Tabel 2 H'!D98/'Tabel 1 H'!C96*100,"-")) -> 8.718912404 | F98: =IF(OR('Tabel 1 H'!E96<5,'Tabel 2 H'!F98<0.5),"-",IFERROR('Tabel 2 H'!F98/'Tabel 1 H'!E96*100,"-")) -> 12.57861635 | G98: =IF(OR('Tabel 1 H'!E96<5,'Tabel 2 H'!G98<0.5),"-",IFERROR('Tabel 2 H'!G98/'Tabel 1 H'!E96*100,"-")) -> 10.09050908 | I98: =IF(OR('Tabel 1 H'!G96<5,'Tabel 2 H'!I98<0.5),"-",IFERROR('Tabel 2 H'!I98/'Tabel 1 H'!G96*100,"-")) -> 11.54144074 | J98: =IF(OR('Tabel 1 H'!G96<5,'Tabel 2 H'!J98<0.5),"-",IFERROR('Tabel 2 H'!J98/'Tabel 1 H'!G96*100,"-")) -> 9.563543974
A99: Bac. Nat. | C99: =IF(OR('Tabel 1 H'!C97<5,'Tabel 2 H'!C99<0.5),"-",IFERROR('Tabel 2 H'!C99/'Tabel 1 H'!C97*100,"-")) -> 10.46728972 | D99: =IF(OR('Tabel 1 H'!C97<5,'Tabel 2 H'!D99<0.5),"-",IFERROR('Tabel 2 H'!D99/'Tabel 1 H'!C97*100,"-")) -> 9.139910617 | F99: =IF(OR('Tabel 1 H'!E97<5,'Tabel 2 H'!F99<0.5),"-",IFERROR('Tabel 2 H'!F99/'Tabel 1 H'!E97*100,"-")) -> 14.63414634 | G99: =IF(OR('Tabel 1 H'!E97<5,'Tabel 2 H'!G99<0.5),"-",IFERROR('Tabel 2 H'!G99/'Tabel 1 H'!E97*100,"-")) -> 11.43297437 | I99: =IF(OR('Tabel 1 H'!G97<5,'Tabel 2 H'!I99<0.5),"-",IFERROR('Tabel 2 H'!I99/'Tabel 1 H'!G97*100,"-")) -> 12.27513228 | J99: =IF(OR('Tabel 1 H'!G97<5,'Tabel 2 H'!J99<0.5),"-",IFERROR('Tabel 2 H'!J99/'Tabel 1 H'!G97*100,"-")) -> 10.13478484
A100: Andre | C100: =IF(OR('Tabel 1 H'!C98<5,'Tabel 2 H'!C100<0.5),"-",IFERROR('Tabel 2 H'!C100/'Tabel 1 H'!C98*100,"-")) -> 6.652989449 | D100: =IF(OR('Tabel 1 H'!C98<5,'Tabel 2 H'!D100<0.5),"-",IFERROR('Tabel 2 H'!D100/'Tabel 1 H'!C98*100,"-")) -> 5.674203316 | F100: =IF(OR('Tabel 1 H'!E98<5,'Tabel 2 H'!F100<0.5),"-",IFERROR('Tabel 2 H'!F100/'Tabel 1 H'!E98*100,"-")) -> 8.278867102 | G100: =IF(OR('Tabel 1 H'!E98<5,'Tabel 2 H'!G100<0.5),"-",IFERROR('Tabel 2 H'!G100/'Tabel 1 H'!E98*100,"-")) -> 6.852288723 | I100: =IF(OR('Tabel 1 H'!G98<5,'Tabel 2 H'!I100<0.5),"-",IFERROR('Tabel 2 H'!I100/'Tabel 1 H'!G98*100,"-")) -> 7.543417738 | J100: =IF(OR('Tabel 1 H'!G98<5,'Tabel 2 H'!J100<0.5),"-",IFERROR('Tabel 2 H'!J100/'Tabel 1 H'!G98*100,"-")) -> 6.319393667
A102: Total | C102: =IF(OR('Tabel 1 H'!C100<5,'Tabel 2 H'!C102<0.5),"-",IFERROR('Tabel 2 H'!C102/'Tabel 1 H'!C100*100,"-")) -> 5.570393898 | D102: =IF(OR('Tabel 1 H'!C100<5,'Tabel 2 H'!D102<0.5),"-",IFERROR('Tabel 2 H'!D102/'Tabel 1 H'!C100*100,"-")) -> 4.735120001 | F102: =IF(OR('Tabel 1 H'!E100<5,'Tabel 2 H'!F102<0.5),"-",IFERROR('Tabel 2 H'!F102/'Tabel 1 H'!E100*100,"-")) -> 6.202853313 | G102: =IF(OR('Tabel 1 H'!E100<5,'Tabel 2 H'!G102<0.5),"-",IFERROR('Tabel 2 H'!G102/'Tabel 1 H'!E100*100,"-")) -> 5.092161767 | I102: =IF(OR('Tabel 1 H'!G100<5,'Tabel 2 H'!I102<0.5),"-",IFERROR('Tabel 2 H'!I102/'Tabel 1 H'!G100*100,"-")) -> 5.915705296 | J102: =IF(OR('Tabel 1 H'!G100<5,'Tabel 2 H'!J102<0.5),"-",IFERROR('Tabel 2 H'!J102/'Tabel 1 H'!G100*100,"-")) -> 4.930058346
A104: Ingeniører i alt | C104: =IF(OR('Tabel 1 H'!C102<5,'Tabel 2 H'!C104<0.5),"-",IFERROR('Tabel 2 H'!C104/'Tabel 1 H'!C102*100,"-")) -> 3.969941869 | D104: =IF(OR('Tabel 1 H'!C102<5,'Tabel 2 H'!D104<0.5),"-",IFERROR('Tabel 2 H'!D104/'Tabel 1 H'!C102*100,"-")) -> 3.411570965 | F104: =IF(OR('Tabel 1 H'!E102<5,'Tabel 2 H'!F104<0.5),"-",IFERROR('Tabel 2 H'!F104/'Tabel 1 H'!E102*100,"-")) -> 4.585243852 | G104: =IF(OR('Tabel 1 H'!E102<5,'Tabel 2 H'!G104<0.5),"-",IFERROR('Tabel 2 H'!G104/'Tabel 1 H'!E102*100,"-")) -> 4.058662148 | I104: =IF(OR('Tabel 1 H'!G102<5,'Tabel 2 H'!I104<0.5),"-",IFERROR('Tabel 2 H'!I104/'Tabel 1 H'!G102*100,"-")) -> 4.126110876 | J104: =IF(OR('Tabel 1 H'!G102<5,'Tabel 2 H'!J104<0.5),"-",IFERROR('Tabel 2 H'!J104/'Tabel 1 H'!G102*100,"-")) -> 3.575808349
A105: Magistre i alt | C105: =IF(OR('Tabel 1 H'!C103<5,'Tabel 2 H'!C105<0.5),"-",IFERROR('Tabel 2 H'!C105/'Tabel 1 H'!C103*100,"-")) -> 8.22461713 | D105: =IF(OR('Tabel 1 H'!C103<5,'Tabel 2 H'!D105<0.5),"-",IFERROR('Tabel 2 H'!D105/'Tabel 1 H'!C103*100,"-")) -> 6.763675062 | F105: =IF(OR('Tabel 1 H'!E103<5,'Tabel 2 H'!F105<0.5),"-",IFERROR('Tabel 2 H'!F105/'Tabel 1 H'!E103*100,"-")) -> 8.28216029 | G105: =IF(OR('Tabel 1 H'!E103<5,'Tabel 2 H'!G105<0.5),"-",IFERROR('Tabel 2 H'!G105/'Tabel 1 H'!E103*100,"-")) -> 6.746050253 | I105: =IF(OR('Tabel 1 H'!G103<5,'Tabel 2 H'!I105<0.5),"-",IFERROR('Tabel 2 H'!I105/'Tabel 1 H'!G103*100,"-")) -> 8.2616179 | J105: =IF(OR('Tabel 1 H'!G103<5,'Tabel 2 H'!J105<0.5),"-",IFERROR('Tabel 2 H'!J105/'Tabel 1 H'!G103*100,"-")) -> 6.752342151
A106: DJØF'ere i alt | C106: =IF(OR('Tabel 1 H'!C104<5,'Tabel 2 H'!C106<0.5),"-",IFERROR('Tabel 2 H'!C106/'Tabel 1 H'!C104*100,"-")) -> 3.896891585 | D106: =IF(OR('Tabel 1 H'!C104<5,'Tabel 2 H'!D106<0.5),"-",IFERROR('Tabel 2 H'!D106/'Tabel 1 H'!C104*100,"-")) -> 3.392155499 | F106: =IF(OR('Tabel 1 H'!E104<5,'Tabel 2 H'!F106<0.5),"-",IFERROR('Tabel 2 H'!F106/'Tabel 1 H'!E104*100,"-")) -> 4.032617698 | G106: =IF(OR('Tabel 1 H'!E104<5,'Tabel 2 H'!G106<0.5),"-",IFERROR('Tabel 2 H'!G106/'Tabel 1 H'!E104*100,"-")) -> 3.31955337 | I106: =IF(OR('Tabel 1 H'!G104<5,'Tabel 2 H'!I106<0.5),"-",IFERROR('Tabel 2 H'!I106/'Tabel 1 H'!G104*100,"-")) -> 3.970644234 | J106: =IF(OR('Tabel 1 H'!G104<5,'Tabel 2 H'!J106<0.5),"-",IFERROR('Tabel 2 H'!J106/'Tabel 1 H'!G104*100,"-")) -> 3.352703994
A111: Frederiksberg
C113: Mænd | F113: Kvinder | I113: I alt
C114: Ledigheds- berørte | D114: Gns. brutto- ledighed | F114: Ledigheds- berørte | G114: Gns. brutto- ledighed | I114: Ledigheds- berørte | J114: Gns. brutto- ledighed
A117: Civ. ing. | C117: =IF(OR('Tabel 1 H'!C115<5,'Tabel 2 H'!C117<0.5),"-",IFERROR('Tabel 2 H'!C117/'Tabel 1 H'!C115*100,"-")) -> 2.284263959 | D117: =IF(OR('Tabel 1 H'!C115<5,'Tabel 2 H'!D117<0.5),"-",IFERROR('Tabel 2 H'!D117/'Tabel 1 H'!C115*100,"-")) -> 1.917523534 | F117: =IF(OR('Tabel 1 H'!E115<5,'Tabel 2 H'!F117<0.5),"-",IFERROR('Tabel 2 H'!F117/'Tabel 1 H'!E115*100,"-")) -> 3.726708075 | G117: =IF(OR('Tabel 1 H'!E115<5,'Tabel 2 H'!G117<0.5),"-",IFERROR('Tabel 2 H'!G117/'Tabel 1 H'!E115*100,"-")) -> 2.962058456 | I117: =IF(OR('Tabel 1 H'!G115<5,'Tabel 2 H'!I117<0.5),"-",IFERROR('Tabel 2 H'!I117/'Tabel 1 H'!G115*100,"-")) -> 2.702702703 | J117: =IF(OR('Tabel 1 H'!G115<5,'Tabel 2 H'!J117<0.5),"-",IFERROR('Tabel 2 H'!J117/'Tabel 1 H'!G115*100,"-")) -> 2.220532764
A118: Diplom ing. | C118: =IF(OR('Tabel 1 H'!C116<5,'Tabel 2 H'!C118<0.5),"-",IFERROR('Tabel 2 H'!C118/'Tabel 1 H'!C116*100,"-")) -> 2.643171806 | D118: =IF(OR('Tabel 1 H'!C116<5,'Tabel 2 H'!D118<0.5),"-",IFERROR('Tabel 2 H'!D118/'Tabel 1 H'!C116*100,"-")) -> 2.154696907 | F118: =IF(OR('Tabel 1 H'!E116<5,'Tabel 2 H'!F118<0.5),"-",IFERROR('Tabel 2 H'!F118/'Tabel 1 H'!E116*100,"-")) -> 2.777777778 | G118: =IF(OR('Tabel 1 H'!E116<5,'Tabel 2 H'!G118<0.5),"-",IFERROR('Tabel 2 H'!G118/'Tabel 1 H'!E116*100,"-")) -> 2.517954866 | I118: =IF(OR('Tabel 1 H'!G116<5,'Tabel 2 H'!I118<0.5),"-",IFERROR('Tabel 2 H'!I118/'Tabel 1 H'!G116*100,"-")) -> 2.669039146 | J118: =IF(OR('Tabel 1 H'!G116<5,'Tabel 2 H'!J118<0.5),"-",IFERROR('Tabel 2 H'!J118/'Tabel 1 H'!G116*100,"-")) -> 2.224504486
A119: Cand. Scient. Tek. | C119: =IF(OR('Tabel 1 H'!C117<5,'Tabel 2 H'!C119<0.5),"-",IFERROR('Tabel 2 H'!C119/'Tabel 1 H'!C117*100,"-")) -> 5.048076923 | D119: =IF(OR('Tabel 1 H'!C117<5,'Tabel 2 H'!D119<0.5),"-",IFERROR('Tabel 2 H'!D119/'Tabel 1 H'!C117*100,"-")) -> 4.603336148 | F119: =IF(OR('Tabel 1 H'!E117<5,'Tabel 2 H'!F119<0.5),"-",IFERROR('Tabel 2 H'!F119/'Tabel 1 H'!E117*100,"-")) -> 7.004830918 | G119: =IF(OR('Tabel 1 H'!E117<5,'Tabel 2 H'!G119<0.5),"-",IFERROR('Tabel 2 H'!G119/'Tabel 1 H'!E117*100,"-")) -> 5.694776263 | I119: =IF(OR('Tabel 1 H'!G117<5,'Tabel 2 H'!I119<0.5),"-",IFERROR('Tabel 2 H'!I119/'Tabel 1 H'!G117*100,"-")) -> 6.024096386 | J119: =IF(OR('Tabel 1 H'!G117<5,'Tabel 2 H'!J119<0.5),"-",IFERROR('Tabel 2 H'!J119/'Tabel 1 H'!G117*100,"-")) -> 5.147741217
A120: MA. Hum. | C120: =IF(OR('Tabel 1 H'!C118<5,'Tabel 2 H'!C120<0.5),"-",IFERROR('Tabel 2 H'!C120/'Tabel 1 H'!C118*100,"-")) -> 6.319702602 | D120: =IF(OR('Tabel 1 H'!C118<5,'Tabel 2 H'!D120<0.5),"-",IFERROR('Tabel 2 H'!D120/'Tabel 1 H'!C118*100,"-")) -> 5.267713408 | F120: =IF(OR('Tabel 1 H'!E118<5,'Tabel 2 H'!F120<0.5),"-",IFERROR('Tabel 2 H'!F120/'Tabel 1 H'!E118*100,"-")) -> 7.003891051 | G120: =IF(OR('Tabel 1 H'!E118<5,'Tabel 2 H'!G120<0.5),"-",IFERROR('Tabel 2 H'!G120/'Tabel 1 H'!E118*100,"-")) -> 5.838056285 | I120: =IF(OR('Tabel 1 H'!G118<5,'Tabel 2 H'!I120<0.5),"-",IFERROR('Tabel 2 H'!I120/'Tabel 1 H'!G118*100,"-")) -> 6.801974767 | J120: =IF(OR('Tabel 1 H'!G118<5,'Tabel 2 H'!J120<0.5),"-",IFERROR('Tabel 2 H'!J120/'Tabel 1 H'!G118*100,"-")) -> 5.669737872
A121: MA. Nat. | C121: =IF(OR('Tabel 1 H'!C119<5,'Tabel 2 H'!C121<0.5),"-",IFERROR('Tabel 2 H'!C121/'Tabel 1 H'!C119*100,"-")) -> 4.838709677 | D121: =IF(OR('Tabel 1 H'!C119<5,'Tabel 2 H'!D121<0.5),"-",IFERROR('Tabel 2 H'!D121/'Tabel 1 H'!C119*100,"-")) -> 4.521420538 | F121: =IF(OR('Tabel 1 H'!E119<5,'Tabel 2 H'!F121<0.5),"-",IFERROR('Tabel 2 H'!F121/'Tabel 1 H'!E119*100,"-")) -> 4.237288136 | G121: =IF(OR('Tabel 1 H'!E119<5,'Tabel 2 H'!G121<0.5),"-",IFERROR('Tabel 2 H'!G121/'Tabel 1 H'!E119*100,"-")) -> 3.610667405 | I121: =IF(OR('Tabel 1 H'!G119<5,'Tabel 2 H'!I121<0.5),"-",IFERROR('Tabel 2 H'!I121/'Tabel 1 H'!G119*100,"-")) -> 4.545454545 | J121: =IF(OR('Tabel 1 H'!G119<5,'Tabel 2 H'!J121<0.5),"-",IFERROR('Tabel 2 H'!J121/'Tabel 1 H'!G119*100,"-")) -> 4.0773343
A122: MA. Ph.d. | C122: =IF(OR('Tabel 1 H'!C120<5,'Tabel 2 H'!C122<0.5),"-",IFERROR('Tabel 2 H'!C122/'Tabel 1 H'!C120*100,"-")) -> 4.545454545 | D122: =IF(OR('Tabel 1 H'!C120<5,'Tabel 2 H'!D122<0.5),"-",IFERROR('Tabel 2 H'!D122/'Tabel 1 H'!C120*100,"-")) -> 1.621655336 | F122: =IF(OR('Tabel 1 H'!E120<5,'Tabel 2 H'!F122<0.5),"-",IFERROR('Tabel 2 H'!F122/'Tabel 1 H'!E120*100,"-")) -> 3.174603175 | G122: =IF(OR('Tabel 1 H'!E120<5,'Tabel 2 H'!G122<0.5),"-",IFERROR('Tabel 2 H'!G122/'Tabel 1 H'!E120*100,"-")) -> 2.062214936 | I122: =IF(OR('Tabel 1 H'!G120<5,'Tabel 2 H'!I122<0.5),"-",IFERROR('Tabel 2 H'!I122/'Tabel 1 H'!G120*100,"-")) -> 3.875968992 | J122: =IF(OR('Tabel 1 H'!G120<5,'Tabel 2 H'!J122<0.5),"-",IFERROR('Tabel 2 H'!J122/'Tabel 1 H'!G120*100,"-")) -> 1.83681235
A123: MA. Samf. | C123: =IF(OR('Tabel 1 H'!C121<5,'Tabel 2 H'!C123<0.5),"-",IFERROR('Tabel 2 H'!C123/'Tabel 1 H'!C121*100,"-")) -> 8.080808081 | D123: =IF(OR('Tabel 1 H'!C121<5,'Tabel 2 H'!D123<0.5),"-",IFERROR('Tabel 2 H'!D123/'Tabel 1 H'!C121*100,"-")) -> 6.953461516 | F123: =IF(OR('Tabel 1 H'!E121<5,'Tabel 2 H'!F123<0.5),"-",IFERROR('Tabel 2 H'!F123/'Tabel 1 H'!E121*100,"-")) -> 12.66375546 | G123: =IF(OR('Tabel 1 H'!E121<5,'Tabel 2 H'!G123<0.5),"-",IFERROR('Tabel 2 H'!G123/'Tabel 1 H'!E121*100,"-")) -> 9.664837016 | I123: =IF(OR('Tabel 1 H'!G121<5,'Tabel 2 H'!I123<0.5),"-",IFERROR('Tabel 2 H'!I123/'Tabel 1 H'!G121*100,"-")) -> 11.2804878 | J123: =IF(OR('Tabel 1 H'!G121<5,'Tabel 2 H'!J123<0.5),"-",IFERROR('Tabel 2 H'!J123/'Tabel 1 H'!G121*100,"-")) -> 8.846464533
A124: Øvrige Mag. | C124: =IF(OR('Tabel 1 H'!C122<5,'Tabel 2 H'!C124<0.5),"-",IFERROR('Tabel 2 H'!C124/'Tabel 1 H'!C122*100,"-")) -> 4.255319149 | D124: =IF(OR('Tabel 1 H'!C122<5,'Tabel 2 H'!D124<0.5),"-",IFERROR('Tabel 2 H'!D124/'Tabel 1 H'!C122*100,"-")) -> 2.513433066 | F124: =IF(OR('Tabel 1 H'!E122<5,'Tabel 2 H'!F124<0.5),"-",IFERROR('Tabel 2 H'!F124/'Tabel 1 H'!E122*100,"-")) -> 12.5 | G124: =IF(OR('Tabel 1 H'!E122<5,'Tabel 2 H'!G124<0.5),"-",IFERROR('Tabel 2 H'!G124/'Tabel 1 H'!E122*100,"-")) -> 8.911307927 | I124: =IF(OR('Tabel 1 H'!G122<5,'Tabel 2 H'!I124<0.5),"-",IFERROR('Tabel 2 H'!I124/'Tabel 1 H'!G122*100,"-")) -> 9.448818898 | J124: =IF(OR('Tabel 1 H'!G122<5,'Tabel 2 H'!J124<0.5),"-",IFERROR('Tabel 2 H'!J124/'Tabel 1 H'!G122*100,"-")) -> 6.543590459
A125: Agronom | C125: =IF(OR('Tabel 1 H'!C123<5,'Tabel 2 H'!C125<0.5),"-",IFERROR('Tabel 2 H'!C125/'Tabel 1 H'!C123*100,"-")) -> 2.564102564 | D125: =IF(OR('Tabel 1 H'!C123<5,'Tabel 2 H'!D125<0.5),"-",IFERROR('Tabel 2 H'!D125/'Tabel 1 H'!C123*100,"-")) -> 2.563622784 | F125: =IF(OR('Tabel 1 H'!E123<5,'Tabel 2 H'!F125<0.5),"-",IFERROR('Tabel 2 H'!F125/'Tabel 1 H'!E123*100,"-")) -> 7.142857143 | G125: =IF(OR('Tabel 1 H'!E123<5,'Tabel 2 H'!G125<0.5),"-",IFERROR('Tabel 2 H'!G125/'Tabel 1 H'!E123*100,"-")) -> 7.141520614 | I125: =IF(OR('Tabel 1 H'!G123<5,'Tabel 2 H'!I125<0.5),"-",IFERROR('Tabel 2 H'!I125/'Tabel 1 H'!G123*100,"-")) -> 4.938271605 | J125: =IF(OR('Tabel 1 H'!G123<5,'Tabel 2 H'!J125<0.5),"-",IFERROR('Tabel 2 H'!J125/'Tabel 1 H'!G123*100,"-")) -> 4.937347585
A126: Landsk. Arkt. | C126: =IF(OR('Tabel 1 H'!C124<5,'Tabel 2 H'!C126<0.5),"-",IFERROR('Tabel 2 H'!C126/'Tabel 1 H'!C124*100,"-")) -> 7.142857143 | D126: =IF(OR('Tabel 1 H'!C124<5,'Tabel 2 H'!D126<0.5),"-",IFERROR('Tabel 2 H'!D126/'Tabel 1 H'!C124*100,"-")) -> - | F126: =IF(OR('Tabel 1 H'!E124<5,'Tabel 2 H'!F126<0.5),"-",IFERROR('Tabel 2 H'!F126/'Tabel 1 H'!E124*100,"-")) -> - | G126: =IF(OR('Tabel 1 H'!E124<5,'Tabel 2 H'!G126<0.5),"-",IFERROR('Tabel 2 H'!G126/'Tabel 1 H'!E124*100,"-")) -> - | I126: =IF(OR('Tabel 1 H'!G124<5,'Tabel 2 H'!I126<0.5),"-",IFERROR('Tabel 2 H'!I126/'Tabel 1 H'!G124*100,"-")) -> 2.702702703 | J126: =IF(OR('Tabel 1 H'!G124<5,'Tabel 2 H'!J126<0.5),"-",IFERROR('Tabel 2 H'!J126/'Tabel 1 H'!G124*100,"-")) -> -
A127: Hortonom | C127: =IF(OR('Tabel 1 H'!C125<5,'Tabel 2 H'!C127<0.5),"-",IFERROR('Tabel 2 H'!C127/'Tabel 1 H'!C125*100,"-")) -> - | D127: =IF(OR('Tabel 1 H'!C125<5,'Tabel 2 H'!D127<0.5),"-",IFERROR('Tabel 2 H'!D127/'Tabel 1 H'!C125*100,"-")) -> - | F127: =IF(OR('Tabel 1 H'!E125<5,'Tabel 2 H'!F127<0.5),"-",IFERROR('Tabel 2 H'!F127/'Tabel 1 H'!E125*100,"-")) -> 12.5 | G127: =IF(OR('Tabel 1 H'!E125<5,'Tabel 2 H'!G127<0.5),"-",IFERROR('Tabel 2 H'!G127/'Tabel 1 H'!E125*100,"-")) -> - | I127: =IF(OR('Tabel 1 H'!G125<5,'Tabel 2 H'!I127<0.5),"-",IFERROR('Tabel 2 H'!I127/'Tabel 1 H'!G125*100,"-")) -> 11.11111111 | J127: =IF(OR('Tabel 1 H'!G125<5,'Tabel 2 H'!J127<0.5),"-",IFERROR('Tabel 2 H'!J127/'Tabel 1 H'!G125*100,"-")) -> -
A128: Forstkand. | C128: =IF(OR('Tabel 1 H'!C126<5,'Tabel 2 H'!C128<0.5),"-",IFERROR('Tabel 2 H'!C128/'Tabel 1 H'!C126*100,"-")) -> - | D128: =IF(OR('Tabel 1 H'!C126<5,'Tabel 2 H'!D128<0.5),"-",IFERROR('Tabel 2 H'!D128/'Tabel 1 H'!C126*100,"-")) -> - | F128: =IF(OR('Tabel 1 H'!E126<5,'Tabel 2 H'!F128<0.5),"-",IFERROR('Tabel 2 H'!F128/'Tabel 1 H'!E126*100,"-")) -> - | G128: =IF(OR('Tabel 1 H'!E126<5,'Tabel 2 H'!G128<0.5),"-",IFERROR('Tabel 2 H'!G128/'Tabel 1 H'!E126*100,"-")) -> - | I128: =IF(OR('Tabel 1 H'!G126<5,'Tabel 2 H'!I128<0.5),"-",IFERROR('Tabel 2 H'!I128/'Tabel 1 H'!G126*100,"-")) -> - | J128: =IF(OR('Tabel 1 H'!G126<5,'Tabel 2 H'!J128<0.5),"-",IFERROR('Tabel 2 H'!J128/'Tabel 1 H'!G126*100,"-")) -> -
A129: Jordbrugsakad. | C129: =IF(OR('Tabel 1 H'!C127<5,'Tabel 2 H'!C129<0.5),"-",IFERROR('Tabel 2 H'!C129/'Tabel 1 H'!C127*100,"-")) -> 3.278688525 | D129: =IF(OR('Tabel 1 H'!C127<5,'Tabel 2 H'!D129<0.5),"-",IFERROR('Tabel 2 H'!D129/'Tabel 1 H'!C127*100,"-")) -> 1.916129949 | F129: =IF(OR('Tabel 1 H'!E127<5,'Tabel 2 H'!F129<0.5),"-",IFERROR('Tabel 2 H'!F129/'Tabel 1 H'!E127*100,"-")) -> 5.063291139 | G129: =IF(OR('Tabel 1 H'!E127<5,'Tabel 2 H'!G129<0.5),"-",IFERROR('Tabel 2 H'!G129/'Tabel 1 H'!E127*100,"-")) -> 4.010715242 | I129: =IF(OR('Tabel 1 H'!G127<5,'Tabel 2 H'!I129<0.5),"-",IFERROR('Tabel 2 H'!I129/'Tabel 1 H'!G127*100,"-")) -> 4.285714286 | J129: =IF(OR('Tabel 1 H'!G127<5,'Tabel 2 H'!J129<0.5),"-",IFERROR('Tabel 2 H'!J129/'Tabel 1 H'!G127*100,"-")) -> 3.098074507
A130: Mejeriing. | C130: =IF(OR('Tabel 1 H'!C128<5,'Tabel 2 H'!C130<0.5),"-",IFERROR('Tabel 2 H'!C130/'Tabel 1 H'!C128*100,"-")) -> - | D130: =IF(OR('Tabel 1 H'!C128<5,'Tabel 2 H'!D130<0.5),"-",IFERROR('Tabel 2 H'!D130/'Tabel 1 H'!C128*100,"-")) -> - | F130: =IF(OR('Tabel 1 H'!E128<5,'Tabel 2 H'!F130<0.5),"-",IFERROR('Tabel 2 H'!F130/'Tabel 1 H'!E128*100,"-")) -> - | G130: =IF(OR('Tabel 1 H'!E128<5,'Tabel 2 H'!G130<0.5),"-",IFERROR('Tabel 2 H'!G130/'Tabel 1 H'!E128*100,"-")) -> - | I130: =IF(OR('Tabel 1 H'!G128<5,'Tabel 2 H'!I130<0.5),"-",IFERROR('Tabel 2 H'!I130/'Tabel 1 H'!G128*100,"-")) -> - | J130: =IF(OR('Tabel 1 H'!G128<5,'Tabel 2 H'!J130<0.5),"-",IFERROR('Tabel 2 H'!J130/'Tabel 1 H'!G128*100,"-")) -> -
A131: Levn.m.kand. | C131: =IF(OR('Tabel 1 H'!C129<5,'Tabel 2 H'!C131<0.5),"-",IFERROR('Tabel 2 H'!C131/'Tabel 1 H'!C129*100,"-")) -> - | D131: =IF(OR('Tabel 1 H'!C129<5,'Tabel 2 H'!D131<0.5),"-",IFERROR('Tabel 2 H'!D131/'Tabel 1 H'!C129*100,"-")) -> - | F131: =IF(OR('Tabel 1 H'!E129<5,'Tabel 2 H'!F131<0.5),"-",IFERROR('Tabel 2 H'!F131/'Tabel 1 H'!E129*100,"-")) -> - | G131: =IF(OR('Tabel 1 H'!E129<5,'Tabel 2 H'!G131<0.5),"-",IFERROR('Tabel 2 H'!G131/'Tabel 1 H'!E129*100,"-")) -> - | I131: =IF(OR('Tabel 1 H'!G129<5,'Tabel 2 H'!I131<0.5),"-",IFERROR('Tabel 2 H'!I131/'Tabel 1 H'!G129*100,"-")) -> 3.703703704 | J131: =IF(OR('Tabel 1 H'!G129<5,'Tabel 2 H'!J131<0.5),"-",IFERROR('Tabel 2 H'!J131/'Tabel 1 H'!G129*100,"-")) -> 3.703010689
A132: Dyrlæge | C132: =IF(OR('Tabel 1 H'!C130<5,'Tabel 2 H'!C132<0.5),"-",IFERROR('Tabel 2 H'!C132/'Tabel 1 H'!C130*100,"-")) -> 11.76470588 | D132: =IF(OR('Tabel 1 H'!C130<5,'Tabel 2 H'!D132<0.5),"-",IFERROR('Tabel 2 H'!D132/'Tabel 1 H'!C130*100,"-")) -> 7.994540672 | F132: =IF(OR('Tabel 1 H'!E130<5,'Tabel 2 H'!F132<0.5),"-",IFERROR('Tabel 2 H'!F132/'Tabel 1 H'!E130*100,"-")) -> - | G132: =IF(OR('Tabel 1 H'!E130<5,'Tabel 2 H'!G132<0.5),"-",IFERROR('Tabel 2 H'!G132/'Tabel 1 H'!E130*100,"-")) -> - | I132: =IF(OR('Tabel 1 H'!G130<5,'Tabel 2 H'!I132<0.5),"-",IFERROR('Tabel 2 H'!I132/'Tabel 1 H'!G130*100,"-")) -> 2.631578947 | J132: =IF(OR('Tabel 1 H'!G130<5,'Tabel 2 H'!J132<0.5),"-",IFERROR('Tabel 2 H'!J132/'Tabel 1 H'!G130*100,"-")) -> 1.788252519
A133: Farmaceut | C133: =IF(OR('Tabel 1 H'!C131<5,'Tabel 2 H'!C133<0.5),"-",IFERROR('Tabel 2 H'!C133/'Tabel 1 H'!C131*100,"-")) -> 4.615384615 | D133: =IF(OR('Tabel 1 H'!C131<5,'Tabel 2 H'!D133<0.5),"-",IFERROR('Tabel 2 H'!D133/'Tabel 1 H'!C131*100,"-")) -> 4.330491438 | F133: =IF(OR('Tabel 1 H'!E131<5,'Tabel 2 H'!F133<0.5),"-",IFERROR('Tabel 2 H'!F133/'Tabel 1 H'!E131*100,"-")) -> 2.51572327 | G133: =IF(OR('Tabel 1 H'!E131<5,'Tabel 2 H'!G133<0.5),"-",IFERROR('Tabel 2 H'!G133/'Tabel 1 H'!E131*100,"-")) -> 2.370111645 | I133: =IF(OR('Tabel 1 H'!G131<5,'Tabel 2 H'!I133<0.5),"-",IFERROR('Tabel 2 H'!I133/'Tabel 1 H'!G131*100,"-")) -> 3.125 | J133: =IF(OR('Tabel 1 H'!G131<5,'Tabel 2 H'!J133<0.5),"-",IFERROR('Tabel 2 H'!J133/'Tabel 1 H'!G131*100,"-")) -> 2.938971853
A134: Læge | C134: =IF(OR('Tabel 1 H'!C132<5,'Tabel 2 H'!C134<0.5),"-",IFERROR('Tabel 2 H'!C134/'Tabel 1 H'!C132*100,"-")) -> 0.6802721088 | D134: =IF(OR('Tabel 1 H'!C132<5,'Tabel 2 H'!D134<0.5),"-",IFERROR('Tabel 2 H'!D134/'Tabel 1 H'!C132*100,"-")) -> 0.6173491663 | F134: =IF(OR('Tabel 1 H'!E132<5,'Tabel 2 H'!F134<0.5),"-",IFERROR('Tabel 2 H'!F134/'Tabel 1 H'!E132*100,"-")) -> 1.769911504 | G134: =IF(OR('Tabel 1 H'!E132<5,'Tabel 2 H'!G134<0.5),"-",IFERROR('Tabel 2 H'!G134/'Tabel 1 H'!E132*100,"-")) -> 1.448340232 | I134: =IF(OR('Tabel 1 H'!G132<5,'Tabel 2 H'!I134<0.5),"-",IFERROR('Tabel 2 H'!I134/'Tabel 1 H'!G132*100,"-")) -> 1.440329218 | J134: =IF(OR('Tabel 1 H'!G132<5,'Tabel 2 H'!J134<0.5),"-",IFERROR('Tabel 2 H'!J134/'Tabel 1 H'!G132*100,"-")) -> 1.196991082
A135: Tandlæge | C135: =IF(OR('Tabel 1 H'!C133<5,'Tabel 2 H'!C135<0.5),"-",IFERROR('Tabel 2 H'!C135/'Tabel 1 H'!C133*100,"-")) -> 14.28571429 | D135: =IF(OR('Tabel 1 H'!C133<5,'Tabel 2 H'!D135<0.5),"-",IFERROR('Tabel 2 H'!D135/'Tabel 1 H'!C133*100,"-")) -> 14.28304123 | F135: =IF(OR('Tabel 1 H'!E133<5,'Tabel 2 H'!F135<0.5),"-",IFERROR('Tabel 2 H'!F135/'Tabel 1 H'!E133*100,"-")) -> - | G135: =IF(OR('Tabel 1 H'!E133<5,'Tabel 2 H'!G135<0.5),"-",IFERROR('Tabel 2 H'!G135/'Tabel 1 H'!E133*100,"-")) -> - | I135: =IF(OR('Tabel 1 H'!G133<5,'Tabel 2 H'!I135<0.5),"-",IFERROR('Tabel 2 H'!I135/'Tabel 1 H'!G133*100,"-")) -> 1.639344262 | J135: =IF(OR('Tabel 1 H'!G133<5,'Tabel 2 H'!J135<0.5),"-",IFERROR('Tabel 2 H'!J135/'Tabel 1 H'!G133*100,"-")) -> 1.639037518
A136: Arkitekt | C136: =IF(OR('Tabel 1 H'!C134<5,'Tabel 2 H'!C136<0.5),"-",IFERROR('Tabel 2 H'!C136/'Tabel 1 H'!C134*100,"-")) -> 6.12244898 | D136: =IF(OR('Tabel 1 H'!C134<5,'Tabel 2 H'!D136<0.5),"-",IFERROR('Tabel 2 H'!D136/'Tabel 1 H'!C134*100,"-")) -> 5.952327916 | F136: =IF(OR('Tabel 1 H'!E134<5,'Tabel 2 H'!F136<0.5),"-",IFERROR('Tabel 2 H'!F136/'Tabel 1 H'!E134*100,"-")) -> 5.855855856 | G136: =IF(OR('Tabel 1 H'!E134<5,'Tabel 2 H'!G136<0.5),"-",IFERROR('Tabel 2 H'!G136/'Tabel 1 H'!E134*100,"-")) -> 4.922280229 | I136: =IF(OR('Tabel 1 H'!G134<5,'Tabel 2 H'!I136<0.5),"-",IFERROR('Tabel 2 H'!I136/'Tabel 1 H'!G134*100,"-")) -> 5.980861244 | J136: =IF(OR('Tabel 1 H'!G134<5,'Tabel 2 H'!J136<0.5),"-",IFERROR('Tabel 2 H'!J136/'Tabel 1 H'!G134*100,"-")) -> 5.405269097
A137: Landinspek. | C137: =IF(OR('Tabel 1 H'!C135<5,'Tabel 2 H'!C137<0.5),"-",IFERROR('Tabel 2 H'!C137/'Tabel 1 H'!C135*100,"-")) -> 15.38461538 | D137: =IF(OR('Tabel 1 H'!C135<5,'Tabel 2 H'!D137<0.5),"-",IFERROR('Tabel 2 H'!D137/'Tabel 1 H'!C135*100,"-")) -> 15.38173671 | F137: =IF(OR('Tabel 1 H'!E135<5,'Tabel 2 H'!F137<0.5),"-",IFERROR('Tabel 2 H'!F137/'Tabel 1 H'!E135*100,"-")) -> - | G137: =IF(OR('Tabel 1 H'!E135<5,'Tabel 2 H'!G137<0.5),"-",IFERROR('Tabel 2 H'!G137/'Tabel 1 H'!E135*100,"-")) -> - | I137: =IF(OR('Tabel 1 H'!G135<5,'Tabel 2 H'!I137<0.5),"-",IFERROR('Tabel 2 H'!I137/'Tabel 1 H'!G135*100,"-")) -> 11.76470588 | J137: =IF(OR('Tabel 1 H'!G135<5,'Tabel 2 H'!J137<0.5),"-",IFERROR('Tabel 2 H'!J137/'Tabel 1 H'!G135*100,"-")) -> 11.76250454
A138: Bibliotekar | C138: =IF(OR('Tabel 1 H'!C136<5,'Tabel 2 H'!C138<0.5),"-",IFERROR('Tabel 2 H'!C138/'Tabel 1 H'!C136*100,"-")) -> 6.666666667 | D138: =IF(OR('Tabel 1 H'!C136<5,'Tabel 2 H'!D138<0.5),"-",IFERROR('Tabel 2 H'!D138/'Tabel 1 H'!C136*100,"-")) -> 6.665419239 | F138: =IF(OR('Tabel 1 H'!E136<5,'Tabel 2 H'!F138<0.5),"-",IFERROR('Tabel 2 H'!F138/'Tabel 1 H'!E136*100,"-")) -> 6.18556701 | G138: =IF(OR('Tabel 1 H'!E136<5,'Tabel 2 H'!G138<0.5),"-",IFERROR('Tabel 2 H'!G138/'Tabel 1 H'!E136*100,"-")) -> 5.660361587 | I138: =IF(OR('Tabel 1 H'!G136<5,'Tabel 2 H'!I138<0.5),"-",IFERROR('Tabel 2 H'!I138/'Tabel 1 H'!G136*100,"-")) -> 6.299212598 | J138: =IF(OR('Tabel 1 H'!G136<5,'Tabel 2 H'!J138<0.5),"-",IFERROR('Tabel 2 H'!J138/'Tabel 1 H'!G136*100,"-")) -> 5.89777678
A139: Musikudd. | C139: =IF(OR('Tabel 1 H'!C137<5,'Tabel 2 H'!C139<0.5),"-",IFERROR('Tabel 2 H'!C139/'Tabel 1 H'!C137*100,"-")) -> - | D139: =IF(OR('Tabel 1 H'!C137<5,'Tabel 2 H'!D139<0.5),"-",IFERROR('Tabel 2 H'!D139/'Tabel 1 H'!C137*100,"-")) -> - | F139: =IF(OR('Tabel 1 H'!E137<5,'Tabel 2 H'!F139<0.5),"-",IFERROR('Tabel 2 H'!F139/'Tabel 1 H'!E137*100,"-")) -> - | G139: =IF(OR('Tabel 1 H'!E137<5,'Tabel 2 H'!G139<0.5),"-",IFERROR('Tabel 2 H'!G139/'Tabel 1 H'!E137*100,"-")) -> - | I139: =IF(OR('Tabel 1 H'!G137<5,'Tabel 2 H'!I139<0.5),"-",IFERROR('Tabel 2 H'!I139/'Tabel 1 H'!G137*100,"-")) -> - | J139: =IF(OR('Tabel 1 H'!G137<5,'Tabel 2 H'!J139<0.5),"-",IFERROR('Tabel 2 H'!J139/'Tabel 1 H'!G137*100,"-")) -> -
A140: Teolog | C140: =IF(OR('Tabel 1 H'!C138<5,'Tabel 2 H'!C140<0.5),"-",IFERROR('Tabel 2 H'!C140/'Tabel 1 H'!C138*100,"-")) -> - | D140: =IF(OR('Tabel 1 H'!C138<5,'Tabel 2 H'!D140<0.5),"-",IFERROR('Tabel 2 H'!D140/'Tabel 1 H'!C138*100,"-")) -> - | F140: =IF(OR('Tabel 1 H'!E138<5,'Tabel 2 H'!F140<0.5),"-",IFERROR('Tabel 2 H'!F140/'Tabel 1 H'!E138*100,"-")) -> 3.703703704 | G140: =IF(OR('Tabel 1 H'!E138<5,'Tabel 2 H'!G140<0.5),"-",IFERROR('Tabel 2 H'!G140/'Tabel 1 H'!E138*100,"-")) -> - | I140: =IF(OR('Tabel 1 H'!G138<5,'Tabel 2 H'!I140<0.5),"-",IFERROR('Tabel 2 H'!I140/'Tabel 1 H'!G138*100,"-")) -> 2.857142857 | J140: =IF(OR('Tabel 1 H'!G138<5,'Tabel 2 H'!J140<0.5),"-",IFERROR('Tabel 2 H'!J140/'Tabel 1 H'!G138*100,"-")) -> -
A141: Psykolog | C141: =IF(OR('Tabel 1 H'!C139<5,'Tabel 2 H'!C141<0.5),"-",IFERROR('Tabel 2 H'!C141/'Tabel 1 H'!C139*100,"-")) -> 8.064516129 | D141: =IF(OR('Tabel 1 H'!C139<5,'Tabel 2 H'!D141<0.5),"-",IFERROR('Tabel 2 H'!D141/'Tabel 1 H'!C139*100,"-")) -> 5.031960292 | F141: =IF(OR('Tabel 1 H'!E139<5,'Tabel 2 H'!F141<0.5),"-",IFERROR('Tabel 2 H'!F141/'Tabel 1 H'!E139*100,"-")) -> 4.395604396 | G141: =IF(OR('Tabel 1 H'!E139<5,'Tabel 2 H'!G141<0.5),"-",IFERROR('Tabel 2 H'!G141/'Tabel 1 H'!E139*100,"-")) -> 3.516328159 | I141: =IF(OR('Tabel 1 H'!G139<5,'Tabel 2 H'!I141<0.5),"-",IFERROR('Tabel 2 H'!I141/'Tabel 1 H'!G139*100,"-")) -> 5.074626866 | J141: =IF(OR('Tabel 1 H'!G139<5,'Tabel 2 H'!J141<0.5),"-",IFERROR('Tabel 2 H'!J141/'Tabel 1 H'!G139*100,"-")) -> 3.796833211
A142: Jurist | C142: =IF(OR('Tabel 1 H'!C140<5,'Tabel 2 H'!C142<0.5),"-",IFERROR('Tabel 2 H'!C142/'Tabel 1 H'!C140*100,"-")) -> 2.046035806 | D142: =IF(OR('Tabel 1 H'!C140<5,'Tabel 2 H'!D142<0.5),"-",IFERROR('Tabel 2 H'!D142/'Tabel 1 H'!C140*100,"-")) -> 1.863962483 | F142: =IF(OR('Tabel 1 H'!E140<5,'Tabel 2 H'!F142<0.5),"-",IFERROR('Tabel 2 H'!F142/'Tabel 1 H'!E140*100,"-")) -> 1.66163142 | G142: =IF(OR('Tabel 1 H'!E140<5,'Tabel 2 H'!G142<0.5),"-",IFERROR('Tabel 2 H'!G142/'Tabel 1 H'!E140*100,"-")) -> 1.287469217 | I142: =IF(OR('Tabel 1 H'!G140<5,'Tabel 2 H'!I142<0.5),"-",IFERROR('Tabel 2 H'!I142/'Tabel 1 H'!G140*100,"-")) -> 1.804368471 | J142: =IF(OR('Tabel 1 H'!G140<5,'Tabel 2 H'!J142<0.5),"-",IFERROR('Tabel 2 H'!J142/'Tabel 1 H'!G140*100,"-")) -> 1.501532718
A143: Økonom | C143: =IF(OR('Tabel 1 H'!C141<5,'Tabel 2 H'!C143<0.5),"-",IFERROR('Tabel 2 H'!C143/'Tabel 1 H'!C141*100,"-")) -> 1.704545455 | D143: =IF(OR('Tabel 1 H'!C141<5,'Tabel 2 H'!D143<0.5),"-",IFERROR('Tabel 2 H'!D143/'Tabel 1 H'!C141*100,"-")) -> 1.491242494 | F143: =IF(OR('Tabel 1 H'!E141<5,'Tabel 2 H'!F143<0.5),"-",IFERROR('Tabel 2 H'!F143/'Tabel 1 H'!E141*100,"-")) -> 0.8403361345 | G143: =IF(OR('Tabel 1 H'!E141<5,'Tabel 2 H'!G143<0.5),"-",IFERROR('Tabel 2 H'!G143/'Tabel 1 H'!E141*100,"-")) -> 0.3970277689 | I143: =IF(OR('Tabel 1 H'!G141<5,'Tabel 2 H'!I143<0.5),"-",IFERROR('Tabel 2 H'!I143/'Tabel 1 H'!G141*100,"-")) -> 1.355932203 | J143: =IF(OR('Tabel 1 H'!G141<5,'Tabel 2 H'!J143<0.5),"-",IFERROR('Tabel 2 H'!J143/'Tabel 1 H'!G141*100,"-")) -> 1.049847402
A144: Samf. Adm. | C144: =IF(OR('Tabel 1 H'!C142<5,'Tabel 2 H'!C144<0.5),"-",IFERROR('Tabel 2 H'!C144/'Tabel 1 H'!C142*100,"-")) -> 2.794117647 | D144: =IF(OR('Tabel 1 H'!C142<5,'Tabel 2 H'!D144<0.5),"-",IFERROR('Tabel 2 H'!D144/'Tabel 1 H'!C142*100,"-")) -> 2.355711199 | F144: =IF(OR('Tabel 1 H'!E142<5,'Tabel 2 H'!F144<0.5),"-",IFERROR('Tabel 2 H'!F144/'Tabel 1 H'!E142*100,"-")) -> 3.992210321 | G144: =IF(OR('Tabel 1 H'!E142<5,'Tabel 2 H'!G144<0.5),"-",IFERROR('Tabel 2 H'!G144/'Tabel 1 H'!E142*100,"-")) -> 3.330460526 | I144: =IF(OR('Tabel 1 H'!G142<5,'Tabel 2 H'!I144<0.5),"-",IFERROR('Tabel 2 H'!I144/'Tabel 1 H'!G142*100,"-")) -> 3.514938489 | J144: =IF(OR('Tabel 1 H'!G142<5,'Tabel 2 H'!J144<0.5),"-",IFERROR('Tabel 2 H'!J144/'Tabel 1 H'!G142*100,"-")) -> 2.942159681
A145: Cand. Merc. | C145: =IF(OR('Tabel 1 H'!C143<5,'Tabel 2 H'!C145<0.5),"-",IFERROR('Tabel 2 H'!C145/'Tabel 1 H'!C143*100,"-")) -> 2.310231023 | D145: =IF(OR('Tabel 1 H'!C143<5,'Tabel 2 H'!D145<0.5),"-",IFERROR('Tabel 2 H'!D145/'Tabel 1 H'!C143*100,"-")) -> 2.010138331 | F145: =IF(OR('Tabel 1 H'!E143<5,'Tabel 2 H'!F145<0.5),"-",IFERROR('Tabel 2 H'!F145/'Tabel 1 H'!E143*100,"-")) -> 3.530377668 | G145: =IF(OR('Tabel 1 H'!E143<5,'Tabel 2 H'!G145<0.5),"-",IFERROR('Tabel 2 H'!G145/'Tabel 1 H'!E143*100,"-")) -> 2.833544157 | I145: =IF(OR('Tabel 1 H'!G143<5,'Tabel 2 H'!I145<0.5),"-",IFERROR('Tabel 2 H'!I145/'Tabel 1 H'!G143*100,"-")) -> 2.9218107 | J145: =IF(OR('Tabel 1 H'!G143<5,'Tabel 2 H'!J145<0.5),"-",IFERROR('Tabel 2 H'!J145/'Tabel 1 H'!G143*100,"-")) -> 2.422857794
A146: HA | C146: =IF(OR('Tabel 1 H'!C144<5,'Tabel 2 H'!C146<0.5),"-",IFERROR('Tabel 2 H'!C146/'Tabel 1 H'!C144*100,"-")) -> 5.128205128 | D146: =IF(OR('Tabel 1 H'!C144<5,'Tabel 2 H'!D146<0.5),"-",IFERROR('Tabel 2 H'!D146/'Tabel 1 H'!C144*100,"-")) -> 5.048348465 | F146: =IF(OR('Tabel 1 H'!E144<5,'Tabel 2 H'!F146<0.5),"-",IFERROR('Tabel 2 H'!F146/'Tabel 1 H'!E144*100,"-")) -> 6.451612903 | G146: =IF(OR('Tabel 1 H'!E144<5,'Tabel 2 H'!G146<0.5),"-",IFERROR('Tabel 2 H'!G146/'Tabel 1 H'!E144*100,"-")) -> 5.945398905 | I146: =IF(OR('Tabel 1 H'!G144<5,'Tabel 2 H'!I146<0.5),"-",IFERROR('Tabel 2 H'!I146/'Tabel 1 H'!G144*100,"-")) -> 5.714285714 | J146: =IF(OR('Tabel 1 H'!G144<5,'Tabel 2 H'!J146<0.5),"-",IFERROR('Tabel 2 H'!J146/'Tabel 1 H'!G144*100,"-")) -> 5.44561366
A147: HD | C147: =IF(OR('Tabel 1 H'!C145<5,'Tabel 2 H'!C147<0.5),"-",IFERROR('Tabel 2 H'!C147/'Tabel 1 H'!C145*100,"-")) -> 6.194690265 | D147: =IF(OR('Tabel 1 H'!C145<5,'Tabel 2 H'!D147<0.5),"-",IFERROR('Tabel 2 H'!D147/'Tabel 1 H'!C145*100,"-")) -> 5.525660847 | F147: =IF(OR('Tabel 1 H'!E145<5,'Tabel 2 H'!F147<0.5),"-",IFERROR('Tabel 2 H'!F147/'Tabel 1 H'!E145*100,"-")) -> 4.938271605 | G147: =IF(OR('Tabel 1 H'!E145<5,'Tabel 2 H'!G147<0.5),"-",IFERROR('Tabel 2 H'!G147/'Tabel 1 H'!E145*100,"-")) -> 4.937347585 | I147: =IF(OR('Tabel 1 H'!G145<5,'Tabel 2 H'!I147<0.5),"-",IFERROR('Tabel 2 H'!I147/'Tabel 1 H'!G145*100,"-")) -> 5.670103093 | J147: =IF(OR('Tabel 1 H'!G145<5,'Tabel 2 H'!J147<0.5),"-",IFERROR('Tabel 2 H'!J147/'Tabel 1 H'!G145*100,"-")) -> 5.280024897
A148: Komm. og Sprog | C148: =IF(OR('Tabel 1 H'!C146<5,'Tabel 2 H'!C148<0.5),"-",IFERROR('Tabel 2 H'!C148/'Tabel 1 H'!C146*100,"-")) -> 9.090909091 | D148: =IF(OR('Tabel 1 H'!C146<5,'Tabel 2 H'!D148<0.5),"-",IFERROR('Tabel 2 H'!D148/'Tabel 1 H'!C146*100,"-")) -> 6.376620947 | F148: =IF(OR('Tabel 1 H'!E146<5,'Tabel 2 H'!F148<0.5),"-",IFERROR('Tabel 2 H'!F148/'Tabel 1 H'!E146*100,"-")) -> 5.750798722 | G148: =IF(OR('Tabel 1 H'!E146<5,'Tabel 2 H'!G148<0.5),"-",IFERROR('Tabel 2 H'!G148/'Tabel 1 H'!E146*100,"-")) -> 4.788845052 | I148: =IF(OR('Tabel 1 H'!G146<5,'Tabel 2 H'!I148<0.5),"-",IFERROR('Tabel 2 H'!I148/'Tabel 1 H'!G146*100,"-")) -> 6.25 | J148: =IF(OR('Tabel 1 H'!G146<5,'Tabel 2 H'!J148<0.5),"-",IFERROR('Tabel 2 H'!J148/'Tabel 1 H'!G146*100,"-")) -> 5.026148514
A149: Bygningskonst. | C149: =IF(OR('Tabel 1 H'!C147<5,'Tabel 2 H'!C149<0.5),"-",IFERROR('Tabel 2 H'!C149/'Tabel 1 H'!C147*100,"-")) -> 1.724137931 | D149: =IF(OR('Tabel 1 H'!C147<5,'Tabel 2 H'!D149<0.5),"-",IFERROR('Tabel 2 H'!D149/'Tabel 1 H'!C147*100,"-")) -> 1.724137931 | F149: =IF(OR('Tabel 1 H'!E147<5,'Tabel 2 H'!F149<0.5),"-",IFERROR('Tabel 2 H'!F149/'Tabel 1 H'!E147*100,"-")) -> 5.263157895 | G149: =IF(OR('Tabel 1 H'!E147<5,'Tabel 2 H'!G149<0.5),"-",IFERROR('Tabel 2 H'!G149/'Tabel 1 H'!E147*100,"-")) -> 1.740817459 | I149: =IF(OR('Tabel 1 H'!G147<5,'Tabel 2 H'!I149<0.5),"-",IFERROR('Tabel 2 H'!I149/'Tabel 1 H'!G147*100,"-")) -> 2.597402597 | J149: =IF(OR('Tabel 1 H'!G147<5,'Tabel 2 H'!J149<0.5),"-",IFERROR('Tabel 2 H'!J149/'Tabel 1 H'!G147*100,"-")) -> 1.728253659
A150: Cand. IT. | C150: =IF(OR('Tabel 1 H'!C148<5,'Tabel 2 H'!C150<0.5),"-",IFERROR('Tabel 2 H'!C150/'Tabel 1 H'!C148*100,"-")) -> 4.87804878 | D150: =IF(OR('Tabel 1 H'!C148<5,'Tabel 2 H'!D150<0.5),"-",IFERROR('Tabel 2 H'!D150/'Tabel 1 H'!C148*100,"-")) -> 4.689514867 | F150: =IF(OR('Tabel 1 H'!E148<5,'Tabel 2 H'!F150<0.5),"-",IFERROR('Tabel 2 H'!F150/'Tabel 1 H'!E148*100,"-")) -> 3.96039604 | G150: =IF(OR('Tabel 1 H'!E148<5,'Tabel 2 H'!G150<0.5),"-",IFERROR('Tabel 2 H'!G150/'Tabel 1 H'!E148*100,"-")) -> 3.747839388 | I150: =IF(OR('Tabel 1 H'!G148<5,'Tabel 2 H'!I150<0.5),"-",IFERROR('Tabel 2 H'!I150/'Tabel 1 H'!G148*100,"-")) -> 4.464285714 | J150: =IF(OR('Tabel 1 H'!G148<5,'Tabel 2 H'!J150<0.5),"-",IFERROR('Tabel 2 H'!J150/'Tabel 1 H'!G148*100,"-")) -> 4.26492012
A151: Bac. Samf. | C151: =IF(OR('Tabel 1 H'!C149<5,'Tabel 2 H'!C151<0.5),"-",IFERROR('Tabel 2 H'!C151/'Tabel 1 H'!C149*100,"-")) -> 3.225806452 | D151: =IF(OR('Tabel 1 H'!C149<5,'Tabel 2 H'!D151<0.5),"-",IFERROR('Tabel 2 H'!D151/'Tabel 1 H'!C149*100,"-")) -> 3.225202858 | F151: =IF(OR('Tabel 1 H'!E149<5,'Tabel 2 H'!F151<0.5),"-",IFERROR('Tabel 2 H'!F151/'Tabel 1 H'!E149*100,"-")) -> 6.12244898 | G151: =IF(OR('Tabel 1 H'!E149<5,'Tabel 2 H'!G151<0.5),"-",IFERROR('Tabel 2 H'!G151/'Tabel 1 H'!E149*100,"-")) -> 4.802594649 | I151: =IF(OR('Tabel 1 H'!G149<5,'Tabel 2 H'!I151<0.5),"-",IFERROR('Tabel 2 H'!I151/'Tabel 1 H'!G149*100,"-")) -> 5 | J151: =IF(OR('Tabel 1 H'!G149<5,'Tabel 2 H'!J151<0.5),"-",IFERROR('Tabel 2 H'!J151/'Tabel 1 H'!G149*100,"-")) -> 4.19135533
A152: Bac. Hum. | C152: =IF(OR('Tabel 1 H'!C150<5,'Tabel 2 H'!C152<0.5),"-",IFERROR('Tabel 2 H'!C152/'Tabel 1 H'!C150*100,"-")) -> 11.94029851 | D152: =IF(OR('Tabel 1 H'!C150<5,'Tabel 2 H'!D152<0.5),"-",IFERROR('Tabel 2 H'!D152/'Tabel 1 H'!C150*100,"-")) -> 9.576330907 | F152: =IF(OR('Tabel 1 H'!E150<5,'Tabel 2 H'!F152<0.5),"-",IFERROR('Tabel 2 H'!F152/'Tabel 1 H'!E150*100,"-")) -> 6.542056075 | G152: =IF(OR('Tabel 1 H'!E150<5,'Tabel 2 H'!G152<0.5),"-",IFERROR('Tabel 2 H'!G152/'Tabel 1 H'!E150*100,"-")) -> 6.195749304 | I152: =IF(OR('Tabel 1 H'!G150<5,'Tabel 2 H'!I152<0.5),"-",IFERROR('Tabel 2 H'!I152/'Tabel 1 H'!G150*100,"-")) -> 8.620689655 | J152: =IF(OR('Tabel 1 H'!G150<5,'Tabel 2 H'!J152<0.5),"-",IFERROR('Tabel 2 H'!J152/'Tabel 1 H'!G150*100,"-")) -> 7.497467508
A153: Bac. Nat. | C153: =IF(OR('Tabel 1 H'!C151<5,'Tabel 2 H'!C153<0.5),"-",IFERROR('Tabel 2 H'!C153/'Tabel 1 H'!C151*100,"-")) -> 3.333333333 | D153: =IF(OR('Tabel 1 H'!C151<5,'Tabel 2 H'!D153<0.5),"-",IFERROR('Tabel 2 H'!D153/'Tabel 1 H'!C151*100,"-")) -> 3.083224183 | F153: =IF(OR('Tabel 1 H'!E151<5,'Tabel 2 H'!F153<0.5),"-",IFERROR('Tabel 2 H'!F153/'Tabel 1 H'!E151*100,"-")) -> 17.54385965 | G153: =IF(OR('Tabel 1 H'!E151<5,'Tabel 2 H'!G153<0.5),"-",IFERROR('Tabel 2 H'!G153/'Tabel 1 H'!E151*100,"-")) -> 13.47768473 | I153: =IF(OR('Tabel 1 H'!G151<5,'Tabel 2 H'!I153<0.5),"-",IFERROR('Tabel 2 H'!I153/'Tabel 1 H'!G151*100,"-")) -> 10.25641026 | J153: =IF(OR('Tabel 1 H'!G151<5,'Tabel 2 H'!J153<0.5),"-",IFERROR('Tabel 2 H'!J153/'Tabel 1 H'!G151*100,"-")) -> 8.147192143
A154: Andre | C154: =IF(OR('Tabel 1 H'!C152<5,'Tabel 2 H'!C154<0.5),"-",IFERROR('Tabel 2 H'!C154/'Tabel 1 H'!C152*100,"-")) -> 6.215722121 | D154: =IF(OR('Tabel 1 H'!C152<5,'Tabel 2 H'!D154<0.5),"-",IFERROR('Tabel 2 H'!D154/'Tabel 1 H'!C152*100,"-")) -> 5.402705184 | F154: =IF(OR('Tabel 1 H'!E152<5,'Tabel 2 H'!F154<0.5),"-",IFERROR('Tabel 2 H'!F154/'Tabel 1 H'!E152*100,"-")) -> 8.491947291 | G154: =IF(OR('Tabel 1 H'!E152<5,'Tabel 2 H'!G154<0.5),"-",IFERROR('Tabel 2 H'!G154/'Tabel 1 H'!E152*100,"-")) -> 6.827700445 | I154: =IF(OR('Tabel 1 H'!G152<5,'Tabel 2 H'!I154<0.5),"-",IFERROR('Tabel 2 H'!I154/'Tabel 1 H'!G152*100,"-")) -> 7.479674797 | J154: =IF(OR('Tabel 1 H'!G152<5,'Tabel 2 H'!J154<0.5),"-",IFERROR('Tabel 2 H'!J154/'Tabel 1 H'!G152*100,"-")) -> 6.19398304
A156: Total | C156: =IF(OR('Tabel 1 H'!C154<5,'Tabel 2 H'!C156<0.5),"-",IFERROR('Tabel 2 H'!C156/'Tabel 1 H'!C154*100,"-")) -> 3.820853744 | D156: =IF(OR('Tabel 1 H'!C154<5,'Tabel 2 H'!D156<0.5),"-",IFERROR('Tabel 2 H'!D156/'Tabel 1 H'!C154*100,"-")) -> 3.288036479 | F156: =IF(OR('Tabel 1 H'!E154<5,'Tabel 2 H'!F156<0.5),"-",IFERROR('Tabel 2 H'!F156/'Tabel 1 H'!E154*100,"-")) -> 5.027422303 | G156: =IF(OR('Tabel 1 H'!E154<5,'Tabel 2 H'!G156<0.5),"-",IFERROR('Tabel 2 H'!G156/'Tabel 1 H'!E154*100,"-")) -> 4.096873268 | I156: =IF(OR('Tabel 1 H'!G154<5,'Tabel 2 H'!I156<0.5),"-",IFERROR('Tabel 2 H'!I156/'Tabel 1 H'!G154*100,"-")) -> 4.485122979 | J156: =IF(OR('Tabel 1 H'!G154<5,'Tabel 2 H'!J156<0.5),"-",IFERROR('Tabel 2 H'!J156/'Tabel 1 H'!G154*100,"-")) -> 3.733336824
A158: Ingeniører i alt | C158: =IF(OR('Tabel 1 H'!C156<5,'Tabel 2 H'!C158<0.5),"-",IFERROR('Tabel 2 H'!C158/'Tabel 1 H'!C156*100,"-")) -> 2.415458937 | D158: =IF(OR('Tabel 1 H'!C156<5,'Tabel 2 H'!D158<0.5),"-",IFERROR('Tabel 2 H'!D158/'Tabel 1 H'!C156*100,"-")) -> 2.004219759 | F158: =IF(OR('Tabel 1 H'!E156<5,'Tabel 2 H'!F158<0.5),"-",IFERROR('Tabel 2 H'!F158/'Tabel 1 H'!E156*100,"-")) -> 3.488372093 | G158: =IF(OR('Tabel 1 H'!E156<5,'Tabel 2 H'!G158<0.5),"-",IFERROR('Tabel 2 H'!G158/'Tabel 1 H'!E156*100,"-")) -> 2.850516159 | I158: =IF(OR('Tabel 1 H'!G156<5,'Tabel 2 H'!I158<0.5),"-",IFERROR('Tabel 2 H'!I158/'Tabel 1 H'!G156*100,"-")) -> 2.69138756 | J158: =IF(OR('Tabel 1 H'!G156<5,'Tabel 2 H'!J158<0.5),"-",IFERROR('Tabel 2 H'!J158/'Tabel 1 H'!G156*100,"-")) -> 2.221867757
A159: Magistre i alt | C159: =IF(OR('Tabel 1 H'!C157<5,'Tabel 2 H'!C159<0.5),"-",IFERROR('Tabel 2 H'!C159/'Tabel 1 H'!C157*100,"-")) -> 5.911823647 | D159: =IF(OR('Tabel 1 H'!C157<5,'Tabel 2 H'!D159<0.5),"-",IFERROR('Tabel 2 H'!D159/'Tabel 1 H'!C157*100,"-")) -> 4.878652709 | F159: =IF(OR('Tabel 1 H'!E157<5,'Tabel 2 H'!F159<0.5),"-",IFERROR('Tabel 2 H'!F159/'Tabel 1 H'!E157*100,"-")) -> 7.448494453 | G159: =IF(OR('Tabel 1 H'!E157<5,'Tabel 2 H'!G159<0.5),"-",IFERROR('Tabel 2 H'!G159/'Tabel 1 H'!E157*100,"-")) -> 6.027518059 | I159: =IF(OR('Tabel 1 H'!G157<5,'Tabel 2 H'!I159<0.5),"-",IFERROR('Tabel 2 H'!I159/'Tabel 1 H'!G157*100,"-")) -> 6.918021446 | J159: =IF(OR('Tabel 1 H'!G157<5,'Tabel 2 H'!J159<0.5),"-",IFERROR('Tabel 2 H'!J159/'Tabel 1 H'!G157*100,"-")) -> 5.63091909
A160: DJØF'ere i alt | C160: =IF(OR('Tabel 1 H'!C158<5,'Tabel 2 H'!C160<0.5),"-",IFERROR('Tabel 2 H'!C160/'Tabel 1 H'!C158*100,"-")) -> 2.434593023 | D160: =IF(OR('Tabel 1 H'!C158<5,'Tabel 2 H'!D160<0.5),"-",IFERROR('Tabel 2 H'!D160/'Tabel 1 H'!C158*100,"-")) -> 2.137556225 | F160: =IF(OR('Tabel 1 H'!E158<5,'Tabel 2 H'!F160<0.5),"-",IFERROR('Tabel 2 H'!F160/'Tabel 1 H'!E158*100,"-")) -> 3.180975911 | G160: =IF(OR('Tabel 1 H'!E158<5,'Tabel 2 H'!G160<0.5),"-",IFERROR('Tabel 2 H'!G160/'Tabel 1 H'!E158*100,"-")) -> 2.585348694 | I160: =IF(OR('Tabel 1 H'!G158<5,'Tabel 2 H'!I160<0.5),"-",IFERROR('Tabel 2 H'!I160/'Tabel 1 H'!G158*100,"-")) -> 2.838063439 | J160: =IF(OR('Tabel 1 H'!G158<5,'Tabel 2 H'!J160<0.5),"-",IFERROR('Tabel 2 H'!J160/'Tabel 1 H'!G158*100,"-")) -> 2.379618331
A165: Ballerup
C167: Mænd | F167: Kvinder | I167: I alt
C168: Ledigheds- berørte | D168: Gns. brutto- ledighed | F168: Ledigheds- berørte | G168: Gns. brutto- ledighed | I168: Ledigheds- berørte | J168: Gns. brutto- ledighed
A171: Civ. ing. | C171: =IF(OR('Tabel 1 H'!C169<5,'Tabel 2 H'!C171<0.5),"-",IFERROR('Tabel 2 H'!C171/'Tabel 1 H'!C169*100,"-")) -> 1.023017903 | D171: =IF(OR('Tabel 1 H'!C169<5,'Tabel 2 H'!D171<0.5),"-",IFERROR('Tabel 2 H'!D171/'Tabel 1 H'!C169*100,"-")) -> 1.022826482 | F171: =IF(OR('Tabel 1 H'!E169<5,'Tabel 2 H'!F171<0.5),"-",IFERROR('Tabel 2 H'!F171/'Tabel 1 H'!E169*100,"-")) -> 1.829268293 | G171: =IF(OR('Tabel 1 H'!E169<5,'Tabel 2 H'!G171<0.5),"-",IFERROR('Tabel 2 H'!G171/'Tabel 1 H'!E169*100,"-")) -> 1.828926011 | I171: =IF(OR('Tabel 1 H'!G169<5,'Tabel 2 H'!I171<0.5),"-",IFERROR('Tabel 2 H'!I171/'Tabel 1 H'!G169*100,"-")) -> 1.261261261 | J171: =IF(OR('Tabel 1 H'!G169<5,'Tabel 2 H'!J171<0.5),"-",IFERROR('Tabel 2 H'!J171/'Tabel 1 H'!G169*100,"-")) -> 1.261025262
A172: Diplom ing. | C172: =IF(OR('Tabel 1 H'!C170<5,'Tabel 2 H'!C172<0.5),"-",IFERROR('Tabel 2 H'!C172/'Tabel 1 H'!C170*100,"-")) -> 3.526448363 | D172: =IF(OR('Tabel 1 H'!C170<5,'Tabel 2 H'!D172<0.5),"-",IFERROR('Tabel 2 H'!D172/'Tabel 1 H'!C170*100,"-")) -> 3.112912112 | F172: =IF(OR('Tabel 1 H'!E170<5,'Tabel 2 H'!F172<0.5),"-",IFERROR('Tabel 2 H'!F172/'Tabel 1 H'!E170*100,"-")) -> 2.97029703 | G172: =IF(OR('Tabel 1 H'!E170<5,'Tabel 2 H'!G172<0.5),"-",IFERROR('Tabel 2 H'!G172/'Tabel 1 H'!E170*100,"-")) -> 2.412104243 | I172: =IF(OR('Tabel 1 H'!G170<5,'Tabel 2 H'!I172<0.5),"-",IFERROR('Tabel 2 H'!I172/'Tabel 1 H'!G170*100,"-")) -> 3.413654618 | J172: =IF(OR('Tabel 1 H'!G170<5,'Tabel 2 H'!J172<0.5),"-",IFERROR('Tabel 2 H'!J172/'Tabel 1 H'!G170*100,"-")) -> 2.970780396
A173: Cand. Scient. Tek. | C173: =IF(OR('Tabel 1 H'!C171<5,'Tabel 2 H'!C173<0.5),"-",IFERROR('Tabel 2 H'!C173/'Tabel 1 H'!C171*100,"-")) -> 3.25203252 | D173: =IF(OR('Tabel 1 H'!C171<5,'Tabel 2 H'!D173<0.5),"-",IFERROR('Tabel 2 H'!D173/'Tabel 1 H'!C171*100,"-")) -> 1.715973001 | F173: =IF(OR('Tabel 1 H'!E171<5,'Tabel 2 H'!F173<0.5),"-",IFERROR('Tabel 2 H'!F173/'Tabel 1 H'!E171*100,"-")) -> 2 | G173: =IF(OR('Tabel 1 H'!E171<5,'Tabel 2 H'!G173<0.5),"-",IFERROR('Tabel 2 H'!G173/'Tabel 1 H'!E171*100,"-")) -> 1.168839269 | I173: =IF(OR('Tabel 1 H'!G171<5,'Tabel 2 H'!I173<0.5),"-",IFERROR('Tabel 2 H'!I173/'Tabel 1 H'!G171*100,"-")) -> 2.69058296 | J173: =IF(OR('Tabel 1 H'!G171<5,'Tabel 2 H'!J173<0.5),"-",IFERROR('Tabel 2 H'!J173/'Tabel 1 H'!G171*100,"-")) -> 1.470621552
A174: MA. Hum. | C174: =IF(OR('Tabel 1 H'!C172<5,'Tabel 2 H'!C174<0.5),"-",IFERROR('Tabel 2 H'!C174/'Tabel 1 H'!C172*100,"-")) -> 1.428571429 | D174: =IF(OR('Tabel 1 H'!C172<5,'Tabel 2 H'!D174<0.5),"-",IFERROR('Tabel 2 H'!D174/'Tabel 1 H'!C172*100,"-")) -> 1.428304123 | F174: =IF(OR('Tabel 1 H'!E172<5,'Tabel 2 H'!F174<0.5),"-",IFERROR('Tabel 2 H'!F174/'Tabel 1 H'!E172*100,"-")) -> 1.898734177 | G174: =IF(OR('Tabel 1 H'!E172<5,'Tabel 2 H'!G174<0.5),"-",IFERROR('Tabel 2 H'!G174/'Tabel 1 H'!E172*100,"-")) -> 1.34966884 | I174: =IF(OR('Tabel 1 H'!G172<5,'Tabel 2 H'!I174<0.5),"-",IFERROR('Tabel 2 H'!I174/'Tabel 1 H'!G172*100,"-")) -> 1.754385965 | J174: =IF(OR('Tabel 1 H'!G172<5,'Tabel 2 H'!J174<0.5),"-",IFERROR('Tabel 2 H'!J174/'Tabel 1 H'!G172*100,"-")) -> 1.373811251
A175: MA. Nat. | C175: =IF(OR('Tabel 1 H'!C173<5,'Tabel 2 H'!C175<0.5),"-",IFERROR('Tabel 2 H'!C175/'Tabel 1 H'!C173*100,"-")) -> - | D175: =IF(OR('Tabel 1 H'!C173<5,'Tabel 2 H'!D175<0.5),"-",IFERROR('Tabel 2 H'!D175/'Tabel 1 H'!C173*100,"-")) -> - | F175: =IF(OR('Tabel 1 H'!E173<5,'Tabel 2 H'!F175<0.5),"-",IFERROR('Tabel 2 H'!F175/'Tabel 1 H'!E173*100,"-")) -> 1.136363636 | G175: =IF(OR('Tabel 1 H'!E173<5,'Tabel 2 H'!G175<0.5),"-",IFERROR('Tabel 2 H'!G175/'Tabel 1 H'!E173*100,"-")) -> 0.9788050782 | I175: =IF(OR('Tabel 1 H'!G173<5,'Tabel 2 H'!I175<0.5),"-",IFERROR('Tabel 2 H'!I175/'Tabel 1 H'!G173*100,"-")) -> 0.5917159763 | J175: =IF(OR('Tabel 1 H'!G173<5,'Tabel 2 H'!J175<0.5),"-",IFERROR('Tabel 2 H'!J175/'Tabel 1 H'!G173*100,"-")) -> 0.5096736502
A176: MA. Ph.d. | C176: =IF(OR('Tabel 1 H'!C174<5,'Tabel 2 H'!C176<0.5),"-",IFERROR('Tabel 2 H'!C176/'Tabel 1 H'!C174*100,"-")) -> - | D176: =IF(OR('Tabel 1 H'!C174<5,'Tabel 2 H'!D176<0.5),"-",IFERROR('Tabel 2 H'!D176/'Tabel 1 H'!C174*100,"-")) -> - | F176: =IF(OR('Tabel 1 H'!E174<5,'Tabel 2 H'!F176<0.5),"-",IFERROR('Tabel 2 H'!F176/'Tabel 1 H'!E174*100,"-")) -> - | G176: =IF(OR('Tabel 1 H'!E174<5,'Tabel 2 H'!G176<0.5),"-",IFERROR('Tabel 2 H'!G176/'Tabel 1 H'!E174*100,"-")) -> - | I176: =IF(OR('Tabel 1 H'!G174<5,'Tabel 2 H'!I176<0.5),"-",IFERROR('Tabel 2 H'!I176/'Tabel 1 H'!G174*100,"-")) -> - | J176: =IF(OR('Tabel 1 H'!G174<5,'Tabel 2 H'!J176<0.5),"-",IFERROR('Tabel 2 H'!J176/'Tabel 1 H'!G174*100,"-")) -> -
A177: MA. Samf. | C177: =IF(OR('Tabel 1 H'!C175<5,'Tabel 2 H'!C177<0.5),"-",IFERROR('Tabel 2 H'!C177/'Tabel 1 H'!C175*100,"-")) -> 11.76470588 | D177: =IF(OR('Tabel 1 H'!C175<5,'Tabel 2 H'!D177<0.5),"-",IFERROR('Tabel 2 H'!D177/'Tabel 1 H'!C175*100,"-")) -> 11.76250454 | F177: =IF(OR('Tabel 1 H'!E175<5,'Tabel 2 H'!F177<0.5),"-",IFERROR('Tabel 2 H'!F177/'Tabel 1 H'!E175*100,"-")) -> 5.263157895 | G177: =IF(OR('Tabel 1 H'!E175<5,'Tabel 2 H'!G177<0.5),"-",IFERROR('Tabel 2 H'!G177/'Tabel 1 H'!E175*100,"-")) -> 5.262173084 | I177: =IF(OR('Tabel 1 H'!G175<5,'Tabel 2 H'!I177<0.5),"-",IFERROR('Tabel 2 H'!I177/'Tabel 1 H'!G175*100,"-")) -> 8.333333333 | J177: =IF(OR('Tabel 1 H'!G175<5,'Tabel 2 H'!J177<0.5),"-",IFERROR('Tabel 2 H'!J177/'Tabel 1 H'!G175*100,"-")) -> 8.331774049
A178: Øvrige Mag. | C178: =IF(OR('Tabel 1 H'!C176<5,'Tabel 2 H'!C178<0.5),"-",IFERROR('Tabel 2 H'!C178/'Tabel 1 H'!C176*100,"-")) -> - | D178: =IF(OR('Tabel 1 H'!C176<5,'Tabel 2 H'!D178<0.5),"-",IFERROR('Tabel 2 H'!D178/'Tabel 1 H'!C176*100,"-")) -> - | F178: =IF(OR('Tabel 1 H'!E176<5,'Tabel 2 H'!F178<0.5),"-",IFERROR('Tabel 2 H'!F178/'Tabel 1 H'!E176*100,"-")) -> 5.555555556 | G178: =IF(OR('Tabel 1 H'!E176<5,'Tabel 2 H'!G178<0.5),"-",IFERROR('Tabel 2 H'!G178/'Tabel 1 H'!E176*100,"-")) -> 5.554516033 | I178: =IF(OR('Tabel 1 H'!G176<5,'Tabel 2 H'!I178<0.5),"-",IFERROR('Tabel 2 H'!I178/'Tabel 1 H'!G176*100,"-")) -> 3.703703704 | J178: =IF(OR('Tabel 1 H'!G176<5,'Tabel 2 H'!J178<0.5),"-",IFERROR('Tabel 2 H'!J178/'Tabel 1 H'!G176*100,"-")) -> 3.703010689
A179: Agronom | C179: =IF(OR('Tabel 1 H'!C177<5,'Tabel 2 H'!C179<0.5),"-",IFERROR('Tabel 2 H'!C179/'Tabel 1 H'!C177*100,"-")) -> - | D179: =IF(OR('Tabel 1 H'!C177<5,'Tabel 2 H'!D179<0.5),"-",IFERROR('Tabel 2 H'!D179/'Tabel 1 H'!C177*100,"-")) -> - | F179: =IF(OR('Tabel 1 H'!E177<5,'Tabel 2 H'!F179<0.5),"-",IFERROR('Tabel 2 H'!F179/'Tabel 1 H'!E177*100,"-")) -> - | G179: =IF(OR('Tabel 1 H'!E177<5,'Tabel 2 H'!G179<0.5),"-",IFERROR('Tabel 2 H'!G179/'Tabel 1 H'!E177*100,"-")) -> - | I179: =IF(OR('Tabel 1 H'!G177<5,'Tabel 2 H'!I179<0.5),"-",IFERROR('Tabel 2 H'!I179/'Tabel 1 H'!G177*100,"-")) -> - | J179: =IF(OR('Tabel 1 H'!G177<5,'Tabel 2 H'!J179<0.5),"-",IFERROR('Tabel 2 H'!J179/'Tabel 1 H'!G177*100,"-")) -> -
A180: Landsk. Arkt. | C180: =IF(OR('Tabel 1 H'!C178<5,'Tabel 2 H'!C180<0.5),"-",IFERROR('Tabel 2 H'!C180/'Tabel 1 H'!C178*100,"-")) -> - | D180: =IF(OR('Tabel 1 H'!C178<5,'Tabel 2 H'!D180<0.5),"-",IFERROR('Tabel 2 H'!D180/'Tabel 1 H'!C178*100,"-")) -> - | F180: =IF(OR('Tabel 1 H'!E178<5,'Tabel 2 H'!F180<0.5),"-",IFERROR('Tabel 2 H'!F180/'Tabel 1 H'!E178*100,"-")) -> 12.5 | G180: =IF(OR('Tabel 1 H'!E178<5,'Tabel 2 H'!G180<0.5),"-",IFERROR('Tabel 2 H'!G180/'Tabel 1 H'!E178*100,"-")) -> - | I180: =IF(OR('Tabel 1 H'!G178<5,'Tabel 2 H'!I180<0.5),"-",IFERROR('Tabel 2 H'!I180/'Tabel 1 H'!G178*100,"-")) -> 18.18181818 | J180: =IF(OR('Tabel 1 H'!G178<5,'Tabel 2 H'!J180<0.5),"-",IFERROR('Tabel 2 H'!J180/'Tabel 1 H'!G178*100,"-")) -> 12.72375725
A181: Hortonom | C181: =IF(OR('Tabel 1 H'!C179<5,'Tabel 2 H'!C181<0.5),"-",IFERROR('Tabel 2 H'!C181/'Tabel 1 H'!C179*100,"-")) -> - | D181: =IF(OR('Tabel 1 H'!C179<5,'Tabel 2 H'!D181<0.5),"-",IFERROR('Tabel 2 H'!D181/'Tabel 1 H'!C179*100,"-")) -> - | F181: =IF(OR('Tabel 1 H'!E179<5,'Tabel 2 H'!F181<0.5),"-",IFERROR('Tabel 2 H'!F181/'Tabel 1 H'!E179*100,"-")) -> - | G181: =IF(OR('Tabel 1 H'!E179<5,'Tabel 2 H'!G181<0.5),"-",IFERROR('Tabel 2 H'!G181/'Tabel 1 H'!E179*100,"-")) -> - | I181: =IF(OR('Tabel 1 H'!G179<5,'Tabel 2 H'!I181<0.5),"-",IFERROR('Tabel 2 H'!I181/'Tabel 1 H'!G179*100,"-")) -> - | J181: =IF(OR('Tabel 1 H'!G179<5,'Tabel 2 H'!J181<0.5),"-",IFERROR('Tabel 2 H'!J181/'Tabel 1 H'!G179*100,"-")) -> -
A182: Forstkand. | C182: =IF(OR('Tabel 1 H'!C180<5,'Tabel 2 H'!C182<0.5),"-",IFERROR('Tabel 2 H'!C182/'Tabel 1 H'!C180*100,"-")) -> - | D182: =IF(OR('Tabel 1 H'!C180<5,'Tabel 2 H'!D182<0.5),"-",IFERROR('Tabel 2 H'!D182/'Tabel 1 H'!C180*100,"-")) -> - | F182: =IF(OR('Tabel 1 H'!E180<5,'Tabel 2 H'!F182<0.5),"-",IFERROR('Tabel 2 H'!F182/'Tabel 1 H'!E180*100,"-")) -> - | G182: =IF(OR('Tabel 1 H'!E180<5,'Tabel 2 H'!G182<0.5),"-",IFERROR('Tabel 2 H'!G182/'Tabel 1 H'!E180*100,"-")) -> - | I182: =IF(OR('Tabel 1 H'!G180<5,'Tabel 2 H'!I182<0.5),"-",IFERROR('Tabel 2 H'!I182/'Tabel 1 H'!G180*100,"-")) -> - | J182: =IF(OR('Tabel 1 H'!G180<5,'Tabel 2 H'!J182<0.5),"-",IFERROR('Tabel 2 H'!J182/'Tabel 1 H'!G180*100,"-")) -> -
A183: Jordbrugsakad. | C183: =IF(OR('Tabel 1 H'!C181<5,'Tabel 2 H'!C183<0.5),"-",IFERROR('Tabel 2 H'!C183/'Tabel 1 H'!C181*100,"-")) -> 6.25 | D183: =IF(OR('Tabel 1 H'!C181<5,'Tabel 2 H'!D183<0.5),"-",IFERROR('Tabel 2 H'!D183/'Tabel 1 H'!C181*100,"-")) -> 5.671895466 | F183: =IF(OR('Tabel 1 H'!E181<5,'Tabel 2 H'!F183<0.5),"-",IFERROR('Tabel 2 H'!F183/'Tabel 1 H'!E181*100,"-")) -> 4.761904762 | G183: =IF(OR('Tabel 1 H'!E181<5,'Tabel 2 H'!G183<0.5),"-",IFERROR('Tabel 2 H'!G183/'Tabel 1 H'!E181*100,"-")) -> - | I183: =IF(OR('Tabel 1 H'!G181<5,'Tabel 2 H'!I183<0.5),"-",IFERROR('Tabel 2 H'!I183/'Tabel 1 H'!G181*100,"-")) -> 5.405405405 | J183: =IF(OR('Tabel 1 H'!G181<5,'Tabel 2 H'!J183<0.5),"-",IFERROR('Tabel 2 H'!J183/'Tabel 1 H'!G181*100,"-")) -> 3.782738642
A184: Mejeriing. | C184: =IF(OR('Tabel 1 H'!C182<5,'Tabel 2 H'!C184<0.5),"-",IFERROR('Tabel 2 H'!C184/'Tabel 1 H'!C182*100,"-")) -> - | D184: =IF(OR('Tabel 1 H'!C182<5,'Tabel 2 H'!D184<0.5),"-",IFERROR('Tabel 2 H'!D184/'Tabel 1 H'!C182*100,"-")) -> - | F184: =IF(OR('Tabel 1 H'!E182<5,'Tabel 2 H'!F184<0.5),"-",IFERROR('Tabel 2 H'!F184/'Tabel 1 H'!E182*100,"-")) -> - | G184: =IF(OR('Tabel 1 H'!E182<5,'Tabel 2 H'!G184<0.5),"-",IFERROR('Tabel 2 H'!G184/'Tabel 1 H'!E182*100,"-")) -> - | I184: =IF(OR('Tabel 1 H'!G182<5,'Tabel 2 H'!I184<0.5),"-",IFERROR('Tabel 2 H'!I184/'Tabel 1 H'!G182*100,"-")) -> 20 | J184: =IF(OR('Tabel 1 H'!G182<5,'Tabel 2 H'!J184<0.5),"-",IFERROR('Tabel 2 H'!J184/'Tabel 1 H'!G182*100,"-")) -> 19.99625772
A185: Levn.m.kand. | C185: =IF(OR('Tabel 1 H'!C183<5,'Tabel 2 H'!C185<0.5),"-",IFERROR('Tabel 2 H'!C185/'Tabel 1 H'!C183*100,"-")) -> - | D185: =IF(OR('Tabel 1 H'!C183<5,'Tabel 2 H'!D185<0.5),"-",IFERROR('Tabel 2 H'!D185/'Tabel 1 H'!C183*100,"-")) -> - | F185: =IF(OR('Tabel 1 H'!E183<5,'Tabel 2 H'!F185<0.5),"-",IFERROR('Tabel 2 H'!F185/'Tabel 1 H'!E183*100,"-")) -> - | G185: =IF(OR('Tabel 1 H'!E183<5,'Tabel 2 H'!G185<0.5),"-",IFERROR('Tabel 2 H'!G185/'Tabel 1 H'!E183*100,"-")) -> - | I185: =IF(OR('Tabel 1 H'!G183<5,'Tabel 2 H'!I185<0.5),"-",IFERROR('Tabel 2 H'!I185/'Tabel 1 H'!G183*100,"-")) -> - | J185: =IF(OR('Tabel 1 H'!G183<5,'Tabel 2 H'!J185<0.5),"-",IFERROR('Tabel 2 H'!J185/'Tabel 1 H'!G183*100,"-")) -> -
A186: Dyrlæge | C186: =IF(OR('Tabel 1 H'!C184<5,'Tabel 2 H'!C186<0.5),"-",IFERROR('Tabel 2 H'!C186/'Tabel 1 H'!C184*100,"-")) -> - | D186: =IF(OR('Tabel 1 H'!C184<5,'Tabel 2 H'!D186<0.5),"-",IFERROR('Tabel 2 H'!D186/'Tabel 1 H'!C184*100,"-")) -> - | F186: =IF(OR('Tabel 1 H'!E184<5,'Tabel 2 H'!F186<0.5),"-",IFERROR('Tabel 2 H'!F186/'Tabel 1 H'!E184*100,"-")) -> - | G186: =IF(OR('Tabel 1 H'!E184<5,'Tabel 2 H'!G186<0.5),"-",IFERROR('Tabel 2 H'!G186/'Tabel 1 H'!E184*100,"-")) -> - | I186: =IF(OR('Tabel 1 H'!G184<5,'Tabel 2 H'!I186<0.5),"-",IFERROR('Tabel 2 H'!I186/'Tabel 1 H'!G184*100,"-")) -> - | J186: =IF(OR('Tabel 1 H'!G184<5,'Tabel 2 H'!J186<0.5),"-",IFERROR('Tabel 2 H'!J186/'Tabel 1 H'!G184*100,"-")) -> -
A187: Farmaceut | C187: =IF(OR('Tabel 1 H'!C185<5,'Tabel 2 H'!C187<0.5),"-",IFERROR('Tabel 2 H'!C187/'Tabel 1 H'!C185*100,"-")) -> - | D187: =IF(OR('Tabel 1 H'!C185<5,'Tabel 2 H'!D187<0.5),"-",IFERROR('Tabel 2 H'!D187/'Tabel 1 H'!C185*100,"-")) -> - | F187: =IF(OR('Tabel 1 H'!E185<5,'Tabel 2 H'!F187<0.5),"-",IFERROR('Tabel 2 H'!F187/'Tabel 1 H'!E185*100,"-")) -> - | G187: =IF(OR('Tabel 1 H'!E185<5,'Tabel 2 H'!G187<0.5),"-",IFERROR('Tabel 2 H'!G187/'Tabel 1 H'!E185*100,"-")) -> - | I187: =IF(OR('Tabel 1 H'!G185<5,'Tabel 2 H'!I187<0.5),"-",IFERROR('Tabel 2 H'!I187/'Tabel 1 H'!G185*100,"-")) -> - | J187: =IF(OR('Tabel 1 H'!G185<5,'Tabel 2 H'!J187<0.5),"-",IFERROR('Tabel 2 H'!J187/'Tabel 1 H'!G185*100,"-")) -> -
A188: Læge | C188: =IF(OR('Tabel 1 H'!C186<5,'Tabel 2 H'!C188<0.5),"-",IFERROR('Tabel 2 H'!C188/'Tabel 1 H'!C186*100,"-")) -> - | D188: =IF(OR('Tabel 1 H'!C186<5,'Tabel 2 H'!D188<0.5),"-",IFERROR('Tabel 2 H'!D188/'Tabel 1 H'!C186*100,"-")) -> - | F188: =IF(OR('Tabel 1 H'!E186<5,'Tabel 2 H'!F188<0.5),"-",IFERROR('Tabel 2 H'!F188/'Tabel 1 H'!E186*100,"-")) -> 3.703703704 | G188: =IF(OR('Tabel 1 H'!E186<5,'Tabel 2 H'!G188<0.5),"-",IFERROR('Tabel 2 H'!G188/'Tabel 1 H'!E186*100,"-")) -> 2.848292064 | I188: =IF(OR('Tabel 1 H'!G186<5,'Tabel 2 H'!I188<0.5),"-",IFERROR('Tabel 2 H'!I188/'Tabel 1 H'!G186*100,"-")) -> 2.43902439 | J188: =IF(OR('Tabel 1 H'!G186<5,'Tabel 2 H'!J188<0.5),"-",IFERROR('Tabel 2 H'!J188/'Tabel 1 H'!G186*100,"-")) -> 1.87570453
A189: Tandlæge | C189: =IF(OR('Tabel 1 H'!C187<5,'Tabel 2 H'!C189<0.5),"-",IFERROR('Tabel 2 H'!C189/'Tabel 1 H'!C187*100,"-")) -> - | D189: =IF(OR('Tabel 1 H'!C187<5,'Tabel 2 H'!D189<0.5),"-",IFERROR('Tabel 2 H'!D189/'Tabel 1 H'!C187*100,"-")) -> - | F189: =IF(OR('Tabel 1 H'!E187<5,'Tabel 2 H'!F189<0.5),"-",IFERROR('Tabel 2 H'!F189/'Tabel 1 H'!E187*100,"-")) -> - | G189: =IF(OR('Tabel 1 H'!E187<5,'Tabel 2 H'!G189<0.5),"-",IFERROR('Tabel 2 H'!G189/'Tabel 1 H'!E187*100,"-")) -> - | I189: =IF(OR('Tabel 1 H'!G187<5,'Tabel 2 H'!I189<0.5),"-",IFERROR('Tabel 2 H'!I189/'Tabel 1 H'!G187*100,"-")) -> - | J189: =IF(OR('Tabel 1 H'!G187<5,'Tabel 2 H'!J189<0.5),"-",IFERROR('Tabel 2 H'!J189/'Tabel 1 H'!G187*100,"-")) -> -
A190: Arkitekt | C190: =IF(OR('Tabel 1 H'!C188<5,'Tabel 2 H'!C190<0.5),"-",IFERROR('Tabel 2 H'!C190/'Tabel 1 H'!C188*100,"-")) -> - | D190: =IF(OR('Tabel 1 H'!C188<5,'Tabel 2 H'!D190<0.5),"-",IFERROR('Tabel 2 H'!D190/'Tabel 1 H'!C188*100,"-")) -> - | F190: =IF(OR('Tabel 1 H'!E188<5,'Tabel 2 H'!F190<0.5),"-",IFERROR('Tabel 2 H'!F190/'Tabel 1 H'!E188*100,"-")) -> 9.090909091 | G190: =IF(OR('Tabel 1 H'!E188<5,'Tabel 2 H'!G190<0.5),"-",IFERROR('Tabel 2 H'!G190/'Tabel 1 H'!E188*100,"-")) -> 7.501573459 | I190: =IF(OR('Tabel 1 H'!G188<5,'Tabel 2 H'!I190<0.5),"-",IFERROR('Tabel 2 H'!I190/'Tabel 1 H'!G188*100,"-")) -> 4.545454545 | J190: =IF(OR('Tabel 1 H'!G188<5,'Tabel 2 H'!J190<0.5),"-",IFERROR('Tabel 2 H'!J190/'Tabel 1 H'!G188*100,"-")) -> 3.75078673
A191: Landinspek. | C191: =IF(OR('Tabel 1 H'!C189<5,'Tabel 2 H'!C191<0.5),"-",IFERROR('Tabel 2 H'!C191/'Tabel 1 H'!C189*100,"-")) -> - | D191: =IF(OR('Tabel 1 H'!C189<5,'Tabel 2 H'!D191<0.5),"-",IFERROR('Tabel 2 H'!D191/'Tabel 1 H'!C189*100,"-")) -> - | F191: =IF(OR('Tabel 1 H'!E189<5,'Tabel 2 H'!F191<0.5),"-",IFERROR('Tabel 2 H'!F191/'Tabel 1 H'!E189*100,"-")) -> - | G191: =IF(OR('Tabel 1 H'!E189<5,'Tabel 2 H'!G191<0.5),"-",IFERROR('Tabel 2 H'!G191/'Tabel 1 H'!E189*100,"-")) -> - | I191: =IF(OR('Tabel 1 H'!G189<5,'Tabel 2 H'!I191<0.5),"-",IFERROR('Tabel 2 H'!I191/'Tabel 1 H'!G189*100,"-")) -> - | J191: =IF(OR('Tabel 1 H'!G189<5,'Tabel 2 H'!J191<0.5),"-",IFERROR('Tabel 2 H'!J191/'Tabel 1 H'!G189*100,"-")) -> -
A192: Bibliotekar | C192: =IF(OR('Tabel 1 H'!C190<5,'Tabel 2 H'!C192<0.5),"-",IFERROR('Tabel 2 H'!C192/'Tabel 1 H'!C190*100,"-")) -> 9.090909091 | D192: =IF(OR('Tabel 1 H'!C190<5,'Tabel 2 H'!D192<0.5),"-",IFERROR('Tabel 2 H'!D192/'Tabel 1 H'!C190*100,"-")) -> 9.089208054 | F192: =IF(OR('Tabel 1 H'!E190<5,'Tabel 2 H'!F192<0.5),"-",IFERROR('Tabel 2 H'!F192/'Tabel 1 H'!E190*100,"-")) -> 6.666666667 | G192: =IF(OR('Tabel 1 H'!E190<5,'Tabel 2 H'!G192<0.5),"-",IFERROR('Tabel 2 H'!G192/'Tabel 1 H'!E190*100,"-")) -> 4.049980249 | I192: =IF(OR('Tabel 1 H'!G190<5,'Tabel 2 H'!I192<0.5),"-",IFERROR('Tabel 2 H'!I192/'Tabel 1 H'!G190*100,"-")) -> 7.317073171 | J192: =IF(OR('Tabel 1 H'!G190<5,'Tabel 2 H'!J192<0.5),"-",IFERROR('Tabel 2 H'!J192/'Tabel 1 H'!G190*100,"-")) -> 5.401968197
A193: Musikudd. | C193: =IF(OR('Tabel 1 H'!C191<5,'Tabel 2 H'!C193<0.5),"-",IFERROR('Tabel 2 H'!C193/'Tabel 1 H'!C191*100,"-")) -> - | D193: =IF(OR('Tabel 1 H'!C191<5,'Tabel 2 H'!D193<0.5),"-",IFERROR('Tabel 2 H'!D193/'Tabel 1 H'!C191*100,"-")) -> - | F193: =IF(OR('Tabel 1 H'!E191<5,'Tabel 2 H'!F193<0.5),"-",IFERROR('Tabel 2 H'!F193/'Tabel 1 H'!E191*100,"-")) -> - | G193: =IF(OR('Tabel 1 H'!E191<5,'Tabel 2 H'!G193<0.5),"-",IFERROR('Tabel 2 H'!G193/'Tabel 1 H'!E191*100,"-")) -> - | I193: =IF(OR('Tabel 1 H'!G191<5,'Tabel 2 H'!I193<0.5),"-",IFERROR('Tabel 2 H'!I193/'Tabel 1 H'!G191*100,"-")) -> - | J193: =IF(OR('Tabel 1 H'!G191<5,'Tabel 2 H'!J193<0.5),"-",IFERROR('Tabel 2 H'!J193/'Tabel 1 H'!G191*100,"-")) -> -
A194: Teolog | C194: =IF(OR('Tabel 1 H'!C192<5,'Tabel 2 H'!C194<0.5),"-",IFERROR('Tabel 2 H'!C194/'Tabel 1 H'!C192*100,"-")) -> - | D194: =IF(OR('Tabel 1 H'!C192<5,'Tabel 2 H'!D194<0.5),"-",IFERROR('Tabel 2 H'!D194/'Tabel 1 H'!C192*100,"-")) -> - | F194: =IF(OR('Tabel 1 H'!E192<5,'Tabel 2 H'!F194<0.5),"-",IFERROR('Tabel 2 H'!F194/'Tabel 1 H'!E192*100,"-")) -> - | G194: =IF(OR('Tabel 1 H'!E192<5,'Tabel 2 H'!G194<0.5),"-",IFERROR('Tabel 2 H'!G194/'Tabel 1 H'!E192*100,"-")) -> - | I194: =IF(OR('Tabel 1 H'!G192<5,'Tabel 2 H'!I194<0.5),"-",IFERROR('Tabel 2 H'!I194/'Tabel 1 H'!G192*100,"-")) -> - | J194: =IF(OR('Tabel 1 H'!G192<5,'Tabel 2 H'!J194<0.5),"-",IFERROR('Tabel 2 H'!J194/'Tabel 1 H'!G192*100,"-")) -> -
A195: Psykolog | C195: =IF(OR('Tabel 1 H'!C193<5,'Tabel 2 H'!C195<0.5),"-",IFERROR('Tabel 2 H'!C195/'Tabel 1 H'!C193*100,"-")) -> 12.5 | D195: =IF(OR('Tabel 1 H'!C193<5,'Tabel 2 H'!D195<0.5),"-",IFERROR('Tabel 2 H'!D195/'Tabel 1 H'!C193*100,"-")) -> - | F195: =IF(OR('Tabel 1 H'!E193<5,'Tabel 2 H'!F195<0.5),"-",IFERROR('Tabel 2 H'!F195/'Tabel 1 H'!E193*100,"-")) -> - | G195: =IF(OR('Tabel 1 H'!E193<5,'Tabel 2 H'!G195<0.5),"-",IFERROR('Tabel 2 H'!G195/'Tabel 1 H'!E193*100,"-")) -> - | I195: =IF(OR('Tabel 1 H'!G193<5,'Tabel 2 H'!I195<0.5),"-",IFERROR('Tabel 2 H'!I195/'Tabel 1 H'!G193*100,"-")) -> 2 | J195: =IF(OR('Tabel 1 H'!G193<5,'Tabel 2 H'!J195<0.5),"-",IFERROR('Tabel 2 H'!J195/'Tabel 1 H'!G193*100,"-")) -> -
A196: Jurist | C196: =IF(OR('Tabel 1 H'!C194<5,'Tabel 2 H'!C196<0.5),"-",IFERROR('Tabel 2 H'!C196/'Tabel 1 H'!C194*100,"-")) -> 6.896551724 | D196: =IF(OR('Tabel 1 H'!C194<5,'Tabel 2 H'!D196<0.5),"-",IFERROR('Tabel 2 H'!D196/'Tabel 1 H'!C194*100,"-")) -> 4.78323802 | F196: =IF(OR('Tabel 1 H'!E194<5,'Tabel 2 H'!F196<0.5),"-",IFERROR('Tabel 2 H'!F196/'Tabel 1 H'!E194*100,"-")) -> 2.43902439 | G196: =IF(OR('Tabel 1 H'!E194<5,'Tabel 2 H'!G196<0.5),"-",IFERROR('Tabel 2 H'!G196/'Tabel 1 H'!E194*100,"-")) -> 1.959373426 | I196: =IF(OR('Tabel 1 H'!G194<5,'Tabel 2 H'!I196<0.5),"-",IFERROR('Tabel 2 H'!I196/'Tabel 1 H'!G194*100,"-")) -> 3.603603604 | J196: =IF(OR('Tabel 1 H'!G194<5,'Tabel 2 H'!J196<0.5),"-",IFERROR('Tabel 2 H'!J196/'Tabel 1 H'!G194*100,"-")) -> 2.697139852
A197: Økonom | C197: =IF(OR('Tabel 1 H'!C195<5,'Tabel 2 H'!C197<0.5),"-",IFERROR('Tabel 2 H'!C197/'Tabel 1 H'!C195*100,"-")) -> 1.785714286 | D197: =IF(OR('Tabel 1 H'!C195<5,'Tabel 2 H'!D197<0.5),"-",IFERROR('Tabel 2 H'!D197/'Tabel 1 H'!C195*100,"-")) -> - | F197: =IF(OR('Tabel 1 H'!E195<5,'Tabel 2 H'!F197<0.5),"-",IFERROR('Tabel 2 H'!F197/'Tabel 1 H'!E195*100,"-")) -> 4 | G197: =IF(OR('Tabel 1 H'!E195<5,'Tabel 2 H'!G197<0.5),"-",IFERROR('Tabel 2 H'!G197/'Tabel 1 H'!E195*100,"-")) -> 3.999251544 | I197: =IF(OR('Tabel 1 H'!G195<5,'Tabel 2 H'!I197<0.5),"-",IFERROR('Tabel 2 H'!I197/'Tabel 1 H'!G195*100,"-")) -> 2.469135802 | J197: =IF(OR('Tabel 1 H'!G195<5,'Tabel 2 H'!J197<0.5),"-",IFERROR('Tabel 2 H'!J197/'Tabel 1 H'!G195*100,"-")) -> 1.556973926
A198: Samf. Adm. | C198: =IF(OR('Tabel 1 H'!C196<5,'Tabel 2 H'!C198<0.5),"-",IFERROR('Tabel 2 H'!C198/'Tabel 1 H'!C196*100,"-")) -> 3.448275862 | D198: =IF(OR('Tabel 1 H'!C196<5,'Tabel 2 H'!D198<0.5),"-",IFERROR('Tabel 2 H'!D198/'Tabel 1 H'!C196*100,"-")) -> 3.359450444 | F198: =IF(OR('Tabel 1 H'!E196<5,'Tabel 2 H'!F198<0.5),"-",IFERROR('Tabel 2 H'!F198/'Tabel 1 H'!E196*100,"-")) -> 2.479338843 | G198: =IF(OR('Tabel 1 H'!E196<5,'Tabel 2 H'!G198<0.5),"-",IFERROR('Tabel 2 H'!G198/'Tabel 1 H'!E196*100,"-")) -> 2.059285781 | I198: =IF(OR('Tabel 1 H'!G196<5,'Tabel 2 H'!I198<0.5),"-",IFERROR('Tabel 2 H'!I198/'Tabel 1 H'!G196*100,"-")) -> 2.884615385 | J198: =IF(OR('Tabel 1 H'!G196<5,'Tabel 2 H'!J198<0.5),"-",IFERROR('Tabel 2 H'!J198/'Tabel 1 H'!G196*100,"-")) -> 2.603104654
A199: Cand. Merc. | C199: =IF(OR('Tabel 1 H'!C197<5,'Tabel 2 H'!C199<0.5),"-",IFERROR('Tabel 2 H'!C199/'Tabel 1 H'!C197*100,"-")) -> - | D199: =IF(OR('Tabel 1 H'!C197<5,'Tabel 2 H'!D199<0.5),"-",IFERROR('Tabel 2 H'!D199/'Tabel 1 H'!C197*100,"-")) -> - | F199: =IF(OR('Tabel 1 H'!E197<5,'Tabel 2 H'!F199<0.5),"-",IFERROR('Tabel 2 H'!F199/'Tabel 1 H'!E197*100,"-")) -> 2.919708029 | G199: =IF(OR('Tabel 1 H'!E197<5,'Tabel 2 H'!G199<0.5),"-",IFERROR('Tabel 2 H'!G199/'Tabel 1 H'!E197*100,"-")) -> 2.824466509 | I199: =IF(OR('Tabel 1 H'!G197<5,'Tabel 2 H'!I199<0.5),"-",IFERROR('Tabel 2 H'!I199/'Tabel 1 H'!G197*100,"-")) -> 1.454545455 | J199: =IF(OR('Tabel 1 H'!G197<5,'Tabel 2 H'!J199<0.5),"-",IFERROR('Tabel 2 H'!J199/'Tabel 1 H'!G197*100,"-")) -> 1.407097861
A200: HA | C200: =IF(OR('Tabel 1 H'!C198<5,'Tabel 2 H'!C200<0.5),"-",IFERROR('Tabel 2 H'!C200/'Tabel 1 H'!C198*100,"-")) -> - | D200: =IF(OR('Tabel 1 H'!C198<5,'Tabel 2 H'!D200<0.5),"-",IFERROR('Tabel 2 H'!D200/'Tabel 1 H'!C198*100,"-")) -> - | F200: =IF(OR('Tabel 1 H'!E198<5,'Tabel 2 H'!F200<0.5),"-",IFERROR('Tabel 2 H'!F200/'Tabel 1 H'!E198*100,"-")) -> 6.666666667 | G200: =IF(OR('Tabel 1 H'!E198<5,'Tabel 2 H'!G200<0.5),"-",IFERROR('Tabel 2 H'!G200/'Tabel 1 H'!E198*100,"-")) -> 5.126925716 | I200: =IF(OR('Tabel 1 H'!G198<5,'Tabel 2 H'!I200<0.5),"-",IFERROR('Tabel 2 H'!I200/'Tabel 1 H'!G198*100,"-")) -> 2.941176471 | J200: =IF(OR('Tabel 1 H'!G198<5,'Tabel 2 H'!J200<0.5),"-",IFERROR('Tabel 2 H'!J200/'Tabel 1 H'!G198*100,"-")) -> 2.261878992
A201: HD | C201: =IF(OR('Tabel 1 H'!C199<5,'Tabel 2 H'!C201<0.5),"-",IFERROR('Tabel 2 H'!C201/'Tabel 1 H'!C199*100,"-")) -> 23.52941176 | D201: =IF(OR('Tabel 1 H'!C199<5,'Tabel 2 H'!D201<0.5),"-",IFERROR('Tabel 2 H'!D201/'Tabel 1 H'!C199*100,"-")) -> 19.45252622 | F201: =IF(OR('Tabel 1 H'!E199<5,'Tabel 2 H'!F201<0.5),"-",IFERROR('Tabel 2 H'!F201/'Tabel 1 H'!E199*100,"-")) -> - | G201: =IF(OR('Tabel 1 H'!E199<5,'Tabel 2 H'!G201<0.5),"-",IFERROR('Tabel 2 H'!G201/'Tabel 1 H'!E199*100,"-")) -> - | I201: =IF(OR('Tabel 1 H'!G199<5,'Tabel 2 H'!I201<0.5),"-",IFERROR('Tabel 2 H'!I201/'Tabel 1 H'!G199*100,"-")) -> 11.42857143 | J201: =IF(OR('Tabel 1 H'!G199<5,'Tabel 2 H'!J201<0.5),"-",IFERROR('Tabel 2 H'!J201/'Tabel 1 H'!G199*100,"-")) -> 9.44836988
A202: Komm. og Sprog | C202: =IF(OR('Tabel 1 H'!C200<5,'Tabel 2 H'!C202<0.5),"-",IFERROR('Tabel 2 H'!C202/'Tabel 1 H'!C200*100,"-")) -> - | D202: =IF(OR('Tabel 1 H'!C200<5,'Tabel 2 H'!D202<0.5),"-",IFERROR('Tabel 2 H'!D202/'Tabel 1 H'!C200*100,"-")) -> - | F202: =IF(OR('Tabel 1 H'!E200<5,'Tabel 2 H'!F202<0.5),"-",IFERROR('Tabel 2 H'!F202/'Tabel 1 H'!E200*100,"-")) -> - | G202: =IF(OR('Tabel 1 H'!E200<5,'Tabel 2 H'!G202<0.5),"-",IFERROR('Tabel 2 H'!G202/'Tabel 1 H'!E200*100,"-")) -> - | I202: =IF(OR('Tabel 1 H'!G200<5,'Tabel 2 H'!I202<0.5),"-",IFERROR('Tabel 2 H'!I202/'Tabel 1 H'!G200*100,"-")) -> - | J202: =IF(OR('Tabel 1 H'!G200<5,'Tabel 2 H'!J202<0.5),"-",IFERROR('Tabel 2 H'!J202/'Tabel 1 H'!G200*100,"-")) -> -
A203: Bygningskonst. | C203: =IF(OR('Tabel 1 H'!C201<5,'Tabel 2 H'!C203<0.5),"-",IFERROR('Tabel 2 H'!C203/'Tabel 1 H'!C201*100,"-")) -> 1.923076923 | D203: =IF(OR('Tabel 1 H'!C201<5,'Tabel 2 H'!D203<0.5),"-",IFERROR('Tabel 2 H'!D203/'Tabel 1 H'!C201*100,"-")) -> 1.923076923 | F203: =IF(OR('Tabel 1 H'!E201<5,'Tabel 2 H'!F203<0.5),"-",IFERROR('Tabel 2 H'!F203/'Tabel 1 H'!E201*100,"-")) -> - | G203: =IF(OR('Tabel 1 H'!E201<5,'Tabel 2 H'!G203<0.5),"-",IFERROR('Tabel 2 H'!G203/'Tabel 1 H'!E201*100,"-")) -> - | I203: =IF(OR('Tabel 1 H'!G201<5,'Tabel 2 H'!I203<0.5),"-",IFERROR('Tabel 2 H'!I203/'Tabel 1 H'!G201*100,"-")) -> 1.5625 | J203: =IF(OR('Tabel 1 H'!G201<5,'Tabel 2 H'!J203<0.5),"-",IFERROR('Tabel 2 H'!J203/'Tabel 1 H'!G201*100,"-")) -> 1.5625
A204: Cand. IT. | C204: =IF(OR('Tabel 1 H'!C202<5,'Tabel 2 H'!C204<0.5),"-",IFERROR('Tabel 2 H'!C204/'Tabel 1 H'!C202*100,"-")) -> - | D204: =IF(OR('Tabel 1 H'!C202<5,'Tabel 2 H'!D204<0.5),"-",IFERROR('Tabel 2 H'!D204/'Tabel 1 H'!C202*100,"-")) -> - | F204: =IF(OR('Tabel 1 H'!E202<5,'Tabel 2 H'!F204<0.5),"-",IFERROR('Tabel 2 H'!F204/'Tabel 1 H'!E202*100,"-")) -> 4.545454545 | G204: =IF(OR('Tabel 1 H'!E202<5,'Tabel 2 H'!G204<0.5),"-",IFERROR('Tabel 2 H'!G204/'Tabel 1 H'!E202*100,"-")) -> - | I204: =IF(OR('Tabel 1 H'!G202<5,'Tabel 2 H'!I204<0.5),"-",IFERROR('Tabel 2 H'!I204/'Tabel 1 H'!G202*100,"-")) -> 2.5 | J204: =IF(OR('Tabel 1 H'!G202<5,'Tabel 2 H'!J204<0.5),"-",IFERROR('Tabel 2 H'!J204/'Tabel 1 H'!G202*100,"-")) -> -
A205: Bac. Samf. | C205: =IF(OR('Tabel 1 H'!C203<5,'Tabel 2 H'!C205<0.5),"-",IFERROR('Tabel 2 H'!C205/'Tabel 1 H'!C203*100,"-")) -> - | D205: =IF(OR('Tabel 1 H'!C203<5,'Tabel 2 H'!D205<0.5),"-",IFERROR('Tabel 2 H'!D205/'Tabel 1 H'!C203*100,"-")) -> - | F205: =IF(OR('Tabel 1 H'!E203<5,'Tabel 2 H'!F205<0.5),"-",IFERROR('Tabel 2 H'!F205/'Tabel 1 H'!E203*100,"-")) -> 20 | G205: =IF(OR('Tabel 1 H'!E203<5,'Tabel 2 H'!G205<0.5),"-",IFERROR('Tabel 2 H'!G205/'Tabel 1 H'!E203*100,"-")) -> 18.15006549 | I205: =IF(OR('Tabel 1 H'!G203<5,'Tabel 2 H'!I205<0.5),"-",IFERROR('Tabel 2 H'!I205/'Tabel 1 H'!G203*100,"-")) -> 12.5 | J205: =IF(OR('Tabel 1 H'!G203<5,'Tabel 2 H'!J205<0.5),"-",IFERROR('Tabel 2 H'!J205/'Tabel 1 H'!G203*100,"-")) -> 11.34379093
A206: Bac. Hum. | C206: =IF(OR('Tabel 1 H'!C204<5,'Tabel 2 H'!C206<0.5),"-",IFERROR('Tabel 2 H'!C206/'Tabel 1 H'!C204*100,"-")) -> - | D206: =IF(OR('Tabel 1 H'!C204<5,'Tabel 2 H'!D206<0.5),"-",IFERROR('Tabel 2 H'!D206/'Tabel 1 H'!C204*100,"-")) -> - | F206: =IF(OR('Tabel 1 H'!E204<5,'Tabel 2 H'!F206<0.5),"-",IFERROR('Tabel 2 H'!F206/'Tabel 1 H'!E204*100,"-")) -> - | G206: =IF(OR('Tabel 1 H'!E204<5,'Tabel 2 H'!G206<0.5),"-",IFERROR('Tabel 2 H'!G206/'Tabel 1 H'!E204*100,"-")) -> - | I206: =IF(OR('Tabel 1 H'!G204<5,'Tabel 2 H'!I206<0.5),"-",IFERROR('Tabel 2 H'!I206/'Tabel 1 H'!G204*100,"-")) -> - | J206: =IF(OR('Tabel 1 H'!G204<5,'Tabel 2 H'!J206<0.5),"-",IFERROR('Tabel 2 H'!J206/'Tabel 1 H'!G204*100,"-")) -> -
A207: Bac. Nat. | C207: =IF(OR('Tabel 1 H'!C205<5,'Tabel 2 H'!C207<0.5),"-",IFERROR('Tabel 2 H'!C207/'Tabel 1 H'!C205*100,"-")) -> 17.64705882 | D207: =IF(OR('Tabel 1 H'!C205<5,'Tabel 2 H'!D207<0.5),"-",IFERROR('Tabel 2 H'!D207/'Tabel 1 H'!C205*100,"-")) -> 13.2502449 | F207: =IF(OR('Tabel 1 H'!E205<5,'Tabel 2 H'!F207<0.5),"-",IFERROR('Tabel 2 H'!F207/'Tabel 1 H'!E205*100,"-")) -> 22.22222222 | G207: =IF(OR('Tabel 1 H'!E205<5,'Tabel 2 H'!G207<0.5),"-",IFERROR('Tabel 2 H'!G207/'Tabel 1 H'!E205*100,"-")) -> 19.30047056 | I207: =IF(OR('Tabel 1 H'!G205<5,'Tabel 2 H'!I207<0.5),"-",IFERROR('Tabel 2 H'!I207/'Tabel 1 H'!G205*100,"-")) -> 18.60465116 | J207: =IF(OR('Tabel 1 H'!G205<5,'Tabel 2 H'!J207<0.5),"-",IFERROR('Tabel 2 H'!J207/'Tabel 1 H'!G205*100,"-")) -> 14.5165712
A208: Andre | C208: =IF(OR('Tabel 1 H'!C206<5,'Tabel 2 H'!C208<0.5),"-",IFERROR('Tabel 2 H'!C208/'Tabel 1 H'!C206*100,"-")) -> 2.941176471 | D208: =IF(OR('Tabel 1 H'!C206<5,'Tabel 2 H'!D208<0.5),"-",IFERROR('Tabel 2 H'!D208/'Tabel 1 H'!C206*100,"-")) -> 2.940626135 | F208: =IF(OR('Tabel 1 H'!E206<5,'Tabel 2 H'!F208<0.5),"-",IFERROR('Tabel 2 H'!F208/'Tabel 1 H'!E206*100,"-")) -> 7.954545455 | G208: =IF(OR('Tabel 1 H'!E206<5,'Tabel 2 H'!G208<0.5),"-",IFERROR('Tabel 2 H'!G208/'Tabel 1 H'!E206*100,"-")) -> 7.786497168 | I208: =IF(OR('Tabel 1 H'!G206<5,'Tabel 2 H'!I208<0.5),"-",IFERROR('Tabel 2 H'!I208/'Tabel 1 H'!G206*100,"-")) -> 5.263157895 | J208: =IF(OR('Tabel 1 H'!G206<5,'Tabel 2 H'!J208<0.5),"-",IFERROR('Tabel 2 H'!J208/'Tabel 1 H'!G206*100,"-")) -> 5.185029561
A210: Total | C210: =IF(OR('Tabel 1 H'!C208<5,'Tabel 2 H'!C210<0.5),"-",IFERROR('Tabel 2 H'!C210/'Tabel 1 H'!C208*100,"-")) -> 2.675585284 | D210: =IF(OR('Tabel 1 H'!C208<5,'Tabel 2 H'!D210<0.5),"-",IFERROR('Tabel 2 H'!D210/'Tabel 1 H'!C208*100,"-")) -> 2.234810297 | F210: =IF(OR('Tabel 1 H'!E208<5,'Tabel 2 H'!F210<0.5),"-",IFERROR('Tabel 2 H'!F210/'Tabel 1 H'!E208*100,"-")) -> 2.728426396 | G210: =IF(OR('Tabel 1 H'!E208<5,'Tabel 2 H'!G210<0.5),"-",IFERROR('Tabel 2 H'!G210/'Tabel 1 H'!E208*100,"-")) -> 2.302991197 | I210: =IF(OR('Tabel 1 H'!G208<5,'Tabel 2 H'!I210<0.5),"-",IFERROR('Tabel 2 H'!I210/'Tabel 1 H'!G208*100,"-")) -> 2.700296736 | J210: =IF(OR('Tabel 1 H'!G208<5,'Tabel 2 H'!J210<0.5),"-",IFERROR('Tabel 2 H'!J210/'Tabel 1 H'!G208*100,"-")) -> 2.26669549
A212: Ingeniører i alt | C212: =IF(OR('Tabel 1 H'!C210<5,'Tabel 2 H'!C212<0.5),"-",IFERROR('Tabel 2 H'!C212/'Tabel 1 H'!C210*100,"-")) -> 2.284263959 | D212: =IF(OR('Tabel 1 H'!C210<5,'Tabel 2 H'!D212<0.5),"-",IFERROR('Tabel 2 H'!D212/'Tabel 1 H'!C210*100,"-")) -> 2.075826476 | F212: =IF(OR('Tabel 1 H'!E210<5,'Tabel 2 H'!F212<0.5),"-",IFERROR('Tabel 2 H'!F212/'Tabel 1 H'!E210*100,"-")) -> 2.264150943 | G212: =IF(OR('Tabel 1 H'!E210<5,'Tabel 2 H'!G212<0.5),"-",IFERROR('Tabel 2 H'!G212/'Tabel 1 H'!E210*100,"-")) -> 2.051193941 | I212: =IF(OR('Tabel 1 H'!G210<5,'Tabel 2 H'!I212<0.5),"-",IFERROR('Tabel 2 H'!I212/'Tabel 1 H'!G210*100,"-")) -> 2.279202279 | J212: =IF(OR('Tabel 1 H'!G210<5,'Tabel 2 H'!J212<0.5),"-",IFERROR('Tabel 2 H'!J212/'Tabel 1 H'!G210*100,"-")) -> 2.069627405
A213: Magistre i alt | C213: =IF(OR('Tabel 1 H'!C211<5,'Tabel 2 H'!C213<0.5),"-",IFERROR('Tabel 2 H'!C213/'Tabel 1 H'!C211*100,"-")) -> 1.595744681 | D213: =IF(OR('Tabel 1 H'!C211<5,'Tabel 2 H'!D213<0.5),"-",IFERROR('Tabel 2 H'!D213/'Tabel 1 H'!C211*100,"-")) -> 1.595446095 | F213: =IF(OR('Tabel 1 H'!E211<5,'Tabel 2 H'!F213<0.5),"-",IFERROR('Tabel 2 H'!F213/'Tabel 1 H'!E211*100,"-")) -> 2.04778157 | G213: =IF(OR('Tabel 1 H'!E211<5,'Tabel 2 H'!G213<0.5),"-",IFERROR('Tabel 2 H'!G213/'Tabel 1 H'!E211*100,"-")) -> 1.704249491 | I213: =IF(OR('Tabel 1 H'!G211<5,'Tabel 2 H'!I213<0.5),"-",IFERROR('Tabel 2 H'!I213/'Tabel 1 H'!G211*100,"-")) -> 1.871101871 | J213: =IF(OR('Tabel 1 H'!G211<5,'Tabel 2 H'!J213<0.5),"-",IFERROR('Tabel 2 H'!J213/'Tabel 1 H'!G211*100,"-")) -> 1.661723423
A214: DJØF'ere i alt | C214: =IF(OR('Tabel 1 H'!C212<5,'Tabel 2 H'!C214<0.5),"-",IFERROR('Tabel 2 H'!C214/'Tabel 1 H'!C212*100,"-")) -> 1.823708207 | D214: =IF(OR('Tabel 1 H'!C212<5,'Tabel 2 H'!D214<0.5),"-",IFERROR('Tabel 2 H'!D214/'Tabel 1 H'!C212*100,"-")) -> 1.389421552 | F214: =IF(OR('Tabel 1 H'!E212<5,'Tabel 2 H'!F214<0.5),"-",IFERROR('Tabel 2 H'!F214/'Tabel 1 H'!E212*100,"-")) -> 2.894736842 | G214: =IF(OR('Tabel 1 H'!E212<5,'Tabel 2 H'!G214<0.5),"-",IFERROR('Tabel 2 H'!G214/'Tabel 1 H'!E212*100,"-")) -> 2.562313912 | I214: =IF(OR('Tabel 1 H'!G212<5,'Tabel 2 H'!I214<0.5),"-",IFERROR('Tabel 2 H'!I214/'Tabel 1 H'!G212*100,"-")) -> 2.3977433 | J214: =IF(OR('Tabel 1 H'!G212<5,'Tabel 2 H'!J214<0.5),"-",IFERROR('Tabel 2 H'!J214/'Tabel 1 H'!G212*100,"-")) -> 2.018052154
A219: Brøndby
C221: Mænd | F221: Kvinder | I221: I alt
C222: Ledigheds- berørte | D222: Gns. brutto- ledighed | F222: Ledigheds- berørte | G222: Gns. brutto- ledighed | I222: Ledigheds- berørte | J222: Gns. brutto- ledighed
A225: Civ. ing. | C225: =IF(OR('Tabel 1 H'!C223<5,'Tabel 2 H'!C225<0.5),"-",IFERROR('Tabel 2 H'!C225/'Tabel 1 H'!C223*100,"-")) -> 6.741573034 | D225: =IF(OR('Tabel 1 H'!C223<5,'Tabel 2 H'!D225<0.5),"-",IFERROR('Tabel 2 H'!D225/'Tabel 1 H'!C223*100,"-")) -> 6.703869898 | F225: =IF(OR('Tabel 1 H'!E223<5,'Tabel 2 H'!F225<0.5),"-",IFERROR('Tabel 2 H'!F225/'Tabel 1 H'!E223*100,"-")) -> - | G225: =IF(OR('Tabel 1 H'!E223<5,'Tabel 2 H'!G225<0.5),"-",IFERROR('Tabel 2 H'!G225/'Tabel 1 H'!E223*100,"-")) -> - | I225: =IF(OR('Tabel 1 H'!G223<5,'Tabel 2 H'!I225<0.5),"-",IFERROR('Tabel 2 H'!I225/'Tabel 1 H'!G223*100,"-")) -> 5 | J225: =IF(OR('Tabel 1 H'!G223<5,'Tabel 2 H'!J225<0.5),"-",IFERROR('Tabel 2 H'!J225/'Tabel 1 H'!G223*100,"-")) -> 4.972036841
A226: Diplom ing. | C226: =IF(OR('Tabel 1 H'!C224<5,'Tabel 2 H'!C226<0.5),"-",IFERROR('Tabel 2 H'!C226/'Tabel 1 H'!C224*100,"-")) -> 2.222222222 | D226: =IF(OR('Tabel 1 H'!C224<5,'Tabel 2 H'!D226<0.5),"-",IFERROR('Tabel 2 H'!D226/'Tabel 1 H'!C224*100,"-")) -> 1.879918963 | F226: =IF(OR('Tabel 1 H'!E224<5,'Tabel 2 H'!F226<0.5),"-",IFERROR('Tabel 2 H'!F226/'Tabel 1 H'!E224*100,"-")) -> 3.571428571 | G226: =IF(OR('Tabel 1 H'!E224<5,'Tabel 2 H'!G226<0.5),"-",IFERROR('Tabel 2 H'!G226/'Tabel 1 H'!E224*100,"-")) -> 3.570760307 | I226: =IF(OR('Tabel 1 H'!G224<5,'Tabel 2 H'!I226<0.5),"-",IFERROR('Tabel 2 H'!I226/'Tabel 1 H'!G224*100,"-")) -> 2.45398773 | J226: =IF(OR('Tabel 1 H'!G224<5,'Tabel 2 H'!J226<0.5),"-",IFERROR('Tabel 2 H'!J226/'Tabel 1 H'!G224*100,"-")) -> 2.170370237
A227: Cand. Scient. Tek. | C227: =IF(OR('Tabel 1 H'!C225<5,'Tabel 2 H'!C227<0.5),"-",IFERROR('Tabel 2 H'!C227/'Tabel 1 H'!C225*100,"-")) -> 8.695652174 | D227: =IF(OR('Tabel 1 H'!C225<5,'Tabel 2 H'!D227<0.5),"-",IFERROR('Tabel 2 H'!D227/'Tabel 1 H'!C225*100,"-")) -> 7.517104667 | F227: =IF(OR('Tabel 1 H'!E225<5,'Tabel 2 H'!F227<0.5),"-",IFERROR('Tabel 2 H'!F227/'Tabel 1 H'!E225*100,"-")) -> 3.333333333 | G227: =IF(OR('Tabel 1 H'!E225<5,'Tabel 2 H'!G227<0.5),"-",IFERROR('Tabel 2 H'!G227/'Tabel 1 H'!E225*100,"-")) -> 3.33270962 | I227: =IF(OR('Tabel 1 H'!G225<5,'Tabel 2 H'!I227<0.5),"-",IFERROR('Tabel 2 H'!I227/'Tabel 1 H'!G225*100,"-")) -> 6.578947368 | J227: =IF(OR('Tabel 1 H'!G225<5,'Tabel 2 H'!J227<0.5),"-",IFERROR('Tabel 2 H'!J227/'Tabel 1 H'!G225*100,"-")) -> 5.86536978
A228: MA. Hum. | C228: =IF(OR('Tabel 1 H'!C226<5,'Tabel 2 H'!C228<0.5),"-",IFERROR('Tabel 2 H'!C228/'Tabel 1 H'!C226*100,"-")) -> 8.695652174 | D228: =IF(OR('Tabel 1 H'!C226<5,'Tabel 2 H'!D228<0.5),"-",IFERROR('Tabel 2 H'!D228/'Tabel 1 H'!C226*100,"-")) -> 7.64998278 | F228: =IF(OR('Tabel 1 H'!E226<5,'Tabel 2 H'!F228<0.5),"-",IFERROR('Tabel 2 H'!F228/'Tabel 1 H'!E226*100,"-")) -> 10.9375 | G228: =IF(OR('Tabel 1 H'!E226<5,'Tabel 2 H'!G228<0.5),"-",IFERROR('Tabel 2 H'!G228/'Tabel 1 H'!E226*100,"-")) -> 8.778768789 | I228: =IF(OR('Tabel 1 H'!G226<5,'Tabel 2 H'!I228<0.5),"-",IFERROR('Tabel 2 H'!I228/'Tabel 1 H'!G226*100,"-")) -> 10.34482759 | J228: =IF(OR('Tabel 1 H'!G226<5,'Tabel 2 H'!J228<0.5),"-",IFERROR('Tabel 2 H'!J228/'Tabel 1 H'!G226*100,"-")) -> 8.480354097
A229: MA. Nat. | C229: =IF(OR('Tabel 1 H'!C227<5,'Tabel 2 H'!C229<0.5),"-",IFERROR('Tabel 2 H'!C229/'Tabel 1 H'!C227*100,"-")) -> 3.571428571 | D229: =IF(OR('Tabel 1 H'!C227<5,'Tabel 2 H'!D229<0.5),"-",IFERROR('Tabel 2 H'!D229/'Tabel 1 H'!C227*100,"-")) -> 3.160891376 | F229: =IF(OR('Tabel 1 H'!E227<5,'Tabel 2 H'!F229<0.5),"-",IFERROR('Tabel 2 H'!F229/'Tabel 1 H'!E227*100,"-")) -> 3.846153846 | G229: =IF(OR('Tabel 1 H'!E227<5,'Tabel 2 H'!G229<0.5),"-",IFERROR('Tabel 2 H'!G229/'Tabel 1 H'!E227*100,"-")) -> - | I229: =IF(OR('Tabel 1 H'!G227<5,'Tabel 2 H'!I229<0.5),"-",IFERROR('Tabel 2 H'!I229/'Tabel 1 H'!G227*100,"-")) -> 3.703703704 | J229: =IF(OR('Tabel 1 H'!G227<5,'Tabel 2 H'!J229<0.5),"-",IFERROR('Tabel 2 H'!J229/'Tabel 1 H'!G227*100,"-")) -> 2.283484757
A230: MA. Ph.d. | C230: =IF(OR('Tabel 1 H'!C228<5,'Tabel 2 H'!C230<0.5),"-",IFERROR('Tabel 2 H'!C230/'Tabel 1 H'!C228*100,"-")) -> - | D230: =IF(OR('Tabel 1 H'!C228<5,'Tabel 2 H'!D230<0.5),"-",IFERROR('Tabel 2 H'!D230/'Tabel 1 H'!C228*100,"-")) -> - | F230: =IF(OR('Tabel 1 H'!E228<5,'Tabel 2 H'!F230<0.5),"-",IFERROR('Tabel 2 H'!F230/'Tabel 1 H'!E228*100,"-")) -> - | G230: =IF(OR('Tabel 1 H'!E228<5,'Tabel 2 H'!G230<0.5),"-",IFERROR('Tabel 2 H'!G230/'Tabel 1 H'!E228*100,"-")) -> - | I230: =IF(OR('Tabel 1 H'!G228<5,'Tabel 2 H'!I230<0.5),"-",IFERROR('Tabel 2 H'!I230/'Tabel 1 H'!G228*100,"-")) -> - | J230: =IF(OR('Tabel 1 H'!G228<5,'Tabel 2 H'!J230<0.5),"-",IFERROR('Tabel 2 H'!J230/'Tabel 1 H'!G228*100,"-")) -> -
A231: MA. Samf. | C231: =IF(OR('Tabel 1 H'!C229<5,'Tabel 2 H'!C231<0.5),"-",IFERROR('Tabel 2 H'!C231/'Tabel 1 H'!C229*100,"-")) -> 18.18181818 | D231: =IF(OR('Tabel 1 H'!C229<5,'Tabel 2 H'!D231<0.5),"-",IFERROR('Tabel 2 H'!D231/'Tabel 1 H'!C229*100,"-")) -> 18.17841611 | F231: =IF(OR('Tabel 1 H'!E229<5,'Tabel 2 H'!F231<0.5),"-",IFERROR('Tabel 2 H'!F231/'Tabel 1 H'!E229*100,"-")) -> 6.666666667 | G231: =IF(OR('Tabel 1 H'!E229<5,'Tabel 2 H'!G231<0.5),"-",IFERROR('Tabel 2 H'!G231/'Tabel 1 H'!E229*100,"-")) -> 6.665419239 | I231: =IF(OR('Tabel 1 H'!G229<5,'Tabel 2 H'!I231<0.5),"-",IFERROR('Tabel 2 H'!I231/'Tabel 1 H'!G229*100,"-")) -> 11.53846154 | J231: =IF(OR('Tabel 1 H'!G229<5,'Tabel 2 H'!J231<0.5),"-",IFERROR('Tabel 2 H'!J231/'Tabel 1 H'!G229*100,"-")) -> 11.53630253
A232: Øvrige Mag. | C232: =IF(OR('Tabel 1 H'!C230<5,'Tabel 2 H'!C232<0.5),"-",IFERROR('Tabel 2 H'!C232/'Tabel 1 H'!C230*100,"-")) -> - | D232: =IF(OR('Tabel 1 H'!C230<5,'Tabel 2 H'!D232<0.5),"-",IFERROR('Tabel 2 H'!D232/'Tabel 1 H'!C230*100,"-")) -> - | F232: =IF(OR('Tabel 1 H'!E230<5,'Tabel 2 H'!F232<0.5),"-",IFERROR('Tabel 2 H'!F232/'Tabel 1 H'!E230*100,"-")) -> 16.66666667 | G232: =IF(OR('Tabel 1 H'!E230<5,'Tabel 2 H'!G232<0.5),"-",IFERROR('Tabel 2 H'!G232/'Tabel 1 H'!E230*100,"-")) -> 15.12505457 | I232: =IF(OR('Tabel 1 H'!G230<5,'Tabel 2 H'!I232<0.5),"-",IFERROR('Tabel 2 H'!I232/'Tabel 1 H'!G230*100,"-")) -> 8.333333333 | J232: =IF(OR('Tabel 1 H'!G230<5,'Tabel 2 H'!J232<0.5),"-",IFERROR('Tabel 2 H'!J232/'Tabel 1 H'!G230*100,"-")) -> 7.562527287
A233: Agronom | C233: =IF(OR('Tabel 1 H'!C231<5,'Tabel 2 H'!C233<0.5),"-",IFERROR('Tabel 2 H'!C233/'Tabel 1 H'!C231*100,"-")) -> - | D233: =IF(OR('Tabel 1 H'!C231<5,'Tabel 2 H'!D233<0.5),"-",IFERROR('Tabel 2 H'!D233/'Tabel 1 H'!C231*100,"-")) -> - | F233: =IF(OR('Tabel 1 H'!E231<5,'Tabel 2 H'!F233<0.5),"-",IFERROR('Tabel 2 H'!F233/'Tabel 1 H'!E231*100,"-")) -> - | G233: =IF(OR('Tabel 1 H'!E231<5,'Tabel 2 H'!G233<0.5),"-",IFERROR('Tabel 2 H'!G233/'Tabel 1 H'!E231*100,"-")) -> - | I233: =IF(OR('Tabel 1 H'!G231<5,'Tabel 2 H'!I233<0.5),"-",IFERROR('Tabel 2 H'!I233/'Tabel 1 H'!G231*100,"-")) -> - | J233: =IF(OR('Tabel 1 H'!G231<5,'Tabel 2 H'!J233<0.5),"-",IFERROR('Tabel 2 H'!J233/'Tabel 1 H'!G231*100,"-")) -> -
A234: Landsk. Arkt. | C234: =IF(OR('Tabel 1 H'!C232<5,'Tabel 2 H'!C234<0.5),"-",IFERROR('Tabel 2 H'!C234/'Tabel 1 H'!C232*100,"-")) -> - | D234: =IF(OR('Tabel 1 H'!C232<5,'Tabel 2 H'!D234<0.5),"-",IFERROR('Tabel 2 H'!D234/'Tabel 1 H'!C232*100,"-")) -> - | F234: =IF(OR('Tabel 1 H'!E232<5,'Tabel 2 H'!F234<0.5),"-",IFERROR('Tabel 2 H'!F234/'Tabel 1 H'!E232*100,"-")) -> - | G234: =IF(OR('Tabel 1 H'!E232<5,'Tabel 2 H'!G234<0.5),"-",IFERROR('Tabel 2 H'!G234/'Tabel 1 H'!E232*100,"-")) -> - | I234: =IF(OR('Tabel 1 H'!G232<5,'Tabel 2 H'!I234<0.5),"-",IFERROR('Tabel 2 H'!I234/'Tabel 1 H'!G232*100,"-")) -> - | J234: =IF(OR('Tabel 1 H'!G232<5,'Tabel 2 H'!J234<0.5),"-",IFERROR('Tabel 2 H'!J234/'Tabel 1 H'!G232*100,"-")) -> -
A235: Hortonom | C235: =IF(OR('Tabel 1 H'!C233<5,'Tabel 2 H'!C235<0.5),"-",IFERROR('Tabel 2 H'!C235/'Tabel 1 H'!C233*100,"-")) -> - | D235: =IF(OR('Tabel 1 H'!C233<5,'Tabel 2 H'!D235<0.5),"-",IFERROR('Tabel 2 H'!D235/'Tabel 1 H'!C233*100,"-")) -> - | F235: =IF(OR('Tabel 1 H'!E233<5,'Tabel 2 H'!F235<0.5),"-",IFERROR('Tabel 2 H'!F235/'Tabel 1 H'!E233*100,"-")) -> - | G235: =IF(OR('Tabel 1 H'!E233<5,'Tabel 2 H'!G235<0.5),"-",IFERROR('Tabel 2 H'!G235/'Tabel 1 H'!E233*100,"-")) -> - | I235: =IF(OR('Tabel 1 H'!G233<5,'Tabel 2 H'!I235<0.5),"-",IFERROR('Tabel 2 H'!I235/'Tabel 1 H'!G233*100,"-")) -> - | J235: =IF(OR('Tabel 1 H'!G233<5,'Tabel 2 H'!J235<0.5),"-",IFERROR('Tabel 2 H'!J235/'Tabel 1 H'!G233*100,"-")) -> -
A236: Forstkand. | C236: =IF(OR('Tabel 1 H'!C234<5,'Tabel 2 H'!C236<0.5),"-",IFERROR('Tabel 2 H'!C236/'Tabel 1 H'!C234*100,"-")) -> - | D236: =IF(OR('Tabel 1 H'!C234<5,'Tabel 2 H'!D236<0.5),"-",IFERROR('Tabel 2 H'!D236/'Tabel 1 H'!C234*100,"-")) -> - | F236: =IF(OR('Tabel 1 H'!E234<5,'Tabel 2 H'!F236<0.5),"-",IFERROR('Tabel 2 H'!F236/'Tabel 1 H'!E234*100,"-")) -> - | G236: =IF(OR('Tabel 1 H'!E234<5,'Tabel 2 H'!G236<0.5),"-",IFERROR('Tabel 2 H'!G236/'Tabel 1 H'!E234*100,"-")) -> - | I236: =IF(OR('Tabel 1 H'!G234<5,'Tabel 2 H'!I236<0.5),"-",IFERROR('Tabel 2 H'!I236/'Tabel 1 H'!G234*100,"-")) -> - | J236: =IF(OR('Tabel 1 H'!G234<5,'Tabel 2 H'!J236<0.5),"-",IFERROR('Tabel 2 H'!J236/'Tabel 1 H'!G234*100,"-")) -> -
A237: Jordbrugsakad. | C237: =IF(OR('Tabel 1 H'!C235<5,'Tabel 2 H'!C237<0.5),"-",IFERROR('Tabel 2 H'!C237/'Tabel 1 H'!C235*100,"-")) -> - | D237: =IF(OR('Tabel 1 H'!C235<5,'Tabel 2 H'!D237<0.5),"-",IFERROR('Tabel 2 H'!D237/'Tabel 1 H'!C235*100,"-")) -> - | F237: =IF(OR('Tabel 1 H'!E235<5,'Tabel 2 H'!F237<0.5),"-",IFERROR('Tabel 2 H'!F237/'Tabel 1 H'!E235*100,"-")) -> - | G237: =IF(OR('Tabel 1 H'!E235<5,'Tabel 2 H'!G237<0.5),"-",IFERROR('Tabel 2 H'!G237/'Tabel 1 H'!E235*100,"-")) -> - | I237: =IF(OR('Tabel 1 H'!G235<5,'Tabel 2 H'!I237<0.5),"-",IFERROR('Tabel 2 H'!I237/'Tabel 1 H'!G235*100,"-")) -> - | J237: =IF(OR('Tabel 1 H'!G235<5,'Tabel 2 H'!J237<0.5),"-",IFERROR('Tabel 2 H'!J237/'Tabel 1 H'!G235*100,"-")) -> -
A238: Mejeriing. | C238: =IF(OR('Tabel 1 H'!C236<5,'Tabel 2 H'!C238<0.5),"-",IFERROR('Tabel 2 H'!C238/'Tabel 1 H'!C236*100,"-")) -> - | D238: =IF(OR('Tabel 1 H'!C236<5,'Tabel 2 H'!D238<0.5),"-",IFERROR('Tabel 2 H'!D238/'Tabel 1 H'!C236*100,"-")) -> - | F238: =IF(OR('Tabel 1 H'!E236<5,'Tabel 2 H'!F238<0.5),"-",IFERROR('Tabel 2 H'!F238/'Tabel 1 H'!E236*100,"-")) -> - | G238: =IF(OR('Tabel 1 H'!E236<5,'Tabel 2 H'!G238<0.5),"-",IFERROR('Tabel 2 H'!G238/'Tabel 1 H'!E236*100,"-")) -> - | I238: =IF(OR('Tabel 1 H'!G236<5,'Tabel 2 H'!I238<0.5),"-",IFERROR('Tabel 2 H'!I238/'Tabel 1 H'!G236*100,"-")) -> - | J238: =IF(OR('Tabel 1 H'!G236<5,'Tabel 2 H'!J238<0.5),"-",IFERROR('Tabel 2 H'!J238/'Tabel 1 H'!G236*100,"-")) -> -
A239: Levn.m.kand. | C239: =IF(OR('Tabel 1 H'!C237<5,'Tabel 2 H'!C239<0.5),"-",IFERROR('Tabel 2 H'!C239/'Tabel 1 H'!C237*100,"-")) -> - | D239: =IF(OR('Tabel 1 H'!C237<5,'Tabel 2 H'!D239<0.5),"-",IFERROR('Tabel 2 H'!D239/'Tabel 1 H'!C237*100,"-")) -> - | F239: =IF(OR('Tabel 1 H'!E237<5,'Tabel 2 H'!F239<0.5),"-",IFERROR('Tabel 2 H'!F239/'Tabel 1 H'!E237*100,"-")) -> - | G239: =IF(OR('Tabel 1 H'!E237<5,'Tabel 2 H'!G239<0.5),"-",IFERROR('Tabel 2 H'!G239/'Tabel 1 H'!E237*100,"-")) -> - | I239: =IF(OR('Tabel 1 H'!G237<5,'Tabel 2 H'!I239<0.5),"-",IFERROR('Tabel 2 H'!I239/'Tabel 1 H'!G237*100,"-")) -> - | J239: =IF(OR('Tabel 1 H'!G237<5,'Tabel 2 H'!J239<0.5),"-",IFERROR('Tabel 2 H'!J239/'Tabel 1 H'!G237*100,"-")) -> -
A240: Dyrlæge | C240: =IF(OR('Tabel 1 H'!C238<5,'Tabel 2 H'!C240<0.5),"-",IFERROR('Tabel 2 H'!C240/'Tabel 1 H'!C238*100,"-")) -> - | D240: =IF(OR('Tabel 1 H'!C238<5,'Tabel 2 H'!D240<0.5),"-",IFERROR('Tabel 2 H'!D240/'Tabel 1 H'!C238*100,"-")) -> - | F240: =IF(OR('Tabel 1 H'!E238<5,'Tabel 2 H'!F240<0.5),"-",IFERROR('Tabel 2 H'!F240/'Tabel 1 H'!E238*100,"-")) -> - | G240: =IF(OR('Tabel 1 H'!E238<5,'Tabel 2 H'!G240<0.5),"-",IFERROR('Tabel 2 H'!G240/'Tabel 1 H'!E238*100,"-")) -> - | I240: =IF(OR('Tabel 1 H'!G238<5,'Tabel 2 H'!I240<0.5),"-",IFERROR('Tabel 2 H'!I240/'Tabel 1 H'!G238*100,"-")) -> - | J240: =IF(OR('Tabel 1 H'!G238<5,'Tabel 2 H'!J240<0.5),"-",IFERROR('Tabel 2 H'!J240/'Tabel 1 H'!G238*100,"-")) -> -
... 1106 more rows

Sheet Tabel 4F H
A1: Tabel 4. Antal forsikrede - aldersfordelt
A3: Hovedstaden
C5: Under 30 år | D5: 30 - 39 år | E5: 40 - 49 år | F5: 50 - 59 år | G5: Over 60 år | I5: I alt
A7: Civ. ing. | C7: 3010 | D7: 5910 | E7: 4171 | F7: 3807 | G7: 1346 | I7: 18244
A8: Diplom ing. | C8: 1084 | D8: 2163 | E8: 2827 | F8: 4599 | G8: 1750 | I8: 12423
A9: Cand. Scient. Tek. | C9: 3010 | D9: 5892 | E9: 1799 | F9: 650 | G9: 133 | I9: 11484
A10: MA. Hum. | C10: 2510 | D10: 7322 | E10: 6540 | F10: 2970 | G10: 1043 | I10: 20385
A11: MA. Nat. | C11: 532 | D11: 1560 | E11: 2320 | F11: 1971 | G11: 751 | I11: 7134
A12: MA. Ph.d. | C12: 14 | D12: 350 | E12: 476 | F12: 374 | G12: 95 | I12: 1309
A13: MA. Samf. | C13: 919 | D13: 1819 | E13: 623 | F13: 285 | G13: 55 | I13: 3701
A14: Øvrige Mag. | C14: 277 | D14: 415 | E14: 512 | F14: 413 | G14: 126 | I14: 1743
A15: Agronom | C15: 128 | D15: 175 | E15: 190 | F15: 262 | G15: 105 | I15: 860
A16: Landsk. Arkt. | C16: 58 | D16: 183 | E16: 143 | F16: 87 | G16: 23 | I16: 494
A17: Hortonom | C17: 2 | D17: 12 | E17: 35 | F17: 72 | G17: 27 | I17: 148
A18: Forstkand. | C18: 20 | D18: 45 | E18: 94 | F18: 66 | G18: 30 | I18: 255
A19: Jordbrugsakad. | C19: 208 | D19: 415 | E19: 462 | F19: 487 | G19: 185 | I19: 1757
A20: Mejeriing. | C20: 28 | D20: 49 | E20: 24 | F20: 33 | G20: 15 | I20: 149
A21: Levn.m.kand. | C21: 62 | D21: 174 | E21: 81 | F21: 10 | G21: 2 | I21: 329
A22: Dyrlæge | C22: 150 | D22: 370 | E22: 223 | F22: 151 | G22: 74 | I22: 968
A23: Farmaceut | C23: 646 | D23: 1327 | E23: 1050 | F23: 654 | G23: 235 | I23: 3912
A24: Læge | C24: 803 | D24: 2336 | E24: 1091 | F24: 687 | G24: 486 | I24: 5403
A25: Tandlæge | C25: 148 | D25: 302 | E25: 197 | F25: 135 | G25: 83 | I25: 865
A26: Arkitekt | C26: 281 | D26: 1076 | E26: 1169 | F26: 768 | G26: 374 | I26: 3668
A27: Landinspek. | C27: 19 | D27: 51 | E27: 50 | F27: 46 | G27: 24 | I27: 190
A28: Bibliotekar | C28: 52 | D28: 321 | E28: 567 | F28: 431 | G28: 272 | I28: 1643
A29: Musikudd. | C29: 8 | D29: 33 | E29: 60 | F29: 119 | G29: 71 | I29: 291
A30: Teolog | C30: 16 | D30: 100 | E30: 174 | F30: 170 | G30: 89 | I30: 549
A31: Psykolog | C31: 606 | D31: 1393 | E31: 930 | F31: 547 | G31: 260 | I31: 3736
A32: Jurist | C32: 1663 | D32: 3078 | E32: 2576 | F32: 1967 | G32: 572 | I32: 9856
A33: Økonom | C33: 960 | D33: 1724 | E33: 1323 | F33: 1356 | G33: 343 | I33: 5706
A34: Samf. Adm. | C34: 2641 | D34: 7108 | E34: 4895 | F34: 2397 | G34: 549 | I34: 17590
A35: Cand. Merc. | C35: 4993 | D35: 8438 | E35: 4437 | F35: 3014 | G35: 474 | I35: 21356
A36: HA | C36: 668 | D36: 599 | E36: 410 | F36: 683 | G36: 219 | I36: 2579
A37: HD | C37: 496 | D37: 671 | E37: 308 | F37: 707 | G37: 330 | I37: 2512
A38: Komm. og Sprog | C38: 518 | D38: 1104 | E38: 1111 | F38: 874 | G38: 309 | I38: 3916
A39: Bygningskonst. | C39: 411 | D39: 1103 | E39: 646 | F39: 369 | G39: 81 | I39: 2610
A40: Cand. IT. | C40: 713 | D40: 1382 | E40: 744 | F40: 104 | G40: 9 | I40: 2952
A41: Bac. Samf. | C41: 175 | D41: 230 | E41: 230 | F41: 157 | G41: 24 | I41: 816
A42: Bac. Hum. | C42: 661 | D42: 483 | E42: 369 | F42: 372 | G42: 121 | I42: 2006
A43: Bac. Nat. | C43: 666 | D43: 659 | E43: 247 | F43: 113 | G43: 31 | I43: 1716
A44: Andre | C44: 1676 | D44: 5380 | E44: 3962 | F44: 2209 | G44: 934 | I44: 14161
A46: Total | C46: 30624 | D46: 65337 | E46: 46604 | F46: 33629 | G46: 11465 | I46: 187659
A48: Ingeniører i alt | C48: 4094 | D48: 8073 | E48: 6998 | F48: 8406 | G48: 3096 | I48: 30667
A49: Magistre i alt | C49: 4252 | D49: 11466 | E49: 10471 | F49: 6013 | G49: 2070 | I49: 34272
A50: DJØF'ere i alt | C50: 10925 | D50: 20947 | E50: 13641 | F50: 9417 | G50: 2157 | I50: 57087
A57: København
C59: Under 30 år | D59: 30 - 39 år | E59: 40 - 49 år | F59: 50 - 59 år | G59: Over 60 år | I59: I alt
A61: Civ. ing. | C61: 1670 | D61: 2559 | E61: 1045 | F61: 726 | G61: 216 | I61: 6216
A62: Diplom ing. | C62: 531 | D62: 835 | E62: 697 | F62: 874 | G62: 299 | I62: 3236
A63: Cand. Scient. Tek. | C63: 2092 | D63: 3268 | E63: 663 | F63: 177 | G63: 39 | I63: 6239
A64: MA. Hum. | C64: 1884 | D64: 5053 | E64: 3600 | F64: 1528 | G64: 454 | I64: 12519
A65: MA. Nat. | C65: 368 | D65: 905 | E65: 865 | F65: 649 | G65: 231 | I65: 3018
A66: MA. Ph.d. | C66: 13 | D66: 206 | E66: 256 | F66: 150 | G66: 47 | I66: 672
A67: MA. Samf. | C67: 708 | D67: 1287 | E67: 352 | F67: 145 | G67: 29 | I67: 2521
A68: Øvrige Mag. | C68: 211 | D68: 284 | E68: 278 | F68: 188 | G68: 63 | I68: 1024
A69: Agronom | C69: 81 | D69: 92 | E69: 53 | F69: 62 | G69: 31 | I69: 319
A70: Landsk. Arkt. | C70: 39 | D70: 118 | E70: 57 | F70: 34 | G70: 7 | I70: 255
A71: Hortonom | C71: 1 | D71: 8 | E71: 13 | F71: 15 | G71: 9 | I71: 46
A72: Forstkand. | C72: 15 | D72: 28 | E72: 22 | F72: 20 | G72: 4 | I72: 89
A73: Jordbrugsakad. | C73: 136 | D73: 246 | E73: 145 | F73: 131 | G73: 51 | I73: 709
A74: Mejeriing. | C74: 17 | D74: 26 | E74: 8 | F74: 8 | G74: 1 | I74: 60
A75: Levn.m.kand. | C75: 45 | D75: 87 | E75: 30 | F75: 2 | G75: 1 | I75: 165
A76: Dyrlæge | C76: 79 | D76: 127 | E76: 51 | F76: 38 | G76: 19 | I76: 314
A77: Farmaceut | C77: 385 | D77: 537 | E77: 224 | F77: 120 | G77: 39 | I77: 1305
A78: Læge | C78: 583 | D78: 1245 | E78: 401 | F78: 175 | G78: 119 | I78: 2523
A79: Tandlæge | C79: 81 | D79: 125 | E79: 53 | F79: 36 | G79: 20 | I79: 315
A80: Arkitekt | C80: 238 | D80: 794 | E80: 725 | F80: 378 | G80: 165 | I80: 2300
A81: Landinspek. | C81: 7 | D81: 23 | E81: 13 | F81: 5 | G81: 6 | I81: 54
A82: Bibliotekar | C82: 39 | D82: 199 | E82: 249 | F82: 176 | G82: 108 | I82: 771
A83: Musikudd. | C83: 6 | D83: 18 | E83: 38 | F83: 55 | G83: 23 | I83: 140
A84: Teolog | C84: 12 | D84: 59 | E84: 82 | F84: 63 | G84: 35 | I84: 251
A85: Psykolog | C85: 440 | D85: 862 | E85: 441 | F85: 247 | G85: 110 | I85: 2100
A86: Jurist | C86: 1214 | D86: 1613 | E86: 901 | F86: 592 | G86: 169 | I86: 4489
A87: Økonom | C87: 717 | D87: 1002 | E87: 461 | F87: 413 | G87: 96 | I87: 2689
A88: Samf. Adm. | C88: 2001 | D88: 4495 | E88: 2390 | F88: 1062 | G88: 217 | I88: 10165
A89: Cand. Merc. | C89: 3505 | D89: 4542 | E89: 1435 | F89: 756 | G89: 105 | I89: 10343
A90: HA | C90: 506 | D90: 350 | E90: 126 | F90: 175 | G90: 44 | I90: 1201
A91: HD | C91: 386 | D91: 407 | E91: 90 | F91: 149 | G91: 51 | I91: 1083
A92: Komm. og Sprog | C92: 388 | D92: 670 | E92: 457 | F92: 248 | G92: 78 | I92: 1841
A93: Bygningskonst. | C93: 258 | D93: 530 | E93: 233 | F93: 115 | G93: 27 | I93: 1163
A94: Cand. IT. | C94: 545 | D94: 881 | E94: 365 | F94: 54 | G94: 5 | I94: 1850
A95: Bac. Samf. | C95: 132 | D95: 133 | E95: 119 | F95: 87 | G95: 10 | I95: 481
A96: Bac. Hum. | C96: 504 | D96: 328 | E96: 204 | F96: 193 | G96: 62 | I96: 1291
A97: Bac. Nat. | C97: 452 | D97: 347 | E97: 94 | F97: 46 | G97: 6 | I97: 945
A98: Andre | C98: 1169 | D98: 3219 | E98: 1882 | F98: 926 | G98: 347 | I98: 7543
A100: Total | C100: 21322 | D100: 37262 | E100: 18973 | F100: 10687 | G100: 3292 | I100: 91536
A102: Ingeniører i alt | C102: 2201 | D102: 3394 | E102: 1742 | F102: 1600 | G102: 515 | I102: 9452
A103: Magistre i alt | C103: 3184 | D103: 7735 | E103: 5351 | F103: 2660 | G103: 824 | I103: 19754
A104: DJØF'ere i alt | C104: 7943 | D104: 12002 | E104: 5313 | F104: 2998 | G104: 631 | I104: 28887
A111: Frederiksberg
C113: Under 30 år | D113: 30 - 39 år | E113: 40 - 49 år | F113: 50 - 59 år | G113: Over 60 år | I113: I alt
A115: Civ. ing. | C115: 218 | D115: 416 | E115: 215 | F115: 189 | G115: 72 | I115: 1110
A116: Diplom ing. | C116: 67 | D116: 112 | E116: 110 | F116: 206 | G116: 67 | I116: 562
A117: Cand. Scient. Tek. | C117: 227 | D117: 436 | E117: 132 | F117: 30 | G117: 5 | I117: 830
A118: MA. Hum. | C118: 228 | D118: 540 | E118: 648 | F118: 304 | G118: 103 | I118: 1823
A119: MA. Nat. | C119: 48 | D119: 93 | E119: 151 | F119: 143 | G119: 49 | I119: 484
A120: MA. Ph.d. | C120: 0 | D120: 34 | E120: 47 | F120: 40 | G120: 8 | I120: 129
A121: MA. Samf. | C121: 88 | D121: 145 | E121: 55 | F121: 35 | G121: 5 | I121: 328
A122: Øvrige Mag. | C122: 22 | D122: 26 | E122: 39 | F122: 30 | G122: 10 | I122: 127
A123: Agronom | C123: 16 | D123: 15 | E123: 15 | F123: 25 | G123: 10 | I123: 81
A124: Landsk. Arkt. | C124: 6 | D124: 15 | E124: 8 | F124: 6 | G124: 2 | I124: 37
A125: Hortonom | C125: 1 | D125: 0 | E125: 4 | F125: 2 | G125: 2 | I125: 9
A126: Forstkand. | C126: 1 | D126: 3 | E126: 6 | F126: 2 | G126: 1 | I126: 13
A127: Jordbrugsakad. | C127: 24 | D127: 33 | E127: 33 | F127: 35 | G127: 15 | I127: 140
A128: Mejeriing. | C128: 3 | D128: 2 | E128: 2 | F128: 1 | G128: 1 | I128: 9
A129: Levn.m.kand. | C129: 8 | D129: 14 | E129: 5 | F129: 0 | G129: 0 | I129: 27
A130: Dyrlæge | C130: 20 | D130: 26 | E130: 9 | F130: 12 | G130: 9 | I130: 76
A131: Farmaceut | C131: 55 | D131: 70 | E131: 41 | F131: 37 | G131: 21 | I131: 224
A132: Læge | C132: 91 | D132: 196 | E132: 81 | F132: 71 | G132: 47 | I132: 486
A133: Tandlæge | C133: 15 | D133: 24 | E133: 8 | F133: 6 | G133: 8 | I133: 61
A134: Arkitekt | C134: 31 | D134: 117 | E134: 133 | F134: 96 | G134: 41 | I134: 418
A135: Landinspek. | C135: 4 | D135: 9 | E135: 3 | F135: 1 | G135: 0 | I135: 17
A136: Bibliotekar | C136: 5 | D136: 16 | E136: 59 | F136: 26 | G136: 21 | I136: 127
A137: Musikudd. | C137: 0 | D137: 2 | E137: 1 | F137: 10 | G137: 5 | I137: 18
A138: Teolog | C138: 0 | D138: 3 | E138: 16 | F138: 12 | G138: 4 | I138: 35
A139: Psykolog | C139: 57 | D139: 131 | E139: 76 | F139: 38 | G139: 33 | I139: 335
A140: Jurist | C140: 205 | D140: 348 | E140: 220 | F140: 211 | G140: 69 | I140: 1053
A141: Økonom | C141: 117 | D141: 209 | E141: 101 | F141: 126 | G141: 37 | I141: 590
A142: Samf. Adm. | C142: 292 | D142: 654 | E142: 463 | F142: 247 | G142: 51 | I142: 1707
A143: Cand. Merc. | C143: 768 | D143: 1002 | E143: 376 | F143: 240 | G143: 44 | I143: 2430
A144: HA | C144: 68 | D144: 55 | E144: 24 | F144: 42 | G144: 21 | I144: 210
A145: HD | C145: 44 | D145: 63 | E145: 22 | F145: 43 | G145: 22 | I145: 194
A146: Komm. og Sprog | C146: 60 | D146: 130 | E146: 93 | F146: 67 | G146: 18 | I146: 368
A147: Bygningskonst. | C147: 19 | D147: 61 | E147: 50 | F147: 21 | G147: 3 | I147: 154
A148: Cand. IT. | C148: 56 | D148: 96 | E148: 61 | F148: 11 | G148: 0 | I148: 224
A149: Bac. Samf. | C149: 21 | D149: 21 | E149: 24 | F149: 11 | G149: 3 | I149: 80
A150: Bac. Hum. | C150: 54 | D150: 31 | E150: 33 | F150: 48 | G150: 8 | I150: 174
A151: Bac. Nat. | C151: 58 | D151: 38 | E151: 14 | F151: 6 | G151: 1 | I151: 117
A152: Andre | C152: 168 | D152: 434 | E152: 329 | F152: 202 | G152: 97 | I152: 1230
A154: Total | C154: 3141 | D154: 5587 | E154: 3674 | F154: 2597 | G154: 898 | I154: 15897
A156: Ingeniører i alt | C156: 285 | D156: 528 | E156: 325 | F156: 395 | G156: 139 | I156: 1672
A157: Magistre i alt | C157: 386 | D157: 838 | E157: 940 | F157: 552 | G157: 175 | I157: 2891
A158: DJØF'ere i alt | C158: 1450 | D158: 2268 | E158: 1184 | F158: 866 | G158: 222 | I158: 5990
A165: Ballerup
C167: Under 30 år | D167: 30 - 39 år | E167: 40 - 49 år | F167: 50 - 59 år | G167: Over 60 år | I167: I alt
A169: Civ. ing. | C169: 41 | D169: 165 | E169: 166 | F169: 149 | G169: 34 | I169: 555
A170: Diplom ing. | C170: 24 | D170: 89 | E170: 111 | F170: 203 | G170: 71 | I170: 498
A171: Cand. Scient. Tek. | C171: 40 | D171: 126 | E171: 38 | F171: 16 | G171: 3 | I171: 223
A172: MA. Hum. | C172: 12 | D172: 71 | E172: 87 | F172: 42 | G172: 16 | I172: 228
A173: MA. Nat. | C173: 5 | D173: 24 | E173: 64 | F173: 55 | G173: 21 | I173: 169
A174: MA. Ph.d. | C174: 0 | D174: 3 | E174: 6 | F174: 11 | G174: 1 | I174: 21
A175: MA. Samf. | C175: 3 | D175: 22 | E175: 7 | F175: 4 | G175: 0 | I175: 36
A176: Øvrige Mag. | C176: 2 | D176: 3 | E176: 13 | F176: 8 | G176: 1 | I176: 27
A177: Agronom | C177: 2 | D177: 4 | E177: 1 | F177: 7 | G177: 5 | I177: 19
A178: Landsk. Arkt. | C178: 0 | D178: 5 | E178: 5 | F178: 1 | G178: 0 | I178: 11
A179: Hortonom | C179: 0 | D179: 0 | E179: 1 | F179: 2 | G179: 0 | I179: 3
A180: Forstkand. | C180: 0 | D180: 0 | E180: 3 | F180: 1 | G180: 0 | I180: 4
A181: Jordbrugsakad. | C181: 2 | D181: 9 | E181: 10 | F181: 11 | G181: 5 | I181: 37
A182: Mejeriing. | C182: 2 | D182: 0 | E182: 2 | F182: 1 | G182: 0 | I182: 5
A183: Levn.m.kand. | C183: 0 | D183: 2 | E183: 2 | F183: 0 | G183: 0 | I183: 4
A184: Dyrlæge | C184: 1 | D184: 15 | E184: 8 | F184: 4 | G184: 2 | I184: 30
A185: Farmaceut | C185: 10 | D185: 41 | E185: 54 | F185: 25 | G185: 2 | I185: 132
A186: Læge | C186: 2 | D186: 38 | E186: 20 | F186: 14 | G186: 8 | I186: 82
A187: Tandlæge | C187: 2 | D187: 3 | E187: 2 | F187: 6 | G187: 1 | I187: 14
A188: Arkitekt | C188: 1 | D188: 5 | E188: 7 | F188: 9 | G188: 0 | I188: 22
A189: Landinspek. | C189: 1 | D189: 2 | E189: 3 | F189: 0 | G189: 1 | I189: 7
A190: Bibliotekar | C190: 0 | D190: 6 | E190: 14 | F190: 12 | G190: 9 | I190: 41
A191: Musikudd. | C191: 0 | D191: 0 | E191: 4 | F191: 2 | G191: 2 | I191: 8
A192: Teolog | C192: 0 | D192: 1 | E192: 2 | F192: 3 | G192: 2 | I192: 8
A193: Psykolog | C193: 8 | D193: 16 | E193: 12 | F193: 13 | G193: 1 | I193: 50
A194: Jurist | C194: 11 | D194: 37 | E194: 40 | F194: 21 | G194: 2 | I194: 111
A195: Økonom | C195: 3 | D195: 21 | E195: 30 | F195: 24 | G195: 3 | I195: 81
A196: Samf. Adm. | C196: 27 | D196: 76 | E196: 58 | F196: 40 | G196: 7 | I196: 208
A197: Cand. Merc. | C197: 36 | D197: 94 | E197: 86 | F197: 50 | G197: 9 | I197: 275
A198: HA | C198: 2 | D198: 3 | E198: 11 | F198: 13 | G198: 5 | I198: 34
A199: HD | C199: 0 | D199: 8 | E199: 8 | F199: 11 | G199: 8 | I199: 35
A200: Komm. og Sprog | C200: 2 | D200: 15 | E200: 21 | F200: 22 | G200: 9 | I200: 69
A201: Bygningskonst. | C201: 11 | D201: 22 | E201: 18 | F201: 12 | G201: 1 | I201: 64
A202: Cand. IT. | C202: 4 | D202: 21 | E202: 14 | F202: 1 | G202: 0 | I202: 40
A203: Bac. Samf. | C203: 0 | D203: 0 | E203: 4 | F203: 4 | G203: 0 | I203: 8
A204: Bac. Hum. | C204: 5 | D204: 2 | E204: 4 | F204: 4 | G204: 0 | I204: 15
A205: Bac. Nat. | C205: 14 | D205: 18 | E205: 8 | F205: 2 | G205: 1 | I205: 43
A206: Andre | C206: 17 | D206: 57 | E206: 59 | F206: 43 | G206: 14 | I206: 190
A208: Total | C208: 288 | D208: 1015 | E208: 993 | F208: 835 | G208: 239 | I208: 3370
A210: Ingeniører i alt | C210: 65 | D210: 254 | E210: 277 | F210: 352 | G210: 105 | I210: 1053
A211: Magistre i alt | C211: 22 | D211: 123 | E211: 177 | F211: 120 | G211: 39 | I211: 481
A212: DJØF'ere i alt | C212: 79 | D212: 231 | E212: 225 | F212: 148 | G212: 26 | I212: 709
A219: Brøndby
C221: Under 30 år | D221: 30 - 39 år | E221: 40 - 49 år | F221: 50 - 59 år | G221: Over 60 år | I221: I alt
A223: Civ. ing. | C223: 15 | D223: 28 | E223: 28 | F223: 36 | G223: 13 | I223: 120
A224: Diplom ing. | C224: 22 | D224: 28 | E224: 50 | F224: 46 | G224: 17 | I224: 163
A225: Cand. Scient. Tek. | C225: 19 | D225: 41 | E225: 12 | F225: 4 | G225: 0 | I225: 76
A226: MA. Hum. | C226: 11 | D226: 41 | E226: 18 | F226: 15 | G226: 2 | I226: 87
A227: MA. Nat. | C227: 1 | D227: 14 | E227: 18 | F227: 15 | G227: 6 | I227: 54
A228: MA. Ph.d. | C228: 0 | D228: 4 | E228: 2 | F228: 0 | G228: 0 | I228: 6
A229: MA. Samf. | C229: 11 | D229: 12 | E229: 3 | F229: 0 | G229: 0 | I229: 26
A230: Øvrige Mag. | C230: 2 | D230: 5 | E230: 4 | F230: 0 | G230: 1 | I230: 12
A231: Agronom | C231: 2 | D231: 1 | E231: 1 | F231: 1 | G231: 1 | I231: 6
A232: Landsk. Arkt. | C232: 0 | D232: 0 | E232: 4 | F232: 1 | G232: 0 | I232: 5
A233: Hortonom | C233: 0 | D233: 0 | E233: 0 | F233: 1 | G233: 1 | I233: 2
A234: Forstkand. | C234: 0 | D234: 0 | E234: 1 | F234: 0 | G234: 0 | I234: 1
A235: Jordbrugsakad. | C235: 2 | D235: 1 | E235: 6 | F235: 3 | G235: 2 | I235: 14
A236: Mejeriing. | C236: 0 | D236: 0 | E236: 0 | F236: 0 | G236: 0 | I236: 0
A237: Levn.m.kand. | C237: 0 | D237: 1 | E237: 0 | F237: 0 | G237: 0 | I237: 1
A238: Dyrlæge | C238: 1 | D238: 2 | E238: 2 | F238: 0 | G238: 1 | I238: 6
A239: Farmaceut | C239: 9 | D239: 18 | E239: 11 | F239: 3 | G239: 2 | I239: 43
A240: Læge | C240: 7 | D240: 17 | E240: 4 | F240: 7 | G240: 6 | I240: 41
A241: Tandlæge | C241: 4 | D241: 4 | E241: 0 | F241: 0 | G241: 2 | I241: 10
A242: Arkitekt | C242: 0 | D242: 1 | E242: 2 | F242: 0 | G242: 1 | I242: 4
A243: Landinspek. | C243: 0 | D243: 1 | E243: 0 | F243: 0 | G243: 0 | I243: 1
... 1077 more rows

Sheet Tabel 4 H
A1: Tabel 4. Ledighedsberørte - aldersfordelt
A3: Hovedstaden
C5: Under 30 år | D5: 30 - 39 år | E5: 40 - 49 år | F5: 50 - 59 år | G5: Over 60 år | I5: I alt
A7: Civ. ing. | C7: 255 | D7: 147 | E7: 39 | F7: 42 | G7: 41 | I7: 524
A8: Diplom ing. | C8: 73 | D8: 69 | E8: 49 | F8: 80 | G8: 59 | I8: 330
A9: Cand. Scient. Tek | C9: 396 | D9: 268 | E9: 51 | F9: 11 | G9: 7 | I9: 733
A10: MA. Hum. | C10: 474 | D10: 593 | E10: 247 | F10: 137 | G10: 59 | I10: 1510
A11: MA. Nat. | C11: 96 | D11: 78 | E11: 41 | F11: 24 | G11: 21 | I11: 260
A12: MA. Ph.d. | C12: 2 | D12: 11 | E12: 18 | F12: 7 | G12: 5 | I12: 43
A13: MA. Samf. | C13: 159 | D13: 160 | E13: 33 | F13: 16 | G13: 4 | I13: 372
A14: Øvrige Mag. | C14: 59 | D14: 44 | E14: 27 | F14: 11 | G14: 3 | I14: 144
A15: Agronom | C15: 14 | D15: 10 | E15: 2 | F15: 7 | G15: 3 | I15: 36
A16: Landsk. Arkt. | C16: 7 | D16: 13 | E16: 3 | F16: 1 | G16: 0 | I16: 24
A17: Hortonom | C17: 1 | D17: 1 | E17: 1 | F17: 1 | G17: 2 | I17: 6
A18: Forstkand. | C18: 3 | D18: 3 | E18: 1 | F18: 4 | G18: 1 | I18: 12
A19: Jordbrugsakad. | C19: 25 | D19: 27 | E19: 7 | F19: 13 | G19: 6 | I19: 78
A20: Mejeriing. | C20: 4 | D20: 3 | E20: 0 | F20: 0 | G20: 0 | I20: 7
A21: Levn.m.kand. | C21: 3 | D21: 4 | E21: 3 | F21: 0 | G21: 0 | I21: 10
A22: Dyrlæge | C22: 4 | D22: 7 | E22: 3 | F22: 1 | G22: 2 | I22: 17
A23: Farmaceut | C23: 68 | D23: 33 | E23: 6 | F23: 11 | G23: 3 | I23: 121
A24: Læge | C24: 21 | D24: 36 | E24: 3 | F24: 3 | G24: 1 | I24: 64
A25: Tandlæge | C25: 7 | D25: 6 | E25: 2 | F25: 2 | G25: 2 | I25: 19
A26: Arkitekt | C26: 56 | D26: 59 | E26: 36 | F26: 19 | G26: 21 | I26: 191
A27: Landinspek. | C27: 0 | D27: 2 | E27: 1 | F27: 1 | G27: 0 | I27: 4
A28: Bibliotekar | C28: 8 | D28: 24 | E28: 20 | F28: 14 | G28: 6 | I28: 72
A29: Musikudd. | C29: 2 | D29: 4 | E29: 1 | F29: 2 | G29: 0 | I29: 9
A30: Teolog | C30: 6 | D30: 14 | E30: 2 | F30: 3 | G30: 2 | I30: 27
A31: Psykolog | C31: 39 | D31: 46 | E31: 23 | F31: 10 | G31: 6 | I31: 124
A32: Jurist | C32: 36 | D32: 44 | E32: 29 | F32: 23 | G32: 11 | I32: 143
A33: Økonom | C33: 36 | D33: 22 | E33: 20 | F33: 24 | G33: 16 | I33: 118
A34: Samf. Adm. | C34: 253 | D34: 273 | E34: 151 | F34: 68 | G34: 23 | I34: 768
A35: Cand. Merc. | C35: 262 | D35: 242 | E35: 98 | F35: 89 | G35: 31 | I35: 722
A36: HA | C36: 68 | D36: 29 | E36: 10 | F36: 16 | G36: 17 | I36: 140
A37: HD | C37: 52 | D37: 46 | E37: 10 | F37: 20 | G37: 22 | I37: 150
A38: Komm. og Sprog | C38: 55 | D38: 67 | E38: 41 | F38: 37 | G38: 29 | I38: 229
A39: Bygningskonst. | C39: 42 | D39: 24 | E39: 10 | F39: 12 | G39: 4 | I39: 92
A40: Cand. IT. | C40: 67 | D40: 61 | E40: 25 | F40: 6 | G40: 1 | I40: 160
A41: Bac. Samf. | C41: 23 | D41: 8 | E41: 5 | F41: 6 | G41: 4 | I41: 46
A42: Bac. Hum. | C42: 120 | D42: 51 | E42: 19 | F42: 15 | G42: 3 | I42: 208
A43: Bac. Nat. | C43: 115 | D43: 46 | E43: 10 | F43: 6 | G43: 2 | I43: 179
A44: Andre | C44: 204 | D44: 323 | E44: 169 | F44: 142 | G44: 97 | I44: 935
A46: Total | C46: 3090 | D46: 2871 | E46: 1209 | F46: 871 | G46: 508 | I46: 8549
A48: Ingeniører i alt | C48: 328 | D48: 216 | E48: 88 | F48: 122 | G48: 100 | I48: 854
A49: Magistre i alt | C49: 790 | D49: 886 | E49: 366 | F49: 195 | G49: 92 | I49: 2329
A50: DJØF'ere i alt | C50: 655 | D50: 610 | E50: 308 | F50: 220 | G50: 98 | I50: 1891
A57: København
C59: Under 30 år | D59: 30 - 39 år | E59: 40 - 49 år | F59: 50 - 59 år | G59: Over 60 år | I59: I alt
A61: Civ. ing. | C61: 150 | D61: 85 | E61: 19 | F61: 9 | G61: 7 | I61: 270
A62: Diplom ing. | C62: 37 | D62: 34 | E62: 17 | F62: 18 | G62: 14 | I62: 120
A63: Cand. Scient. Tek | C63: 290 | D63: 187 | E63: 27 | F63: 8 | G63: 4 | I63: 516
A64: MA. Hum. | C64: 367 | D64: 434 | E64: 159 | F64: 84 | G64: 31 | I64: 1075
A65: MA. Nat. | C65: 65 | D65: 54 | E65: 26 | F65: 11 | G65: 3 | I65: 159
A66: MA. Ph.d. | C66: 2 | D66: 10 | E66: 10 | F66: 4 | G66: 2 | I66: 28
A67: MA. Samf. | C67: 119 | D67: 123 | E67: 15 | F67: 13 | G67: 3 | I67: 273
A68: Øvrige Mag. | C68: 44 | D68: 31 | E68: 17 | F68: 3 | G68: 2 | I68: 97
A69: Agronom | C69: 8 | D69: 5 | E69: 1 | F69: 2 | G69: 1 | I69: 17
A70: Landsk. Arkt. | C70: 4 | D70: 9 | E70: 1 | F70: 1 | G70: 0 | I70: 15
A71: Hortonom | C71: 0 | D71: 0 | E71: 0 | F71: 0 | G71: 1 | I71: 1
A72: Forstkand. | C72: 3 | D72: 3 | E72: 0 | F72: 3 | G72: 0 | I72: 9
A73: Jordbrugsakad. | C73: 15 | D73: 17 | E73: 2 | F73: 6 | G73: 2 | I73: 42
A74: Mejeriing. | C74: 3 | D74: 2 | E74: 0 | F74: 0 | G74: 0 | I74: 5
A75: Levn.m.kand. | C75: 3 | D75: 3 | E75: 2 | F75: 0 | G75: 0 | I75: 8
A76: Dyrlæge | C76: 3 | D76: 4 | E76: 1 | F76: 0 | G76: 0 | I76: 8
A77: Farmaceut | C77: 47 | D77: 21 | E77: 5 | F77: 4 | G77: 0 | I77: 77
A78: Læge | C78: 16 | D78: 20 | E78: 0 | F78: 2 | G78: 0 | I78: 38
A79: Tandlæge | C79: 6 | D79: 3 | E79: 1 | F79: 0 | G79: 0 | I79: 10
A80: Arkitekt | C80: 52 | D80: 47 | E80: 27 | F80: 11 | G80: 9 | I80: 146
A81: Landinspek. | C81: 0 | D81: 1 | E81: 0 | F81: 1 | G81: 0 | I81: 2
A82: Bibliotekar | C82: 5 | D82: 16 | E82: 10 | F82: 8 | G82: 3 | I82: 42
A83: Musikudd. | C83: 2 | D83: 3 | E83: 0 | F83: 2 | G83: 0 | I83: 7
A84: Teolog | C84: 4 | D84: 13 | E84: 1 | F84: 0 | G84: 1 | I84: 19
A85: Psykolog | C85: 27 | D85: 24 | E85: 8 | F85: 4 | G85: 2 | I85: 65
A86: Jurist | C86: 24 | D86: 25 | E86: 8 | F86: 7 | G86: 4 | I86: 68
A87: Økonom | C87: 28 | D87: 18 | E87: 9 | F87: 7 | G87: 10 | I87: 72
A88: Samf. Adm. | C88: 196 | D88: 194 | E88: 98 | F88: 33 | G88: 8 | I88: 529
A89: Cand. Merc. | C89: 173 | D89: 150 | E89: 45 | F89: 24 | G89: 7 | I89: 399
A90: HA | C90: 50 | D90: 16 | E90: 4 | F90: 6 | G90: 3 | I90: 79
A91: HD | C91: 40 | D91: 31 | E91: 6 | F91: 6 | G91: 3 | I91: 86
A92: Komm. og Sprog | C92: 40 | D92: 41 | E92: 27 | F92: 13 | G92: 7 | I92: 128
A93: Bygningskonst. | C93: 33 | D93: 15 | E93: 5 | F93: 4 | G93: 1 | I93: 58
A94: Cand. IT. | C94: 56 | D94: 47 | E94: 17 | F94: 4 | G94: 0 | I94: 124
A95: Bac. Samf. | C95: 19 | D95: 5 | E95: 3 | F95: 4 | G95: 0 | I95: 31
A96: Bac. Hum. | C96: 89 | D96: 38 | E96: 11 | F96: 9 | G96: 2 | I96: 149
A97: Bac. Nat. | C97: 82 | D97: 26 | E97: 5 | F97: 2 | G97: 1 | I97: 116
A98: Andre | C98: 146 | D98: 218 | E98: 97 | F98: 66 | G98: 42 | I98: 569
A100: Total | C100: 2233 | D100: 1956 | E100: 682 | F100: 373 | G100: 171 | I100: 5415
A102: Ingeniører i alt | C102: 187 | D102: 119 | E102: 36 | F102: 27 | G102: 21 | I102: 390
A103: Magistre i alt | C103: 597 | D103: 652 | E103: 227 | F103: 115 | G103: 41 | I103: 1632
A104: DJØF'ere i alt | C104: 471 | D104: 403 | E104: 164 | F104: 77 | G104: 32 | I104: 1147
A111: Frederiksberg
C113: Under 30 år | D113: 30 - 39 år | E113: 40 - 49 år | F113: 50 - 59 år | G113: Over 60 år | I113: I alt
A115: Civ. ing. | C115: 12 | D115: 10 | E115: 0 | F115: 4 | G115: 4 | I115: 30
A116: Diplom ing. | C116: 3 | D116: 4 | E116: 3 | F116: 3 | G116: 2 | I116: 15
A117: Cand. Scient. Tek | C117: 25 | D117: 18 | E117: 6 | F117: 0 | G117: 1 | I117: 50
A118: MA. Hum. | C118: 43 | D118: 30 | E118: 33 | F118: 11 | G118: 7 | I118: 124
A119: MA. Nat. | C119: 9 | D119: 6 | E119: 3 | F119: 2 | G119: 2 | I119: 22
A120: MA. Ph.d. | C120: 0 | D120: 1 | E120: 2 | F120: 2 | G120: 0 | I120: 5
A121: MA. Samf. | C121: 19 | D121: 15 | E121: 2 | F121: 0 | G121: 1 | I121: 37
A122: Øvrige Mag. | C122: 4 | D122: 3 | E122: 2 | F122: 3 | G122: 0 | I122: 12
A123: Agronom | C123: 2 | D123: 1 | E123: 1 | F123: 0 | G123: 0 | I123: 4
A124: Landsk. Arkt. | C124: 1 | D124: 0 | E124: 0 | F124: 0 | G124: 0 | I124: 1
A125: Hortonom | C125: 1 | D125: 0 | E125: 0 | F125: 0 | G125: 0 | I125: 1
A126: Forstkand. | C126: 0 | D126: 0 | E126: 0 | F126: 0 | G126: 0 | I126: 0
A127: Jordbrugsakad. | C127: 4 | D127: 1 | E127: 1 | F127: 0 | G127: 0 | I127: 6
A128: Mejeriing. | C128: 0 | D128: 0 | E128: 0 | F128: 0 | G128: 0 | I128: 0
A129: Levn.m.kand. | C129: 0 | D129: 1 | E129: 0 | F129: 0 | G129: 0 | I129: 1
A130: Dyrlæge | C130: 0 | D130: 0 | E130: 0 | F130: 0 | G130: 2 | I130: 2
A131: Farmaceut | C131: 6 | D131: 0 | E131: 0 | F131: 1 | G131: 0 | I131: 7
A132: Læge | C132: 3 | D132: 3 | E132: 0 | F132: 1 | G132: 0 | I132: 7
A133: Tandlæge | C133: 0 | D133: 0 | E133: 0 | F133: 0 | G133: 1 | I133: 1
A134: Arkitekt | C134: 4 | D134: 7 | E134: 6 | F134: 6 | G134: 2 | I134: 25
A135: Landinspek. | C135: 0 | D135: 1 | E135: 1 | F135: 0 | G135: 0 | I135: 2
A136: Bibliotekar | C136: 0 | D136: 0 | E136: 7 | F136: 1 | G136: 0 | I136: 8
A137: Musikudd. | C137: 0 | D137: 0 | E137: 0 | F137: 0 | G137: 0 | I137: 0
A138: Teolog | C138: 0 | D138: 0 | E138: 0 | F138: 1 | G138: 0 | I138: 1
A139: Psykolog | C139: 3 | D139: 8 | E139: 4 | F139: 0 | G139: 2 | I139: 17
A140: Jurist | C140: 6 | D140: 3 | E140: 4 | F140: 1 | G140: 5 | I140: 19
A141: Økonom | C141: 3 | D141: 1 | E141: 2 | F141: 1 | G141: 1 | I141: 8
A142: Samf. Adm. | C142: 21 | D142: 20 | E142: 7 | F142: 9 | G142: 3 | I142: 60
A143: Cand. Merc. | C143: 40 | D143: 16 | E143: 8 | F143: 6 | G143: 1 | I143: 71
A144: HA | C144: 6 | D144: 4 | E144: 0 | F144: 0 | G144: 2 | I144: 12
A145: HD | C145: 5 | D145: 2 | E145: 1 | F145: 3 | G145: 0 | I145: 11
A146: Komm. og Sprog | C146: 2 | D146: 12 | E146: 5 | F146: 2 | G146: 2 | I146: 23
A147: Bygningskonst. | C147: 0 | D147: 1 | E147: 1 | F147: 2 | G147: 0 | I147: 4
A148: Cand. IT. | C148: 5 | D148: 2 | E148: 2 | F148: 1 | G148: 0 | I148: 10
A149: Bac. Samf. | C149: 2 | D149: 1 | E149: 0 | F149: 1 | G149: 0 | I149: 4
A150: Bac. Hum. | C150: 9 | D150: 3 | E150: 2 | F150: 1 | G150: 0 | I150: 15
A151: Bac. Nat. | C151: 10 | D151: 1 | E151: 0 | F151: 1 | G151: 0 | I151: 12
A152: Andre | C152: 20 | D152: 33 | E152: 14 | F152: 17 | G152: 8 | I152: 92
A154: Total | C154: 264 | D154: 207 | E154: 116 | F154: 80 | G154: 46 | I154: 713
A156: Ingeniører i alt | C156: 15 | D156: 14 | E156: 3 | F156: 7 | G156: 6 | I156: 45
A157: Magistre i alt | C157: 75 | D157: 55 | E157: 42 | F157: 18 | G157: 10 | I157: 200
A158: DJØF'ere i alt | C158: 76 | D158: 44 | E158: 21 | F158: 17 | G158: 12 | I158: 170
A165: Ballerup
C167: Under 30 år | D167: 30 - 39 år | E167: 40 - 49 år | F167: 50 - 59 år | G167: Over 60 år | I167: I alt
A169: Civ. ing. | C169: 2 | D169: 2 | E169: 0 | F169: 2 | G169: 1 | I169: 7
A170: Diplom ing. | C170: 1 | D170: 1 | E170: 2 | F170: 7 | G170: 6 | I170: 17
A171: Cand. Scient. Tek | C171: 4 | D171: 2 | E171: 0 | F171: 0 | G171: 0 | I171: 6
A172: MA. Hum. | C172: 0 | D172: 2 | E172: 1 | F172: 1 | G172: 0 | I172: 4
A173: MA. Nat. | C173: 0 | D173: 0 | E173: 1 | F173: 0 | G173: 0 | I173: 1
A174: MA. Ph.d. | C174: 0 | D174: 0 | E174: 0 | F174: 0 | G174: 0 | I174: 0
A175: MA. Samf. | C175: 1 | D175: 2 | E175: 0 | F175: 0 | G175: 0 | I175: 3
A176: Øvrige Mag. | C176: 0 | D176: 0 | E176: 1 | F176: 0 | G176: 0 | I176: 1
A177: Agronom | C177: 0 | D177: 0 | E177: 0 | F177: 0 | G177: 0 | I177: 0
A178: Landsk. Arkt. | C178: 0 | D178: 2 | E178: 0 | F178: 0 | G178: 0 | I178: 2
A179: Hortonom | C179: 0 | D179: 0 | E179: 0 | F179: 0 | G179: 0 | I179: 0
A180: Forstkand. | C180: 0 | D180: 0 | E180: 0 | F180: 0 | G180: 0 | I180: 0
A181: Jordbrugsakad. | C181: 0 | D181: 2 | E181: 0 | F181: 0 | G181: 0 | I181: 2
A182: Mejeriing. | C182: 1 | D182: 0 | E182: 0 | F182: 0 | G182: 0 | I182: 1
A183: Levn.m.kand. | C183: 0 | D183: 0 | E183: 0 | F183: 0 | G183: 0 | I183: 0
A184: Dyrlæge | C184: 0 | D184: 0 | E184: 0 | F184: 0 | G184: 0 | I184: 0
A185: Farmaceut | C185: 0 | D185: 0 | E185: 0 | F185: 0 | G185: 0 | I185: 0
A186: Læge | C186: 0 | D186: 2 | E186: 0 | F186: 0 | G186: 0 | I186: 2
A187: Tandlæge | C187: 0 | D187: 0 | E187: 0 | F187: 0 | G187: 0 | I187: 0
A188: Arkitekt | C188: 0 | D188: 1 | E188: 0 | F188: 0 | G188: 0 | I188: 1
A189: Landinspek. | C189: 0 | D189: 0 | E189: 0 | F189: 0 | G189: 0 | I189: 0
A190: Bibliotekar | C190: 0 | D190: 1 | E190: 2 | F190: 0 | G190: 0 | I190: 3
A191: Musikudd. | C191: 0 | D191: 0 | E191: 0 | F191: 0 | G191: 0 | I191: 0
A192: Teolog | C192: 0 | D192: 0 | E192: 0 | F192: 0 | G192: 0 | I192: 0
A193: Psykolog | C193: 0 | D193: 0 | E193: 1 | F193: 0 | G193: 0 | I193: 1
A194: Jurist | C194: 1 | D194: 2 | E194: 1 | F194: 0 | G194: 0 | I194: 4
A195: Økonom | C195: 0 | D195: 1 | E195: 1 | F195: 0 | G195: 0 | I195: 2
A196: Samf. Adm. | C196: 1 | D196: 2 | E196: 2 | F196: 1 | G196: 0 | I196: 6
A197: Cand. Merc. | C197: 1 | D197: 1 | E197: 1 | F197: 1 | G197: 0 | I197: 4
A198: HA | C198: 1 | D198: 0 | E198: 0 | F198: 0 | G198: 0 | I198: 1
A199: HD | C199: 0 | D199: 1 | E199: 1 | F199: 1 | G199: 1 | I199: 4
A200: Komm. og Sprog | C200: 0 | D200: 0 | E200: 0 | F200: 0 | G200: 0 | I200: 0
A201: Bygningskonst. | C201: 1 | D201: 0 | E201: 0 | F201: 0 | G201: 0 | I201: 1
A202: Cand. IT. | C202: 0 | D202: 0 | E202: 1 | F202: 0 | G202: 0 | I202: 1
A203: Bac. Samf. | C203: 0 | D203: 0 | E203: 0 | F203: 1 | G203: 0 | I203: 1
A204: Bac. Hum. | C204: 0 | D204: 0 | E204: 0 | F204: 0 | G204: 0 | I204: 0
A205: Bac. Nat. | C205: 4 | D205: 3 | E205: 1 | F205: 0 | G205: 0 | I205: 8
A206: Andre | C206: 3 | D206: 3 | E206: 2 | F206: 2 | G206: 0 | I206: 10
A208: Total | C208: 21 | D208: 28 | E208: 18 | F208: 16 | G208: 8 | I208: 91
A210: Ingeniører i alt | C210: 3 | D210: 3 | E210: 2 | F210: 9 | G210: 7 | I210: 24
A211: Magistre i alt | C211: 1 | D211: 4 | E211: 3 | F211: 1 | G211: 0 | I211: 9
A212: DJØF'ere i alt | C212: 4 | D212: 6 | E212: 5 | F212: 2 | G212: 0 | I212: 17
A219: Brøndby
C221: Under 30 år | D221: 30 - 39 år | E221: 40 - 49 år | F221: 50 - 59 år | G221: Over 60 år | I221: I alt
A223: Civ. ing. | C223: 3 | D223: 2 | E223: 0 | F223: 0 | G223: 1 | I223: 6
A224: Diplom ing. | C224: 3 | D224: 0 | E224: 0 | F224: 1 | G224: 0 | I224: 4
A225: Cand. Scient. Tek | C225: 4 | D225: 1 | E225: 0 | F225: 0 | G225: 0 | I225: 5
A226: MA. Hum. | C226: 3 | D226: 3 | E226: 1 | F226: 2 | G226: 0 | I226: 9
A227: MA. Nat. | C227: 1 | D227: 0 | E227: 0 | F227: 0 | G227: 1 | I227: 2
A228: MA. Ph.d. | C228: 0 | D228: 0 | E228: 0 | F228: 0 | G228: 0 | I228: 0
A229: MA. Samf. | C229: 3 | D229: 0 | E229: 0 | F229: 0 | G229: 0 | I229: 3
A230: Øvrige Mag. | C230: 0 | D230: 1 | E230: 0 | F230: 0 | G230: 0 | I230: 1
A231: Agronom | C231: 0 | D231: 0 | E231: 0 | F231: 0 | G231: 0 | I231: 0
A232: Landsk. Arkt. | C232: 0 | D232: 0 | E232: 0 | F232: 0 | G232: 0 | I232: 0
A233: Hortonom | C233: 0 | D233: 0 | E233: 0 | F233: 0 | G233: 0 | I233: 0
A234: Forstkand. | C234: 0 | D234: 0 | E234: 0 | F234: 0 | G234: 0 | I234: 0
A235: Jordbrugsakad. | C235: 0 | D235: 0 | E235: 0 | F235: 0 | G235: 0 | I235: 0
A236: Mejeriing. | C236: 0 | D236: 0 | E236: 0 | F236: 0 | G236: 0 | I236: 0
A237: Levn.m.kand. | C237: 0 | D237: 0 | E237: 0 | F237: 0 | G237: 0 | I237: 0
A238: Dyrlæge | C238: 0 | D238: 0 | E238: 0 | F238: 0 | G238: 0 | I238: 0
A239: Farmaceut | C239: 0 | D239: 1 | E239: 0 | F239: 0 | G239: 0 | I239: 1
A240: Læge | C240: 0 | D240: 0 | E240: 0 | F240: 0 | G240: 0 | I240: 0
A241: Tandlæge | C241: 0 | D241: 0 | E241: 0 | F241: 0 | G241: 0 | I241: 0
A242: Arkitekt | C242: 0 | D242: 0 | E242: 0 | F242: 0 | G242: 0 | I242: 0
A243: Landinspek. | C243: 0 | D243: 0 | E243: 0 | F243: 0 | G243: 0 | I243: 0
... 1077 more rows

Sheet Tabel 4(Br) H
A1: Tabel 4. Ledighedsberørte - aldersfordelt
A3: Hovedstaden
C5: Under 30 år | D5: 30 - 39 år | E5: 40 - 49 år | F5: 50 - 59 år | G5: Over 60 år | I5: I alt
A7: Civ. ing. | C7: 217.2587788 | D7: 129.1529969 | E7: 33.68240504 | F7: 35.71571135 | G7: 36.15168715 | I7: 451.9615792
A8: Diplom ing. | C8: 65.74752074 | D8: 64.41651594 | E8: 42.6114888 | F8: 68.15193663 | G8: 50.67173954 | I8: 291.5992016
A9: Cand. Scient. Tek | C9: 331.3334997 | D9: 224.8188112 | E9: 42.41002931 | F9: 9.44240005 | G9: 5.679535957 | I9: 613.6842762
A10: MA. Hum. | C10: 398.3590095 | D10: 483.8957151 | E10: 200.4428366 | F10: 105.6807834 | G10: 49.59271503 | I10: 1237.97106
A11: MA. Nat. | C11: 72.68383958 | D11: 66.58017838 | E11: 33.94748332 | F11: 20.44845007 | G11: 16.64753945 | I11: 210.3074908
A12: MA. Ph.d. | C12: 1.999625772 | D12: 8.334060999 | E12: 14.7221356 | F12: 3.86827169 | G12: 4.517557538 | I12: 33.44165159
A13: MA. Samf. | C13: 135.3944988 | D13: 130.6243373 | E13: 28.03842076 | F13: 12.5422566 | G13: 2.50483378 | I13: 309.1043473
A14: Øvrige Mag. | C14: 49.39250296 | D14: 36.54836899 | E14: 22.51294206 | F14: 8.184993451 | G14: 2.937067299 | I14: 119.5758748
A15: Agronom | C15: 12.21231211 | D15: 9.181064055 | E15: 1.999625772 | F15: 5.146260837 | G15: 2.164909873 | I15: 30.70417264
A16: Landsk. Arkt. | C16: 5.798665253 | D16: 11.36842762 | E16: 2.999438658 | F16: 0.9075032745 | G16: 0 | I16: 21.0740348
A17: Hortonom | C17: 0.1690263831 | D17: 0.9998128859 | E17: 0.9998128859 | F17: 0.9998128859 | G17: 1.999625772 | I17: 5.168090813
A18: Forstkand. | C18: 2.273436038 | D18: 2.428740722 | E18: 0.9998128859 | F18: 3.768477515 | G18: 0.9998128859 | I18: 10.47028005
A19: Jordbrugsakad. | C19: 20.45343978 | D19: 23.97804528 | E19: 6.998690201 | F19: 10.82205451 | G19: 5.164348531 | I19: 67.41657831
A20: Mejeriing. | C20: 3.860787127 | D20: 2.999438658 | E20: 0 | F20: 0 | G20: 0 | I20: 6.860225784
A21: Levn.m.kand. | C21: 1.969687519 | D21: 3.355579118 | E21: 2.630200212 | F21: 0 | G21: 0 | I21: 7.95546685
A22: Dyrlæge | C22: 3.31254288 | D22: 5.567891224 | E22: 2.630823926 | F22: 0.9000187114 | G22: 1.359071914 | I22: 13.77034866
A23: Farmaceut | C23: 57.0217676 | D23: 29.0363625 | E23: 5.059564648 | F23: 9.382523545 | G23: 2.630200212 | I23: 103.1304185
A24: Læge | C24: 15.43005052 | D24: 25.75188673 | E24: 2.860974241 | F24: 2.676355018 | G24: 0.8251730805 | I24: 47.54443959
A25: Tandlæge | C25: 3.988024699 | D25: 4.177009917 | E25: 1.304808832 | F25: 1.344726502 | G25: 1.815006549 | I25: 12.6295765
A26: Arkitekt | C26: 50.55448138 | D26: 50.04989709 | E26: 30.31934136 | F26: 17.21574253 | G26: 19.28272937 | I26: 167.4221917
A27: Landinspek. | C27: 0 | D27: 1.999625772 | E27: 0.9998128859 | F27: 0.9075032745 | G27: 0 | I27: 3.906941932
A28: Bibliotekar | C28: 6.529033868 | D28: 18.6920726 | E28: 15.5940872 | F28: 12.21106468 | G28: 4.604253727 | I28: 57.63051207
A29: Musikudd. | C29: 1.070292522 | D29: 3.949354456 | E29: 0.9998128859 | F29: 1.118318468 | G29: 0 | I29: 7.137778332
A30: Teolog | C30: 5.254163288 | D30: 12.41314788 | E30: 0.9879623277 | F30: 2.101291087 | G30: 1.90731616 | I30: 22.66388075
A31: Psykolog | C31: 32.15493046 | D31: 37.78456933 | E31: 19.18667748 | F31: 6.786003867 | G31: 5.445019647 | I31: 101.3572008
A32: Jurist | C32: 30.28378968 | D32: 36.72862222 | E32: 24.90550739 | F32: 17.49578993 | G32: 8.782511071 | I32: 118.1962203
A33: Økonom | C33: 29.7841951 | D33: 18.06835901 | E33: 18.78500593 | F33: 18.9122435 | G33: 12.63643735 | I33: 98.18624088
A34: Samf. Adm. | C34: 218.6091187 | D34: 224.1214994 | E34: 127.2743716 | F34: 59.38938439 | G34: 21.51874259 | I34: 650.9131167
A35: Cand. Merc. | C35: 222.9564024 | D35: 201.1233082 | E35: 86.5901578 | F35: 76.3469095 | G35: 26.99494792 | I35: 614.0117258
A36: HA | C36: 58.54799476 | D36: 26.55897212 | E36: 8.690825173 | F36: 13.49778582 | G36: 14.26183497 | I36: 121.5574128
A37: HD | C37: 45.22297761 | D37: 40.11413959 | E37: 8.140709786 | F37: 17.13091748 | G37: 16.539637 | I37: 127.1483815
A38: Komm. og Sprog | C38: 43.20526414 | D38: 54.95041477 | E38: 35.60718518 | F38: 32.91274247 | G38: 24.0429115 | I38: 190.7185181
A39: Bygningskonst. | C39: 35.91324144 | D39: 18.86078713 | E39: 9.492297137 | F39: 10.33842699 | G39: 2.846129857 | I39: 77.45088255
A40: Cand. IT. | C40: 56.64753945 | D40: 51.8312231 | E40: 20.75406973 | F40: 5.491174453 | G40: 0.1228715774 | I40: 134.8468783
A41: Bac. Samf. | C41: 17.37229464 | D41: 5.105719454 | E41: 4.627954843 | F41: 5.010291274 | G41: 2.978856109 | I41: 35.09511632
A42: Bac. Hum. | C42: 98.73697998 | D42: 43.52959521 | E42: 15.07079149 | F42: 12.7399738 | G42: 2.069481694 | I42: 172.1468222
A43: Bac. Nat. | C43: 94.25372669 | D43: 37.53820246 | E43: 9.71683403 | F43: 4.804465789 | G43: 1.214994075 | I43: 147.528223
A44: Andre | C44: 177.9754257 | D44: 272.711283 | E44: 140.4147695 | F44: 108.6771035 | G44: 75.17619909 | I44: 774.9547808
A46: Total | C46: 2603.277428 | D46: 2395.367991 | E46: 1018.010977 | F46: 712.2476143 | G46: 420.9213497 | I46: 7149.82536
A48: Ingeniører i alt | C48: 283.0062995 | D48: 193.5695129 | E48: 76.29389384 | F48: 103.867648 | G48: 86.82342668 | I48: 743.5607809
A49: Magistre i alt | C49: 657.8294767 | D49: 725.9826608 | E49: 299.6638184 | F49: 150.7247552 | G49: 76.19971309 | I49: 1910.400424
A50: DJØF'ere i alt | C50: 560.1815007 | D50: 506.6007609 | E50: 266.2458679 | F50: 185.6421131 | G50: 84.1944739 | I50: 1602.864717
A57: København
C59: Under 30 år | D59: 30 - 39 år | E59: 40 - 49 år | F59: 50 - 59 år | G59: Over 60 år | I59: I alt
A61: Civ. ing. | C61: 124.4994698 | D61: 73.37740909 | E61: 17.83010042 | F61: 8.090188985 | G61: 6.998690201 | I61: 230.7958585
A62: Diplom ing. | C62: 33.42044533 | D62: 32.26595148 | E62: 15.75063931 | F62: 15.78681469 | G62: 9.965695753 | I62: 107.1895466
A63: Cand. Scient. Tek | C63: 242.8983971 | D63: 158.7656708 | E63: 21.64909873 | F63: 6.766045032 | G63: 3.565770598 | I63: 433.6449822
A64: MA. Hum. | C64: 307.7552548 | D64: 351.3204017 | E64: 126.1385892 | F64: 64.67223851 | G64: 26.56458554 | I64: 876.4510697
A65: MA. Nat. | C65: 48.3571384 | D65: 45.40572569 | E65: 22.38570448 | F65: 9.568390195 | G65: 2.484251232 | I65: 128.20121
A66: MA. Ph.d. | C66: 1.999625772 | D66: 8.211189422 | E66: 7.42406287 | F66: 2.679473586 | G66: 1.768851743 | I66: 22.08320339
A67: MA. Samf. | C67: 102.3177197 | D67: 98.34903013 | E67: 12.93893844 | F67: 10.90625585 | G67: 2.300879436 | I67: 226.8128236
A68: Øvrige Mag. | C68: 36.58017838 | D68: 24.94604877 | E68: 13.86452941 | F68: 2.918979605 | G68: 1.999625772 | I68: 80.30936194
A69: Agronom | C69: 6.398054014 | D69: 4.995322148 | E69: 0.9998128859 | F69: 0.8208070854 | G69: 0.9998128859 | I69: 14.21380902
A70: Landsk. Arkt. | C70: 3.722322709 | D70: 8.06149816 | E70: 0.9998128859 | F70: 0.9075032745 | G70: 0 | I70: 13.69113703
A71: Hortonom | C71: 0 | D71: 0 | E71: 0 | F71: 0 | G71: 0.9998128859 | I71: 0.9998128859
A72: Forstkand. | C72: 2.273436038 | D72: 2.428740722 | E72: 0 | F72: 2.768664629 | G72: 0 | I72: 7.47084139
A73: Jordbrugsakad. | C73: 12.39381276 | D73: 15.48556103 | E73: 1.999625772 | F73: 4.496974989 | G73: 1.999625772 | I73: 36.37560032
A74: Mejeriing. | C74: 2.860974241 | D74: 1.999625772 | E74: 0 | F74: 0 | G74: 0 | I74: 4.860600012
A75: Levn.m.kand. | C75: 1.969687519 | D75: 2.355766232 | E75: 1.630387326 | F75: 0 | G75: 0 | I75: 5.955841078
A76: Dyrlæge | C76: 2.353271378 | D76: 2.568452567 | E76: 0.6311981538 | F76: 0 | G76: 0 | I76: 5.552922098
A77: Farmaceut | C77: 38.21742656 | D77: 19.11557413 | E77: 4.613609431 | F77: 2.622091935 | G77: 0 | I77: 64.56870205
A78: Læge | C78: 12.25846691 | D78: 12.8547371 | E78: 0 | F78: 1.676542132 | G78: 0 | I78: 26.78974615
A79: Tandlæge | C79: 3.172831036 | D79: 2.214806961 | E79: 0.9998128859 | F79: 0 | G79: 0 | I79: 6.387450883
A80: Arkitekt | C80: 47.0167779 | D80: 39.15237323 | E80: 23.27449635 | F80: 9.217239444 | G80: 8.18312231 | I80: 126.8440092
A81: Landinspek. | C81: 0 | D81: 0.9998128859 | E81: 0 | F81: 0.9075032745 | G81: 0 | I81: 1.90731616
A82: Bibliotekar | C82: 4.737104722 | D82: 11.68714526 | E82: 6.888916609 | F82: 6.31572382 | G82: 2.527911183 | I82: 32.1568016
A83: Musikudd. | C83: 1.070292522 | D83: 2.962015842 | E83: 0 | F83: 1.118318468 | G83: 0 | I83: 5.150626832
A84: Teolog | C84: 3.835214869 | D84: 11.413335 | E84: 0.4871203144 | F84: 0 | G84: 0.9998128859 | I84: 16.73548307
A85: Psykolog | C85: 22.57780827 | D85: 20.20457806 | E85: 6.850246367 | F85: 2.476142955 | G85: 1.90731616 | I85: 54.01609181
A86: Jurist | C86: 19.08314102 | D86: 21.93787813 | E86: 7.23819622 | F86: 5.61404603 | G86: 3.343104846 | I86: 57.21636624
A87: Økonom | C87: 22.98072725 | D87: 16.09305807 | E87: 8.445082018 | F87: 5.337740909 | G87: 7.894966631 | I87: 60.75157488
A88: Samf. Adm. | C88: 169.4561217 | D88: 157.2899644 | E88: 83.72232271 | F88: 28.39705607 | G88: 7.444645419 | I88: 446.3101104
A89: Cand. Merc. | C89: 146.0893158 | D89: 126.4953533 | E89: 37.64922348 | F89: 20.44595522 | G89: 6.351899208 | I89: 337.031747
A90: HA | C90: 43.90195222 | D90: 14.12025198 | E90: 2.691947858 | F90: 4.219422441 | G90: 2.252229776 | I90: 67.18580428
A91: HD | C91: 34.95540448 | D91: 27.44027942 | E91: 4.913615668 | F91: 5.445019647 | G91: 2.159296451 | I91: 74.91361567
A92: Komm. og Sprog | C92: 30.34553733 | D92: 34.56994948 | E92: 23.92814819 | F92: 11.55242313 | G92: 5.650845132 | I92: 106.0469033
A93: Bygningskonst. | C93: 26.95939625 | D93: 12.47009293 | E93: 4.861535583 | F93: 3.492297137 | G93: 1 | I93: 48.7833219
A94: Cand. IT. | C94: 46.27144015 | D94: 39.51100854 | E94: 14.20258217 | F94: 3.491548681 | G94: 0 | I94: 103.4765796
A95: Bac. Samf. | C95: 14.34229402 | D95: 2.106280796 | E95: 2.81045344 | F95: 3.102975114 | G95: 0 | I95: 22.36200337
A96: Bac. Hum. | C96: 73.1067174 | D96: 32.43373043 | E96: 8.912243498 | F96: 7.942992578 | G96: 1.069668808 | I96: 123.4653527
A97: Bac. Nat. | C97: 67.07041726 | D97: 21.69275869 | E97: 4.88804341 | F97: 1.90731616 | G97: 0.2151811888 | I97: 95.77371671
A98: Andre | C98: 128.7987276 | D98: 182.8185617 | E98: 83.08613485 | F98: 50.17588723 | G98: 31.79255286 | I98: 476.6718643
A100: Total | C100: 1873.653091 | D100: 1624.634379 | E100: 572.7066051 | F100: 301.3436038 | G100: 140.4405289 | I100: 4512.778207
A102: Ingeniører i alt | C102: 157.9199152 | D102: 105.6433606 | E102: 33.58073972 | F102: 23.87700368 | G102: 16.96438595 | I102: 337.9854051
A103: Magistre i alt | C103: 497.009917 | D103: 528.2323957 | E103: 182.7518244 | F103: 90.74533774 | G103: 35.11819373 | I103: 1333.857669
A104: DJØF'ere i alt | C104: 401.511258 | D104: 335.936506 | E104: 139.7467723 | F104: 64.01422067 | G104: 27.28684588 | I104: 968.4956028
A111: Frederiksberg
C113: Under 30 år | D113: 30 - 39 år | E113: 40 - 49 år | F113: 50 - 59 år | G113: Over 60 år | I113: I alt
A115: Civ. ing. | C115: 9.96694318 | D115: 8.922846629 | E115: 0 | F115: 2.522297761 | G115: 3.235826109 | I115: 24.64791368
A116: Diplom ing. | C116: 2.580926838 | D116: 3.693631884 | E116: 2.289652592 | F116: 2.445580989 | G116: 1.491922909 | I116: 12.50171521
A117: Cand. Scient. Tek | C117: 21.37715961 | D117: 15.13503399 | E117: 5.721948481 | F117: 0 | G117: 0.4921100231 | I117: 42.72625211
A118: MA. Hum. | C118: 37.71596083 | D118: 22.82791742 | E118: 27.83010042 | F118: 9.280234516 | G118: 5.705108214 | I118: 103.3593214
A119: MA. Nat. | C119: 7.982910248 | D119: 5.398864841 | E119: 2.999438658 | F119: 1.353458492 | G119: 1.999625772 | I119: 19.73429801
A120: MA. Ph.d. | C120: 0 | D120: 0.1228715774 | E120: 1.299195409 | F120: 0.9474209443 | G120: 0 | I120: 2.369487931
A121: MA. Samf. | C121: 14.30112892 | D121: 12.65015905 | E121: 1.861161355 | F121: 0 | G121: 0.2039543442 | I121: 29.01640367
A122: Øvrige Mag. | C122: 2.933325017 | D122: 2.399426183 | E122: 1.299819123 | F122: 1.677789559 | G122: 0 | I122: 8.310359883
A123: Agronom | C123: 1.999625772 | D123: 0.9998128859 | E123: 0.9998128859 | F123: 0 | G123: 0 | I123: 3.999251544
A124: Landsk. Arkt. | C124: 0.1690263831 | D124: 0 | E124: 0 | F124: 0 | G124: 0 | I124: 0.1690263831
A125: Hortonom | C125: 0.1690263831 | D125: 0 | E125: 0 | F125: 0 | G125: 0 | I125: 0.1690263831
A126: Forstkand. | C126: 0 | D126: 0 | E126: 0 | F126: 0 | G126: 0 | I126: 0
A127: Jordbrugsakad. | C127: 2.337678538 | D127: 0.9998128859 | E127: 0.9998128859 | F127: 0 | G127: 0 | I127: 4.33730431
A128: Mejeriing. | C128: 0 | D128: 0 | E128: 0 | F128: 0 | G128: 0 | I128: 0
A129: Levn.m.kand. | C129: 0 | D129: 0.9998128859 | E129: 0 | F129: 0 | G129: 0 | I129: 0.9998128859
A130: Dyrlæge | C130: 0 | D130: 0 | E130: 0 | F130: 0 | G130: 1.359071914 | I130: 1.359071914
A131: Farmaceut | C131: 5.583484064 | D131: 0 | E131: 0 | F131: 0.9998128859 | G131: 0 | I131: 6.58329695
A132: Læge | C132: 2.095053951 | D132: 2.722509823 | E132: 0 | F132: 0.9998128859 | G132: 0 | I132: 5.817376661
A133: Tandlæge | C133: 0 | D133: 0 | E133: 0 | F133: 0 | G133: 0.9998128859 | I133: 0.9998128859
A134: Arkitekt | C134: 3.537703487 | D134: 6.26021331 | E134: 4.843759746 | F134: 5.998877316 | G134: 1.953470966 | I134: 22.59402482
A135: Landinspek. | C135: 0 | D135: 0.9998128859 | E135: 0.9998128859 | F135: 0 | G135: 0 | I135: 1.999625772
A136: Bibliotekar | C136: 0 | D136: 0 | E136: 6.490363625 | F136: 0.9998128859 | G136: 0 | I136: 7.490176511
A137: Musikudd. | C137: 0 | D137: 0 | E137: 0 | F137: 0 | G137: 0 | I137: 0
A138: Teolog | C138: 0 | D138: 0 | E138: 0 | F138: 0.312480509 | G138: 0 | I138: 0.312480509
A139: Psykolog | C139: 2.307116572 | D139: 5.436287657 | E139: 2.976361255 | F139: 0 | G139: 1.999625772 | I139: 12.71939126
A140: Jurist | C140: 5.445019647 | D140: 1.614794486 | E140: 3.830848874 | F140: 0.9998128859 | G140: 3.920663631 | I140: 15.81113952
A141: Økonom | C141: 2.445580989 | D141: 0.4989708726 | E141: 1.445768103 | F141: 0.9998128859 | G141: 0.8039668184 | I141: 6.194099669
A142: Samf. Adm. | C142: 17.28372731 | D142: 17.05607185 | E142: 5.362065739 | F142: 7.752136219 | G142: 2.768664629 | I142: 50.22266575
A143: Cand. Merc. | C143: 33.53084264 | D143: 12.66325703 | E143: 6.575188673 | F143: 5.398864841 | G143: 0.7072912119 | I143: 58.8754444
A144: HA | C144: 5.66955654 | D144: 3.952473024 | E144: 0 | F144: 0 | G144: 1.813759122 | I144: 11.43578869
A145: HD | C145: 4.256845257 | D145: 1.999625772 | E145: 0.9998128859 | F145: 2.986964386 | G145: 0 | I145: 10.2432483
A146: Komm. og Sprog | C146: 1.078400798 | D146: 9.531591093 | E146: 3.886983097 | F146: 1.999625772 | G146: 1.999625772 | I146: 18.49622653
A147: Bygningskonst. | C147: 0 | D147: 0.4461423314 | E147: 1 | F147: 1.215368303 | G147: 0 | I147: 2.661510634
A148: Cand. IT. | C148: 4.99906443 | D148: 1.78569201 | E148: 1.768851743 | F148: 0.9998128859 | G148: 0 | I148: 9.553421069
A149: Bac. Samf. | C149: 1.353458492 | D149: 0.9998128859 | E149: 0 | F149: 0.9998128859 | G149: 0 | I149: 3.353084264
A150: Bac. Hum. | C150: 7.046716148 | D150: 2.999438658 | E150: 1.999625772 | F150: 0.9998128859 | G150: 0 | I150: 13.04559346
A151: Bac. Nat. | C151: 7.994137092 | D151: 0.5382648288 | E151: 0 | F151: 0.9998128859 | G151: 0 | I151: 9.532214807
A152: Andre | C152: 16.35065178 | D152: 28.077091 | E152: 11.04284912 | F152: 12.8728248 | G152: 7.84257469 | I152: 76.18599139
A154: Total | C154: 220.1733924 | D154: 170.7324269 | E154: 97.52342045 | F154: 65.76224038 | G154: 39.29707478 | I154: 593.4885549
A156: Ingeniører i alt | C156: 12.54787002 | D156: 12.61647851 | E156: 2.289652592 | F156: 4.96787875 | G156: 4.727749018 | I156: 37.14962889
A157: Magistre i alt | C157: 62.93332502 | D157: 43.39923907 | E157: 35.28971496 | F157: 13.25890351 | G157: 7.90868833 | I157: 162.7898709
A158: DJØF'ere i alt | C158: 64.37472713 | D158: 35.78556727 | E158: 17.21387139 | F158: 15.15062683 | G158: 10.01434541 | I158: 142.539138
A165: Ballerup
C167: Under 30 år | D167: 30 - 39 år | E167: 40 - 49 år | F167: 50 - 59 år | G167: Over 60 år | I167: I alt
A169: Civ. ing. | C169: 1.999625772 | D169: 1.999625772 | E169: 0 | F169: 1.999625772 | G169: 0.9998128859 | I169: 6.998690201
A170: Diplom ing. | C170: 0.9168589784 | D170: 0.9998128859 | E170: 1.645356452 | F170: 5.741283603 | G170: 5.491174453 | I170: 14.79448637
A171: Cand. Scient. Tek | C171: 2.143703611 | D171: 1.135782449 | E171: 0 | F171: 0 | G171: 0 | I171: 3.27948606
A172: MA. Hum. | C172: 0 | D172: 1.824985966 | E172: 0.9998128859 | F172: 0.3074908002 | G172: 0 | I172: 3.132289653
A173: MA. Nat. | C173: 0 | D173: 0 | E173: 0.8613484688 | F173: 0 | G173: 0 | I173: 0.8613484688
A174: MA. Ph.d. | C174: 0 | D174: 0 | E174: 0 | F174: 0 | G174: 0 | I174: 0
A175: MA. Samf. | C175: 0.9998128859 | D175: 1.999625772 | E175: 0 | F175: 0 | G175: 0 | I175: 2.999438658
A176: Øvrige Mag. | C176: 0 | D176: 0 | E176: 0.9998128859 | F176: 0 | G176: 0 | I176: 0.9998128859
A177: Agronom | C177: 0 | D177: 0 | E177: 0 | F177: 0 | G177: 0 | I177: 0
A178: Landsk. Arkt. | C178: 0 | D178: 1.399613298 | E178: 0 | F178: 0 | G178: 0 | I178: 1.399613298
A179: Hortonom | C179: 0 | D179: 0 | E179: 0 | F179: 0 | G179: 0 | I179: 0
A180: Forstkand. | C180: 0 | D180: 0 | E180: 0 | F180: 0 | G180: 0 | I180: 0
A181: Jordbrugsakad. | C181: 0 | D181: 1.399613298 | E181: 0 | F181: 0 | G181: 0 | I181: 1.399613298
A182: Mejeriing. | C182: 0.9998128859 | D182: 0 | E182: 0 | F182: 0 | G182: 0 | I182: 0.9998128859
A183: Levn.m.kand. | C183: 0 | D183: 0 | E183: 0 | F183: 0 | G183: 0 | I183: 0
A184: Dyrlæge | C184: 0 | D184: 0 | E184: 0 | F184: 0 | G184: 0 | I184: 0
A185: Farmaceut | C185: 0 | D185: 0 | E185: 0 | F185: 0 | G185: 0 | I185: 0
A186: Læge | C186: 0 | D186: 1.538077715 | E186: 0 | F186: 0 | G186: 0 | I186: 1.538077715
A187: Tandlæge | C187: 0 | D187: 0 | E187: 0 | F187: 0 | G187: 0 | I187: 0
A188: Arkitekt | C188: 0 | D188: 0.8251730805 | E188: 0 | F188: 0 | G188: 0 | I188: 0.8251730805
A189: Landinspek. | C189: 0 | D189: 0 | E189: 0 | F189: 0 | G189: 0 | I189: 0
A190: Bibliotekar | C190: 0 | D190: 0.9998128859 | E190: 1.214994075 | F190: 0 | G190: 0 | I190: 2.214806961
A191: Musikudd. | C191: 0 | D191: 0 | E191: 0 | F191: 0 | G191: 0 | I191: 0
A192: Teolog | C192: 0 | D192: 0 | E192: 0 | F192: 0 | G192: 0 | I192: 0
A193: Psykolog | C193: 0 | D193: 0 | E193: 0.3349341982 | F193: 0 | G193: 0 | I193: 0.3349341982
A194: Jurist | C194: 0.7565645855 | D194: 1.560531404 | E194: 0.6767292459 | F194: 0 | G194: 0 | I194: 2.993825235
A195: Økonom | C195: 0 | D195: 0.2613359945 | E195: 0.9998128859 | F195: 0 | G195: 0 | I195: 1.26114888
A196: Samf. Adm. | C196: 0.9998128859 | D196: 1.922909 | E196: 1.538077715 | F196: 0.9536580802 | G196: 0 | I196: 5.414457681
A197: Cand. Merc. | C197: 0.9623900705 | D197: 0.9075032745 | E197: 0.9998128859 | F197: 0.9998128859 | G197: 0 | I197: 3.869519117
A198: HA | C198: 0.7690388574 | D198: 0 | E198: 0 | F198: 0 | G198: 0 | I198: 0.7690388574
A199: HD | C199: 0 | D199: 0.9998128859 | E199: 0.4459552174 | F199: 0.8613484688 | G199: 0.9998128859 | I199: 3.306929458
A200: Komm. og Sprog | C200: 0 | D200: 0 | E200: 0 | F200: 0 | G200: 0 | I200: 0
A201: Bygningskonst. | C201: 1 | D201: 0 | E201: 0 | F201: 0 | G201: 0 | I201: 1
A202: Cand. IT. | C202: 0 | D202: 0 | E202: 0.3935632757 | F202: 0 | G202: 0 | I202: 0.3935632757
A203: Bac. Samf. | C203: 0 | D203: 0 | E203: 0 | F203: 0.9075032745 | G203: 0 | I203: 0.9075032745
A204: Bac. Hum. | C204: 0 | D204: 0 | E204: 0 | F204: 0 | G204: 0 | I204: 0
A205: Bac. Nat. | C205: 2.920850745 | D205: 2.491735795 | E205: 0.8295390757 | F205: 0 | G205: 0 | I205: 6.242125616
A206: Andre | C206: 2.999438658 | D206: 2.8591031 | E206: 1.999625772 | F206: 1.993388636 | G206: 0 | I206: 9.851556165
A208: Total | C208: 17.46790994 | D208: 23.72544128 | E208: 13.93937504 | F208: 13.76411152 | G208: 7.490800225 | I208: 76.387638
A210: Ingeniører i alt | C210: 2.91648475 | D210: 2.999438658 | E210: 1.645356452 | F210: 7.740909374 | G210: 6.490987339 | I210: 21.79317657
A211: Magistre i alt | C211: 0.9998128859 | D211: 3.824611738 | E211: 2.860974241 | F211: 0.3074908002 | G211: 0 | I211: 7.992889665
A212: DJØF'ere i alt | C212: 3.487806399 | D212: 4.652279673 | E212: 4.214432732 | F212: 1.953470966 | G212: 0 | I212: 14.30798977
A219: Brøndby
C221: Under 30 år | D221: 30 - 39 år | E221: 40 - 49 år | F221: 50 - 59 år | G221: Over 60 år | I221: I alt
A223: Civ. ing. | C223: 2.999438658 | D223: 1.999625772 | E223: 0 | F223: 0 | G223: 0.9673797792 | I223: 5.966444209
A224: Diplom ing. | C224: 2.999438658 | D224: 0 | E224: 0 | F224: 0.5382648288 | G224: 0 | I224: 3.537703487
A225: Cand. Scient. Tek | C225: 3.999251544 | D225: 0.4584294892 | E225: 0 | F225: 0 | G225: 0 | I225: 4.457681033
A226: MA. Hum. | C226: 1.984032932 | D226: 2.999438658 | E226: 0.7596831535 | F226: 1.634753321 | G226: 0 | I226: 7.377908065
A227: MA. Nat. | C227: 0.3480321836 | D227: 0 | E227: 0 | F227: 0 | G227: 0.8850495852 | I227: 1.233081769
A228: MA. Ph.d. | C228: 0 | D228: 0 | E228: 0 | F228: 0 | G228: 0 | I228: 0
A229: MA. Samf. | C229: 2.999438658 | D229: 0 | E229: 0 | F229: 0 | G229: 0 | I229: 2.999438658
A230: Øvrige Mag. | C230: 0 | D230: 0.9075032745 | E230: 0 | F230: 0 | G230: 0 | I230: 0.9075032745
A231: Agronom | C231: 0 | D231: 0 | E231: 0 | F231: 0 | G231: 0 | I231: 0
A232: Landsk. Arkt. | C232: 0 | D232: 0 | E232: 0 | F232: 0 | G232: 0 | I232: 0
A233: Hortonom | C233: 0 | D233: 0 | E233: 0 | F233: 0 | G233: 0 | I233: 0
A234: Forstkand. | C234: 0 | D234: 0 | E234: 0 | F234: 0 | G234: 0 | I234: 0
A235: Jordbrugsakad. | C235: 0 | D235: 0 | E235: 0 | F235: 0 | G235: 0 | I235: 0
A236: Mejeriing. | C236: 0 | D236: 0 | E236: 0 | F236: 0 | G236: 0 | I236: 0
A237: Levn.m.kand. | C237: 0 | D237: 0 | E237: 0 | F237: 0 | G237: 0 | I237: 0
A238: Dyrlæge | C238: 0 | D238: 0 | E238: 0 | F238: 0 | G238: 0 | I238: 0
A239: Farmaceut | C239: 0 | D239: 0.9998128859 | E239: 0 | F239: 0 | G239: 0 | I239: 0.9998128859
A240: Læge | C240: 0 | D240: 0 | E240: 0 | F240: 0 | G240: 0 | I240: 0
A241: Tandlæge | C241: 0 | D241: 0 | E241: 0 | F241: 0 | G241: 0 | I241: 0
A242: Arkitekt | C242: 0 | D242: 0 | E242: 0 | F242: 0 | G242: 0 | I242: 0
A243: Landinspek. | C243: 0 | D243: 0 | E243: 0 | F243: 0 | G243: 0 | I243: 0
... 1077 more rows

Sheet Tabel 4P H
A1: Tabel 4. Ledighedsberørte - aldersfordelt
A3: Hovedstaden
C5: Under 30 år | D5: 30 - 39 år | E5: 40 - 49 år | F5: 50 - 59 år | G5: Over 60 år | I5: I alt
A7: Civ. ing. | C7: =IF(OR('Tabel 4F H'!C7<5,'Tabel 4 H'!C7<0.5),"-",IFERROR('Tabel 4 H'!C7/'Tabel 4F H'!C7*100,"-")) -> 8.471760797 | D7: =IF(OR('Tabel 4F H'!D7<5,'Tabel 4 H'!D7<0.5),"-",IFERROR('Tabel 4 H'!D7/'Tabel 4F H'!D7*100,"-")) -> 2.487309645 | E7: =IF(OR('Tabel 4F H'!E7<5,'Tabel 4 H'!E7<0.5),"-",IFERROR('Tabel 4 H'!E7/'Tabel 4F H'!E7*100,"-")) -> 0.9350275713 | F7: =IF(OR('Tabel 4F H'!F7<5,'Tabel 4 H'!F7<0.5),"-",IFERROR('Tabel 4 H'!F7/'Tabel 4F H'!F7*100,"-")) -> 1.10323089 | G7: =IF(OR('Tabel 4F H'!G7<5,'Tabel 4 H'!G7<0.5),"-",IFERROR('Tabel 4 H'!G7/'Tabel 4F H'!G7*100,"-")) -> 3.046062407 | I7: =IF(OR('Tabel 4F H'!I7<5,'Tabel 4 H'!I7<0.5),"-",IFERROR('Tabel 4 H'!I7/'Tabel 4F H'!I7*100,"-")) -> 2.872177154
A8: Diplom ing. | C8: =IF(OR('Tabel 4F H'!C8<5,'Tabel 4 H'!C8<0.5),"-",IFERROR('Tabel 4 H'!C8/'Tabel 4F H'!C8*100,"-")) -> 6.734317343 | D8: =IF(OR('Tabel 4F H'!D8<5,'Tabel 4 H'!D8<0.5),"-",IFERROR('Tabel 4 H'!D8/'Tabel 4F H'!D8*100,"-")) -> 3.19001387 | E8: =IF(OR('Tabel 4F H'!E8<5,'Tabel 4 H'!E8<0.5),"-",IFERROR('Tabel 4 H'!E8/'Tabel 4F H'!E8*100,"-")) -> 1.733286169 | F8: =IF(OR('Tabel 4F H'!F8<5,'Tabel 4 H'!F8<0.5),"-",IFERROR('Tabel 4 H'!F8/'Tabel 4F H'!F8*100,"-")) -> 1.739508589 | G8: =IF(OR('Tabel 4F H'!G8<5,'Tabel 4 H'!G8<0.5),"-",IFERROR('Tabel 4 H'!G8/'Tabel 4F H'!G8*100,"-")) -> 3.371428571 | I8: =IF(OR('Tabel 4F H'!I8<5,'Tabel 4 H'!I8<0.5),"-",IFERROR('Tabel 4 H'!I8/'Tabel 4F H'!I8*100,"-")) -> 2.656363197
A9: Cand. Scient. Tek | C9: =IF(OR('Tabel 4F H'!C9<5,'Tabel 4 H'!C9<0.5),"-",IFERROR('Tabel 4 H'!C9/'Tabel 4F H'!C9*100,"-")) -> 13.15614618 | D9: =IF(OR('Tabel 4F H'!D9<5,'Tabel 4 H'!D9<0.5),"-",IFERROR('Tabel 4 H'!D9/'Tabel 4F H'!D9*100,"-")) -> 4.548540394 | E9: =IF(OR('Tabel 4F H'!E9<5,'Tabel 4 H'!E9<0.5),"-",IFERROR('Tabel 4 H'!E9/'Tabel 4F H'!E9*100,"-")) -> 2.834908282 | F9: =IF(OR('Tabel 4F H'!F9<5,'Tabel 4 H'!F9<0.5),"-",IFERROR('Tabel 4 H'!F9/'Tabel 4F H'!F9*100,"-")) -> 1.692307692 | G9: =IF(OR('Tabel 4F H'!G9<5,'Tabel 4 H'!G9<0.5),"-",IFERROR('Tabel 4 H'!G9/'Tabel 4F H'!G9*100,"-")) -> 5.263157895 | I9: =IF(OR('Tabel 4F H'!I9<5,'Tabel 4 H'!I9<0.5),"-",IFERROR('Tabel 4 H'!I9/'Tabel 4F H'!I9*100,"-")) -> 6.382793452
A10: MA. Hum. | C10: =IF(OR('Tabel 4F H'!C10<5,'Tabel 4 H'!C10<0.5),"-",IFERROR('Tabel 4 H'!C10/'Tabel 4F H'!C10*100,"-")) -> 18.88446215 | D10: =IF(OR('Tabel 4F H'!D10<5,'Tabel 4 H'!D10<0.5),"-",IFERROR('Tabel 4 H'!D10/'Tabel 4F H'!D10*100,"-")) -> 8.098880087 | E10: =IF(OR('Tabel 4F H'!E10<5,'Tabel 4 H'!E10<0.5),"-",IFERROR('Tabel 4 H'!E10/'Tabel 4F H'!E10*100,"-")) -> 3.77675841 | F10: =IF(OR('Tabel 4F H'!F10<5,'Tabel 4 H'!F10<0.5),"-",IFERROR('Tabel 4 H'!F10/'Tabel 4F H'!F10*100,"-")) -> 4.612794613 | G10: =IF(OR('Tabel 4F H'!G10<5,'Tabel 4 H'!G10<0.5),"-",IFERROR('Tabel 4 H'!G10/'Tabel 4F H'!G10*100,"-")) -> 5.656759348 | I10: =IF(OR('Tabel 4F H'!I10<5,'Tabel 4 H'!I10<0.5),"-",IFERROR('Tabel 4 H'!I10/'Tabel 4F H'!I10*100,"-")) -> 7.407407407
A11: MA. Nat. | C11: =IF(OR('Tabel 4F H'!C11<5,'Tabel 4 H'!C11<0.5),"-",IFERROR('Tabel 4 H'!C11/'Tabel 4F H'!C11*100,"-")) -> 18.04511278 | D11: =IF(OR('Tabel 4F H'!D11<5,'Tabel 4 H'!D11<0.5),"-",IFERROR('Tabel 4 H'!D11/'Tabel 4F H'!D11*100,"-")) -> 5 | E11: =IF(OR('Tabel 4F H'!E11<5,'Tabel 4 H'!E11<0.5),"-",IFERROR('Tabel 4 H'!E11/'Tabel 4F H'!E11*100,"-")) -> 1.767241379 | F11: =IF(OR('Tabel 4F H'!F11<5,'Tabel 4 H'!F11<0.5),"-",IFERROR('Tabel 4 H'!F11/'Tabel 4F H'!F11*100,"-")) -> 1.217656012 | G11: =IF(OR('Tabel 4F H'!G11<5,'Tabel 4 H'!G11<0.5),"-",IFERROR('Tabel 4 H'!G11/'Tabel 4F H'!G11*100,"-")) -> 2.796271638 | I11: =IF(OR('Tabel 4F H'!I11<5,'Tabel 4 H'!I11<0.5),"-",IFERROR('Tabel 4 H'!I11/'Tabel 4F H'!I11*100,"-")) -> 3.644519204
A12: MA. Ph.d. | C12: =IF(OR('Tabel 4F H'!C12<5,'Tabel 4 H'!C12<0.5),"-",IFERROR('Tabel 4 H'!C12/'Tabel 4F H'!C12*100,"-")) -> 14.28571429 | D12: =IF(OR('Tabel 4F H'!D12<5,'Tabel 4 H'!D12<0.5),"-",IFERROR('Tabel 4 H'!D12/'Tabel 4F H'!D12*100,"-")) -> 3.142857143 | E12: =IF(OR('Tabel 4F H'!E12<5,'Tabel 4 H'!E12<0.5),"-",IFERROR('Tabel 4 H'!E12/'Tabel 4F H'!E12*100,"-")) -> 3.781512605 | F12: =IF(OR('Tabel 4F H'!F12<5,'Tabel 4 H'!F12<0.5),"-",IFERROR('Tabel 4 H'!F12/'Tabel 4F H'!F12*100,"-")) -> 1.871657754 | G12: =IF(OR('Tabel 4F H'!G12<5,'Tabel 4 H'!G12<0.5),"-",IFERROR('Tabel 4 H'!G12/'Tabel 4F H'!G12*100,"-")) -> 5.263157895 | I12: =IF(OR('Tabel 4F H'!I12<5,'Tabel 4 H'!I12<0.5),"-",IFERROR('Tabel 4 H'!I12/'Tabel 4F H'!I12*100,"-")) -> 3.284950344
A13: MA. Samf. | C13: =IF(OR('Tabel 4F H'!C13<5,'Tabel 4 H'!C13<0.5),"-",IFERROR('Tabel 4 H'!C13/'Tabel 4F H'!C13*100,"-")) -> 17.30141458 | D13: =IF(OR('Tabel 4F H'!D13<5,'Tabel 4 H'!D13<0.5),"-",IFERROR('Tabel 4 H'!D13/'Tabel 4F H'!D13*100,"-")) -> 8.796041781 | E13: =IF(OR('Tabel 4F H'!E13<5,'Tabel 4 H'!E13<0.5),"-",IFERROR('Tabel 4 H'!E13/'Tabel 4F H'!E13*100,"-")) -> 5.296950241 | F13: =IF(OR('Tabel 4F H'!F13<5,'Tabel 4 H'!F13<0.5),"-",IFERROR('Tabel 4 H'!F13/'Tabel 4F H'!F13*100,"-")) -> 5.614035088 | G13: =IF(OR('Tabel 4F H'!G13<5,'Tabel 4 H'!G13<0.5),"-",IFERROR('Tabel 4 H'!G13/'Tabel 4F H'!G13*100,"-")) -> 7.272727273 | I13: =IF(OR('Tabel 4F H'!I13<5,'Tabel 4 H'!I13<0.5),"-",IFERROR('Tabel 4 H'!I13/'Tabel 4F H'!I13*100,"-")) -> 10.05133748
A14: Øvrige Mag. | C14: =IF(OR('Tabel 4F H'!C14<5,'Tabel 4 H'!C14<0.5),"-",IFERROR('Tabel 4 H'!C14/'Tabel 4F H'!C14*100,"-")) -> 21.29963899 | D14: =IF(OR('Tabel 4F H'!D14<5,'Tabel 4 H'!D14<0.5),"-",IFERROR('Tabel 4 H'!D14/'Tabel 4F H'!D14*100,"-")) -> 10.60240964 | E14: =IF(OR('Tabel 4F H'!E14<5,'Tabel 4 H'!E14<0.5),"-",IFERROR('Tabel 4 H'!E14/'Tabel 4F H'!E14*100,"-")) -> 5.2734375 | F14: =IF(OR('Tabel 4F H'!F14<5,'Tabel 4 H'!F14<0.5),"-",IFERROR('Tabel 4 H'!F14/'Tabel 4F H'!F14*100,"-")) -> 2.663438257 | G14: =IF(OR('Tabel 4F H'!G14<5,'Tabel 4 H'!G14<0.5),"-",IFERROR('Tabel 4 H'!G14/'Tabel 4F H'!G14*100,"-")) -> 2.380952381 | I14: =IF(OR('Tabel 4F H'!I14<5,'Tabel 4 H'!I14<0.5),"-",IFERROR('Tabel 4 H'!I14/'Tabel 4F H'!I14*100,"-")) -> 8.2616179
A15: Agronom | C15: =IF(OR('Tabel 4F H'!C15<5,'Tabel 4 H'!C15<0.5),"-",IFERROR('Tabel 4 H'!C15/'Tabel 4F H'!C15*100,"-")) -> 10.9375 | D15: =IF(OR('Tabel 4F H'!D15<5,'Tabel 4 H'!D15<0.5),"-",IFERROR('Tabel 4 H'!D15/'Tabel 4F H'!D15*100,"-")) -> 5.714285714 | E15: =IF(OR('Tabel 4F H'!E15<5,'Tabel 4 H'!E15<0.5),"-",IFERROR('Tabel 4 H'!E15/'Tabel 4F H'!E15*100,"-")) -> 1.052631579 | F15: =IF(OR('Tabel 4F H'!F15<5,'Tabel 4 H'!F15<0.5),"-",IFERROR('Tabel 4 H'!F15/'Tabel 4F H'!F15*100,"-")) -> 2.671755725 | G15: =IF(OR('Tabel 4F H'!G15<5,'Tabel 4 H'!G15<0.5),"-",IFERROR('Tabel 4 H'!G15/'Tabel 4F H'!G15*100,"-")) -> 2.857142857 | I15: =IF(OR('Tabel 4F H'!I15<5,'Tabel 4 H'!I15<0.5),"-",IFERROR('Tabel 4 H'!I15/'Tabel 4F H'!I15*100,"-")) -> 4.186046512
A16: Landsk. Arkt. | C16: =IF(OR('Tabel 4F H'!C16<5,'Tabel 4 H'!C16<0.5),"-",IFERROR('Tabel 4 H'!C16/'Tabel 4F H'!C16*100,"-")) -> 12.06896552 | D16: =IF(OR('Tabel 4F H'!D16<5,'Tabel 4 H'!D16<0.5),"-",IFERROR('Tabel 4 H'!D16/'Tabel 4F H'!D16*100,"-")) -> 7.103825137 | E16: =IF(OR('Tabel 4F H'!E16<5,'Tabel 4 H'!E16<0.5),"-",IFERROR('Tabel 4 H'!E16/'Tabel 4F H'!E16*100,"-")) -> 2.097902098 | F16: =IF(OR('Tabel 4F H'!F16<5,'Tabel 4 H'!F16<0.5),"-",IFERROR('Tabel 4 H'!F16/'Tabel 4F H'!F16*100,"-")) -> 1.149425287 | G16: =IF(OR('Tabel 4F H'!G16<5,'Tabel 4 H'!G16<0.5),"-",IFERROR('Tabel 4 H'!G16/'Tabel 4F H'!G16*100,"-")) -> - | I16: =IF(OR('Tabel 4F H'!I16<5,'Tabel 4 H'!I16<0.5),"-",IFERROR('Tabel 4 H'!I16/'Tabel 4F H'!I16*100,"-")) -> 4.858299595
A17: Hortonom | C17: =IF(OR('Tabel 4F H'!C17<5,'Tabel 4 H'!C17<0.5),"-",IFERROR('Tabel 4 H'!C17/'Tabel 4F H'!C17*100,"-")) -> - | D17: =IF(OR('Tabel 4F H'!D17<5,'Tabel 4 H'!D17<0.5),"-",IFERROR('Tabel 4 H'!D17/'Tabel 4F H'!D17*100,"-")) -> 8.333333333 | E17: =IF(OR('Tabel 4F H'!E17<5,'Tabel 4 H'!E17<0.5),"-",IFERROR('Tabel 4 H'!E17/'Tabel 4F H'!E17*100,"-")) -> 2.857142857 | F17: =IF(OR('Tabel 4F H'!F17<5,'Tabel 4 H'!F17<0.5),"-",IFERROR('Tabel 4 H'!F17/'Tabel 4F H'!F17*100,"-")) -> 1.388888889 | G17: =IF(OR('Tabel 4F H'!G17<5,'Tabel 4 H'!G17<0.5),"-",IFERROR('Tabel 4 H'!G17/'Tabel 4F H'!G17*100,"-")) -> 7.407407407 | I17: =IF(OR('Tabel 4F H'!I17<5,'Tabel 4 H'!I17<0.5),"-",IFERROR('Tabel 4 H'!I17/'Tabel 4F H'!I17*100,"-")) -> 4.054054054
A18: Forstkand. | C18: =IF(OR('Tabel 4F H'!C18<5,'Tabel 4 H'!C18<0.5),"-",IFERROR('Tabel 4 H'!C18/'Tabel 4F H'!C18*100,"-")) -> 15 | D18: =IF(OR('Tabel 4F H'!D18<5,'Tabel 4 H'!D18<0.5),"-",IFERROR('Tabel 4 H'!D18/'Tabel 4F H'!D18*100,"-")) -> 6.666666667 | E18: =IF(OR('Tabel 4F H'!E18<5,'Tabel 4 H'!E18<0.5),"-",IFERROR('Tabel 4 H'!E18/'Tabel 4F H'!E18*100,"-")) -> 1.063829787 | F18: =IF(OR('Tabel 4F H'!F18<5,'Tabel 4 H'!F18<0.5),"-",IFERROR('Tabel 4 H'!F18/'Tabel 4F H'!F18*100,"-")) -> 6.060606061 | G18: =IF(OR('Tabel 4F H'!G18<5,'Tabel 4 H'!G18<0.5),"-",IFERROR('Tabel 4 H'!G18/'Tabel 4F H'!G18*100,"-")) -> 3.333333333 | I18: =IF(OR('Tabel 4F H'!I18<5,'Tabel 4 H'!I18<0.5),"-",IFERROR('Tabel 4 H'!I18/'Tabel 4F H'!I18*100,"-")) -> 4.705882353
A19: Jordbrugsakad. | C19: =IF(OR('Tabel 4F H'!C19<5,'Tabel 4 H'!C19<0.5),"-",IFERROR('Tabel 4 H'!C19/'Tabel 4F H'!C19*100,"-")) -> 12.01923077 | D19: =IF(OR('Tabel 4F H'!D19<5,'Tabel 4 H'!D19<0.5),"-",IFERROR('Tabel 4 H'!D19/'Tabel 4F H'!D19*100,"-")) -> 6.506024096 | E19: =IF(OR('Tabel 4F H'!E19<5,'Tabel 4 H'!E19<0.5),"-",IFERROR('Tabel 4 H'!E19/'Tabel 4F H'!E19*100,"-")) -> 1.515151515 | F19: =IF(OR('Tabel 4F H'!F19<5,'Tabel 4 H'!F19<0.5),"-",IFERROR('Tabel 4 H'!F19/'Tabel 4F H'!F19*100,"-")) -> 2.669404517 | G19: =IF(OR('Tabel 4F H'!G19<5,'Tabel 4 H'!G19<0.5),"-",IFERROR('Tabel 4 H'!G19/'Tabel 4F H'!G19*100,"-")) -> 3.243243243 | I19: =IF(OR('Tabel 4F H'!I19<5,'Tabel 4 H'!I19<0.5),"-",IFERROR('Tabel 4 H'!I19/'Tabel 4F H'!I19*100,"-")) -> 4.439385316
A20: Mejeriing. | C20: =IF(OR('Tabel 4F H'!C20<5,'Tabel 4 H'!C20<0.5),"-",IFERROR('Tabel 4 H'!C20/'Tabel 4F H'!C20*100,"-")) -> 14.28571429 | D20: =IF(OR('Tabel 4F H'!D20<5,'Tabel 4 H'!D20<0.5),"-",IFERROR('Tabel 4 H'!D20/'Tabel 4F H'!D20*100,"-")) -> 6.12244898 | E20: =IF(OR('Tabel 4F H'!E20<5,'Tabel 4 H'!E20<0.5),"-",IFERROR('Tabel 4 H'!E20/'Tabel 4F H'!E20*100,"-")) -> - | F20: =IF(OR('Tabel 4F H'!F20<5,'Tabel 4 H'!F20<0.5),"-",IFERROR('Tabel 4 H'!F20/'Tabel 4F H'!F20*100,"-")) -> - | G20: =IF(OR('Tabel 4F H'!G20<5,'Tabel 4 H'!G20<0.5),"-",IFERROR('Tabel 4 H'!G20/'Tabel 4F H'!G20*100,"-")) -> - | I20: =IF(OR('Tabel 4F H'!I20<5,'Tabel 4 H'!I20<0.5),"-",IFERROR('Tabel 4 H'!I20/'Tabel 4F H'!I20*100,"-")) -> 4.697986577
A21: Levn.m.kand. | C21: =IF(OR('Tabel 4F H'!C21<5,'Tabel 4 H'!C21<0.5),"-",IFERROR('Tabel 4 H'!C21/'Tabel 4F H'!C21*100,"-")) -> 4.838709677 | D21: =IF(OR('Tabel 4F H'!D21<5,'Tabel 4 H'!D21<0.5),"-",IFERROR('Tabel 4 H'!D21/'Tabel 4F H'!D21*100,"-")) -> 2.298850575 | E21: =IF(OR('Tabel 4F H'!E21<5,'Tabel 4 H'!E21<0.5),"-",IFERROR('Tabel 4 H'!E21/'Tabel 4F H'!E21*100,"-")) -> 3.703703704 | F21: =IF(OR('Tabel 4F H'!F21<5,'Tabel 4 H'!F21<0.5),"-",IFERROR('Tabel 4 H'!F21/'Tabel 4F H'!F21*100,"-")) -> - | G21: =IF(OR('Tabel 4F H'!G21<5,'Tabel 4 H'!G21<0.5),"-",IFERROR('Tabel 4 H'!G21/'Tabel 4F H'!G21*100,"-")) -> - | I21: =IF(OR('Tabel 4F H'!I21<5,'Tabel 4 H'!I21<0.5),"-",IFERROR('Tabel 4 H'!I21/'Tabel 4F H'!I21*100,"-")) -> 3.039513678
A22: Dyrlæge | C22: =IF(OR('Tabel 4F H'!C22<5,'Tabel 4 H'!C22<0.5),"-",IFERROR('Tabel 4 H'!C22/'Tabel 4F H'!C22*100,"-")) -> 2.666666667 | D22: =IF(OR('Tabel 4F H'!D22<5,'Tabel 4 H'!D22<0.5),"-",IFERROR('Tabel 4 H'!D22/'Tabel 4F H'!D22*100,"-")) -> 1.891891892 | E22: =IF(OR('Tabel 4F H'!E22<5,'Tabel 4 H'!E22<0.5),"-",IFERROR('Tabel 4 H'!E22/'Tabel 4F H'!E22*100,"-")) -> 1.34529148 | F22: =IF(OR('Tabel 4F H'!F22<5,'Tabel 4 H'!F22<0.5),"-",IFERROR('Tabel 4 H'!F22/'Tabel 4F H'!F22*100,"-")) -> 0.6622516556 | G22: =IF(OR('Tabel 4F H'!G22<5,'Tabel 4 H'!G22<0.5),"-",IFERROR('Tabel 4 H'!G22/'Tabel 4F H'!G22*100,"-")) -> 2.702702703 | I22: =IF(OR('Tabel 4F H'!I22<5,'Tabel 4 H'!I22<0.5),"-",IFERROR('Tabel 4 H'!I22/'Tabel 4F H'!I22*100,"-")) -> 1.756198347
A23: Farmaceut | C23: =IF(OR('Tabel 4F H'!C23<5,'Tabel 4 H'!C23<0.5),"-",IFERROR('Tabel 4 H'!C23/'Tabel 4F H'!C23*100,"-")) -> 10.52631579 | D23: =IF(OR('Tabel 4F H'!D23<5,'Tabel 4 H'!D23<0.5),"-",IFERROR('Tabel 4 H'!D23/'Tabel 4F H'!D23*100,"-")) -> 2.486812359 | E23: =IF(OR('Tabel 4F H'!E23<5,'Tabel 4 H'!E23<0.5),"-",IFERROR('Tabel 4 H'!E23/'Tabel 4F H'!E23*100,"-")) -> 0.5714285714 | F23: =IF(OR('Tabel 4F H'!F23<5,'Tabel 4 H'!F23<0.5),"-",IFERROR('Tabel 4 H'!F23/'Tabel 4F H'!F23*100,"-")) -> 1.681957187 | G23: =IF(OR('Tabel 4F H'!G23<5,'Tabel 4 H'!G23<0.5),"-",IFERROR('Tabel 4 H'!G23/'Tabel 4F H'!G23*100,"-")) -> 1.276595745 | I23: =IF(OR('Tabel 4F H'!I23<5,'Tabel 4 H'!I23<0.5),"-",IFERROR('Tabel 4 H'!I23/'Tabel 4F H'!I23*100,"-")) -> 3.093047035
A24: Læge | C24: =IF(OR('Tabel 4F H'!C24<5,'Tabel 4 H'!C24<0.5),"-",IFERROR('Tabel 4 H'!C24/'Tabel 4F H'!C24*100,"-")) -> 2.615193026 | D24: =IF(OR('Tabel 4F H'!D24<5,'Tabel 4 H'!D24<0.5),"-",IFERROR('Tabel 4 H'!D24/'Tabel 4F H'!D24*100,"-")) -> 1.54109589 | E24: =IF(OR('Tabel 4F H'!E24<5,'Tabel 4 H'!E24<0.5),"-",IFERROR('Tabel 4 H'!E24/'Tabel 4F H'!E24*100,"-")) -> 0.2749770852 | F24: =IF(OR('Tabel 4F H'!F24<5,'Tabel 4 H'!F24<0.5),"-",IFERROR('Tabel 4 H'!F24/'Tabel 4F H'!F24*100,"-")) -> 0.4366812227 | G24: =IF(OR('Tabel 4F H'!G24<5,'Tabel 4 H'!G24<0.5),"-",IFERROR('Tabel 4 H'!G24/'Tabel 4F H'!G24*100,"-")) -> 0.2057613169 | I24: =IF(OR('Tabel 4F H'!I24<5,'Tabel 4 H'!I24<0.5),"-",IFERROR('Tabel 4 H'!I24/'Tabel 4F H'!I24*100,"-")) -> 1.184527115
A25: Tandlæge | C25: =IF(OR('Tabel 4F H'!C25<5,'Tabel 4 H'!C25<0.5),"-",IFERROR('Tabel 4 H'!C25/'Tabel 4F H'!C25*100,"-")) -> 4.72972973 | D25: =IF(OR('Tabel 4F H'!D25<5,'Tabel 4 H'!D25<0.5),"-",IFERROR('Tabel 4 H'!D25/'Tabel 4F H'!D25*100,"-")) -> 1.986754967 | E25: =IF(OR('Tabel 4F H'!E25<5,'Tabel 4 H'!E25<0.5),"-",IFERROR('Tabel 4 H'!E25/'Tabel 4F H'!E25*100,"-")) -> 1.015228426 | F25: =IF(OR('Tabel 4F H'!F25<5,'Tabel 4 H'!F25<0.5),"-",IFERROR('Tabel 4 H'!F25/'Tabel 4F H'!F25*100,"-")) -> 1.481481481 | G25: =IF(OR('Tabel 4F H'!G25<5,'Tabel 4 H'!G25<0.5),"-",IFERROR('Tabel 4 H'!G25/'Tabel 4F H'!G25*100,"-")) -> 2.409638554 | I25: =IF(OR('Tabel 4F H'!I25<5,'Tabel 4 H'!I25<0.5),"-",IFERROR('Tabel 4 H'!I25/'Tabel 4F H'!I25*100,"-")) -> 2.196531792
A26: Arkitekt | C26: =IF(OR('Tabel 4F H'!C26<5,'Tabel 4 H'!C26<0.5),"-",IFERROR('Tabel 4 H'!C26/'Tabel 4F H'!C26*100,"-")) -> 19.92882562 | D26: =IF(OR('Tabel 4F H'!D26<5,'Tabel 4 H'!D26<0.5),"-",IFERROR('Tabel 4 H'!D26/'Tabel 4F H'!D26*100,"-")) -> 5.483271375 | E26: =IF(OR('Tabel 4F H'!E26<5,'Tabel 4 H'!E26<0.5),"-",IFERROR('Tabel 4 H'!E26/'Tabel 4F H'!E26*100,"-")) -> 3.079555175 | F26: =IF(OR('Tabel 4F H'!F26<5,'Tabel 4 H'!F26<0.5),"-",IFERROR('Tabel 4 H'!F26/'Tabel 4F H'!F26*100,"-")) -> 2.473958333 | G26: =IF(OR('Tabel 4F H'!G26<5,'Tabel 4 H'!G26<0.5),"-",IFERROR('Tabel 4 H'!G26/'Tabel 4F H'!G26*100,"-")) -> 5.614973262 | I26: =IF(OR('Tabel 4F H'!I26<5,'Tabel 4 H'!I26<0.5),"-",IFERROR('Tabel 4 H'!I26/'Tabel 4F H'!I26*100,"-")) -> 5.207197383
A27: Landinspek. | C27: =IF(OR('Tabel 4F H'!C27<5,'Tabel 4 H'!C27<0.5),"-",IFERROR('Tabel 4 H'!C27/'Tabel 4F H'!C27*100,"-")) -> - | D27: =IF(OR('Tabel 4F H'!D27<5,'Tabel 4 H'!D27<0.5),"-",IFERROR('Tabel 4 H'!D27/'Tabel 4F H'!D27*100,"-")) -> 3.921568627 | E27: =IF(OR('Tabel 4F H'!E27<5,'Tabel 4 H'!E27<0.5),"-",IFERROR('Tabel 4 H'!E27/'Tabel 4F H'!E27*100,"-")) -> 2 | F27: =IF(OR('Tabel 4F H'!F27<5,'Tabel 4 H'!F27<0.5),"-",IFERROR('Tabel 4 H'!F27/'Tabel 4F H'!F27*100,"-")) -> 2.173913043 | G27: =IF(OR('Tabel 4F H'!G27<5,'Tabel 4 H'!G27<0.5),"-",IFERROR('Tabel 4 H'!G27/'Tabel 4F H'!G27*100,"-")) -> - | I27: =IF(OR('Tabel 4F H'!I27<5,'Tabel 4 H'!I27<0.5),"-",IFERROR('Tabel 4 H'!I27/'Tabel 4F H'!I27*100,"-")) -> 2.105263158
A28: Bibliotekar | C28: =IF(OR('Tabel 4F H'!C28<5,'Tabel 4 H'!C28<0.5),"-",IFERROR('Tabel 4 H'!C28/'Tabel 4F H'!C28*100,"-")) -> 15.38461538 | D28: =IF(OR('Tabel 4F H'!D28<5,'Tabel 4 H'!D28<0.5),"-",IFERROR('Tabel 4 H'!D28/'Tabel 4F H'!D28*100,"-")) -> 7.476635514 | E28: =IF(OR('Tabel 4F H'!E28<5,'Tabel 4 H'!E28<0.5),"-",IFERROR('Tabel 4 H'!E28/'Tabel 4F H'!E28*100,"-")) -> 3.527336861 | F28: =IF(OR('Tabel 4F H'!F28<5,'Tabel 4 H'!F28<0.5),"-",IFERROR('Tabel 4 H'!F28/'Tabel 4F H'!F28*100,"-")) -> 3.248259861 | G28: =IF(OR('Tabel 4F H'!G28<5,'Tabel 4 H'!G28<0.5),"-",IFERROR('Tabel 4 H'!G28/'Tabel 4F H'!G28*100,"-")) -> 2.205882353 | I28: =IF(OR('Tabel 4F H'!I28<5,'Tabel 4 H'!I28<0.5),"-",IFERROR('Tabel 4 H'!I28/'Tabel 4F H'!I28*100,"-")) -> 4.382227632
A29: Musikudd. | C29: =IF(OR('Tabel 4F H'!C29<5,'Tabel 4 H'!C29<0.5),"-",IFERROR('Tabel 4 H'!C29/'Tabel 4F H'!C29*100,"-")) -> 25 | D29: =IF(OR('Tabel 4F H'!D29<5,'Tabel 4 H'!D29<0.5),"-",IFERROR('Tabel 4 H'!D29/'Tabel 4F H'!D29*100,"-")) -> 12.12121212 | E29: =IF(OR('Tabel 4F H'!E29<5,'Tabel 4 H'!E29<0.5),"-",IFERROR('Tabel 4 H'!E29/'Tabel 4F H'!E29*100,"-")) -> 1.666666667 | F29: =IF(OR('Tabel 4F H'!F29<5,'Tabel 4 H'!F29<0.5),"-",IFERROR('Tabel 4 H'!F29/'Tabel 4F H'!F29*100,"-")) -> 1.680672269 | G29: =IF(OR('Tabel 4F H'!G29<5,'Tabel 4 H'!G29<0.5),"-",IFERROR('Tabel 4 H'!G29/'Tabel 4F H'!G29*100,"-")) -> - | I29: =IF(OR('Tabel 4F H'!I29<5,'Tabel 4 H'!I29<0.5),"-",IFERROR('Tabel 4 H'!I29/'Tabel 4F H'!I29*100,"-")) -> 3.092783505
A30: Teolog | C30: =IF(OR('Tabel 4F H'!C30<5,'Tabel 4 H'!C30<0.5),"-",IFERROR('Tabel 4 H'!C30/'Tabel 4F H'!C30*100,"-")) -> 37.5 | D30: =IF(OR('Tabel 4F H'!D30<5,'Tabel 4 H'!D30<0.5),"-",IFERROR('Tabel 4 H'!D30/'Tabel 4F H'!D30*100,"-")) -> 14 | E30: =IF(OR('Tabel 4F H'!E30<5,'Tabel 4 H'!E30<0.5),"-",IFERROR('Tabel 4 H'!E30/'Tabel 4F H'!E30*100,"-")) -> 1.149425287 | F30: =IF(OR('Tabel 4F H'!F30<5,'Tabel 4 H'!F30<0.5),"-",IFERROR('Tabel 4 H'!F30/'Tabel 4F H'!F30*100,"-")) -> 1.764705882 | G30: =IF(OR('Tabel 4F H'!G30<5,'Tabel 4 H'!G30<0.5),"-",IFERROR('Tabel 4 H'!G30/'Tabel 4F H'!G30*100,"-")) -> 2.247191011 | I30: =IF(OR('Tabel 4F H'!I30<5,'Tabel 4 H'!I30<0.5),"-",IFERROR('Tabel 4 H'!I30/'Tabel 4F H'!I30*100,"-")) -> 4.918032787
A31: Psykolog | C31: =IF(OR('Tabel 4F H'!C31<5,'Tabel 4 H'!C31<0.5),"-",IFERROR('Tabel 4 H'!C31/'Tabel 4F H'!C31*100,"-")) -> 6.435643564 | D31: =IF(OR('Tabel 4F H'!D31<5,'Tabel 4 H'!D31<0.5),"-",IFERROR('Tabel 4 H'!D31/'Tabel 4F H'!D31*100,"-")) -> 3.302225413 | E31: =IF(OR('Tabel 4F H'!E31<5,'Tabel 4 H'!E31<0.5),"-",IFERROR('Tabel 4 H'!E31/'Tabel 4F H'!E31*100,"-")) -> 2.47311828 | F31: =IF(OR('Tabel 4F H'!F31<5,'Tabel 4 H'!F31<0.5),"-",IFERROR('Tabel 4 H'!F31/'Tabel 4F H'!F31*100,"-")) -> 1.828153565 | G31: =IF(OR('Tabel 4F H'!G31<5,'Tabel 4 H'!G31<0.5),"-",IFERROR('Tabel 4 H'!G31/'Tabel 4F H'!G31*100,"-")) -> 2.307692308 | I31: =IF(OR('Tabel 4F H'!I31<5,'Tabel 4 H'!I31<0.5),"-",IFERROR('Tabel 4 H'!I31/'Tabel 4F H'!I31*100,"-")) -> 3.319057816
A32: Jurist | C32: =IF(OR('Tabel 4F H'!C32<5,'Tabel 4 H'!C32<0.5),"-",IFERROR('Tabel 4 H'!C32/'Tabel 4F H'!C32*100,"-")) -> 2.164762477 | D32: =IF(OR('Tabel 4F H'!D32<5,'Tabel 4 H'!D32<0.5),"-",IFERROR('Tabel 4 H'!D32/'Tabel 4F H'!D32*100,"-")) -> 1.429499675 | E32: =IF(OR('Tabel 4F H'!E32<5,'Tabel 4 H'!E32<0.5),"-",IFERROR('Tabel 4 H'!E32/'Tabel 4F H'!E32*100,"-")) -> 1.125776398 | F32: =IF(OR('Tabel 4F H'!F32<5,'Tabel 4 H'!F32<0.5),"-",IFERROR('Tabel 4 H'!F32/'Tabel 4F H'!F32*100,"-")) -> 1.16929334 | G32: =IF(OR('Tabel 4F H'!G32<5,'Tabel 4 H'!G32<0.5),"-",IFERROR('Tabel 4 H'!G32/'Tabel 4F H'!G32*100,"-")) -> 1.923076923 | I32: =IF(OR('Tabel 4F H'!I32<5,'Tabel 4 H'!I32<0.5),"-",IFERROR('Tabel 4 H'!I32/'Tabel 4F H'!I32*100,"-")) -> 1.450892857
A33: Økonom | C33: =IF(OR('Tabel 4F H'!C33<5,'Tabel 4 H'!C33<0.5),"-",IFERROR('Tabel 4 H'!C33/'Tabel 4F H'!C33*100,"-")) -> 3.75 | D33: =IF(OR('Tabel 4F H'!D33<5,'Tabel 4 H'!D33<0.5),"-",IFERROR('Tabel 4 H'!D33/'Tabel 4F H'!D33*100,"-")) -> 1.276102088 | E33: =IF(OR('Tabel 4F H'!E33<5,'Tabel 4 H'!E33<0.5),"-",IFERROR('Tabel 4 H'!E33/'Tabel 4F H'!E33*100,"-")) -> 1.511715797 | F33: =IF(OR('Tabel 4F H'!F33<5,'Tabel 4 H'!F33<0.5),"-",IFERROR('Tabel 4 H'!F33/'Tabel 4F H'!F33*100,"-")) -> 1.769911504 | G33: =IF(OR('Tabel 4F H'!G33<5,'Tabel 4 H'!G33<0.5),"-",IFERROR('Tabel 4 H'!G33/'Tabel 4F H'!G33*100,"-")) -> 4.664723032 | I33: =IF(OR('Tabel 4F H'!I33<5,'Tabel 4 H'!I33<0.5),"-",IFERROR('Tabel 4 H'!I33/'Tabel 4F H'!I33*100,"-")) -> 2.067998598
A34: Samf. Adm. | C34: =IF(OR('Tabel 4F H'!C34<5,'Tabel 4 H'!C34<0.5),"-",IFERROR('Tabel 4 H'!C34/'Tabel 4F H'!C34*100,"-")) -> 9.579704657 | D34: =IF(OR('Tabel 4F H'!D34<5,'Tabel 4 H'!D34<0.5),"-",IFERROR('Tabel 4 H'!D34/'Tabel 4F H'!D34*100,"-")) -> 3.840742825 | E34: =IF(OR('Tabel 4F H'!E34<5,'Tabel 4 H'!E34<0.5),"-",IFERROR('Tabel 4 H'!E34/'Tabel 4F H'!E34*100,"-")) -> 3.084780388 | F34: =IF(OR('Tabel 4F H'!F34<5,'Tabel 4 H'!F34<0.5),"-",IFERROR('Tabel 4 H'!F34/'Tabel 4F H'!F34*100,"-")) -> 2.836879433 | G34: =IF(OR('Tabel 4F H'!G34<5,'Tabel 4 H'!G34<0.5),"-",IFERROR('Tabel 4 H'!G34/'Tabel 4F H'!G34*100,"-")) -> 4.189435337 | I34: =IF(OR('Tabel 4F H'!I34<5,'Tabel 4 H'!I34<0.5),"-",IFERROR('Tabel 4 H'!I34/'Tabel 4F H'!I34*100,"-")) -> 4.366117112
A35: Cand. Merc. | C35: =IF(OR('Tabel 4F H'!C35<5,'Tabel 4 H'!C35<0.5),"-",IFERROR('Tabel 4 H'!C35/'Tabel 4F H'!C35*100,"-")) -> 5.247346285 | D35: =IF(OR('Tabel 4F H'!D35<5,'Tabel 4 H'!D35<0.5),"-",IFERROR('Tabel 4 H'!D35/'Tabel 4F H'!D35*100,"-")) -> 2.867978194 | E35: =IF(OR('Tabel 4F H'!E35<5,'Tabel 4 H'!E35<0.5),"-",IFERROR('Tabel 4 H'!E35/'Tabel 4F H'!E35*100,"-")) -> 2.208699572 | F35: =IF(OR('Tabel 4F H'!F35<5,'Tabel 4 H'!F35<0.5),"-",IFERROR('Tabel 4 H'!F35/'Tabel 4F H'!F35*100,"-")) -> 2.95288653 | G35: =IF(OR('Tabel 4F H'!G35<5,'Tabel 4 H'!G35<0.5),"-",IFERROR('Tabel 4 H'!G35/'Tabel 4F H'!G35*100,"-")) -> 6.540084388 | I35: =IF(OR('Tabel 4F H'!I35<5,'Tabel 4 H'!I35<0.5),"-",IFERROR('Tabel 4 H'!I35/'Tabel 4F H'!I35*100,"-")) -> 3.380782918
A36: HA | C36: =IF(OR('Tabel 4F H'!C36<5,'Tabel 4 H'!C36<0.5),"-",IFERROR('Tabel 4 H'!C36/'Tabel 4F H'!C36*100,"-")) -> 10.17964072 | D36: =IF(OR('Tabel 4F H'!D36<5,'Tabel 4 H'!D36<0.5),"-",IFERROR('Tabel 4 H'!D36/'Tabel 4F H'!D36*100,"-")) -> 4.841402337 | E36: =IF(OR('Tabel 4F H'!E36<5,'Tabel 4 H'!E36<0.5),"-",IFERROR('Tabel 4 H'!E36/'Tabel 4F H'!E36*100,"-")) -> 2.43902439 | F36: =IF(OR('Tabel 4F H'!F36<5,'Tabel 4 H'!F36<0.5),"-",IFERROR('Tabel 4 H'!F36/'Tabel 4F H'!F36*100,"-")) -> 2.342606149 | G36: =IF(OR('Tabel 4F H'!G36<5,'Tabel 4 H'!G36<0.5),"-",IFERROR('Tabel 4 H'!G36/'Tabel 4F H'!G36*100,"-")) -> 7.762557078 | I36: =IF(OR('Tabel 4F H'!I36<5,'Tabel 4 H'!I36<0.5),"-",IFERROR('Tabel 4 H'!I36/'Tabel 4F H'!I36*100,"-")) -> 5.428460644
A37: HD | C37: =IF(OR('Tabel 4F H'!C37<5,'Tabel 4 H'!C37<0.5),"-",IFERROR('Tabel 4 H'!C37/'Tabel 4F H'!C37*100,"-")) -> 10.48387097 | D37: =IF(OR('Tabel 4F H'!D37<5,'Tabel 4 H'!D37<0.5),"-",IFERROR('Tabel 4 H'!D37/'Tabel 4F H'!D37*100,"-")) -> 6.855439642 | E37: =IF(OR('Tabel 4F H'!E37<5,'Tabel 4 H'!E37<0.5),"-",IFERROR('Tabel 4 H'!E37/'Tabel 4F H'!E37*100,"-")) -> 3.246753247 | F37: =IF(OR('Tabel 4F H'!F37<5,'Tabel 4 H'!F37<0.5),"-",IFERROR('Tabel 4 H'!F37/'Tabel 4F H'!F37*100,"-")) -> 2.828854314 | G37: =IF(OR('Tabel 4F H'!G37<5,'Tabel 4 H'!G37<0.5),"-",IFERROR('Tabel 4 H'!G37/'Tabel 4F H'!G37*100,"-")) -> 6.666666667 | I37: =IF(OR('Tabel 4F H'!I37<5,'Tabel 4 H'!I37<0.5),"-",IFERROR('Tabel 4 H'!I37/'Tabel 4F H'!I37*100,"-")) -> 5.97133758
A38: Komm. og Sprog | C38: =IF(OR('Tabel 4F H'!C38<5,'Tabel 4 H'!C38<0.5),"-",IFERROR('Tabel 4 H'!C38/'Tabel 4F H'!C38*100,"-")) -> 10.61776062 | D38: =IF(OR('Tabel 4F H'!D38<5,'Tabel 4 H'!D38<0.5),"-",IFERROR('Tabel 4 H'!D38/'Tabel 4F H'!D38*100,"-")) -> 6.06884058 | E38: =IF(OR('Tabel 4F H'!E38<5,'Tabel 4 H'!E38<0.5),"-",IFERROR('Tabel 4 H'!E38/'Tabel 4F H'!E38*100,"-")) -> 3.690369037 | F38: =IF(OR('Tabel 4F H'!F38<5,'Tabel 4 H'!F38<0.5),"-",IFERROR('Tabel 4 H'!F38/'Tabel 4F H'!F38*100,"-")) -> 4.233409611 | G38: =IF(OR('Tabel 4F H'!G38<5,'Tabel 4 H'!G38<0.5),"-",IFERROR('Tabel 4 H'!G38/'Tabel 4F H'!G38*100,"-")) -> 9.385113269 | I38: =IF(OR('Tabel 4F H'!I38<5,'Tabel 4 H'!I38<0.5),"-",IFERROR('Tabel 4 H'!I38/'Tabel 4F H'!I38*100,"-")) -> 5.847803882
A39: Bygningskonst. | C39: =IF(OR('Tabel 4F H'!C39<5,'Tabel 4 H'!C39<0.5),"-",IFERROR('Tabel 4 H'!C39/'Tabel 4F H'!C39*100,"-")) -> 10.2189781 | D39: =IF(OR('Tabel 4F H'!D39<5,'Tabel 4 H'!D39<0.5),"-",IFERROR('Tabel 4 H'!D39/'Tabel 4F H'!D39*100,"-")) -> 2.175883953 | E39: =IF(OR('Tabel 4F H'!E39<5,'Tabel 4 H'!E39<0.5),"-",IFERROR('Tabel 4 H'!E39/'Tabel 4F H'!E39*100,"-")) -> 1.547987616 | F39: =IF(OR('Tabel 4F H'!F39<5,'Tabel 4 H'!F39<0.5),"-",IFERROR('Tabel 4 H'!F39/'Tabel 4F H'!F39*100,"-")) -> 3.25203252 | G39: =IF(OR('Tabel 4F H'!G39<5,'Tabel 4 H'!G39<0.5),"-",IFERROR('Tabel 4 H'!G39/'Tabel 4F H'!G39*100,"-")) -> 4.938271605 | I39: =IF(OR('Tabel 4F H'!I39<5,'Tabel 4 H'!I39<0.5),"-",IFERROR('Tabel 4 H'!I39/'Tabel 4F H'!I39*100,"-")) -> 3.524904215
A40: Cand. IT. | C40: =IF(OR('Tabel 4F H'!C40<5,'Tabel 4 H'!C40<0.5),"-",IFERROR('Tabel 4 H'!C40/'Tabel 4F H'!C40*100,"-")) -> 9.396914446 | D40: =IF(OR('Tabel 4F H'!D40<5,'Tabel 4 H'!D40<0.5),"-",IFERROR('Tabel 4 H'!D40/'Tabel 4F H'!D40*100,"-")) -> 4.413892909 | E40: =IF(OR('Tabel 4F H'!E40<5,'Tabel 4 H'!E40<0.5),"-",IFERROR('Tabel 4 H'!E40/'Tabel 4F H'!E40*100,"-")) -> 3.360215054 | F40: =IF(OR('Tabel 4F H'!F40<5,'Tabel 4 H'!F40<0.5),"-",IFERROR('Tabel 4 H'!F40/'Tabel 4F H'!F40*100,"-")) -> 5.769230769 | G40: =IF(OR('Tabel 4F H'!G40<5,'Tabel 4 H'!G40<0.5),"-",IFERROR('Tabel 4 H'!G40/'Tabel 4F H'!G40*100,"-")) -> 11.11111111 | I40: =IF(OR('Tabel 4F H'!I40<5,'Tabel 4 H'!I40<0.5),"-",IFERROR('Tabel 4 H'!I40/'Tabel 4F H'!I40*100,"-")) -> 5.420054201
A41: Bac. Samf. | C41: =IF(OR('Tabel 4F H'!C41<5,'Tabel 4 H'!C41<0.5),"-",IFERROR('Tabel 4 H'!C41/'Tabel 4F H'!C41*100,"-")) -> 13.14285714 | D41: =IF(OR('Tabel 4F H'!D41<5,'Tabel 4 H'!D41<0.5),"-",IFERROR('Tabel 4 H'!D41/'Tabel 4F H'!D41*100,"-")) -> 3.47826087 | E41: =IF(OR('Tabel 4F H'!E41<5,'Tabel 4 H'!E41<0.5),"-",IFERROR('Tabel 4 H'!E41/'Tabel 4F H'!E41*100,"-")) -> 2.173913043 | F41: =IF(OR('Tabel 4F H'!F41<5,'Tabel 4 H'!F41<0.5),"-",IFERROR('Tabel 4 H'!F41/'Tabel 4F H'!F41*100,"-")) -> 3.821656051 | G41: =IF(OR('Tabel 4F H'!G41<5,'Tabel 4 H'!G41<0.5),"-",IFERROR('Tabel 4 H'!G41/'Tabel 4F H'!G41*100,"-")) -> 16.66666667 | I41: =IF(OR('Tabel 4F H'!I41<5,'Tabel 4 H'!I41<0.5),"-",IFERROR('Tabel 4 H'!I41/'Tabel 4F H'!I41*100,"-")) -> 5.637254902
A42: Bac. Hum. | C42: =IF(OR('Tabel 4F H'!C42<5,'Tabel 4 H'!C42<0.5),"-",IFERROR('Tabel 4 H'!C42/'Tabel 4F H'!C42*100,"-")) -> 18.15431165 | D42: =IF(OR('Tabel 4F H'!D42<5,'Tabel 4 H'!D42<0.5),"-",IFERROR('Tabel 4 H'!D42/'Tabel 4F H'!D42*100,"-")) -> 10.55900621 | E42: =IF(OR('Tabel 4F H'!E42<5,'Tabel 4 H'!E42<0.5),"-",IFERROR('Tabel 4 H'!E42/'Tabel 4F H'!E42*100,"-")) -> 5.149051491 | F42: =IF(OR('Tabel 4F H'!F42<5,'Tabel 4 H'!F42<0.5),"-",IFERROR('Tabel 4 H'!F42/'Tabel 4F H'!F42*100,"-")) -> 4.032258065 | G42: =IF(OR('Tabel 4F H'!G42<5,'Tabel 4 H'!G42<0.5),"-",IFERROR('Tabel 4 H'!G42/'Tabel 4F H'!G42*100,"-")) -> 2.479338843 | I42: =IF(OR('Tabel 4F H'!I42<5,'Tabel 4 H'!I42<0.5),"-",IFERROR('Tabel 4 H'!I42/'Tabel 4F H'!I42*100,"-")) -> 10.36889332
A43: Bac. Nat. | C43: =IF(OR('Tabel 4F H'!C43<5,'Tabel 4 H'!C43<0.5),"-",IFERROR('Tabel 4 H'!C43/'Tabel 4F H'!C43*100,"-")) -> 17.26726727 | D43: =IF(OR('Tabel 4F H'!D43<5,'Tabel 4 H'!D43<0.5),"-",IFERROR('Tabel 4 H'!D43/'Tabel 4F H'!D43*100,"-")) -> 6.980273141 | E43: =IF(OR('Tabel 4F H'!E43<5,'Tabel 4 H'!E43<0.5),"-",IFERROR('Tabel 4 H'!E43/'Tabel 4F H'!E43*100,"-")) -> 4.048582996 | F43: =IF(OR('Tabel 4F H'!F43<5,'Tabel 4 H'!F43<0.5),"-",IFERROR('Tabel 4 H'!F43/'Tabel 4F H'!F43*100,"-")) -> 5.309734513 | G43: =IF(OR('Tabel 4F H'!G43<5,'Tabel 4 H'!G43<0.5),"-",IFERROR('Tabel 4 H'!G43/'Tabel 4F H'!G43*100,"-")) -> 6.451612903 | I43: =IF(OR('Tabel 4F H'!I43<5,'Tabel 4 H'!I43<0.5),"-",IFERROR('Tabel 4 H'!I43/'Tabel 4F H'!I43*100,"-")) -> 10.43123543
A44: Andre | C44: =IF(OR('Tabel 4F H'!C44<5,'Tabel 4 H'!C44<0.5),"-",IFERROR('Tabel 4 H'!C44/'Tabel 4F H'!C44*100,"-")) -> 12.17183771 | D44: =IF(OR('Tabel 4F H'!D44<5,'Tabel 4 H'!D44<0.5),"-",IFERROR('Tabel 4 H'!D44/'Tabel 4F H'!D44*100,"-")) -> 6.003717472 | E44: =IF(OR('Tabel 4F H'!E44<5,'Tabel 4 H'!E44<0.5),"-",IFERROR('Tabel 4 H'!E44/'Tabel 4F H'!E44*100,"-")) -> 4.265522463 | F44: =IF(OR('Tabel 4F H'!F44<5,'Tabel 4 H'!F44<0.5),"-",IFERROR('Tabel 4 H'!F44/'Tabel 4F H'!F44*100,"-")) -> 6.428248076 | G44: =IF(OR('Tabel 4F H'!G44<5,'Tabel 4 H'!G44<0.5),"-",IFERROR('Tabel 4 H'!G44/'Tabel 4F H'!G44*100,"-")) -> 10.38543897 | I44: =IF(OR('Tabel 4F H'!I44<5,'Tabel 4 H'!I44<0.5),"-",IFERROR('Tabel 4 H'!I44/'Tabel 4F H'!I44*100,"-")) -> 6.602641056
A46: Total | C46: =IF(OR('Tabel 4F H'!C46<5,'Tabel 4 H'!C46<0.5),"-",IFERROR('Tabel 4 H'!C46/'Tabel 4F H'!C46*100,"-")) -> 10.09012539 | D46: =IF(OR('Tabel 4F H'!D46<5,'Tabel 4 H'!D46<0.5),"-",IFERROR('Tabel 4 H'!D46/'Tabel 4F H'!D46*100,"-")) -> 4.394141145 | E46: =IF(OR('Tabel 4F H'!E46<5,'Tabel 4 H'!E46<0.5),"-",IFERROR('Tabel 4 H'!E46/'Tabel 4F H'!E46*100,"-")) -> 2.594197923 | F46: =IF(OR('Tabel 4F H'!F46<5,'Tabel 4 H'!F46<0.5),"-",IFERROR('Tabel 4 H'!F46/'Tabel 4F H'!F46*100,"-")) -> 2.590026465 | G46: =IF(OR('Tabel 4F H'!G46<5,'Tabel 4 H'!G46<0.5),"-",IFERROR('Tabel 4 H'!G46/'Tabel 4F H'!G46*100,"-")) -> 4.430876581 | I46: =IF(OR('Tabel 4F H'!I46<5,'Tabel 4 H'!I46<0.5),"-",IFERROR('Tabel 4 H'!I46/'Tabel 4F H'!I46*100,"-")) -> 4.555603515
A48: Ingeniører i alt | C48: =IF(OR('Tabel 4F H'!C48<5,'Tabel 4 H'!C48<0.5),"-",IFERROR('Tabel 4 H'!C48/'Tabel 4F H'!C48*100,"-")) -> 8.011724475 | D48: =IF(OR('Tabel 4F H'!D48<5,'Tabel 4 H'!D48<0.5),"-",IFERROR('Tabel 4 H'!D48/'Tabel 4F H'!D48*100,"-")) -> 2.675585284 | E48: =IF(OR('Tabel 4F H'!E48<5,'Tabel 4 H'!E48<0.5),"-",IFERROR('Tabel 4 H'!E48/'Tabel 4F H'!E48*100,"-")) -> 1.257502143 | F48: =IF(OR('Tabel 4F H'!F48<5,'Tabel 4 H'!F48<0.5),"-",IFERROR('Tabel 4 H'!F48/'Tabel 4F H'!F48*100,"-")) -> 1.451344278 | G48: =IF(OR('Tabel 4F H'!G48<5,'Tabel 4 H'!G48<0.5),"-",IFERROR('Tabel 4 H'!G48/'Tabel 4F H'!G48*100,"-")) -> 3.22997416 | I48: =IF(OR('Tabel 4F H'!I48<5,'Tabel 4 H'!I48<0.5),"-",IFERROR('Tabel 4 H'!I48/'Tabel 4F H'!I48*100,"-")) -> 2.78475234
A49: Magistre i alt | C49: =IF(OR('Tabel 4F H'!C49<5,'Tabel 4 H'!C49<0.5),"-",IFERROR('Tabel 4 H'!C49/'Tabel 4F H'!C49*100,"-")) -> 18.579492 | D49: =IF(OR('Tabel 4F H'!D49<5,'Tabel 4 H'!D49<0.5),"-",IFERROR('Tabel 4 H'!D49/'Tabel 4F H'!D49*100,"-")) -> 7.727193441 | E49: =IF(OR('Tabel 4F H'!E49<5,'Tabel 4 H'!E49<0.5),"-",IFERROR('Tabel 4 H'!E49/'Tabel 4F H'!E49*100,"-")) -> 3.49536816 | F49: =IF(OR('Tabel 4F H'!F49<5,'Tabel 4 H'!F49<0.5),"-",IFERROR('Tabel 4 H'!F49/'Tabel 4F H'!F49*100,"-")) -> 3.242973557 | G49: =IF(OR('Tabel 4F H'!G49<5,'Tabel 4 H'!G49<0.5),"-",IFERROR('Tabel 4 H'!G49/'Tabel 4F H'!G49*100,"-")) -> 4.444444444 | I49: =IF(OR('Tabel 4F H'!I49<5,'Tabel 4 H'!I49<0.5),"-",IFERROR('Tabel 4 H'!I49/'Tabel 4F H'!I49*100,"-")) -> 6.795634921
A50: DJØF'ere i alt | C50: =IF(OR('Tabel 4F H'!C50<5,'Tabel 4 H'!C50<0.5),"-",IFERROR('Tabel 4 H'!C50/'Tabel 4F H'!C50*100,"-")) -> 5.995423341 | D50: =IF(OR('Tabel 4F H'!D50<5,'Tabel 4 H'!D50<0.5),"-",IFERROR('Tabel 4 H'!D50/'Tabel 4F H'!D50*100,"-")) -> 2.91211152 | E50: =IF(OR('Tabel 4F H'!E50<5,'Tabel 4 H'!E50<0.5),"-",IFERROR('Tabel 4 H'!E50/'Tabel 4F H'!E50*100,"-")) -> 2.257898981 | F50: =IF(OR('Tabel 4F H'!F50<5,'Tabel 4 H'!F50<0.5),"-",IFERROR('Tabel 4 H'!F50/'Tabel 4F H'!F50*100,"-")) -> 2.336200488 | G50: =IF(OR('Tabel 4F H'!G50<5,'Tabel 4 H'!G50<0.5),"-",IFERROR('Tabel 4 H'!G50/'Tabel 4F H'!G50*100,"-")) -> 4.543347242 | I50: =IF(OR('Tabel 4F H'!I50<5,'Tabel 4 H'!I50<0.5),"-",IFERROR('Tabel 4 H'!I50/'Tabel 4F H'!I50*100,"-")) -> 3.312487957
A57: København
C59: Under 30 år | D59: 30 - 39 år | E59: 40 - 49 år | F59: 50 - 59 år | G59: Over 60 år | I59: I alt
A61: Civ. ing. | C61: =IF(OR('Tabel 4F H'!C61<5,'Tabel 4 H'!C61<0.5),"-",IFERROR('Tabel 4 H'!C61/'Tabel 4F H'!C61*100,"-")) -> 8.982035928 | D61: =IF(OR('Tabel 4F H'!D61<5,'Tabel 4 H'!D61<0.5),"-",IFERROR('Tabel 4 H'!D61/'Tabel 4F H'!D61*100,"-")) -> 3.321610004 | E61: =IF(OR('Tabel 4F H'!E61<5,'Tabel 4 H'!E61<0.5),"-",IFERROR('Tabel 4 H'!E61/'Tabel 4F H'!E61*100,"-")) -> 1.818181818 | F61: =IF(OR('Tabel 4F H'!F61<5,'Tabel 4 H'!F61<0.5),"-",IFERROR('Tabel 4 H'!F61/'Tabel 4F H'!F61*100,"-")) -> 1.239669421 | G61: =IF(OR('Tabel 4F H'!G61<5,'Tabel 4 H'!G61<0.5),"-",IFERROR('Tabel 4 H'!G61/'Tabel 4F H'!G61*100,"-")) -> 3.240740741 | I61: =IF(OR('Tabel 4F H'!I61<5,'Tabel 4 H'!I61<0.5),"-",IFERROR('Tabel 4 H'!I61/'Tabel 4F H'!I61*100,"-")) -> 4.343629344
A62: Diplom ing. | C62: =IF(OR('Tabel 4F H'!C62<5,'Tabel 4 H'!C62<0.5),"-",IFERROR('Tabel 4 H'!C62/'Tabel 4F H'!C62*100,"-")) -> 6.967984934 | D62: =IF(OR('Tabel 4F H'!D62<5,'Tabel 4 H'!D62<0.5),"-",IFERROR('Tabel 4 H'!D62/'Tabel 4F H'!D62*100,"-")) -> 4.071856287 | E62: =IF(OR('Tabel 4F H'!E62<5,'Tabel 4 H'!E62<0.5),"-",IFERROR('Tabel 4 H'!E62/'Tabel 4F H'!E62*100,"-")) -> 2.43902439 | F62: =IF(OR('Tabel 4F H'!F62<5,'Tabel 4 H'!F62<0.5),"-",IFERROR('Tabel 4 H'!F62/'Tabel 4F H'!F62*100,"-")) -> 2.059496568 | G62: =IF(OR('Tabel 4F H'!G62<5,'Tabel 4 H'!G62<0.5),"-",IFERROR('Tabel 4 H'!G62/'Tabel 4F H'!G62*100,"-")) -> 4.682274247 | I62: =IF(OR('Tabel 4F H'!I62<5,'Tabel 4 H'!I62<0.5),"-",IFERROR('Tabel 4 H'!I62/'Tabel 4F H'!I62*100,"-")) -> 3.708281829
A63: Cand. Scient. Tek | C63: =IF(OR('Tabel 4F H'!C63<5,'Tabel 4 H'!C63<0.5),"-",IFERROR('Tabel 4 H'!C63/'Tabel 4F H'!C63*100,"-")) -> 13.8623327 | D63: =IF(OR('Tabel 4F H'!D63<5,'Tabel 4 H'!D63<0.5),"-",IFERROR('Tabel 4 H'!D63/'Tabel 4F H'!D63*100,"-")) -> 5.722154223 | E63: =IF(OR('Tabel 4F H'!E63<5,'Tabel 4 H'!E63<0.5),"-",IFERROR('Tabel 4 H'!E63/'Tabel 4F H'!E63*100,"-")) -> 4.07239819 | F63: =IF(OR('Tabel 4F H'!F63<5,'Tabel 4 H'!F63<0.5),"-",IFERROR('Tabel 4 H'!F63/'Tabel 4F H'!F63*100,"-")) -> 4.519774011 | G63: =IF(OR('Tabel 4F H'!G63<5,'Tabel 4 H'!G63<0.5),"-",IFERROR('Tabel 4 H'!G63/'Tabel 4F H'!G63*100,"-")) -> 10.25641026 | I63: =IF(OR('Tabel 4F H'!I63<5,'Tabel 4 H'!I63<0.5),"-",IFERROR('Tabel 4 H'!I63/'Tabel 4F H'!I63*100,"-")) -> 8.270556179
A64: MA. Hum. | C64: =IF(OR('Tabel 4F H'!C64<5,'Tabel 4 H'!C64<0.5),"-",IFERROR('Tabel 4 H'!C64/'Tabel 4F H'!C64*100,"-")) -> 19.47983015 | D64: =IF(OR('Tabel 4F H'!D64<5,'Tabel 4 H'!D64<0.5),"-",IFERROR('Tabel 4 H'!D64/'Tabel 4F H'!D64*100,"-")) -> 8.588957055 | E64: =IF(OR('Tabel 4F H'!E64<5,'Tabel 4 H'!E64<0.5),"-",IFERROR('Tabel 4 H'!E64/'Tabel 4F H'!E64*100,"-")) -> 4.416666667 | F64: =IF(OR('Tabel 4F H'!F64<5,'Tabel 4 H'!F64<0.5),"-",IFERROR('Tabel 4 H'!F64/'Tabel 4F H'!F64*100,"-")) -> 5.497382199 | G64: =IF(OR('Tabel 4F H'!G64<5,'Tabel 4 H'!G64<0.5),"-",IFERROR('Tabel 4 H'!G64/'Tabel 4F H'!G64*100,"-")) -> 6.828193833 | I64: =IF(OR('Tabel 4F H'!I64<5,'Tabel 4 H'!I64<0.5),"-",IFERROR('Tabel 4 H'!I64/'Tabel 4F H'!I64*100,"-")) -> 8.586947839
A65: MA. Nat. | C65: =IF(OR('Tabel 4F H'!C65<5,'Tabel 4 H'!C65<0.5),"-",IFERROR('Tabel 4 H'!C65/'Tabel 4F H'!C65*100,"-")) -> 17.66304348 | D65: =IF(OR('Tabel 4F H'!D65<5,'Tabel 4 H'!D65<0.5),"-",IFERROR('Tabel 4 H'!D65/'Tabel 4F H'!D65*100,"-")) -> 5.966850829 | E65: =IF(OR('Tabel 4F H'!E65<5,'Tabel 4 H'!E65<0.5),"-",IFERROR('Tabel 4 H'!E65/'Tabel 4F H'!E65*100,"-")) -> 3.005780347 | F65: =IF(OR('Tabel 4F H'!F65<5,'Tabel 4 H'!F65<0.5),"-",IFERROR('Tabel 4 H'!F65/'Tabel 4F H'!F65*100,"-")) -> 1.694915254 | G65: =IF(OR('Tabel 4F H'!G65<5,'Tabel 4 H'!G65<0.5),"-",IFERROR('Tabel 4 H'!G65/'Tabel 4F H'!G65*100,"-")) -> 1.298701299 | I65: =IF(OR('Tabel 4F H'!I65<5,'Tabel 4 H'!I65<0.5),"-",IFERROR('Tabel 4 H'!I65/'Tabel 4F H'!I65*100,"-")) -> 5.268389662
A66: MA. Ph.d. | C66: =IF(OR('Tabel 4F H'!C66<5,'Tabel 4 H'!C66<0.5),"-",IFERROR('Tabel 4 H'!C66/'Tabel 4F H'!C66*100,"-")) -> 15.38461538 | D66: =IF(OR('Tabel 4F H'!D66<5,'Tabel 4 H'!D66<0.5),"-",IFERROR('Tabel 4 H'!D66/'Tabel 4F H'!D66*100,"-")) -> 4.854368932 | E66: =IF(OR('Tabel 4F H'!E66<5,'Tabel 4 H'!E66<0.5),"-",IFERROR('Tabel 4 H'!E66/'Tabel 4F H'!E66*100,"-")) -> 3.90625 | F66: =IF(OR('Tabel 4F H'!F66<5,'Tabel 4 H'!F66<0.5),"-",IFERROR('Tabel 4 H'!F66/'Tabel 4F H'!F66*100,"-")) -> 2.666666667 | G66: =IF(OR('Tabel 4F H'!G66<5,'Tabel 4 H'!G66<0.5),"-",IFERROR('Tabel 4 H'!G66/'Tabel 4F H'!G66*100,"-")) -> 4.255319149 | I66: =IF(OR('Tabel 4F H'!I66<5,'Tabel 4 H'!I66<0.5),"-",IFERROR('Tabel 4 H'!I66/'Tabel 4F H'!I66*100,"-")) -> 4.166666667
A67: MA. Samf. | C67: =IF(OR('Tabel 4F H'!C67<5,'Tabel 4 H'!C67<0.5),"-",IFERROR('Tabel 4 H'!C67/'Tabel 4F H'!C67*100,"-")) -> 16.8079096 | D67: =IF(OR('Tabel 4F H'!D67<5,'Tabel 4 H'!D67<0.5),"-",IFERROR('Tabel 4 H'!D67/'Tabel 4F H'!D67*100,"-")) -> 9.557109557 | E67: =IF(OR('Tabel 4F H'!E67<5,'Tabel 4 H'!E67<0.5),"-",IFERROR('Tabel 4 H'!E67/'Tabel 4F H'!E67*100,"-")) -> 4.261363636 | F67: =IF(OR('Tabel 4F H'!F67<5,'Tabel 4 H'!F67<0.5),"-",IFERROR('Tabel 4 H'!F67/'Tabel 4F H'!F67*100,"-")) -> 8.965517241 | G67: =IF(OR('Tabel 4F H'!G67<5,'Tabel 4 H'!G67<0.5),"-",IFERROR('Tabel 4 H'!G67/'Tabel 4F H'!G67*100,"-")) -> 10.34482759 | I67: =IF(OR('Tabel 4F H'!I67<5,'Tabel 4 H'!I67<0.5),"-",IFERROR('Tabel 4 H'!I67/'Tabel 4F H'!I67*100,"-")) -> 10.8290361
A68: Øvrige Mag. | C68: =IF(OR('Tabel 4F H'!C68<5,'Tabel 4 H'!C68<0.5),"-",IFERROR('Tabel 4 H'!C68/'Tabel 4F H'!C68*100,"-")) -> 20.85308057 | D68: =IF(OR('Tabel 4F H'!D68<5,'Tabel 4 H'!D68<0.5),"-",IFERROR('Tabel 4 H'!D68/'Tabel 4F H'!D68*100,"-")) -> 10.91549296 | E68: =IF(OR('Tabel 4F H'!E68<5,'Tabel 4 H'!E68<0.5),"-",IFERROR('Tabel 4 H'!E68/'Tabel 4F H'!E68*100,"-")) -> 6.115107914 | F68: =IF(OR('Tabel 4F H'!F68<5,'Tabel 4 H'!F68<0.5),"-",IFERROR('Tabel 4 H'!F68/'Tabel 4F H'!F68*100,"-")) -> 1.595744681 | G68: =IF(OR('Tabel 4F H'!G68<5,'Tabel 4 H'!G68<0.5),"-",IFERROR('Tabel 4 H'!G68/'Tabel 4F H'!G68*100,"-")) -> 3.174603175 | I68: =IF(OR('Tabel 4F H'!I68<5,'Tabel 4 H'!I68<0.5),"-",IFERROR('Tabel 4 H'!I68/'Tabel 4F H'!I68*100,"-")) -> 9.47265625
A69: Agronom | C69: =IF(OR('Tabel 4F H'!C69<5,'Tabel 4 H'!C69<0.5),"-",IFERROR('Tabel 4 H'!C69/'Tabel 4F H'!C69*100,"-")) -> 9.87654321 | D69: =IF(OR('Tabel 4F H'!D69<5,'Tabel 4 H'!D69<0.5),"-",IFERROR('Tabel 4 H'!D69/'Tabel 4F H'!D69*100,"-")) -> 5.434782609 | E69: =IF(OR('Tabel 4F H'!E69<5,'Tabel 4 H'!E69<0.5),"-",IFERROR('Tabel 4 H'!E69/'Tabel 4F H'!E69*100,"-")) -> 1.886792453 | F69: =IF(OR('Tabel 4F H'!F69<5,'Tabel 4 H'!F69<0.5),"-",IFERROR('Tabel 4 H'!F69/'Tabel 4F H'!F69*100,"-")) -> 3.225806452 | G69: =IF(OR('Tabel 4F H'!G69<5,'Tabel 4 H'!G69<0.5),"-",IFERROR('Tabel 4 H'!G69/'Tabel 4F H'!G69*100,"-")) -> 3.225806452 | I69: =IF(OR('Tabel 4F H'!I69<5,'Tabel 4 H'!I69<0.5),"-",IFERROR('Tabel 4 H'!I69/'Tabel 4F H'!I69*100,"-")) -> 5.329153605
A70: Landsk. Arkt. | C70: =IF(OR('Tabel 4F H'!C70<5,'Tabel 4 H'!C70<0.5),"-",IFERROR('Tabel 4 H'!C70/'Tabel 4F H'!C70*100,"-")) -> 10.25641026 | D70: =IF(OR('Tabel 4F H'!D70<5,'Tabel 4 H'!D70<0.5),"-",IFERROR('Tabel 4 H'!D70/'Tabel 4F H'!D70*100,"-")) -> 7.627118644 | E70: =IF(OR('Tabel 4F H'!E70<5,'Tabel 4 H'!E70<0.5),"-",IFERROR('Tabel 4 H'!E70/'Tabel 4F H'!E70*100,"-")) -> 1.754385965 | F70: =IF(OR('Tabel 4F H'!F70<5,'Tabel 4 H'!F70<0.5),"-",IFERROR('Tabel 4 H'!F70/'Tabel 4F H'!F70*100,"-")) -> 2.941176471 | G70: =IF(OR('Tabel 4F H'!G70<5,'Tabel 4 H'!G70<0.5),"-",IFERROR('Tabel 4 H'!G70/'Tabel 4F H'!G70*100,"-")) -> - | I70: =IF(OR('Tabel 4F H'!I70<5,'Tabel 4 H'!I70<0.5),"-",IFERROR('Tabel 4 H'!I70/'Tabel 4F H'!I70*100,"-")) -> 5.882352941
A71: Hortonom | C71: =IF(OR('Tabel 4F H'!C71<5,'Tabel 4 H'!C71<0.5),"-",IFERROR('Tabel 4 H'!C71/'Tabel 4F H'!C71*100,"-")) -> - | D71: =IF(OR('Tabel 4F H'!D71<5,'Tabel 4 H'!D71<0.5),"-",IFERROR('Tabel 4 H'!D71/'Tabel 4F H'!D71*100,"-")) -> - | E71: =IF(OR('Tabel 4F H'!E71<5,'Tabel 4 H'!E71<0.5),"-",IFERROR('Tabel 4 H'!E71/'Tabel 4F H'!E71*100,"-")) -> - | F71: =IF(OR('Tabel 4F H'!F71<5,'Tabel 4 H'!F71<0.5),"-",IFERROR('Tabel 4 H'!F71/'Tabel 4F H'!F71*100,"-")) -> - | G71: =IF(OR('Tabel 4F H'!G71<5,'Tabel 4 H'!G71<0.5),"-",IFERROR('Tabel 4 H'!G71/'Tabel 4F H'!G71*100,"-")) -> 11.11111111 | I71: =IF(OR('Tabel 4F H'!I71<5,'Tabel 4 H'!I71<0.5),"-",IFERROR('Tabel 4 H'!I71/'Tabel 4F H'!I71*100,"-")) -> 2.173913043
A72: Forstkand. | C72: =IF(OR('Tabel 4F H'!C72<5,'Tabel 4 H'!C72<0.5),"-",IFERROR('Tabel 4 H'!C72/'Tabel 4F H'!C72*100,"-")) -> 20 | D72: =IF(OR('Tabel 4F H'!D72<5,'Tabel 4 H'!D72<0.5),"-",IFERROR('Tabel 4 H'!D72/'Tabel 4F H'!D72*100,"-")) -> 10.71428571 | E72: =IF(OR('Tabel 4F H'!E72<5,'Tabel 4 H'!E72<0.5),"-",IFERROR('Tabel 4 H'!E72/'Tabel 4F H'!E72*100,"-")) -> - | F72: =IF(OR('Tabel 4F H'!F72<5,'Tabel 4 H'!F72<0.5),"-",IFERROR('Tabel 4 H'!F72/'Tabel 4F H'!F72*100,"-")) -> 15 | G72: =IF(OR('Tabel 4F H'!G72<5,'Tabel 4 H'!G72<0.5),"-",IFERROR('Tabel 4 H'!G72/'Tabel 4F H'!G72*100,"-")) -> - | I72: =IF(OR('Tabel 4F H'!I72<5,'Tabel 4 H'!I72<0.5),"-",IFERROR('Tabel 4 H'!I72/'Tabel 4F H'!I72*100,"-")) -> 10.11235955
A73: Jordbrugsakad. | C73: =IF(OR('Tabel 4F H'!C73<5,'Tabel 4 H'!C73<0.5),"-",IFERROR('Tabel 4 H'!C73/'Tabel 4F H'!C73*100,"-")) -> 11.02941176 | D73: =IF(OR('Tabel 4F H'!D73<5,'Tabel 4 H'!D73<0.5),"-",IFERROR('Tabel 4 H'!D73/'Tabel 4F H'!D73*100,"-")) -> 6.910569106 | E73: =IF(OR('Tabel 4F H'!E73<5,'Tabel 4 H'!E73<0.5),"-",IFERROR('Tabel 4 H'!E73/'Tabel 4F H'!E73*100,"-")) -> 1.379310345 | F73: =IF(OR('Tabel 4F H'!F73<5,'Tabel 4 H'!F73<0.5),"-",IFERROR('Tabel 4 H'!F73/'Tabel 4F H'!F73*100,"-")) -> 4.580152672 | G73: =IF(OR('Tabel 4F H'!G73<5,'Tabel 4 H'!G73<0.5),"-",IFERROR('Tabel 4 H'!G73/'Tabel 4F H'!G73*100,"-")) -> 3.921568627 | I73: =IF(OR('Tabel 4F H'!I73<5,'Tabel 4 H'!I73<0.5),"-",IFERROR('Tabel 4 H'!I73/'Tabel 4F H'!I73*100,"-")) -> 5.923836389
A74: Mejeriing. | C74: =IF(OR('Tabel 4F H'!C74<5,'Tabel 4 H'!C74<0.5),"-",IFERROR('Tabel 4 H'!C74/'Tabel 4F H'!C74*100,"-")) -> 17.64705882 | D74: =IF(OR('Tabel 4F H'!D74<5,'Tabel 4 H'!D74<0.5),"-",IFERROR('Tabel 4 H'!D74/'Tabel 4F H'!D74*100,"-")) -> 7.692307692 | E74: =IF(OR('Tabel 4F H'!E74<5,'Tabel 4 H'!E74<0.5),"-",IFERROR('Tabel 4 H'!E74/'Tabel 4F H'!E74*100,"-")) -> - | F74: =IF(OR('Tabel 4F H'!F74<5,'Tabel 4 H'!F74<0.5),"-",IFERROR('Tabel 4 H'!F74/'Tabel 4F H'!F74*100,"-")) -> - | G74: =IF(OR('Tabel 4F H'!G74<5,'Tabel 4 H'!G74<0.5),"-",IFERROR('Tabel 4 H'!G74/'Tabel 4F H'!G74*100,"-")) -> - | I74: =IF(OR('Tabel 4F H'!I74<5,'Tabel 4 H'!I74<0.5),"-",IFERROR('Tabel 4 H'!I74/'Tabel 4F H'!I74*100,"-")) -> 8.333333333
A75: Levn.m.kand. | C75: =IF(OR('Tabel 4F H'!C75<5,'Tabel 4 H'!C75<0.5),"-",IFERROR('Tabel 4 H'!C75/'Tabel 4F H'!C75*100,"-")) -> 6.666666667 | D75: =IF(OR('Tabel 4F H'!D75<5,'Tabel 4 H'!D75<0.5),"-",IFERROR('Tabel 4 H'!D75/'Tabel 4F H'!D75*100,"-")) -> 3.448275862 | E75: =IF(OR('Tabel 4F H'!E75<5,'Tabel 4 H'!E75<0.5),"-",IFERROR('Tabel 4 H'!E75/'Tabel 4F H'!E75*100,"-")) -> 6.666666667 | F75: =IF(OR('Tabel 4F H'!F75<5,'Tabel 4 H'!F75<0.5),"-",IFERROR('Tabel 4 H'!F75/'Tabel 4F H'!F75*100,"-")) -> - | G75: =IF(OR('Tabel 4F H'!G75<5,'Tabel 4 H'!G75<0.5),"-",IFERROR('Tabel 4 H'!G75/'Tabel 4F H'!G75*100,"-")) -> - | I75: =IF(OR('Tabel 4F H'!I75<5,'Tabel 4 H'!I75<0.5),"-",IFERROR('Tabel 4 H'!I75/'Tabel 4F H'!I75*100,"-")) -> 4.848484848
A76: Dyrlæge | C76: =IF(OR('Tabel 4F H'!C76<5,'Tabel 4 H'!C76<0.5),"-",IFERROR('Tabel 4 H'!C76/'Tabel 4F H'!C76*100,"-")) -> 3.797468354 | D76: =IF(OR('Tabel 4F H'!D76<5,'Tabel 4 H'!D76<0.5),"-",IFERROR('Tabel 4 H'!D76/'Tabel 4F H'!D76*100,"-")) -> 3.149606299 | E76: =IF(OR('Tabel 4F H'!E76<5,'Tabel 4 H'!E76<0.5),"-",IFERROR('Tabel 4 H'!E76/'Tabel 4F H'!E76*100,"-")) -> 1.960784314 | F76: =IF(OR('Tabel 4F H'!F76<5,'Tabel 4 H'!F76<0.5),"-",IFERROR('Tabel 4 H'!F76/'Tabel 4F H'!F76*100,"-")) -> - | G76: =IF(OR('Tabel 4F H'!G76<5,'Tabel 4 H'!G76<0.5),"-",IFERROR('Tabel 4 H'!G76/'Tabel 4F H'!G76*100,"-")) -> - | I76: =IF(OR('Tabel 4F H'!I76<5,'Tabel 4 H'!I76<0.5),"-",IFERROR('Tabel 4 H'!I76/'Tabel 4F H'!I76*100,"-")) -> 2.547770701
A77: Farmaceut | C77: =IF(OR('Tabel 4F H'!C77<5,'Tabel 4 H'!C77<0.5),"-",IFERROR('Tabel 4 H'!C77/'Tabel 4F H'!C77*100,"-")) -> 12.20779221 | D77: =IF(OR('Tabel 4F H'!D77<5,'Tabel 4 H'!D77<0.5),"-",IFERROR('Tabel 4 H'!D77/'Tabel 4F H'!D77*100,"-")) -> 3.910614525 | E77: =IF(OR('Tabel 4F H'!E77<5,'Tabel 4 H'!E77<0.5),"-",IFERROR('Tabel 4 H'!E77/'Tabel 4F H'!E77*100,"-")) -> 2.232142857 | F77: =IF(OR('Tabel 4F H'!F77<5,'Tabel 4 H'!F77<0.5),"-",IFERROR('Tabel 4 H'!F77/'Tabel 4F H'!F77*100,"-")) -> 3.333333333 | G77: =IF(OR('Tabel 4F H'!G77<5,'Tabel 4 H'!G77<0.5),"-",IFERROR('Tabel 4 H'!G77/'Tabel 4F H'!G77*100,"-")) -> - | I77: =IF(OR('Tabel 4F H'!I77<5,'Tabel 4 H'!I77<0.5),"-",IFERROR('Tabel 4 H'!I77/'Tabel 4F H'!I77*100,"-")) -> 5.900383142
A78: Læge | C78: =IF(OR('Tabel 4F H'!C78<5,'Tabel 4 H'!C78<0.5),"-",IFERROR('Tabel 4 H'!C78/'Tabel 4F H'!C78*100,"-")) -> 2.744425386 | D78: =IF(OR('Tabel 4F H'!D78<5,'Tabel 4 H'!D78<0.5),"-",IFERROR('Tabel 4 H'!D78/'Tabel 4F H'!D78*100,"-")) -> 1.606425703 | E78: =IF(OR('Tabel 4F H'!E78<5,'Tabel 4 H'!E78<0.5),"-",IFERROR('Tabel 4 H'!E78/'Tabel 4F H'!E78*100,"-")) -> - | F78: =IF(OR('Tabel 4F H'!F78<5,'Tabel 4 H'!F78<0.5),"-",IFERROR('Tabel 4 H'!F78/'Tabel 4F H'!F78*100,"-")) -> 1.142857143 | G78: =IF(OR('Tabel 4F H'!G78<5,'Tabel 4 H'!G78<0.5),"-",IFERROR('Tabel 4 H'!G78/'Tabel 4F H'!G78*100,"-")) -> - | I78: =IF(OR('Tabel 4F H'!I78<5,'Tabel 4 H'!I78<0.5),"-",IFERROR('Tabel 4 H'!I78/'Tabel 4F H'!I78*100,"-")) -> 1.50614348
A79: Tandlæge | C79: =IF(OR('Tabel 4F H'!C79<5,'Tabel 4 H'!C79<0.5),"-",IFERROR('Tabel 4 H'!C79/'Tabel 4F H'!C79*100,"-")) -> 7.407407407 | D79: =IF(OR('Tabel 4F H'!D79<5,'Tabel 4 H'!D79<0.5),"-",IFERROR('Tabel 4 H'!D79/'Tabel 4F H'!D79*100,"-")) -> 2.4 | E79: =IF(OR('Tabel 4F H'!E79<5,'Tabel 4 H'!E79<0.5),"-",IFERROR('Tabel 4 H'!E79/'Tabel 4F H'!E79*100,"-")) -> 1.886792453 | F79: =IF(OR('Tabel 4F H'!F79<5,'Tabel 4 H'!F79<0.5),"-",IFERROR('Tabel 4 H'!F79/'Tabel 4F H'!F79*100,"-")) -> - | G79: =IF(OR('Tabel 4F H'!G79<5,'Tabel 4 H'!G79<0.5),"-",IFERROR('Tabel 4 H'!G79/'Tabel 4F H'!G79*100,"-")) -> - | I79: =IF(OR('Tabel 4F H'!I79<5,'Tabel 4 H'!I79<0.5),"-",IFERROR('Tabel 4 H'!I79/'Tabel 4F H'!I79*100,"-")) -> 3.174603175
A80: Arkitekt | C80: =IF(OR('Tabel 4F H'!C80<5,'Tabel 4 H'!C80<0.5),"-",IFERROR('Tabel 4 H'!C80/'Tabel 4F H'!C80*100,"-")) -> 21.8487395 | D80: =IF(OR('Tabel 4F H'!D80<5,'Tabel 4 H'!D80<0.5),"-",IFERROR('Tabel 4 H'!D80/'Tabel 4F H'!D80*100,"-")) -> 5.919395466 | E80: =IF(OR('Tabel 4F H'!E80<5,'Tabel 4 H'!E80<0.5),"-",IFERROR('Tabel 4 H'!E80/'Tabel 4F H'!E80*100,"-")) -> 3.724137931 | F80: =IF(OR('Tabel 4F H'!F80<5,'Tabel 4 H'!F80<0.5),"-",IFERROR('Tabel 4 H'!F80/'Tabel 4F H'!F80*100,"-")) -> 2.91005291 | G80: =IF(OR('Tabel 4F H'!G80<5,'Tabel 4 H'!G80<0.5),"-",IFERROR('Tabel 4 H'!G80/'Tabel 4F H'!G80*100,"-")) -> 5.454545455 | I80: =IF(OR('Tabel 4F H'!I80<5,'Tabel 4 H'!I80<0.5),"-",IFERROR('Tabel 4 H'!I80/'Tabel 4F H'!I80*100,"-")) -> 6.347826087
A81: Landinspek. | C81: =IF(OR('Tabel 4F H'!C81<5,'Tabel 4 H'!C81<0.5),"-",IFERROR('Tabel 4 H'!C81/'Tabel 4F H'!C81*100,"-")) -> - | D81: =IF(OR('Tabel 4F H'!D81<5,'Tabel 4 H'!D81<0.5),"-",IFERROR('Tabel 4 H'!D81/'Tabel 4F H'!D81*100,"-")) -> 4.347826087 | E81: =IF(OR('Tabel 4F H'!E81<5,'Tabel 4 H'!E81<0.5),"-",IFERROR('Tabel 4 H'!E81/'Tabel 4F H'!E81*100,"-")) -> - | F81: =IF(OR('Tabel 4F H'!F81<5,'Tabel 4 H'!F81<0.5),"-",IFERROR('Tabel 4 H'!F81/'Tabel 4F H'!F81*100,"-")) -> 20 | G81: =IF(OR('Tabel 4F H'!G81<5,'Tabel 4 H'!G81<0.5),"-",IFERROR('Tabel 4 H'!G81/'Tabel 4F H'!G81*100,"-")) -> - | I81: =IF(OR('Tabel 4F H'!I81<5,'Tabel 4 H'!I81<0.5),"-",IFERROR('Tabel 4 H'!I81/'Tabel 4F H'!I81*100,"-")) -> 3.703703704
A82: Bibliotekar | C82: =IF(OR('Tabel 4F H'!C82<5,'Tabel 4 H'!C82<0.5),"-",IFERROR('Tabel 4 H'!C82/'Tabel 4F H'!C82*100,"-")) -> 12.82051282 | D82: =IF(OR('Tabel 4F H'!D82<5,'Tabel 4 H'!D82<0.5),"-",IFERROR('Tabel 4 H'!D82/'Tabel 4F H'!D82*100,"-")) -> 8.040201005 | E82: =IF(OR('Tabel 4F H'!E82<5,'Tabel 4 H'!E82<0.5),"-",IFERROR('Tabel 4 H'!E82/'Tabel 4F H'!E82*100,"-")) -> 4.016064257 | F82: =IF(OR('Tabel 4F H'!F82<5,'Tabel 4 H'!F82<0.5),"-",IFERROR('Tabel 4 H'!F82/'Tabel 4F H'!F82*100,"-")) -> 4.545454545 | G82: =IF(OR('Tabel 4F H'!G82<5,'Tabel 4 H'!G82<0.5),"-",IFERROR('Tabel 4 H'!G82/'Tabel 4F H'!G82*100,"-")) -> 2.777777778 | I82: =IF(OR('Tabel 4F H'!I82<5,'Tabel 4 H'!I82<0.5),"-",IFERROR('Tabel 4 H'!I82/'Tabel 4F H'!I82*100,"-")) -> 5.447470817
A83: Musikudd. | C83: =IF(OR('Tabel 4F H'!C83<5,'Tabel 4 H'!C83<0.5),"-",IFERROR('Tabel 4 H'!C83/'Tabel 4F H'!C83*100,"-")) -> 33.33333333 | D83: =IF(OR('Tabel 4F H'!D83<5,'Tabel 4 H'!D83<0.5),"-",IFERROR('Tabel 4 H'!D83/'Tabel 4F H'!D83*100,"-")) -> 16.66666667 | E83: =IF(OR('Tabel 4F H'!E83<5,'Tabel 4 H'!E83<0.5),"-",IFERROR('Tabel 4 H'!E83/'Tabel 4F H'!E83*100,"-")) -> - | F83: =IF(OR('Tabel 4F H'!F83<5,'Tabel 4 H'!F83<0.5),"-",IFERROR('Tabel 4 H'!F83/'Tabel 4F H'!F83*100,"-")) -> 3.636363636 | G83: =IF(OR('Tabel 4F H'!G83<5,'Tabel 4 H'!G83<0.5),"-",IFERROR('Tabel 4 H'!G83/'Tabel 4F H'!G83*100,"-")) -> - | I83: =IF(OR('Tabel 4F H'!I83<5,'Tabel 4 H'!I83<0.5),"-",IFERROR('Tabel 4 H'!I83/'Tabel 4F H'!I83*100,"-")) -> 5
A84: Teolog | C84: =IF(OR('Tabel 4F H'!C84<5,'Tabel 4 H'!C84<0.5),"-",IFERROR('Tabel 4 H'!C84/'Tabel 4F H'!C84*100,"-")) -> 33.33333333 | D84: =IF(OR('Tabel 4F H'!D84<5,'Tabel 4 H'!D84<0.5),"-",IFERROR('Tabel 4 H'!D84/'Tabel 4F H'!D84*100,"-")) -> 22.03389831 | E84: =IF(OR('Tabel 4F H'!E84<5,'Tabel 4 H'!E84<0.5),"-",IFERROR('Tabel 4 H'!E84/'Tabel 4F H'!E84*100,"-")) -> 1.219512195 | F84: =IF(OR('Tabel 4F H'!F84<5,'Tabel 4 H'!F84<0.5),"-",IFERROR('Tabel 4 H'!F84/'Tabel 4F H'!F84*100,"-")) -> - | G84: =IF(OR('Tabel 4F H'!G84<5,'Tabel 4 H'!G84<0.5),"-",IFERROR('Tabel 4 H'!G84/'Tabel 4F H'!G84*100,"-")) -> 2.857142857 | I84: =IF(OR('Tabel 4F H'!I84<5,'Tabel 4 H'!I84<0.5),"-",IFERROR('Tabel 4 H'!I84/'Tabel 4F H'!I84*100,"-")) -> 7.569721116
A85: Psykolog | C85: =IF(OR('Tabel 4F H'!C85<5,'Tabel 4 H'!C85<0.5),"-",IFERROR('Tabel 4 H'!C85/'Tabel 4F H'!C85*100,"-")) -> 6.136363636 | D85: =IF(OR('Tabel 4F H'!D85<5,'Tabel 4 H'!D85<0.5),"-",IFERROR('Tabel 4 H'!D85/'Tabel 4F H'!D85*100,"-")) -> 2.784222738 | E85: =IF(OR('Tabel 4F H'!E85<5,'Tabel 4 H'!E85<0.5),"-",IFERROR('Tabel 4 H'!E85/'Tabel 4F H'!E85*100,"-")) -> 1.814058957 | F85: =IF(OR('Tabel 4F H'!F85<5,'Tabel 4 H'!F85<0.5),"-",IFERROR('Tabel 4 H'!F85/'Tabel 4F H'!F85*100,"-")) -> 1.619433198 | G85: =IF(OR('Tabel 4F H'!G85<5,'Tabel 4 H'!G85<0.5),"-",IFERROR('Tabel 4 H'!G85/'Tabel 4F H'!G85*100,"-")) -> 1.818181818 | I85: =IF(OR('Tabel 4F H'!I85<5,'Tabel 4 H'!I85<0.5),"-",IFERROR('Tabel 4 H'!I85/'Tabel 4F H'!I85*100,"-")) -> 3.095238095
A86: Jurist | C86: =IF(OR('Tabel 4F H'!C86<5,'Tabel 4 H'!C86<0.5),"-",IFERROR('Tabel 4 H'!C86/'Tabel 4F H'!C86*100,"-")) -> 1.97693575 | D86: =IF(OR('Tabel 4F H'!D86<5,'Tabel 4 H'!D86<0.5),"-",IFERROR('Tabel 4 H'!D86/'Tabel 4F H'!D86*100,"-")) -> 1.549907006 | E86: =IF(OR('Tabel 4F H'!E86<5,'Tabel 4 H'!E86<0.5),"-",IFERROR('Tabel 4 H'!E86/'Tabel 4F H'!E86*100,"-")) -> 0.8879023307 | F86: =IF(OR('Tabel 4F H'!F86<5,'Tabel 4 H'!F86<0.5),"-",IFERROR('Tabel 4 H'!F86/'Tabel 4F H'!F86*100,"-")) -> 1.182432432 | G86: =IF(OR('Tabel 4F H'!G86<5,'Tabel 4 H'!G86<0.5),"-",IFERROR('Tabel 4 H'!G86/'Tabel 4F H'!G86*100,"-")) -> 2.366863905 | I86: =IF(OR('Tabel 4F H'!I86<5,'Tabel 4 H'!I86<0.5),"-",IFERROR('Tabel 4 H'!I86/'Tabel 4F H'!I86*100,"-")) -> 1.51481399
A87: Økonom | C87: =IF(OR('Tabel 4F H'!C87<5,'Tabel 4 H'!C87<0.5),"-",IFERROR('Tabel 4 H'!C87/'Tabel 4F H'!C87*100,"-")) -> 3.905160391 | D87: =IF(OR('Tabel 4F H'!D87<5,'Tabel 4 H'!D87<0.5),"-",IFERROR('Tabel 4 H'!D87/'Tabel 4F H'!D87*100,"-")) -> 1.796407186 | E87: =IF(OR('Tabel 4F H'!E87<5,'Tabel 4 H'!E87<0.5),"-",IFERROR('Tabel 4 H'!E87/'Tabel 4F H'!E87*100,"-")) -> 1.952277657 | F87: =IF(OR('Tabel 4F H'!F87<5,'Tabel 4 H'!F87<0.5),"-",IFERROR('Tabel 4 H'!F87/'Tabel 4F H'!F87*100,"-")) -> 1.694915254 | G87: =IF(OR('Tabel 4F H'!G87<5,'Tabel 4 H'!G87<0.5),"-",IFERROR('Tabel 4 H'!G87/'Tabel 4F H'!G87*100,"-")) -> 10.41666667 | I87: =IF(OR('Tabel 4F H'!I87<5,'Tabel 4 H'!I87<0.5),"-",IFERROR('Tabel 4 H'!I87/'Tabel 4F H'!I87*100,"-")) -> 2.677575307
A88: Samf. Adm. | C88: =IF(OR('Tabel 4F H'!C88<5,'Tabel 4 H'!C88<0.5),"-",IFERROR('Tabel 4 H'!C88/'Tabel 4F H'!C88*100,"-")) -> 9.795102449 | D88: =IF(OR('Tabel 4F H'!D88<5,'Tabel 4 H'!D88<0.5),"-",IFERROR('Tabel 4 H'!D88/'Tabel 4F H'!D88*100,"-")) -> 4.315906563 | E88: =IF(OR('Tabel 4F H'!E88<5,'Tabel 4 H'!E88<0.5),"-",IFERROR('Tabel 4 H'!E88/'Tabel 4F H'!E88*100,"-")) -> 4.10041841 | F88: =IF(OR('Tabel 4F H'!F88<5,'Tabel 4 H'!F88<0.5),"-",IFERROR('Tabel 4 H'!F88/'Tabel 4F H'!F88*100,"-")) -> 3.107344633 | G88: =IF(OR('Tabel 4F H'!G88<5,'Tabel 4 H'!G88<0.5),"-",IFERROR('Tabel 4 H'!G88/'Tabel 4F H'!G88*100,"-")) -> 3.686635945 | I88: =IF(OR('Tabel 4F H'!I88<5,'Tabel 4 H'!I88<0.5),"-",IFERROR('Tabel 4 H'!I88/'Tabel 4F H'!I88*100,"-")) -> 5.204131825
A89: Cand. Merc. | C89: =IF(OR('Tabel 4F H'!C89<5,'Tabel 4 H'!C89<0.5),"-",IFERROR('Tabel 4 H'!C89/'Tabel 4F H'!C89*100,"-")) -> 4.935805991 | D89: =IF(OR('Tabel 4F H'!D89<5,'Tabel 4 H'!D89<0.5),"-",IFERROR('Tabel 4 H'!D89/'Tabel 4F H'!D89*100,"-")) -> 3.302509908 | E89: =IF(OR('Tabel 4F H'!E89<5,'Tabel 4 H'!E89<0.5),"-",IFERROR('Tabel 4 H'!E89/'Tabel 4F H'!E89*100,"-")) -> 3.135888502 | F89: =IF(OR('Tabel 4F H'!F89<5,'Tabel 4 H'!F89<0.5),"-",IFERROR('Tabel 4 H'!F89/'Tabel 4F H'!F89*100,"-")) -> 3.174603175 | G89: =IF(OR('Tabel 4F H'!G89<5,'Tabel 4 H'!G89<0.5),"-",IFERROR('Tabel 4 H'!G89/'Tabel 4F H'!G89*100,"-")) -> 6.666666667 | I89: =IF(OR('Tabel 4F H'!I89<5,'Tabel 4 H'!I89<0.5),"-",IFERROR('Tabel 4 H'!I89/'Tabel 4F H'!I89*100,"-")) -> 3.857681524
A90: HA | C90: =IF(OR('Tabel 4F H'!C90<5,'Tabel 4 H'!C90<0.5),"-",IFERROR('Tabel 4 H'!C90/'Tabel 4F H'!C90*100,"-")) -> 9.881422925 | D90: =IF(OR('Tabel 4F H'!D90<5,'Tabel 4 H'!D90<0.5),"-",IFERROR('Tabel 4 H'!D90/'Tabel 4F H'!D90*100,"-")) -> 4.571428571 | E90: =IF(OR('Tabel 4F H'!E90<5,'Tabel 4 H'!E90<0.5),"-",IFERROR('Tabel 4 H'!E90/'Tabel 4F H'!E90*100,"-")) -> 3.174603175 | F90: =IF(OR('Tabel 4F H'!F90<5,'Tabel 4 H'!F90<0.5),"-",IFERROR('Tabel 4 H'!F90/'Tabel 4F H'!F90*100,"-")) -> 3.428571429 | G90: =IF(OR('Tabel 4F H'!G90<5,'Tabel 4 H'!G90<0.5),"-",IFERROR('Tabel 4 H'!G90/'Tabel 4F H'!G90*100,"-")) -> 6.818181818 | I90: =IF(OR('Tabel 4F H'!I90<5,'Tabel 4 H'!I90<0.5),"-",IFERROR('Tabel 4 H'!I90/'Tabel 4F H'!I90*100,"-")) -> 6.57785179
A91: HD | C91: =IF(OR('Tabel 4F H'!C91<5,'Tabel 4 H'!C91<0.5),"-",IFERROR('Tabel 4 H'!C91/'Tabel 4F H'!C91*100,"-")) -> 10.3626943 | D91: =IF(OR('Tabel 4F H'!D91<5,'Tabel 4 H'!D91<0.5),"-",IFERROR('Tabel 4 H'!D91/'Tabel 4F H'!D91*100,"-")) -> 7.616707617 | E91: =IF(OR('Tabel 4F H'!E91<5,'Tabel 4 H'!E91<0.5),"-",IFERROR('Tabel 4 H'!E91/'Tabel 4F H'!E91*100,"-")) -> 6.666666667 | F91: =IF(OR('Tabel 4F H'!F91<5,'Tabel 4 H'!F91<0.5),"-",IFERROR('Tabel 4 H'!F91/'Tabel 4F H'!F91*100,"-")) -> 4.026845638 | G91: =IF(OR('Tabel 4F H'!G91<5,'Tabel 4 H'!G91<0.5),"-",IFERROR('Tabel 4 H'!G91/'Tabel 4F H'!G91*100,"-")) -> 5.882352941 | I91: =IF(OR('Tabel 4F H'!I91<5,'Tabel 4 H'!I91<0.5),"-",IFERROR('Tabel 4 H'!I91/'Tabel 4F H'!I91*100,"-")) -> 7.940904894
A92: Komm. og Sprog | C92: =IF(OR('Tabel 4F H'!C92<5,'Tabel 4 H'!C92<0.5),"-",IFERROR('Tabel 4 H'!C92/'Tabel 4F H'!C92*100,"-")) -> 10.30927835 | D92: =IF(OR('Tabel 4F H'!D92<5,'Tabel 4 H'!D92<0.5),"-",IFERROR('Tabel 4 H'!D92/'Tabel 4F H'!D92*100,"-")) -> 6.119402985 | E92: =IF(OR('Tabel 4F H'!E92<5,'Tabel 4 H'!E92<0.5),"-",IFERROR('Tabel 4 H'!E92/'Tabel 4F H'!E92*100,"-")) -> 5.90809628 | F92: =IF(OR('Tabel 4F H'!F92<5,'Tabel 4 H'!F92<0.5),"-",IFERROR('Tabel 4 H'!F92/'Tabel 4F H'!F92*100,"-")) -> 5.241935484 | G92: =IF(OR('Tabel 4F H'!G92<5,'Tabel 4 H'!G92<0.5),"-",IFERROR('Tabel 4 H'!G92/'Tabel 4F H'!G92*100,"-")) -> 8.974358974 | I92: =IF(OR('Tabel 4F H'!I92<5,'Tabel 4 H'!I92<0.5),"-",IFERROR('Tabel 4 H'!I92/'Tabel 4F H'!I92*100,"-")) -> 6.952743074
A93: Bygningskonst. | C93: =IF(OR('Tabel 4F H'!C93<5,'Tabel 4 H'!C93<0.5),"-",IFERROR('Tabel 4 H'!C93/'Tabel 4F H'!C93*100,"-")) -> 12.79069767 | D93: =IF(OR('Tabel 4F H'!D93<5,'Tabel 4 H'!D93<0.5),"-",IFERROR('Tabel 4 H'!D93/'Tabel 4F H'!D93*100,"-")) -> 2.830188679 | E93: =IF(OR('Tabel 4F H'!E93<5,'Tabel 4 H'!E93<0.5),"-",IFERROR('Tabel 4 H'!E93/'Tabel 4F H'!E93*100,"-")) -> 2.145922747 | F93: =IF(OR('Tabel 4F H'!F93<5,'Tabel 4 H'!F93<0.5),"-",IFERROR('Tabel 4 H'!F93/'Tabel 4F H'!F93*100,"-")) -> 3.47826087 | G93: =IF(OR('Tabel 4F H'!G93<5,'Tabel 4 H'!G93<0.5),"-",IFERROR('Tabel 4 H'!G93/'Tabel 4F H'!G93*100,"-")) -> 3.703703704 | I93: =IF(OR('Tabel 4F H'!I93<5,'Tabel 4 H'!I93<0.5),"-",IFERROR('Tabel 4 H'!I93/'Tabel 4F H'!I93*100,"-")) -> 4.987102322
A94: Cand. IT. | C94: =IF(OR('Tabel 4F H'!C94<5,'Tabel 4 H'!C94<0.5),"-",IFERROR('Tabel 4 H'!C94/'Tabel 4F H'!C94*100,"-")) -> 10.27522936 | D94: =IF(OR('Tabel 4F H'!D94<5,'Tabel 4 H'!D94<0.5),"-",IFERROR('Tabel 4 H'!D94/'Tabel 4F H'!D94*100,"-")) -> 5.334846765 | E94: =IF(OR('Tabel 4F H'!E94<5,'Tabel 4 H'!E94<0.5),"-",IFERROR('Tabel 4 H'!E94/'Tabel 4F H'!E94*100,"-")) -> 4.657534247 | F94: =IF(OR('Tabel 4F H'!F94<5,'Tabel 4 H'!F94<0.5),"-",IFERROR('Tabel 4 H'!F94/'Tabel 4F H'!F94*100,"-")) -> 7.407407407 | G94: =IF(OR('Tabel 4F H'!G94<5,'Tabel 4 H'!G94<0.5),"-",IFERROR('Tabel 4 H'!G94/'Tabel 4F H'!G94*100,"-")) -> - | I94: =IF(OR('Tabel 4F H'!I94<5,'Tabel 4 H'!I94<0.5),"-",IFERROR('Tabel 4 H'!I94/'Tabel 4F H'!I94*100,"-")) -> 6.702702703
A95: Bac. Samf. | C95: =IF(OR('Tabel 4F H'!C95<5,'Tabel 4 H'!C95<0.5),"-",IFERROR('Tabel 4 H'!C95/'Tabel 4F H'!C95*100,"-")) -> 14.39393939 | D95: =IF(OR('Tabel 4F H'!D95<5,'Tabel 4 H'!D95<0.5),"-",IFERROR('Tabel 4 H'!D95/'Tabel 4F H'!D95*100,"-")) -> 3.759398496 | E95: =IF(OR('Tabel 4F H'!E95<5,'Tabel 4 H'!E95<0.5),"-",IFERROR('Tabel 4 H'!E95/'Tabel 4F H'!E95*100,"-")) -> 2.521008403 | F95: =IF(OR('Tabel 4F H'!F95<5,'Tabel 4 H'!F95<0.5),"-",IFERROR('Tabel 4 H'!F95/'Tabel 4F H'!F95*100,"-")) -> 4.597701149 | G95: =IF(OR('Tabel 4F H'!G95<5,'Tabel 4 H'!G95<0.5),"-",IFERROR('Tabel 4 H'!G95/'Tabel 4F H'!G95*100,"-")) -> - | I95: =IF(OR('Tabel 4F H'!I95<5,'Tabel 4 H'!I95<0.5),"-",IFERROR('Tabel 4 H'!I95/'Tabel 4F H'!I95*100,"-")) -> 6.444906445
A96: Bac. Hum. | C96: =IF(OR('Tabel 4F H'!C96<5,'Tabel 4 H'!C96<0.5),"-",IFERROR('Tabel 4 H'!C96/'Tabel 4F H'!C96*100,"-")) -> 17.65873016 | D96: =IF(OR('Tabel 4F H'!D96<5,'Tabel 4 H'!D96<0.5),"-",IFERROR('Tabel 4 H'!D96/'Tabel 4F H'!D96*100,"-")) -> 11.58536585 | E96: =IF(OR('Tabel 4F H'!E96<5,'Tabel 4 H'!E96<0.5),"-",IFERROR('Tabel 4 H'!E96/'Tabel 4F H'!E96*100,"-")) -> 5.392156863 | F96: =IF(OR('Tabel 4F H'!F96<5,'Tabel 4 H'!F96<0.5),"-",IFERROR('Tabel 4 H'!F96/'Tabel 4F H'!F96*100,"-")) -> 4.663212435 | G96: =IF(OR('Tabel 4F H'!G96<5,'Tabel 4 H'!G96<0.5),"-",IFERROR('Tabel 4 H'!G96/'Tabel 4F H'!G96*100,"-")) -> 3.225806452 | I96: =IF(OR('Tabel 4F H'!I96<5,'Tabel 4 H'!I96<0.5),"-",IFERROR('Tabel 4 H'!I96/'Tabel 4F H'!I96*100,"-")) -> 11.54144074
A97: Bac. Nat. | C97: =IF(OR('Tabel 4F H'!C97<5,'Tabel 4 H'!C97<0.5),"-",IFERROR('Tabel 4 H'!C97/'Tabel 4F H'!C97*100,"-")) -> 18.14159292 | D97: =IF(OR('Tabel 4F H'!D97<5,'Tabel 4 H'!D97<0.5),"-",IFERROR('Tabel 4 H'!D97/'Tabel 4F H'!D97*100,"-")) -> 7.492795389 | E97: =IF(OR('Tabel 4F H'!E97<5,'Tabel 4 H'!E97<0.5),"-",IFERROR('Tabel 4 H'!E97/'Tabel 4F H'!E97*100,"-")) -> 5.319148936 | F97: =IF(OR('Tabel 4F H'!F97<5,'Tabel 4 H'!F97<0.5),"-",IFERROR('Tabel 4 H'!F97/'Tabel 4F H'!F97*100,"-")) -> 4.347826087 | G97: =IF(OR('Tabel 4F H'!G97<5,'Tabel 4 H'!G97<0.5),"-",IFERROR('Tabel 4 H'!G97/'Tabel 4F H'!G97*100,"-")) -> 16.66666667 | I97: =IF(OR('Tabel 4F H'!I97<5,'Tabel 4 H'!I97<0.5),"-",IFERROR('Tabel 4 H'!I97/'Tabel 4F H'!I97*100,"-")) -> 12.27513228
A98: Andre | C98: =IF(OR('Tabel 4F H'!C98<5,'Tabel 4 H'!C98<0.5),"-",IFERROR('Tabel 4 H'!C98/'Tabel 4F H'!C98*100,"-")) -> 12.4893071 | D98: =IF(OR('Tabel 4F H'!D98<5,'Tabel 4 H'!D98<0.5),"-",IFERROR('Tabel 4 H'!D98/'Tabel 4F H'!D98*100,"-")) -> 6.772289531 | E98: =IF(OR('Tabel 4F H'!E98<5,'Tabel 4 H'!E98<0.5),"-",IFERROR('Tabel 4 H'!E98/'Tabel 4F H'!E98*100,"-")) -> 5.154091392 | F98: =IF(OR('Tabel 4F H'!F98<5,'Tabel 4 H'!F98<0.5),"-",IFERROR('Tabel 4 H'!F98/'Tabel 4F H'!F98*100,"-")) -> 7.127429806 | G98: =IF(OR('Tabel 4F H'!G98<5,'Tabel 4 H'!G98<0.5),"-",IFERROR('Tabel 4 H'!G98/'Tabel 4F H'!G98*100,"-")) -> 12.1037464 | I98: =IF(OR('Tabel 4F H'!I98<5,'Tabel 4 H'!I98<0.5),"-",IFERROR('Tabel 4 H'!I98/'Tabel 4F H'!I98*100,"-")) -> 7.543417738
A100: Total | C100: =IF(OR('Tabel 4F H'!C100<5,'Tabel 4 H'!C100<0.5),"-",IFERROR('Tabel 4 H'!C100/'Tabel 4F H'!C100*100,"-")) -> 10.47275115 | D100: =IF(OR('Tabel 4F H'!D100<5,'Tabel 4 H'!D100<0.5),"-",IFERROR('Tabel 4 H'!D100/'Tabel 4F H'!D100*100,"-")) -> 5.249315657 | E100: =IF(OR('Tabel 4F H'!E100<5,'Tabel 4 H'!E100<0.5),"-",IFERROR('Tabel 4 H'!E100/'Tabel 4F H'!E100*100,"-")) -> 3.594581774 | F100: =IF(OR('Tabel 4F H'!F100<5,'Tabel 4 H'!F100<0.5),"-",IFERROR('Tabel 4 H'!F100/'Tabel 4F H'!F100*100,"-")) -> 3.490221765 | G100: =IF(OR('Tabel 4F H'!G100<5,'Tabel 4 H'!G100<0.5),"-",IFERROR('Tabel 4 H'!G100/'Tabel 4F H'!G100*100,"-")) -> 5.194410693 | I100: =IF(OR('Tabel 4F H'!I100<5,'Tabel 4 H'!I100<0.5),"-",IFERROR('Tabel 4 H'!I100/'Tabel 4F H'!I100*100,"-")) -> 5.915705296
A102: Ingeniører i alt | C102: =IF(OR('Tabel 4F H'!C102<5,'Tabel 4 H'!C102<0.5),"-",IFERROR('Tabel 4 H'!C102/'Tabel 4F H'!C102*100,"-")) -> 8.496138119 | D102: =IF(OR('Tabel 4F H'!D102<5,'Tabel 4 H'!D102<0.5),"-",IFERROR('Tabel 4 H'!D102/'Tabel 4F H'!D102*100,"-")) -> 3.50618739 | E102: =IF(OR('Tabel 4F H'!E102<5,'Tabel 4 H'!E102<0.5),"-",IFERROR('Tabel 4 H'!E102/'Tabel 4F H'!E102*100,"-")) -> 2.066590126 | F102: =IF(OR('Tabel 4F H'!F102<5,'Tabel 4 H'!F102<0.5),"-",IFERROR('Tabel 4 H'!F102/'Tabel 4F H'!F102*100,"-")) -> 1.6875 | G102: =IF(OR('Tabel 4F H'!G102<5,'Tabel 4 H'!G102<0.5),"-",IFERROR('Tabel 4 H'!G102/'Tabel 4F H'!G102*100,"-")) -> 4.077669903 | I102: =IF(OR('Tabel 4F H'!I102<5,'Tabel 4 H'!I102<0.5),"-",IFERROR('Tabel 4 H'!I102/'Tabel 4F H'!I102*100,"-")) -> 4.126110876
A103: Magistre i alt | C103: =IF(OR('Tabel 4F H'!C103<5,'Tabel 4 H'!C103<0.5),"-",IFERROR('Tabel 4 H'!C103/'Tabel 4F H'!C103*100,"-")) -> 18.75 | D103: =IF(OR('Tabel 4F H'!D103<5,'Tabel 4 H'!D103<0.5),"-",IFERROR('Tabel 4 H'!D103/'Tabel 4F H'!D103*100,"-")) -> 8.429217841 | E103: =IF(OR('Tabel 4F H'!E103<5,'Tabel 4 H'!E103<0.5),"-",IFERROR('Tabel 4 H'!E103/'Tabel 4F H'!E103*100,"-")) -> 4.24219772 | F103: =IF(OR('Tabel 4F H'!F103<5,'Tabel 4 H'!F103<0.5),"-",IFERROR('Tabel 4 H'!F103/'Tabel 4F H'!F103*100,"-")) -> 4.323308271 | G103: =IF(OR('Tabel 4F H'!G103<5,'Tabel 4 H'!G103<0.5),"-",IFERROR('Tabel 4 H'!G103/'Tabel 4F H'!G103*100,"-")) -> 4.975728155 | I103: =IF(OR('Tabel 4F H'!I103<5,'Tabel 4 H'!I103<0.5),"-",IFERROR('Tabel 4 H'!I103/'Tabel 4F H'!I103*100,"-")) -> 8.2616179
A104: DJØF'ere i alt | C104: =IF(OR('Tabel 4F H'!C104<5,'Tabel 4 H'!C104<0.5),"-",IFERROR('Tabel 4 H'!C104/'Tabel 4F H'!C104*100,"-")) -> 5.929749465 | D104: =IF(OR('Tabel 4F H'!D104<5,'Tabel 4 H'!D104<0.5),"-",IFERROR('Tabel 4 H'!D104/'Tabel 4F H'!D104*100,"-")) -> 3.357773704 | E104: =IF(OR('Tabel 4F H'!E104<5,'Tabel 4 H'!E104<0.5),"-",IFERROR('Tabel 4 H'!E104/'Tabel 4F H'!E104*100,"-")) -> 3.086768304 | F104: =IF(OR('Tabel 4F H'!F104<5,'Tabel 4 H'!F104<0.5),"-",IFERROR('Tabel 4 H'!F104/'Tabel 4F H'!F104*100,"-")) -> 2.568378919 | G104: =IF(OR('Tabel 4F H'!G104<5,'Tabel 4 H'!G104<0.5),"-",IFERROR('Tabel 4 H'!G104/'Tabel 4F H'!G104*100,"-")) -> 5.071315372 | I104: =IF(OR('Tabel 4F H'!I104<5,'Tabel 4 H'!I104<0.5),"-",IFERROR('Tabel 4 H'!I104/'Tabel 4F H'!I104*100,"-")) -> 3.970644234
A111: Frederiksberg
C113: Under 30 år | D113: 30 - 39 år | E113: 40 - 49 år | F113: 50 - 59 år | G113: Over 60 år | I113: I alt
A115: Civ. ing. | C115: =IF(OR('Tabel 4F H'!C115<5,'Tabel 4 H'!C115<0.5),"-",IFERROR('Tabel 4 H'!C115/'Tabel 4F H'!C115*100,"-")) -> 5.504587156 | D115: =IF(OR('Tabel 4F H'!D115<5,'Tabel 4 H'!D115<0.5),"-",IFERROR('Tabel 4 H'!D115/'Tabel 4F H'!D115*100,"-")) -> 2.403846154 | E115: =IF(OR('Tabel 4F H'!E115<5,'Tabel 4 H'!E115<0.5),"-",IFERROR('Tabel 4 H'!E115/'Tabel 4F H'!E115*100,"-")) -> - | F115: =IF(OR('Tabel 4F H'!F115<5,'Tabel 4 H'!F115<0.5),"-",IFERROR('Tabel 4 H'!F115/'Tabel 4F H'!F115*100,"-")) -> 2.116402116 | G115: =IF(OR('Tabel 4F H'!G115<5,'Tabel 4 H'!G115<0.5),"-",IFERROR('Tabel 4 H'!G115/'Tabel 4F H'!G115*100,"-")) -> 5.555555556 | I115: =IF(OR('Tabel 4F H'!I115<5,'Tabel 4 H'!I115<0.5),"-",IFERROR('Tabel 4 H'!I115/'Tabel 4F H'!I115*100,"-")) -> 2.702702703
A116: Diplom ing. | C116: =IF(OR('Tabel 4F H'!C116<5,'Tabel 4 H'!C116<0.5),"-",IFERROR('Tabel 4 H'!C116/'Tabel 4F H'!C116*100,"-")) -> 4.47761194 | D116: =IF(OR('Tabel 4F H'!D116<5,'Tabel 4 H'!D116<0.5),"-",IFERROR('Tabel 4 H'!D116/'Tabel 4F H'!D116*100,"-")) -> 3.571428571 | E116: =IF(OR('Tabel 4F H'!E116<5,'Tabel 4 H'!E116<0.5),"-",IFERROR('Tabel 4 H'!E116/'Tabel 4F H'!E116*100,"-")) -> 2.727272727 | F116: =IF(OR('Tabel 4F H'!F116<5,'Tabel 4 H'!F116<0.5),"-",IFERROR('Tabel 4 H'!F116/'Tabel 4F H'!F116*100,"-")) -> 1.45631068 | G116: =IF(OR('Tabel 4F H'!G116<5,'Tabel 4 H'!G116<0.5),"-",IFERROR('Tabel 4 H'!G116/'Tabel 4F H'!G116*100,"-")) -> 2.985074627 | I116: =IF(OR('Tabel 4F H'!I116<5,'Tabel 4 H'!I116<0.5),"-",IFERROR('Tabel 4 H'!I116/'Tabel 4F H'!I116*100,"-")) -> 2.669039146
A117: Cand. Scient. Tek | C117: =IF(OR('Tabel 4F H'!C117<5,'Tabel 4 H'!C117<0.5),"-",IFERROR('Tabel 4 H'!C117/'Tabel 4F H'!C117*100,"-")) -> 11.01321586 | D117: =IF(OR('Tabel 4F H'!D117<5,'Tabel 4 H'!D117<0.5),"-",IFERROR('Tabel 4 H'!D117/'Tabel 4F H'!D117*100,"-")) -> 4.128440367 | E117: =IF(OR('Tabel 4F H'!E117<5,'Tabel 4 H'!E117<0.5),"-",IFERROR('Tabel 4 H'!E117/'Tabel 4F H'!E117*100,"-")) -> 4.545454545 | F117: =IF(OR('Tabel 4F H'!F117<5,'Tabel 4 H'!F117<0.5),"-",IFERROR('Tabel 4 H'!F117/'Tabel 4F H'!F117*100,"-")) -> - | G117: =IF(OR('Tabel 4F H'!G117<5,'Tabel 4 H'!G117<0.5),"-",IFERROR('Tabel 4 H'!G117/'Tabel 4F H'!G117*100,"-")) -> 20 | I117: =IF(OR('Tabel 4F H'!I117<5,'Tabel 4 H'!I117<0.5),"-",IFERROR('Tabel 4 H'!I117/'Tabel 4F H'!I117*100,"-")) -> 6.024096386
A118: MA. Hum. | C118: =IF(OR('Tabel 4F H'!C118<5,'Tabel 4 H'!C118<0.5),"-",IFERROR('Tabel 4 H'!C118/'Tabel 4F H'!C118*100,"-")) -> 18.85964912 | D118: =IF(OR('Tabel 4F H'!D118<5,'Tabel 4 H'!D118<0.5),"-",IFERROR('Tabel 4 H'!D118/'Tabel 4F H'!D118*100,"-")) -> 5.555555556 | E118: =IF(OR('Tabel 4F H'!E118<5,'Tabel 4 H'!E118<0.5),"-",IFERROR('Tabel 4 H'!E118/'Tabel 4F H'!E118*100,"-")) -> 5.092592593 | F118: =IF(OR('Tabel 4F H'!F118<5,'Tabel 4 H'!F118<0.5),"-",IFERROR('Tabel 4 H'!F118/'Tabel 4F H'!F118*100,"-")) -> 3.618421053 | G118: =IF(OR('Tabel 4F H'!G118<5,'Tabel 4 H'!G118<0.5),"-",IFERROR('Tabel 4 H'!G118/'Tabel 4F H'!G118*100,"-")) -> 6.796116505 | I118: =IF(OR('Tabel 4F H'!I118<5,'Tabel 4 H'!I118<0.5),"-",IFERROR('Tabel 4 H'!I118/'Tabel 4F H'!I118*100,"-")) -> 6.801974767
A119: MA. Nat. | C119: =IF(OR('Tabel 4F H'!C119<5,'Tabel 4 H'!C119<0.5),"-",IFERROR('Tabel 4 H'!C119/'Tabel 4F H'!C119*100,"-")) -> 18.75 | D119: =IF(OR('Tabel 4F H'!D119<5,'Tabel 4 H'!D119<0.5),"-",IFERROR('Tabel 4 H'!D119/'Tabel 4F H'!D119*100,"-")) -> 6.451612903 | E119: =IF(OR('Tabel 4F H'!E119<5,'Tabel 4 H'!E119<0.5),"-",IFERROR('Tabel 4 H'!E119/'Tabel 4F H'!E119*100,"-")) -> 1.986754967 | F119: =IF(OR('Tabel 4F H'!F119<5,'Tabel 4 H'!F119<0.5),"-",IFERROR('Tabel 4 H'!F119/'Tabel 4F H'!F119*100,"-")) -> 1.398601399 | G119: =IF(OR('Tabel 4F H'!G119<5,'Tabel 4 H'!G119<0.5),"-",IFERROR('Tabel 4 H'!G119/'Tabel 4F H'!G119*100,"-")) -> 4.081632653 | I119: =IF(OR('Tabel 4F H'!I119<5,'Tabel 4 H'!I119<0.5),"-",IFERROR('Tabel 4 H'!I119/'Tabel 4F H'!I119*100,"-")) -> 4.545454545
A120: MA. Ph.d. | C120: =IF(OR('Tabel 4F H'!C120<5,'Tabel 4 H'!C120<0.5),"-",IFERROR('Tabel 4 H'!C120/'Tabel 4F H'!C120*100,"-")) -> - | D120: =IF(OR('Tabel 4F H'!D120<5,'Tabel 4 H'!D120<0.5),"-",IFERROR('Tabel 4 H'!D120/'Tabel 4F H'!D120*100,"-")) -> 2.941176471 | E120: =IF(OR('Tabel 4F H'!E120<5,'Tabel 4 H'!E120<0.5),"-",IFERROR('Tabel 4 H'!E120/'Tabel 4F H'!E120*100,"-")) -> 4.255319149 | F120: =IF(OR('Tabel 4F H'!F120<5,'Tabel 4 H'!F120<0.5),"-",IFERROR('Tabel 4 H'!F120/'Tabel 4F H'!F120*100,"-")) -> 5 | G120: =IF(OR('Tabel 4F H'!G120<5,'Tabel 4 H'!G120<0.5),"-",IFERROR('Tabel 4 H'!G120/'Tabel 4F H'!G120*100,"-")) -> - | I120: =IF(OR('Tabel 4F H'!I120<5,'Tabel 4 H'!I120<0.5),"-",IFERROR('Tabel 4 H'!I120/'Tabel 4F H'!I120*100,"-")) -> 3.875968992
A121: MA. Samf. | C121: =IF(OR('Tabel 4F H'!C121<5,'Tabel 4 H'!C121<0.5),"-",IFERROR('Tabel 4 H'!C121/'Tabel 4F H'!C121*100,"-")) -> 21.59090909 | D121: =IF(OR('Tabel 4F H'!D121<5,'Tabel 4 H'!D121<0.5),"-",IFERROR('Tabel 4 H'!D121/'Tabel 4F H'!D121*100,"-")) -> 10.34482759 | E121: =IF(OR('Tabel 4F H'!E121<5,'Tabel 4 H'!E121<0.5),"-",IFERROR('Tabel 4 H'!E121/'Tabel 4F H'!E121*100,"-")) -> 3.636363636 | F121: =IF(OR('Tabel 4F H'!F121<5,'Tabel 4 H'!F121<0.5),"-",IFERROR('Tabel 4 H'!F121/'Tabel 4F H'!F121*100,"-")) -> - | G121: =IF(OR('Tabel 4F H'!G121<5,'Tabel 4 H'!G121<0.5),"-",IFERROR('Tabel 4 H'!G121/'Tabel 4F H'!G121*100,"-")) -> 20 | I121: =IF(OR('Tabel 4F H'!I121<5,'Tabel 4 H'!I121<0.5),"-",IFERROR('Tabel 4 H'!I121/'Tabel 4F H'!I121*100,"-")) -> 11.2804878
A122: Øvrige Mag. | C122: =IF(OR('Tabel 4F H'!C122<5,'Tabel 4 H'!C122<0.5),"-",IFERROR('Tabel 4 H'!C122/'Tabel 4F H'!C122*100,"-")) -> 18.18181818 | D122: =IF(OR('Tabel 4F H'!D122<5,'Tabel 4 H'!D122<0.5),"-",IFERROR('Tabel 4 H'!D122/'Tabel 4F H'!D122*100,"-")) -> 11.53846154 | E122: =IF(OR('Tabel 4F H'!E122<5,'Tabel 4 H'!E122<0.5),"-",IFERROR('Tabel 4 H'!E122/'Tabel 4F H'!E122*100,"-")) -> 5.128205128 | F122: =IF(OR('Tabel 4F H'!F122<5,'Tabel 4 H'!F122<0.5),"-",IFERROR('Tabel 4 H'!F122/'Tabel 4F H'!F122*100,"-")) -> 10 | G122: =IF(OR('Tabel 4F H'!G122<5,'Tabel 4 H'!G122<0.5),"-",IFERROR('Tabel 4 H'!G122/'Tabel 4F H'!G122*100,"-")) -> - | I122: =IF(OR('Tabel 4F H'!I122<5,'Tabel 4 H'!I122<0.5),"-",IFERROR('Tabel 4 H'!I122/'Tabel 4F H'!I122*100,"-")) -> 9.448818898
A123: Agronom | C123: =IF(OR('Tabel 4F H'!C123<5,'Tabel 4 H'!C123<0.5),"-",IFERROR('Tabel 4 H'!C123/'Tabel 4F H'!C123*100,"-")) -> 12.5 | D123: =IF(OR('Tabel 4F H'!D123<5,'Tabel 4 H'!D123<0.5),"-",IFERROR('Tabel 4 H'!D123/'Tabel 4F H'!D123*100,"-")) -> 6.666666667 | E123: =IF(OR('Tabel 4F H'!E123<5,'Tabel 4 H'!E123<0.5),"-",IFERROR('Tabel 4 H'!E123/'Tabel 4F H'!E123*100,"-")) -> 6.666666667 | F123: =IF(OR('Tabel 4F H'!F123<5,'Tabel 4 H'!F123<0.5),"-",IFERROR('Tabel 4 H'!F123/'Tabel 4F H'!F123*100,"-")) -> - | G123: =IF(OR('Tabel 4F H'!G123<5,'Tabel 4 H'!G123<0.5),"-",IFERROR('Tabel 4 H'!G123/'Tabel 4F H'!G123*100,"-")) -> - | I123: =IF(OR('Tabel 4F H'!I123<5,'Tabel 4 H'!I123<0.5),"-",IFERROR('Tabel 4 H'!I123/'Tabel 4F H'!I123*100,"-")) -> 4.938271605
A124: Landsk. Arkt. | C124: =IF(OR('Tabel 4F H'!C124<5,'Tabel 4 H'!C124<0.5),"-",IFERROR('Tabel 4 H'!C124/'Tabel 4F H'!C124*100,"-")) -> 16.66666667 | D124: =IF(OR('Tabel 4F H'!D124<5,'Tabel 4 H'!D124<0.5),"-",IFERROR('Tabel 4 H'!D124/'Tabel 4F H'!D124*100,"-")) -> - | E124: =IF(OR('Tabel 4F H'!E124<5,'Tabel 4 H'!E124<0.5),"-",IFERROR('Tabel 4 H'!E124/'Tabel 4F H'!E124*100,"-")) -> - | F124: =IF(OR('Tabel 4F H'!F124<5,'Tabel 4 H'!F124<0.5),"-",IFERROR('Tabel 4 H'!F124/'Tabel 4F H'!F124*100,"-")) -> - | G124: =IF(OR('Tabel 4F H'!G124<5,'Tabel 4 H'!G124<0.5),"-",IFERROR('Tabel 4 H'!G124/'Tabel 4F H'!G124*100,"-")) -> - | I124: =IF(OR('Tabel 4F H'!I124<5,'Tabel 4 H'!I124<0.5),"-",IFERROR('Tabel 4 H'!I124/'Tabel 4F H'!I124*100,"-")) -> 2.702702703
A125: Hortonom | C125: =IF(OR('Tabel 4F H'!C125<5,'Tabel 4 H'!C125<0.5),"-",IFERROR('Tabel 4 H'!C125/'Tabel 4F H'!C125*100,"-")) -> - | D125: =IF(OR('Tabel 4F H'!D125<5,'Tabel 4 H'!D125<0.5),"-",IFERROR('Tabel 4 H'!D125/'Tabel 4F H'!D125*100,"-")) -> - | E125: =IF(OR('Tabel 4F H'!E125<5,'Tabel 4 H'!E125<0.5),"-",IFERROR('Tabel 4 H'!E125/'Tabel 4F H'!E125*100,"-")) -> - | F125: =IF(OR('Tabel 4F H'!F125<5,'Tabel 4 H'!F125<0.5),"-",IFERROR('Tabel 4 H'!F125/'Tabel 4F H'!F125*100,"-")) -> - | G125: =IF(OR('Tabel 4F H'!G125<5,'Tabel 4 H'!G125<0.5),"-",IFERROR('Tabel 4 H'!G125/'Tabel 4F H'!G125*100,"-")) -> - | I125: =IF(OR('Tabel 4F H'!I125<5,'Tabel 4 H'!I125<0.5),"-",IFERROR('Tabel 4 H'!I125/'Tabel 4F H'!I125*100,"-")) -> 11.11111111
A126: Forstkand. | C126: =IF(OR('Tabel 4F H'!C126<5,'Tabel 4 H'!C126<0.5),"-",IFERROR('Tabel 4 H'!C126/'Tabel 4F H'!C126*100,"-")) -> - | D126: =IF(OR('Tabel 4F H'!D126<5,'Tabel 4 H'!D126<0.5),"-",IFERROR('Tabel 4 H'!D126/'Tabel 4F H'!D126*100,"-")) -> - | E126: =IF(OR('Tabel 4F H'!E126<5,'Tabel 4 H'!E126<0.5),"-",IFERROR('Tabel 4 H'!E126/'Tabel 4F H'!E126*100,"-")) -> - | F126: =IF(OR('Tabel 4F H'!F126<5,'Tabel 4 H'!F126<0.5),"-",IFERROR('Tabel 4 H'!F126/'Tabel 4F H'!F126*100,"-")) -> - | G126: =IF(OR('Tabel 4F H'!G126<5,'Tabel 4 H'!G126<0.5),"-",IFERROR('Tabel 4 H'!G126/'Tabel 4F H'!G126*100,"-")) -> - | I126: =IF(OR('Tabel 4F H'!I126<5,'Tabel 4 H'!I126<0.5),"-",IFERROR('Tabel 4 H'!I126/'Tabel 4F H'!I126*100,"-")) -> -
A127: Jordbrugsakad. | C127: =IF(OR('Tabel 4F H'!C127<5,'Tabel 4 H'!C127<0.5),"-",IFERROR('Tabel 4 H'!C127/'Tabel 4F H'!C127*100,"-")) -> 16.66666667 | D127: =IF(OR('Tabel 4F H'!D127<5,'Tabel 4 H'!D127<0.5),"-",IFERROR('Tabel 4 H'!D127/'Tabel 4F H'!D127*100,"-")) -> 3.03030303 | E127: =IF(OR('Tabel 4F H'!E127<5,'Tabel 4 H'!E127<0.5),"-",IFERROR('Tabel 4 H'!E127/'Tabel 4F H'!E127*100,"-")) -> 3.03030303 | F127: =IF(OR('Tabel 4F H'!F127<5,'Tabel 4 H'!F127<0.5),"-",IFERROR('Tabel 4 H'!F127/'Tabel 4F H'!F127*100,"-")) -> - | G127: =IF(OR('Tabel 4F H'!G127<5,'Tabel 4 H'!G127<0.5),"-",IFERROR('Tabel 4 H'!G127/'Tabel 4F H'!G127*100,"-")) -> - | I127: =IF(OR('Tabel 4F H'!I127<5,'Tabel 4 H'!I127<0.5),"-",IFERROR('Tabel 4 H'!I127/'Tabel 4F H'!I127*100,"-")) -> 4.285714286
A128: Mejeriing. | C128: =IF(OR('Tabel 4F H'!C128<5,'Tabel 4 H'!C128<0.5),"-",IFERROR('Tabel 4 H'!C128/'Tabel 4F H'!C128*100,"-")) -> - | D128: =IF(OR('Tabel 4F H'!D128<5,'Tabel 4 H'!D128<0.5),"-",IFERROR('Tabel 4 H'!D128/'Tabel 4F H'!D128*100,"-")) -> - | E128: =IF(OR('Tabel 4F H'!E128<5,'Tabel 4 H'!E128<0.5),"-",IFERROR('Tabel 4 H'!E128/'Tabel 4F H'!E128*100,"-")) -> - | F128: =IF(OR('Tabel 4F H'!F128<5,'Tabel 4 H'!F128<0.5),"-",IFERROR('Tabel 4 H'!F128/'Tabel 4F H'!F128*100,"-")) -> - | G128: =IF(OR('Tabel 4F H'!G128<5,'Tabel 4 H'!G128<0.5),"-",IFERROR('Tabel 4 H'!G128/'Tabel 4F H'!G128*100,"-")) -> - | I128: =IF(OR('Tabel 4F H'!I128<5,'Tabel 4 H'!I128<0.5),"-",IFERROR('Tabel 4 H'!I128/'Tabel 4F H'!I128*100,"-")) -> -
A129: Levn.m.kand. | C129: =IF(OR('Tabel 4F H'!C129<5,'Tabel 4 H'!C129<0.5),"-",IFERROR('Tabel 4 H'!C129/'Tabel 4F H'!C129*100,"-")) -> - | D129: =IF(OR('Tabel 4F H'!D129<5,'Tabel 4 H'!D129<0.5),"-",IFERROR('Tabel 4 H'!D129/'Tabel 4F H'!D129*100,"-")) -> 7.142857143 | E129: =IF(OR('Tabel 4F H'!E129<5,'Tabel 4 H'!E129<0.5),"-",IFERROR('Tabel 4 H'!E129/'Tabel 4F H'!E129*100,"-")) -> - | F129: =IF(OR('Tabel 4F H'!F129<5,'Tabel 4 H'!F129<0.5),"-",IFERROR('Tabel 4 H'!F129/'Tabel 4F H'!F129*100,"-")) -> - | G129: =IF(OR('Tabel 4F H'!G129<5,'Tabel 4 H'!G129<0.5),"-",IFERROR('Tabel 4 H'!G129/'Tabel 4F H'!G129*100,"-")) -> - | I129: =IF(OR('Tabel 4F H'!I129<5,'Tabel 4 H'!I129<0.5),"-",IFERROR('Tabel 4 H'!I129/'Tabel 4F H'!I129*100,"-")) -> 3.703703704
A130: Dyrlæge | C130: =IF(OR('Tabel 4F H'!C130<5,'Tabel 4 H'!C130<0.5),"-",IFERROR('Tabel 4 H'!C130/'Tabel 4F H'!C130*100,"-")) -> - | D130: =IF(OR('Tabel 4F H'!D130<5,'Tabel 4 H'!D130<0.5),"-",IFERROR('Tabel 4 H'!D130/'Tabel 4F H'!D130*100,"-")) -> - | E130: =IF(OR('Tabel 4F H'!E130<5,'Tabel 4 H'!E130<0.5),"-",IFERROR('Tabel 4 H'!E130/'Tabel 4F H'!E130*100,"-")) -> - | F130: =IF(OR('Tabel 4F H'!F130<5,'Tabel 4 H'!F130<0.5),"-",IFERROR('Tabel 4 H'!F130/'Tabel 4F H'!F130*100,"-")) -> - | G130: =IF(OR('Tabel 4F H'!G130<5,'Tabel 4 H'!G130<0.5),"-",IFERROR('Tabel 4 H'!G130/'Tabel 4F H'!G130*100,"-")) -> 22.22222222 | I130: =IF(OR('Tabel 4F H'!I130<5,'Tabel 4 H'!I130<0.5),"-",IFERROR('Tabel 4 H'!I130/'Tabel 4F H'!I130*100,"-")) -> 2.631578947
A131: Farmaceut | C131: =IF(OR('Tabel 4F H'!C131<5,'Tabel 4 H'!C131<0.5),"-",IFERROR('Tabel 4 H'!C131/'Tabel 4F H'!C131*100,"-")) -> 10.90909091 | D131: =IF(OR('Tabel 4F H'!D131<5,'Tabel 4 H'!D131<0.5),"-",IFERROR('Tabel 4 H'!D131/'Tabel 4F H'!D131*100,"-")) -> - | E131: =IF(OR('Tabel 4F H'!E131<5,'Tabel 4 H'!E131<0.5),"-",IFERROR('Tabel 4 H'!E131/'Tabel 4F H'!E131*100,"-")) -> - | F131: =IF(OR('Tabel 4F H'!F131<5,'Tabel 4 H'!F131<0.5),"-",IFERROR('Tabel 4 H'!F131/'Tabel 4F H'!F131*100,"-")) -> 2.702702703 | G131: =IF(OR('Tabel 4F H'!G131<5,'Tabel 4 H'!G131<0.5),"-",IFERROR('Tabel 4 H'!G131/'Tabel 4F H'!G131*100,"-")) -> - | I131: =IF(OR('Tabel 4F H'!I131<5,'Tabel 4 H'!I131<0.5),"-",IFERROR('Tabel 4 H'!I131/'Tabel 4F H'!I131*100,"-")) -> 3.125
A132: Læge | C132: =IF(OR('Tabel 4F H'!C132<5,'Tabel 4 H'!C132<0.5),"-",IFERROR('Tabel 4 H'!C132/'Tabel 4F H'!C132*100,"-")) -> 3.296703297 | D132: =IF(OR('Tabel 4F H'!D132<5,'Tabel 4 H'!D132<0.5),"-",IFERROR('Tabel 4 H'!D132/'Tabel 4F H'!D132*100,"-")) -> 1.530612245 | E132: =IF(OR('Tabel 4F H'!E132<5,'Tabel 4 H'!E132<0.5),"-",IFERROR('Tabel 4 H'!E132/'Tabel 4F H'!E132*100,"-")) -> - | F132: =IF(OR('Tabel 4F H'!F132<5,'Tabel 4 H'!F132<0.5),"-",IFERROR('Tabel 4 H'!F132/'Tabel 4F H'!F132*100,"-")) -> 1.408450704 | G132: =IF(OR('Tabel 4F H'!G132<5,'Tabel 4 H'!G132<0.5),"-",IFERROR('Tabel 4 H'!G132/'Tabel 4F H'!G132*100,"-")) -> - | I132: =IF(OR('Tabel 4F H'!I132<5,'Tabel 4 H'!I132<0.5),"-",IFERROR('Tabel 4 H'!I132/'Tabel 4F H'!I132*100,"-")) -> 1.440329218
